Workbook

Sheet Cover
A1: Port of Melbourne
B2: Port of Melbourne Regulatory Model (Public Version)
B3: =Error_Message -> No errors identified
B6: =MAX($B$1:B5)+1 -> 1 | C6: Model overview
C8: =MAX($B$1:C7)+0.1 -> 1.1 | D8: Main purpose of the model
D9: This model demonstrates compliance of the Prescribed Services Tariffs against the requirements in the Pricing Order. The model also integrates cost allocation and efficient cost bounds calculations that were provide in separate models in prior regulatory periods.
D10: These include: - calculations to demonstrate PoM's allocation of actual and forecast operating and capital expenditure to individual Prescribed Services - calculations to estimate the standalone and avoidable cost of supply for the prescribed service bundles specified in the Pricing Order and to demonstrate that the revenues earned from these bundles fall within efficient pricing bounds.
C12: =MAX($B$1:C11)+0.1 -> 1.2 | D12: Disclaimer
D13: Appendix B - PoM’s Regulatory Model (the Model) relating to Prescribed Services for the 31 May 2022 Tariff Compliance Statement (TCS) has been provided at the request of the ESC as supplementary material to support the calculations contained in the TCS and should be examined in conjunction with the TCS. The Model complies with all relevant provisions of the Pricing Order and the forecasts and estimates contained within have been arrived at on a reasonable basis and represent the best forecasts or estimates possible in the circumstances.
B15: =MAX($B$1:B14)+1 -> 2 | C15: Model Notes
C17: =MAX($B$1:C16)+0.1 -> 2.1 | D17: Dollar basis
D18: All figures are nominal and all cash flows are assumed to occur mid year unless specified otherwise.
C19: =MAX($B$1:C18)+0.1 -> 2.2 | D19: Trade volumes
D20: BIS Oxford Economics (BIS Oxford) forecasts PoM’s trade volumes. These volumes are contained in a standalone model, prepared by BIS Oxford, which forms part of PoM’s 2022-23 TCS.
B22: END

Sheet Contents
A1: =Model_Name -> Port of Melbourne Regulatory Model (Public Version)
B2: 1 | C2: =MID(CELL("filename",B1),FIND("]",CELL("filename",B1))+1,255) -> Contents
C3: =Error_Message -> No errors identified
C6: Sheet # | E6: Sheet Name | H6: Description
C8: =C7+1 -> 1 | E8: Contents | H8: Contains a list of the Model worksheets and a description of each
C9: 2 | E9: ='Change Log'!C2 -> Change Log | H9: Contains a model change log summarising the structure changes since last ESC submission in May 2022
C10: 3 | E10: =Schematic!C2 -> Schematic | H10: Contains model schematic, worksheet colour keys and cell types
C11: 4 | E11: =Assumptions!$C$2 -> Assumptions | H11: Inputs key date and other input assumptions
C12: 5 | E12: =Data!$C$2 -> Data | H12: Inputs inflation, rate of return, capital base, expenditure, tariff and volume data
C13: 6 | E13: =Allocators!$C$2 -> Allocators | H13: Contains tables used to allocate costs and asset values to Prescribed Services and Prescribed Service Bundles
C14: 7 | E14: ='Cost Mapping'!$C$2 -> Cost Mapping | H14: Prepares mapping tables used to allocate actual and forecast expenditure to Prescribed Services
C15: 8 | E15: ='Bundle Mapping'!$C$2 -> Bundle Mapping | H15: Maps operating cost categories and asset classes to Prescribed Tariff Bundles
C16: 9 | E16: ='Forecast Revenue'!$C$2 -> Forecast Revenue | H16: Calculates actual and forecast revenue based on tariff and volume inputs, including revenue by prescribed tariff bundle
C17: 10 | E17: ='Opex Allocation'!$C$2 -> Opex Allocation | H17: Allocates actual and forecast operating expenditure to Prescribed Services
C18: 11 | E18: ='Capex Allocation'!$C$2 -> Capex Allocation | H18: Allocates actual and forecast capital expenditure to Prescribed Services
C19: 12 | E19: ='Prescribed Opex and Capex'!$C$2 -> Prescribed Opex And Capex | H19: Summarises prescribed operating and capital expenditure
C20: 13 | E20: ='Capital Base'!$C$2 -> Capital Base | H20: Calculates the capital base roll-forward
C21: 14 | E21: ='Return of Capital'!$C$2 -> Return Of Capital | H21: Calculates the return of capital
C22: 15 | E22: ='Required Revenue'!$C$2 -> Required Revenue | H22: Calculates the Aggregate Revenue Requirement (ARR)
C23: 16 | E23: Dashboard | H23: Provides a visual summary of the ARR, capital base, costs, revenue and efficient cost bounds
C24: 17 | E24: =Compliance!$C$2 -> Compliance | H24: Tests compliance of the proposed tariffs for the selected tariff compliance statement year against key PO clauses
C25: 18 | E25: ='Tariff Schedule'!$C$2 -> Tariff Schedule | H25: Outputs the tariff schedule for the selected tariff compliance statement year
C26: 19 | E26: =Checks!C2 -> Checks | H26: Contains a summary of error checks and alerts
B28: END

Sheet Change Log
A1: =Model_Name -> Port of Melbourne Regulatory Model (Public Version)
B2: =MATCH(C2,Contents!$E$8:$E$27,0) -> 2 | C2: =MID(CELL("filename",B1),FIND("]",CELL("filename",B1))+1,255) -> Change Log
C3: =Error_Message -> No errors identified
C5: [To Contents]
B6: =MAX($B$1:B5)+Subsection -> 2.01 | C6: Change Log
D8: Change # | E8: Item (e.g. Description of Change) | F8: Cell reference | G8: Further comments
E9: [Add file name and date submitted to the ESC]
D10: =D9+1 -> 1
D11: 2
D12: 3
D13: 4
D14: 5
D15: 6
D16: 7
D17: 8
D18: 9
D19: 10
B22: END

Sheet Schematic
A1: =Model_Name -> Port of Melbourne Regulatory Model (Public Version)
B2: =MATCH(C2,Contents!$E$8:$E$27,0) -> 3 | C2: =MID(CELL("filename",B1),FIND("]",CELL("filename",B1))+1,255) -> Schematic
C3: =Error_Message -> No errors identified
C5: [To Contents]
B6: =MAX($B$1:B5)+Subsection -> 3.01 | C6: Model Schematic
B36: =MAX($B$1:B35)+Subsection -> 3.02 | C36: Worksheet Colour Key
C38: Type | E38: Description
C39: Input | E39: Contains model inputs
C40: Calculation | E40: Contains model calculations
C41: Output | E41: Contains model outputs
C42: System | E42: Contains information to support model operation
C44: Each worksheet tab in the Model has been colour-coded to allow the user to easily identify the different worksheet categories.
B47: =MAX($B$1:B46)+Subsection -> 3.03 | C47: Cell Type
C49: The colour-coding of cells allows the user to clearly distinguish input areas from calculation areas.
C51: Cell Format | G51: Description
C53: Black font in yellow background | G53: Historical or Assumption Inputs
C54: Black font in blue background | G54: Forecast Inputs
C55: Black font in red background | G55: Inputs requiring update
C56: Blue font in white background | G56: Labels and notes
C57: Green font in white background | G57: Linking to other sheets
C58: Red font on white background | G58: Highlights
C59: Black font on white background | G59: Labels and calculations
B62: END

Sheet Assumptions
A1: =Model_Name -> Port of Melbourne Regulatory Model (Public Version)
B2: =MATCH(C2,Sheet_Names,0) -> 4 | C2: =PROPER(MID(CELL("filename", B1), FIND("]", CELL("filename", B1))+1, 100)) -> Assumptions
A3: =SUM(A7:A42) -> 0 | C3: =Error_Message -> No errors identified
C5: [To Contents]
B6: =MAX($B$1:B5)+Subsection -> 4.01 | C6: Year Assumptions
C8: This table inputs key dates and defined values used to structure the model.
C9: All references to 'years' are July to June years unless otherwise stated.
C11: Model Start
C12: First year | D12: Year ending | F12: 2015
C13: Period start | D13: Date | F13: 2014-07-01
C14: Period end | D14: Date | F14: 2015-06-30
C16: Display Years
C17: Tariff Compliance Statement Year | D17: Year ending | F17: 2023
C18: ESC Review Period
C19: First Year | D19: Year ending | F19: 2022
C20: Last Year | D20: Year ending | F20: =Review_Period_First_Year+4 -> 2026 | G20: =IF(Review_Period_Last_Year>=Review_Period_First_Year,0,1) -> 0
C21: Regulatory Period
C22: First Year | D22: Year ending | F22: 2023
C23: Last Year | D23: Year ending | F23: 2023 | G23: =IF(Regulatory_Period_Last_Year>=Regulatory_Period_First_Year,0,1) -> 0
C25: Port Lease
C26: First year | D26: Year ending | F26: 2017
C27: Term | D27: Years | F27: 50
C29: Tariff Adjustment Limit (TAL) Period
C30: First year | D30: Year ending | F30: =Port_Lease_First_Year -> 2017
C31: Last year | D31: Year ending | F31: 2037 | G31: =IF(TAL_Period_Last_Year>=TAL_Period_First_Year,0,1) -> 0
C33: Annualisation of Costs (for efficient cost bounds)
C34: Number of years to look forward | D34: # | F34: 15
C36: Defined Values
C37: Half | D37: Value | F37: 0.5
C38: Million | D38: Value | F38: 1000000
C39: Subsection | D39: Value | F39: 0.01
A41: =SUM(E41:G41) -> 0 | F41: =SUM(IF(ISERROR(F12:F39),1)) -> 0 | G41: =SUM(G12:G39) -> 0
B43: END

Sheet Data
A1: =Model_Name -> Port of Melbourne Regulatory Model (Public Version)
B2: =MATCH(C2,Sheet_Names,0) -> 5 | C2: =PROPER(MID(CELL("filename", B1), FIND("]", CELL("filename", B1))+1, 100)) -> Data
A3: =SUM(A5:A504) -> 0 | C3: =Error_Message -> No errors identified
C5: [To Contents]
B6: =MAX($B$1:B5)+Subsection -> 5.01 | C6: Annual Flags
H8: =IF(AND(H$15,NOT(E$15)),"Reg Period","") ->  | I8: =IF(AND(I$15,NOT(H$15)),"Reg Period","") ->  | P8: Reg Period
H9: =IF(AND(H$16,NOT(E$16)),"Review Period","") ->  | I9: =IF(AND(I$16,NOT(H$16)),"Review Period","") ->  | O9: Review Period
C10: Financial year ending | H10: =Base_Year -> 2015 | I10: =H10+1 -> 2016 | J10: 2017 | K10: 2018 | L10: 2019 | M10: 2020 | N10: 2021 | O10: 2022 | P10: 2023 | Q10: 2024 | R10: 2025 | S10: 2026 | T10: 2027 | U10: 2028 | V10: 2029 | W10: 2030 | X10: 2031 | Y10: 2032 | Z10: 2033 | AA10: 2034 | AB10: 2035 | AC10: 2036 | AD10: 2037 | AE10: 2038 | AF10: 2039 | AG10: 2040 | AH10: 2041 | AI10: 2042 | AJ10: 2043 | AK10: 2044 | AL10: 2045 | AM10: 2046 | AN10: 2047 | AO10: 2048 | AP10: 2049 | AQ10: 2050 | AR10: 2051 | AS10: 2052 | AT10: 2053 | AU10: 2054 | AV10: 2055 | AW10: 2056 | AX10: 2057 | AY10: 2058 | AZ10: 2059 | BA10: 2060 | BB10: 2061 | BC10: 2062 | BD10: 2063 | BE10: 2064 | BF10: 2065 | BG10: 2066
C11: Period start | H11: =Base_Year_Start_Date -> 2014-07-01 | I11: =H12+1 -> 2015-07-01 | J11: 2016-07-01 | K11: 2017-07-01 | L11: 2018-07-01 | M11: 2019-07-01 | N11: 2020-07-01 | O11: 2021-07-01 | P11: 2022-07-01 | Q11: 2023-07-01 | R11: 2024-07-01 | S11: 2025-07-01 | T11: 2026-07-01 | U11: 2027-07-01 | V11: 2028-07-01 | W11: 2029-07-01 | X11: 2030-07-01 | Y11: 2031-07-01 | Z11: 2032-07-01 | AA11: 2033-07-01 | AB11: 2034-07-01 | AC11: 2035-07-01 | AD11: 2036-07-01 | AE11: 2037-07-01 | AF11: 2038-07-01 | AG11: 2039-07-01 | AH11: 2040-07-01 | AI11: 2041-07-01 | AJ11: 2042-07-01 | AK11: 2043-07-01 | AL11: 2044-07-01 | AM11: 2045-07-01 | AN11: 2046-07-01 | AO11: =AN12+1 -> 2047-07-01 | AP11: 2048-07-01 | AQ11: 2049-07-01 | AR11: 2050-07-01 | AS11: 2051-07-01 | AT11: 2052-07-01 | AU11: 2053-07-01 | AV11: 2054-07-01 | AW11: 2055-07-01 | AX11: 2056-07-01 | AY11: 2057-07-01 | AZ11: 2058-07-01 | BA11: 2059-07-01 | BB11: 2060-07-01 | BC11: 2061-07-01 | BD11: 2062-07-01 | BE11: 2063-07-01 | BF11: 2064-07-01 | BG11: 2065-07-01
C12: Period end | H12: =Base_Year_End_Date -> 2015-06-30 | I12: =EOMONTH(H12,12) -> 2016-06-30 | J12: 2017-06-30 | K12: 2018-06-30 | L12: 2019-06-30 | M12: 2020-06-30 | N12: 2021-06-30 | O12: 2022-06-30 | P12: 2023-06-30 | Q12: 2024-06-30 | R12: 2025-06-30 | S12: 2026-06-30 | T12: 2027-06-30 | U12: 2028-06-30 | V12: 2029-06-30 | W12: 2030-06-30 | X12: 2031-06-30 | Y12: 2032-06-30 | Z12: 2033-06-30 | AA12: 2034-06-30 | AB12: 2035-06-30 | AC12: 2036-06-30 | AD12: 2037-06-30 | AE12: 2038-06-30 | AF12: 2039-06-30 | AG12: 2040-06-30 | AH12: 2041-06-30 | AI12: 2042-06-30 | AJ12: 2043-06-30 | AK12: 2044-06-30 | AL12: 2045-06-30 | AM12: 2046-06-30 | AN12: 2047-06-30 | AO12: =EOMONTH(AN12,12) -> 2048-06-30 | AP12: 2049-06-30 | AQ12: 2050-06-30 | AR12: 2051-06-30 | AS12: 2052-06-30 | AT12: 2053-06-30 | AU12: 2054-06-30 | AV12: 2055-06-30 | AW12: 2056-06-30 | AX12: 2057-06-30 | AY12: 2058-06-30 | AZ12: 2059-06-30 | BA12: 2060-06-30 | BB12: 2061-06-30 | BC12: 2062-06-30 | BD12: 2063-06-30 | BE12: 2064-06-30 | BF12: 2065-06-30 | BG12: 2066-06-30
C13: Lease year | H13: =IF(H$10<Port_Lease_First_Year,0,IF(H$10=Port_Lease_First_Year,1,IF(H$10<Port_Lease_First_Year+Port_Lease_Term,E$13+1,0))) -> 0 | I13: =IF(I$10<Port_Lease_First_Year,0,IF(I$10=Port_Lease_First_Year,1,IF(I$10<Port_Lease_First_Year+Port_Lease_Term,H$13+1,0))) -> 0 | J13: 1 | K13: 2 | L13: 3 | M13: 4 | N13: 5 | O13: 6 | P13: 7 | Q13: 8 | R13: 9 | S13: 10 | T13: 11 | U13: 12 | V13: 13 | W13: 14 | X13: 15 | Y13: 16 | Z13: 17 | AA13: 18 | AB13: 19 | AC13: 20 | AD13: 21 | AE13: 22 | AF13: 23 | AG13: 24 | AH13: 25 | AI13: 26 | AJ13: 27 | AK13: 28 | AL13: 29 | AM13: 30 | AN13: =IF(AN$10<Port_Lease_First_Year,0,IF(AN$10=Port_Lease_First_Year,1,IF(AN$10<Port_Lease_First_Year+Port_Lease_Term,AM$13+1,0))) -> 31 | AO13: 32 | AP13: 33 | AQ13: 34 | AR13: 35 | AS13: 36 | AT13: 37 | AU13: 38 | AV13: 39 | AW13: 40 | AX13: 41 | AY13: 42 | AZ13: 43 | BA13: 44 | BB13: 45 | BC13: 46 | BD13: 47 | BE13: 48 | BF13: 49 | BG13: 50
C14: Tariff adjustment limit apply (1=yes) | H14: =IF(OR(H$10<TAL_Period_First_Year,H$10>TAL_Period_Last_Year),0,1) -> 0 | I14: 0 | J14: 1 | K14: 1 | L14: 1 | M14: 1 | N14: 1 | O14: 1 | P14: 1 | Q14: 1 | R14: 1 | S14: 1 | T14: 1 | U14: 1 | V14: 1 | W14: 1 | X14: 1 | Y14: 1 | Z14: 1 | AA14: 1 | AB14: 1 | AC14: 1 | AD14: 1 | AE14: 0 | AF14: 0 | AG14: 0 | AH14: 0 | AI14: 0 | AJ14: 0 | AK14: 0 | AL14: 0 | AM14: 0 | AN14: =IF(OR(AN$10<TAL_Period_First_Year,AN$10>TAL_Period_Last_Year),0,1) -> 0 | AO14: 0 | AP14: 0 | AQ14: 0 | AR14: 0 | AS14: 0 | AT14: 0 | AU14: 0 | AV14: 0 | AW14: 0 | AX14: 0 | AY14: 0 | AZ14: 0 | BA14: 0 | BB14: 0 | BC14: 0 | BD14: 0 | BE14: 0 | BF14: 0 | BG14: 0
C15: Regulatory period (1=yes) | H15: =IF(OR(H$10<Regulatory_Period_First_Year,H$10>Regulatory_Period_Last_Year),0,1) -> 0 | I15: 0 | J15: 0 | K15: 0 | L15: 0 | M15: 0 | N15: 0 | O15: 0 | P15: 1 | Q15: 0 | R15: 0 | S15: 0 | T15: 0 | U15: 0 | V15: 0 | W15: 0 | X15: 0 | Y15: 0 | Z15: 0 | AA15: 0 | AB15: 0 | AC15: 0 | AD15: 0 | AE15: 0 | AF15: 0 | AG15: 0 | AH15: 0 | AI15: 0 | AJ15: 0 | AK15: 0 | AL15: 0 | AM15: 0 | AN15: =IF(OR(AN$10<Regulatory_Period_First_Year,AN$10>Regulatory_Period_Last_Year),0,1) -> 0 | AO15: 0 | AP15: 0 | AQ15: 0 | AR15: 0 | AS15: 0 | AT15: 0 | AU15: 0 | AV15: 0 | AW15: 0 | AX15: 0 | AY15: 0 | AZ15: 0 | BA15: 0 | BB15: 0 | BC15: 0 | BD15: 0 | BE15: 0 | BF15: 0 | BG15: 0
C16: Review period (1=yes) | H16: =IF(OR(H$10<Review_Period_First_Year,H$10>Review_Period_Last_Year),0,1) -> 0 | I16: 0 | J16: 0 | K16: 0 | L16: 0 | M16: 0 | N16: 0 | O16: 1 | P16: 1 | Q16: 1 | R16: 1 | S16: 1 | T16: 0 | U16: 0 | V16: 0 | W16: 0 | X16: 0 | Y16: 0 | Z16: 0 | AA16: 0 | AB16: 0 | AC16: 0 | AD16: 0 | AE16: 0 | AF16: 0 | AG16: 0 | AH16: 0 | AI16: 0 | AJ16: 0 | AK16: 0 | AL16: 0 | AM16: 0 | AN16: =IF(OR(AN$10<Review_Period_First_Year,AN$10>Review_Period_Last_Year),0,1) -> 0 | AO16: 0 | AP16: 0 | AQ16: 0 | AR16: 0 | AS16: 0 | AT16: 0 | AU16: 0 | AV16: 0 | AW16: 0 | AX16: 0 | AY16: 0 | AZ16: 0 | BA16: 0 | BB16: 0 | BC16: 0 | BD16: 0 | BE16: 0 | BF16: 0 | BG16: 0
C17: Tariff compliance statement year (1=yes) | H17: =IF(H$10=TCS_Year,1,0) -> 0 | I17: 0 | J17: 0 | K17: 0 | L17: 0 | M17: 0 | N17: 0 | O17: 0 | P17: 1 | Q17: 0 | R17: 0 | S17: 0 | T17: 0 | U17: 0 | V17: 0 | W17: 0 | X17: 0 | Y17: 0 | Z17: 0 | AA17: 0 | AB17: 0 | AC17: 0 | AD17: 0 | AE17: 0 | AF17: 0 | AG17: 0 | AH17: 0 | AI17: 0 | AJ17: 0 | AK17: 0 | AL17: 0 | AM17: 0 | AN17: =IF(AN$10=TCS_Year,1,0) -> 0 | AO17: 0 | AP17: 0 | AQ17: 0 | AR17: 0 | AS17: 0 | AT17: 0 | AU17: 0 | AV17: 0 | AW17: 0 | AX17: 0 | AY17: 0 | AZ17: 0 | BA17: 0 | BB17: 0 | BC17: 0 | BD17: 0 | BE17: 0 | BF17: 0 | BG17: 0
B20: =MAX($B$1:B19)+Subsection -> 5.02 | C20: Inflation
C22: This section inputs Consumer Price information required to index the capital base, to escalate the port licence fee from one year to the next, and to calculate the tariff adjustment limit. As per Clause 14, the percentage change in CPI between March quarters, lagged by one year, is used to adjust tariffs.
C23: The Melbourne CPI quarters are input by financial year, which means that the first quarter in the year is September, the second quarter is December, the third is March and the fourth is June. The quarterly CPI values are used to calculate the annual change in the average of four quarters from one calendar year to the next.
C25: Consumer Price Index Series (actuals)
C26: ABS CPI All Groups Index Number | H26: (Enter values that are available)
C27: Weighted average of eight capital cities | H27: Actuals | I27: Actuals | J27: Actuals | K27: Actuals | L27: Actuals | M27: Actuals | N27: Actuals | O27: Actuals
C28: March | D28: # | H28: 106.8 | I28: 108.2 | J28: 110.5 | K28: 112.6 | L28: 114.1 | M28: 116.6 | N28: 117.9 | O28: 123.9
C29: June | D29: # | H29: 107.5 | I29: 108.6 | J29: 110.7 | K29: 113 | L29: 114.8 | M29: 114.4 | N29: 118.8
C30: Melbourne (input by financial year)
C31: September | D31: # | I31: 107.6 | J31: 109.1 | K31: 111.5 | L31: 114 | M31: 115.9 | N31: 116.7 | O31: 120.1
C32: December | D32: # | I32: 108.3 | J32: 109.9 | K32: 112.3 | L32: 114.6 | M32: 116.9 | N32: 118.4 | O32: 121.4
C33: March | D33: # | H33: 106.4 | I33: 108.2 | J33: 110.9 | K33: 113.3 | L33: 114.7 | M33: 117.8 | N33: 118.8 | O33: 124.2
C34: June | D34: # | H34: 107.1 | I34: 108.6 | J34: 111 | K34: 113.8 | L34: 115.3 | M34: 115.7 | N34: 119.1
C36: Inflation (Lagged) | F36: Index | G36: Lagged
C37: ="Weighted average of eight capital cities: "&CPI_Quarter -> Weighted average of eight capital cities: March | D37: % | F37: March | G37: Yes | J37: =IF(I28="","",IF(CPI_Lag="Yes",IF(CPI_Quarter=$C$28,I28/H28,I29/H29)-1,IF(CPI_Quarter=$C$28,J28/I28,J29/I29)-1)) -> 0.01310861423 | K37: 0.02125693161 | L37: 0.01900452489 | M37: 0.01332149201 | N37: 0.02191060473 | O37: 0.01114922813 | P37: 0.05089058524 | AP37: =IF(AO28="","",IF(CPI_Lag="Yes",IF(CPI_Quarter=$C$28,AO28/AN28,AO29/AN29)-1,IF(CPI_Quarter=$C$28,AP28/AO28,AP29/AO29)-1)) -> 
C38: Melbourne: year on year average of four calendar quarters | D38: % | K38: =IF(COUNTIF(J31:J32,"")>0,"",SUM(J31:J32,I33:I34)/SUM(I31:I32,H33:H34)-1) -> 0.01490451793 | L38: =IF(COUNTIF(K31:K32,"")>0,"",SUM(K31:K32,J33:J34)/SUM(J31:J32,I33:I34)-1) -> 0.02271684259 | M38: 0.02243661656 | N38: 0.01558042572 | O38: 0.01253241141 | P38: 0.02304737516
C40: Inflation | Q40: Forecasts | R40: Forecasts | S40: Forecasts | T40: Forecasts | U40: Forecasts | V40: Forecasts | W40: Forecasts | X40: Forecasts | Y40: Forecasts | Z40: Forecasts | AA40: Forecasts | AB40: Forecasts | AC40: Forecasts | AD40: Forecasts | AE40: Forecasts | AF40: Forecasts | AG40: Forecasts | AH40: Forecasts | AI40: Forecasts | AJ40: Forecasts | AK40: Forecasts | AL40: Forecasts | AM40: Forecasts | AN40: Forecasts | AO40: Forecasts | AP40: Forecasts | AQ40: Forecasts | AR40: Forecasts | AS40: Forecasts | AT40: Forecasts | AU40: Forecasts | AV40: Forecasts | AW40: Forecasts | AX40: Forecasts | AY40: Forecasts | AZ40: Forecasts | BA40: Forecasts | BB40: Forecasts | BC40: Forecasts | BD40: Forecasts | BE40: Forecasts | BF40: Forecasts | BG40: Forecasts
C41: Forecast Inflation (used if actual inflation not available)
C42: Inflation (average of 8 capital cities) | J42: =IF(J37="",J$41,J37) -> 0.01310861423 | K42: 0.02125693161 | L42: 0.01900452489 | M42: 0.01332149201 | N42: 0.02191060473 | O42: 0.01114922813 | P42: 0.05089058524 | Q42: 0 | R42: 0 | S42: 0 | T42: 0 | U42: 0 | V42: 0 | W42: 0 | X42: 0 | Y42: 0 | Z42: 0 | AA42: 0 | AB42: 0 | AC42: 0 | AD42: 0 | AE42: 0 | AF42: 0 | AG42: 0 | AH42: 0 | AI42: 0 | AJ42: 0 | AK42: 0 | AL42: 0 | AM42: 0 | AN42: 0 | AO42: 0 | AP42: 0 | AQ42: 0 | AR42: 0 | AS42: 0 | AT42: 0 | AU42: 0 | AV42: 0 | AW42: 0 | AX42: 0 | AY42: 0 | AZ42: 0 | BA42: 0 | BB42: 0 | BC42: 0 | BD42: 0 | BE42: 0 | BF42: 0 | BG42: 0
C43: Melbourne inflation (average of four quarters) | K43: 0.01490451793 | L43: 0.02271684259 | M43: 0.02243661656 | N43: 0.01558042572 | O43: 0.01253241141 | P43: 0.02304737516 | Q43: 0 | R43: 0 | S43: 0 | T43: 0 | U43: 0 | V43: 0 | W43: 0 | X43: 0 | Y43: 0 | Z43: 0 | AA43: 0 | AB43: 0 | AC43: 0 | AD43: 0 | AE43: 0 | AF43: 0 | AG43: 0 | AH43: 0 | AI43: 0 | AJ43: 0 | AK43: 0 | AL43: 0 | AM43: 0 | AN43: 0 | AO43: 0 | AP43: 0 | AQ43: 0 | AR43: 0 | AS43: 0 | AT43: 0 | AU43: 0 | AV43: 0 | AW43: 0 | AX43: 0 | AY43: 0 | AZ43: 0 | BA43: 0 | BB43: 0 | BC43: 0 | BD43: 0 | BE43: 0 | BF43: 0 | BG43: 0
C45: Indexes (using the weighted average of eight capital cities)
C46: End Year Index | D46: # | I46: 1 | J46: =I46*(1+J42) -> 1.013108614 | K46: =J46*(1+K42) -> 1.034644195 | L46: 1.054307116 | M46: 1.06835206 | N46: 1.0917603 | O46: 1.103932584 | P46: 1.16011236 | Q46: 1.16011236 | R46: 1.16011236 | S46: 1.16011236 | T46: 1.16011236 | U46: 1.16011236 | V46: 1.16011236 | W46: 1.16011236 | X46: 1.16011236 | Y46: 1.16011236 | Z46: 1.16011236 | AA46: 1.16011236 | AB46: 1.16011236 | AC46: 1.16011236 | AD46: 1.16011236 | AE46: 1.16011236 | AF46: 1.16011236 | AG46: 1.16011236 | AH46: 1.16011236 | AI46: 1.16011236 | AJ46: 1.16011236 | AK46: 1.16011236 | AL46: 1.16011236 | AM46: 1.16011236 | AN46: 1.16011236 | AO46: 1.16011236 | AP46: 1.16011236 | AQ46: 1.16011236 | AR46: 1.16011236 | AS46: 1.16011236 | AT46: 1.16011236 | AU46: 1.16011236 | AV46: 1.16011236 | AW46: 1.16011236 | AX46: 1.16011236 | AY46: 1.16011236 | AZ46: 1.16011236 | BA46: 1.16011236 | BB46: 1.16011236 | BC46: 1.16011236 | BD46: 1.16011236 | BE46: 1.16011236 | BF46: 1.16011236 | BG46: =BF46*(1+BG42) -> 1.16011236
C47: Mid Year Index | D47: # | I47: 1 | J47: =J46/(1+J42)^Half -> 1.006532967 | K47: 1.023819782 | L47: 1.044429384 | M47: 1.061306355 | N47: 1.079992762 | O47: 1.097829572 | P47: 1.131673908 | Q47: 1.16011236 | R47: 1.16011236 | S47: 1.16011236 | T47: 1.16011236 | U47: 1.16011236 | V47: 1.16011236 | W47: 1.16011236 | X47: 1.16011236 | Y47: 1.16011236 | Z47: 1.16011236 | AA47: 1.16011236 | AB47: 1.16011236 | AC47: 1.16011236 | AD47: 1.16011236 | AE47: 1.16011236 | AF47: 1.16011236 | AG47: 1.16011236 | AH47: 1.16011236 | AI47: 1.16011236 | AJ47: 1.16011236 | AK47: 1.16011236 | AL47: 1.16011236 | AM47: 1.16011236 | AN47: 1.16011236 | AO47: 1.16011236 | AP47: =AP46/(1+AP42)^Half -> 1.16011236 | AQ47: 1.16011236 | AR47: 1.16011236 | AS47: 1.16011236 | AT47: 1.16011236 | AU47: 1.16011236 | AV47: 1.16011236 | AW47: 1.16011236 | AX47: 1.16011236 | AY47: 1.16011236 | AZ47: 1.16011236 | BA47: 1.16011236 | BB47: 1.16011236 | BC47: 1.16011236 | BD47: 1.16011236 | BE47: 1.16011236 | BF47: 1.16011236 | BG47: 1.16011236
B50: =MAX($B$1:B49)+Subsection -> 5.03 | C50: Rate of Return
C52: This section inputs the pre-tax nominal rate of return required by Clause 4.3 of the Pricing Order.
C54: Rate of Return | J54: Actuals | K54: Actuals | L54: Actuals | M54: Actuals | N54: Actuals | O54: Actuals | P54: Forecasts | Q54: Forecasts | R54: Forecasts | S54: Forecasts | T54: Forecasts | U54: Forecasts | V54: Forecasts | W54: Forecasts | X54: Forecasts | Y54: Forecasts | Z54: Forecasts | AA54: Forecasts | AB54: Forecasts | AC54: Forecasts | AD54: Forecasts | AE54: Forecasts | AF54: Forecasts | AG54: Forecasts | AH54: Forecasts | AI54: Forecasts | AJ54: Forecasts | AK54: Forecasts | AL54: Forecasts | AM54: Forecasts | AN54: Forecasts | AO54: Forecasts | AP54: Forecasts | AQ54: Forecasts | AR54: Forecasts | AS54: Forecasts | AT54: Forecasts | AU54: Forecasts | AV54: Forecasts | AW54: Forecasts | AX54: Forecasts | AY54: Forecasts | AZ54: Forecasts | BA54: Forecasts | BB54: Forecasts | BC54: Forecasts | BD54: Forecasts | BE54: Forecasts | BF54: Forecasts | BG54: Forecasts
C55: Pre-Tax Nominal WACC | D55: % | J55: 0.1153660072 | K55: 0.1153660072 | L55: 0.1151959821 | M55: 0.1046 | N55: 0.0893 | O55: 0.0823 | P55: 0.0899
C56: Pre-Tax Real WACC | D56: % | J56: =(1+J55)/(1+J42)-1 -> 0.1009342844 | K56: 0.0921502442 | L56: 0.09439747802 | M56: 0.09007852761 | N56: 0.06594451115 | O56: 0.07036624258 | P56: 0.03712033898 | Q56: 0 | R56: 0 | S56: 0 | T56: 0 | U56: 0 | V56: 0 | W56: 0 | X56: 0 | Y56: 0 | Z56: 0 | AA56: 0 | AB56: 0 | AC56: 0 | AD56: 0 | AE56: 0 | AF56: 0 | AG56: 0 | AH56: 0 | AI56: 0 | AJ56: 0 | AK56: 0 | AL56: 0 | AM56: 0 | AN56: 0 | AO56: 0 | AP56: =(1+AP55)/(1+AP42)-1 -> 0 | AQ56: 0 | AR56: 0 | AS56: 0 | AT56: 0 | AU56: 0 | AV56: 0 | AW56: 0 | AX56: 0 | AY56: 0 | AZ56: 0 | BA56: 0 | BB56: 0 | BC56: 0 | BD56: 0 | BE56: 0 | BF56: 0 | BG56: 0
B59: =MAX($B$1:B58)+Subsection -> 5.04 | C59: Capital Base and Depreciation
C61: This section inputs the initial capital base for the start of the 2017 financial year as per Clause 4.7 of the Pricing Order, split by asset class, along with remaining and standard lives. It also includes other inputs used to apply depreciation over the Port Lease Period.
C62: This data is used to roll-forward the capital base as required by Clause 4.2 of the Pricing Order, including an alternative depreciation method.
C63: The value of the initial capital base includes the value of the PCP Capital Expenditure, as per Clauses 4.2.3 and 4.7.2. Remaining and standard lives are set to a maximum of 50 years, being the term of the port lease.
J65: Initial Capital Base | K65: Remaining Life | L65: Economic Life | N65: Initial Unrecovered Depreciation
C66: Asset Classes | J66: A$m, $ as at 1 July 2016 | K66: Years | L66: Years (whole years only) | N66: A$m
C67: Shared Channel | D67: A$m, years | J67: 448.950173 | K67: 50 | L67: 50 | N67: 0
C68: Shared Channel Over-Dredge | D68: A$m, years | J68: 142.858528 | K68: 1.5 | L68: 3 | N68: 0
C69: Melbourne Channel | D69: A$m, years | J69: 1914.31436 | K69: 50 | L69: 50 | N69: 0
C70: Melbourne Channel Over-Dredge | D70: A$m, years | J70: 140.479553 | K70: 1.5 | L70: 3 | N70: 0
C71: Channel Protection Assets | D71: A$m, years | J71: 61.214477 | K71: 23 | L71: 50 | N71: 0
C72: Channel Service Protection | D72: A$m, years | J72: 7.083659 | K72: 14 | L72: 40 | N72: 0
C73: Roads | D73: A$m, years | J73: 39.527847 | K73: 8 | L73: 20 | N73: 0
C74: Port Rail Transformation Agreement | D74: A$m, years | J74: 0 | K74: 0 | L74: 30 | N74: 0
C75: Other Rail | D75: A$m, years | J75: 29.706514 | K75: 18 | L75: 30 | N75: 0
C76: Buildings | D76: A$m, years | J76: 2.825688 | K76: 26 | L76: 25 | N76: 0
C77: Wharves - Initial Capital Asset Value / Renewal | D77: A$m, years | J77: 636.115684 | K77: 23 | L77: 25 | N77: 0
C78: Wharves - Growth | D78: A$m, years | J78: 0 | K78: 0 | L78: 50 | N78: 0
C79: Plant | D79: A$m, years | J79: 41.780777 | K79: 18 | L79: 10 | N79: 0
C80: Land | D80: A$m, years | J80: 40.359654 | K80: 50 | L80: 50 | N80: 0
C81: Port Capacity Project - Initial Capital Asset Value | D81: A$m, years | J81: 636.830808 | K81: 50 | L81: 50 | N81: 0
C82: Port Capacity Project - Wharves | D82: A$m, years | J82: 0 | K82: 0 | L82: 50 | N82: 0
C83: Port Capacity Project - Civil | D83: A$m, years | J83: 0 | K83: 0 | L83: 30 | N83: 0
C84: Navigational Aids | D84: A$m, years | J84: 0 | K84: 0 | L84: 25 | N84: 0
C85: Utilities | D85: A$m, years | J85: 0 | K85: 0 | L85: 30 | N85: 0
C86: Civil | D86: A$m, years | J86: 0 | K86: 0 | L86: 40 | N86: 0
C87: Minor Capital Works | D87: A$m, years | J87: 0 | K87: 0 | L87: 25 | N87: 0
C88: Deferred Depreciation Asset | D88: A$m, years | J88: 0 | K88: 0 | L88: 50 | N88: 0
C90: Total | D90: A$m | J90: =SUM(J67:J88) -> 4142.047722 | N90: =SUM(N67:N88) -> 0
A92: =SUM(E92:BG92) -> 0 | D92: Check → | J92: =IF(ISERROR(J90),1,0) -> 0 | N92: =IF(ISERROR(N90),1,0) -> 0
C95: Depreciation Method Inputs | J95: Actuals | K95: Actuals | L95: Actuals | M95: Actuals | N95: Actuals | O95: Forecasts | P95: Forecasts | Q95: Forecasts | R95: Forecasts | S95: Forecasts | T95: Forecasts | U95: Forecasts | V95: Forecasts | W95: Forecasts | X95: Forecasts | Y95: Forecasts | Z95: Forecasts | AA95: Forecasts | AB95: Forecasts | AC95: Forecasts | AD95: Forecasts | AE95: Forecasts | AF95: Forecasts | AG95: Forecasts | AH95: Forecasts | AI95: Forecasts | AJ95: Forecasts | AK95: Forecasts | AL95: Forecasts | AM95: Forecasts | AN95: Forecasts | AO95: Forecasts | AP95: Forecasts | AQ95: Forecasts | AR95: Forecasts | AS95: Forecasts | AT95: Forecasts | AU95: Forecasts | AV95: Forecasts | AW95: Forecasts | AX95: Forecasts | AY95: Forecasts | AZ95: Forecasts | BA95: Forecasts | BB95: Forecasts | BC95: Forecasts | BD95: Forecasts | BE95: Forecasts | BF95: Forecasts | BG95: Forecasts
C96: Straight line depreciation method apply (1=yes) | D96: Flag | J96: =J14 -> 1 | K96: 1 | L96: 1 | M96: 1 | N96: 1 | O96: 1 | P96: 1 | Q96: 1 | R96: 1 | S96: 1 | T96: 1 | U96: 1 | V96: 1 | W96: 1 | X96: 1 | Y96: 1 | Z96: 1 | AA96: 1 | AB96: 1 | AC96: 1 | AD96: 1 | AE96: 0 | AF96: 0 | AG96: 0 | AH96: 0 | AI96: 0 | AJ96: 0 | AK96: 0 | AL96: 0 | AM96: 0 | AN96: 0 | AO96: 0 | AP96: =AP14 -> 0 | AQ96: 0 | AR96: 0 | AS96: 0 | AT96: 0 | AU96: 0 | AV96: 0 | AW96: 0 | AX96: 0 | AY96: 0 | AZ96: 0 | BA96: 0 | BB96: 0 | BC96: 0 | BD96: 0 | BE96: 0 | BF96: 0 | BG96: 0
C97: Tilted annuity tilt factor | D97: # | J97: =J101 -> 0.025 | K97: =J97 -> 0.025 | L97: =K97 -> 0.025 | M97: 0.025 | N97: 0.025 | O97: 0.025 | P97: 0.025 | Q97: 0.025 | R97: 0.025 | S97: 0.025 | T97: 0.025 | U97: 0.025 | V97: 0.025 | W97: 0.025 | X97: 0.025 | Y97: 0.025 | Z97: 0.025 | AA97: 0.025 | AB97: 0.025 | AC97: 0.025 | AD97: 0.025 | AE97: 0.025 | AF97: 0.025 | AG97: 0.025 | AH97: 0.025 | AI97: 0.025 | AJ97: 0.025 | AK97: 0.025 | AL97: 0.025 | AM97: 0.025 | AN97: 0.025 | AO97: 0.025 | AP97: 0.025 | AQ97: 0.025 | AR97: 0.025 | AS97: 0.025 | AT97: 0.025 | AU97: 0.025 | AV97: 0.025 | AW97: 0.025 | AX97: 0.025 | AY97: 0.025 | AZ97: 0.025 | BA97: 0.025 | BB97: 0.025 | BC97: 0.025 | BD97: 0.025 | BE97: 0.025 | BF97: 0.025 | BG97: 0.025
C100: Solve for Common Tilt Factor that Minimises Variance
C101: Common tilt factor | D101: % | J101: 0.025
C102: Standard deviation of expected WATI changes from the first year of the post-TAL period | D102: % | J102: 0.0122985038 | K102: ◄ This value is the standard deviation of volume-weighted annual percentage changes in forecast tariffs over the post-TAL period. As the standard deviation is the square root of variance, minimising the standard deviation will also minimise the variance.
B106: =MAX($B$1:B93)+Subsection -> 5.05 | C106: Capital Expenditure by Service Allocation and Asset Class
C108: This section inputs the actual and forecast gross efficient capital expenditure as required by Clauses 4.2.1(c) and 4.2.6 of the Pricing Order when rolling forward the capital base. Values are expressed in mid year dollars.
C110: Dedicated Prescribed Capex | J110: Actuals | K110: Actuals | L110: Actuals | M110: Actuals | N110: Actuals | O110: Forecasts | P110: Forecasts | Q110: Forecasts | R110: Forecasts | S110: Forecasts | T110: Forecasts | U110: Forecasts | V110: Forecasts | W110: Forecasts | X110: Forecasts | Y110: Forecasts | Z110: Forecasts | AA110: Forecasts | AB110: Forecasts | AC110: Forecasts | AD110: Forecasts | AE110: Forecasts | AF110: Forecasts | AG110: Forecasts | AH110: Forecasts | AI110: Forecasts | AJ110: Forecasts | AK110: Forecasts | AL110: Forecasts | AM110: Forecasts | AN110: Forecasts | AO110: Forecasts | AP110: Forecasts | AQ110: Forecasts | AR110: Forecasts | AS110: Forecasts | AT110: Forecasts | AU110: Forecasts | AV110: Forecasts | AW110: Forecasts | AX110: Forecasts | AY110: Forecasts | AZ110: Forecasts | BA110: Forecasts | BB110: Forecasts | BC110: Forecasts | BD110: Forecasts | BE110: Forecasts | BF110: Forecasts | BG110: Forecasts
C111: =Asset_Classes -> Shared Channel | D111: A$m | J111: 0 | K111: 0 | L111: 0 | M111: 0 | N111: 0 | O111: 0 | P111: 0
C112: Shared Channel Over-Dredge | D112: A$m | J112: 5.953863018 | K112: 4.959745829 | L112: 0 | M112: 0 | N112: 0 | O112: 3.63488891 | P112: 0
C113: Melbourne Channel | D113: A$m | J113: 0 | K113: 0.305041279 | L113: 0.6058670362 | M113: 13.64567653 | N113: 0.2251314567 | O113: 0.6028697648 | P113: 0
C114: Melbourne Channel Over-Dredge | D114: A$m | J114: 2.344203906 | K114: 1.983913647 | L114: 4.376058471 | M114: 18.98183454 | N114: 0.6787370398 | O114: 6.911635115 | P114: 2.052161044
C115: Channel Protection Assets | D115: A$m | J115: 0 | K115: 0 | L115: 0 | M115: 0 | N115: 0 | O115: 0 | P115: 0
C116: Channel Service Protection | D116: A$m | J116: 0 | K116: 0 | L116: 0.04687660327 | M116: 1.196954515 | N116: 0.4309618787 | O116: 3.733634819 | P116: 4.474151724
C117: Roads | D117: A$m | J117: 0.07915662842 | K117: 1.481787507 | L117: 0.2320430851 | M117: 1.4968022 | N117: 1.6768051 | O117: 0 | P117: 7.704836542
C118: Port Rail Transformation Agreement | D118: A$m | J118: 0 | K118: 2.147223742 | L118: 2.602061321 | M118: 33.09678106 | N118: 11.70459142 | O118: 70.71261433 | P118: 90.53436582
C119: Other Rail | D119: A$m | J119: 0.103528426 | K119: 0.1886532686 | L119: 0.7102630102 | M119: 1.224737544 | N119: 0.4192151414 | O119: 2.681542193 | P119: 3.154830399
C120: Buildings | D120: A$m | J120: 0 | K120: 0 | L120: 0 | M120: 0.07404022418 | N120: 0 | O120: 0 | P120: 0
C121: Wharves - Initial Capital Asset Value / Renewal | D121: A$m | J121: 16.41228165 | K121: 31.11618186 | L121: 43.99308788 | M121: 29.41443393 | N121: 20.4246698 | O121: 49.18666812 | P121: 35.29245572
C122: Wharves - Growth | D122: A$m | J122: 2.022783499 | K122: 3.290195133 | L122: -1.316549089 | M122: 6.912228404 | N122: 4.794830634 | O122: 35.65197165 | P122: 37.02384712
C123: Plant | D123: A$m | J123: 0.69303904 | K123: 0.11313042 | L123: 0.3643076389 | M123: 0.716205892 | N123: 1.224299822 | O123: 2.686928176 | P123: 4.988241147
C124: Land | D124: A$m | J124: 0 | K124: 0 | L124: 0 | M124: 0 | N124: 0 | O124: 0 | P124: 0
C125: Port Capacity Project - Initial Capital Asset Value | D125: A$m | J125: 0 | K125: 0 | L125: 0 | M125: 0 | N125: 0 | O125: 0 | P125: 0
C126: Port Capacity Project - Wharves | D126: A$m | J126: 25.27178626 | K126: 1.458305556 | L126: 0 | M126: 0 | N126: 0 | O126: 0 | P126: 0
C127: Port Capacity Project - Civil | D127: A$m | J127: 17.63498069 | K127: 0.05277257015 | L127: 0 | M127: 0 | N127: 0 | O127: 0 | P127: 0
C128: Navigational Aids | D128: A$m | J128: 1.546723497 | K128: 0.4883953055 | L128: 0.3313673388 | M128: 0 | N128: 0.3787537843 | O128: 2.905208608 | P128: 2.073144286
C129: Utilities | D129: A$m | J129: 0 | K129: 0 | L129: 0.07090380346 | M129: 0.06340184977 | N129: 0 | O129: 3.298113386 | P129: 2.780279533
C130: Civil | D130: A$m | J130: 0 | K130: 0.1569209536 | L130: 1.04964574 | M130: 0.02814027824 | N130: -0.1040006584 | O130: 0 | P130: 0
C131: Minor Capital Works | D131: A$m | J131: 0 | K131: 1.171219443 | L131: 1.561678799 | M131: 3.304213539 | N131: 2.459485659 | O131: 3.144735002 | P131: 1.363910714
C132: Deferred Depreciation Asset | D132: A$m
C134: ="Total "&C110 -> Total Dedicated Prescribed Capex | D134: A$m | J134: =SUM(J111:J132) -> 72.06234661 | K134: =SUM(K111:K131) -> 48.91348651 | L134: 54.62761164 | M134: 110.1554505 | N134: 44.31348108 | O134: 185.1508101 | P134: 191.4422241 | Q134: =SUM(Q111:Q131) -> 0 | R134: 0 | S134: 0 | T134: 0 | U134: 0 | V134: 0 | W134: 0 | X134: 0 | Y134: 0 | Z134: 0 | AA134: 0 | AB134: 0 | AC134: 0 | AD134: 0 | AE134: 0 | AF134: 0 | AG134: 0 | AH134: 0 | AI134: 0 | AJ134: 0 | AK134: 0 | AL134: 0 | AM134: 0 | AN134: 0 | AO134: 0 | AP134: 0 | AQ134: =SUM(AQ111:AQ131) -> 0 | AR134: 0 | AS134: 0 | AT134: 0 | AU134: 0 | AV134: 0 | AW134: 0 | AX134: 0 | AY134: 0 | AZ134: 0 | BA134: 0 | BB134: 0 | BC134: 0 | BD134: 0 | BE134: 0 | BF134: 0 | BG134: 0
C136: Shared Capex
C137: =Asset_Classes -> Shared Channel | D137: A$m | J137: 0 | K137: 0 | L137: 0 | M137: 0 | N137: 0 | O137: 0 | P137: 0
C138: Shared Channel Over-Dredge | D138: A$m | J138: 0 | K138: 0 | L138: 0 | M138: 0 | N138: 0 | O138: 0 | P138: 0
C139: Melbourne Channel | D139: A$m | J139: 0 | K139: 0 | L139: 0 | M139: 0 | N139: 0 | O139: 0 | P139: 0
C140: Melbourne Channel Over-Dredge | D140: A$m | J140: 0 | K140: 0 | L140: 0 | M140: 0 | N140: 0 | O140: 0 | P140: 0
C141: Channel Protection Assets | D141: A$m | J141: 0 | K141: 0 | L141: 0 | M141: 0 | N141: 0 | O141: 0 | P141: 0
C142: Channel Service Protection | D142: A$m | J142: 0 | K142: 0 | L142: 0 | M142: 0 | N142: 0 | O142: 0 | P142: 0
C143: Roads | D143: A$m | J143: 0 | K143: 0 | L143: 0 | M143: 0 | N143: 0 | O143: 0 | P143: 0
C144: Port Rail Transformation Agreement | D144: A$m | J144: 0 | K144: 0 | L144: 0 | M144: 0 | N144: 0 | O144: 0 | P144: 0
C145: Other Rail | D145: A$m | J145: 0 | K145: 0 | L145: 0 | M145: 0 | N145: 0 | O145: 0 | P145: 0
C146: Buildings | D146: A$m | J146: 0 | K146: 0.8136475555 | L146: 2.746518183 | M146: 3.086527532 | N146: 0.1831700073 | O146: 0 | P146: 0
C147: Wharves - Initial Capital Asset Value / Renewal | D147: A$m | J147: 0 | K147: 0 | L147: 0 | M147: 0 | N147: 0 | O147: 0 | P147: 0
C148: Wharves - Growth | D148: A$m | J148: 0 | K148: 0 | L148: 0 | M148: 0 | N148: 0 | O148: 0 | P148: 0
C149: Plant | D149: A$m | J149: 0.4266365074 | K149: 1.105806936 | L149: 1.304147762 | M149: 0.5428083909 | N149: 2.153597603 | O149: 1.273302521 | P149: 2.016489533
C150: Land | D150: A$m | J150: 0 | K150: 0 | L150: 0 | M150: 0 | N150: 0 | O150: 0 | P150: 0
C151: Port Capacity Project - Initial Capital Asset Value | D151: A$m | J151: 0 | K151: 0 | L151: 0 | M151: 0 | N151: 0 | O151: 0 | P151: 0
C152: Port Capacity Project - Wharves | D152: A$m | J152: 0 | K152: 0 | L152: 0 | M152: 0 | N152: 0 | O152: 0 | P152: 0
C153: Port Capacity Project - Civil | D153: A$m | J153: 0 | K153: 0 | L153: 0 | M153: 0 | N153: 0 | O153: 0 | P153: 0
C154: Navigational Aids | D154: A$m | J154: 0 | K154: 0 | L154: 0 | M154: 0 | N154: 0 | O154: 0 | P154: 0
C155: Utilities | D155: A$m | J155: 0 | K155: 0 | L155: 0 | M155: 0 | N155: 0 | O155: 0 | P155: 0
C156: Civil | D156: A$m | J156: 0 | K156: 0 | L156: 0 | M156: 0 | N156: 0 | O156: 0 | P156: 0
C157: Minor Capital Works | D157: A$m | J157: 0 | K157: 0 | L157: 0 | M157: 0 | N157: 0 | O157: 0 | P157: 0
C158: Deferred Depreciation Asset | D158: A$m
C160: ="Total "&C136 -> Total Shared Capex | D160: A$m | J160: =SUM(J137:J158) -> 0.4266365074 | K160: =SUM(K137:K158) -> 1.919454491 | L160: 4.050665945 | M160: 3.629335923 | N160: 2.33676761 | O160: 1.273302521 | P160: 2.016489533 | Q160: 0 | R160: 0 | S160: 0 | T160: 0 | U160: 0 | V160: 0 | W160: 0 | X160: 0 | Y160: 0 | Z160: 0 | AA160: 0 | AB160: 0 | AC160: 0 | AD160: 0 | AE160: 0 | AF160: 0 | AG160: 0 | AH160: 0 | AI160: 0 | AJ160: 0 | AK160: 0 | AL160: 0 | AM160: 0 | AN160: 0 | AO160: 0 | AP160: 0 | AQ160: 0 | AR160: 0 | AS160: 0 | AT160: 0 | AU160: 0 | AV160: 0 | AW160: 0 | AX160: 0 | AY160: 0 | AZ160: 0 | BA160: 0 | BB160: 0 | BC160: 0 | BD160: 0 | BE160: 0 | BF160: 0 | BG160: 0
C162: Dedicated Non-Prescribed Capex
C163: Various services | D163: A$m | J163: 0 | K163: 3.64987597 | L163: 1.629373161 | M163: 1.4395099 | N163: 3.166534805 | O163: 0.9697887768 | P163: 0.6819553572
C165: ="Total "&C162 -> Total Dedicated Non-Prescribed Capex | D165: A$m | J165: =SUM(J163:J163) -> 0 | K165: 3.64987597 | L165: 1.629373161 | M165: 1.4395099 | N165: 3.166534805 | O165: 0.9697887768 | P165: 0.6819553572 | Q165: 0 | R165: 0 | S165: 0 | T165: 0 | U165: 0 | V165: 0 | W165: 0 | X165: 0 | Y165: 0 | Z165: 0 | AA165: 0 | AB165: 0 | AC165: 0 | AD165: 0 | AE165: 0 | AF165: 0 | AG165: 0 | AH165: 0 | AI165: 0 | AJ165: 0 | AK165: 0 | AL165: 0 | AM165: 0 | AN165: 0 | AO165: 0 | AP165: =SUM(AP163:AP163) -> 0 | AQ165: 0 | AR165: 0 | AS165: 0 | AT165: 0 | AU165: 0 | AV165: 0 | AW165: 0 | AX165: 0 | AY165: 0 | AZ165: 0 | BA165: 0 | BB165: 0 | BC165: 0 | BD165: 0 | BE165: 0 | BF165: 0 | BG165: 0
C167: Total Capex | D167: A$m | J167: =SUM(J134,J160,J165) -> 72.48898312 | K167: 54.48281697 | L167: 60.30765075 | M167: 115.2242963 | N167: 49.81678349 | O167: 187.3939014 | P167: 194.1406689 | Q167: 0 | R167: 0 | S167: 0 | T167: 0 | U167: 0 | V167: 0 | W167: 0 | X167: 0 | Y167: 0 | Z167: 0 | AA167: 0 | AB167: 0 | AC167: 0 | AD167: 0 | AE167: 0 | AF167: 0 | AG167: 0 | AH167: 0 | AI167: 0 | AJ167: 0 | AK167: 0 | AL167: 0 | AM167: 0 | AN167: 0 | AO167: 0 | AP167: =SUM(AP134,AP160,AP165) -> 0 | AQ167: 0 | AR167: 0 | AS167: 0 | AT167: 0 | AU167: 0 | AV167: 0 | AW167: 0 | AX167: 0 | AY167: 0 | AZ167: 0 | BA167: 0 | BB167: 0 | BC167: 0 | BD167: 0 | BE167: 0 | BF167: 0 | BG167: 0
A168: =SUM(E168:BG168) -> 0 | D168: Check → | J168: =IF(ISERROR(J167),1,0) -> 0 | K168: =IF(ISERROR(K167),1,0) -> 0 | L168: 0 | M168: 0 | N168: 0 | O168: 0 | P168: 0 | Q168: 0 | R168: 0 | S168: 0 | T168: 0 | U168: 0 | V168: 0 | W168: 0 | X168: 0 | Y168: 0 | Z168: 0 | AA168: 0 | AB168: 0 | AC168: 0 | AD168: 0 | AE168: 0 | AF168: 0 | AG168: 0 | AH168: 0 | AI168: 0 | AJ168: 0 | AK168: 0 | AL168: 0 | AM168: 0 | AN168: 0 | AO168: 0 | AP168: 0 | AQ168: 0 | AR168: 0 | AS168: 0 | AT168: 0 | AU168: 0 | AV168: 0 | AW168: 0 | AX168: 0 | AY168: 0 | AZ168: 0 | BA168: 0 | BB168: 0 | BC168: 0 | BD168: 0 | BE168: 0 | BF168: 0 | BG168: 0
B170: =MAX($B$1:B110)+Subsection -> 5.06 | C170: Capital Contributions and Asset Disposals
C172: This section inputs the actual and forecast capital contributions and asset disposals required by Clauses 4.2.1(c) and 4.2.6 of the Pricing Order when rolling forward the capital base. Asset disposals are sourced from sale proceeds.
C174: Capital Contributions | J174: Actuals | K174: Actuals | L174: Actuals | M174: Actuals | N174: Actuals | O174: Forecasts | P174: Forecasts | Q174: Forecasts | R174: Forecasts | S174: Forecasts | T174: Forecasts | U174: Forecasts | V174: Forecasts | W174: Forecasts | X174: Forecasts | Y174: Forecasts | Z174: Forecasts | AA174: Forecasts | AB174: Forecasts | AC174: Forecasts | AD174: Forecasts | AE174: Forecasts | AF174: Forecasts | AG174: Forecasts | AH174: Forecasts | AI174: Forecasts | AJ174: Forecasts | AK174: Forecasts | AL174: Forecasts | AM174: Forecasts | AN174: Forecasts | AO174: Forecasts | AP174: Forecasts | AQ174: Forecasts | AR174: Forecasts | AS174: Forecasts | AT174: Forecasts | AU174: Forecasts | AV174: Forecasts | AW174: Forecasts | AX174: Forecasts | AY174: Forecasts | AZ174: Forecasts | BA174: Forecasts | BB174: Forecasts | BC174: Forecasts | BD174: Forecasts | BE174: Forecasts | BF174: Forecasts | BG174: Forecasts
C175: =Asset_Classes -> Shared Channel | D175: A$m | J175: 0 | K175: 0 | L175: 0 | M175: 0 | N175: 0 | O175: 0 | P175: 0
C176: Shared Channel Over-Dredge | D176: A$m | J176: 0 | K176: 0 | L176: 0 | M176: 0 | N176: 0 | O176: 0 | P176: 0
C177: Melbourne Channel | D177: A$m | J177: 0 | K177: 0 | L177: 0 | M177: 0 | N177: 0 | O177: 0 | P177: 0
C178: Melbourne Channel Over-Dredge | D178: A$m | J178: 0 | K178: 0 | L178: 0 | M178: 0 | N178: 0 | O178: 0 | P178: 0
C179: Channel Protection Assets | D179: A$m | J179: 0 | K179: 0 | L179: 0 | M179: 0 | N179: 0 | O179: 0 | P179: 0
C180: Channel Service Protection | D180: A$m | J180: 0 | K180: 0 | L180: 0 | M180: 0 | N180: 0 | O180: 0 | P180: 0
C181: Roads | D181: A$m | J181: 0 | K181: 0 | L181: 0 | M181: 0 | N181: 0 | O181: 0 | P181: 0
C182: Port Rail Transformation Agreement | D182: A$m | J182: 0 | K182: 0 | L182: 0 | M182: 0 | N182: 0 | O182: 0 | P182: 15.09
C183: Other Rail | D183: A$m | J183: 0 | K183: 0 | L183: 0 | M183: 0 | N183: 0 | O183: 0 | P183: 0
C184: Buildings | D184: A$m | J184: 0 | K184: 0 | L184: 0 | M184: 3.26163 | N184: 0 | O184: 0 | P184: 0
C185: Wharves - Initial Capital Asset Value / Renewal | D185: A$m | J185: 0 | K185: 0 | L185: 0 | M185: 0 | N185: 0 | O185: 0 | P185: 0
C186: Wharves - Growth | D186: A$m | J186: 0 | K186: 0 | L186: 0 | M186: 0 | N186: 0 | O186: 0 | P186: 0
C187: Plant | D187: A$m | J187: 0 | K187: 0 | L187: 0 | M187: 0 | N187: 0 | O187: 0 | P187: 0
C188: Land | D188: A$m | J188: 0 | K188: 0 | L188: 0 | M188: 0 | N188: 0 | O188: 0 | P188: 0
C189: Port Capacity Project - Initial Capital Asset Value | D189: A$m | J189: 0 | K189: 0 | L189: 0 | M189: 0 | N189: 0 | O189: 0 | P189: 0
C190: Port Capacity Project - Wharves | D190: A$m | J190: 0 | K190: 0 | L190: 0 | M190: 0 | N190: 0 | O190: 0 | P190: 0
C191: Port Capacity Project - Civil | D191: A$m | J191: 0 | K191: 0 | L191: 0 | M191: 0 | N191: 0 | O191: 0 | P191: 0
C192: Navigational Aids | D192: A$m | J192: 0 | K192: 0 | L192: 0 | M192: 0 | N192: 0 | O192: 0 | P192: 0
C193: Utilities | D193: A$m | J193: 0 | K193: 0 | L193: 0 | M193: 0 | N193: 0 | O193: 0 | P193: 0
C194: Civil | D194: A$m | J194: 0 | K194: 0 | L194: 0 | M194: 0 | N194: 0 | O194: 0 | P194: 0
C195: Minor Capital Works | D195: A$m | J195: 0 | K195: 0 | L195: 0 | M195: 0 | N195: 0 | O195: 0 | P195: 0
C196: Deferred Depreciation Asset | D196: A$m
C198: ="Total "&C174 -> Total Capital Contributions | D198: A$m | J198: =SUM(J175:J195) -> 0 | K198: =SUM(K175:K195) -> 0 | L198: 0 | M198: 3.26163 | N198: 0 | O198: 0 | P198: 15.09 | Q198: 0 | R198: 0 | S198: 0 | T198: 0 | U198: 0 | V198: 0 | W198: 0 | X198: 0 | Y198: 0 | Z198: 0 | AA198: 0 | AB198: 0 | AC198: 0 | AD198: 0 | AE198: 0 | AF198: 0 | AG198: 0 | AH198: 0 | AI198: 0 | AJ198: 0 | AK198: 0 | AL198: 0 | AM198: 0 | AN198: 0 | AO198: 0 | AP198: 0 | AQ198: 0 | AR198: 0 | AS198: 0 | AT198: 0 | AU198: 0 | AV198: 0 | AW198: 0 | AX198: 0 | AY198: 0 | AZ198: 0 | BA198: 0 | BB198: 0 | BC198: 0 | BD198: 0 | BE198: 0 | BF198: 0 | BG198: 0
A199: =SUM(E199:BG199) -> 0 | D199: Check → | J199: =IF(ISERROR(J198),1,0) -> 0 | K199: =IF(ISERROR(K198),1,0) -> 0 | L199: 0 | M199: 0 | N199: 0 | O199: 0 | P199: 0 | Q199: 0 | R199: 0 | S199: 0 | T199: 0 | U199: 0 | V199: 0 | W199: 0 | X199: 0 | Y199: 0 | Z199: 0 | AA199: 0 | AB199: 0 | AC199: 0 | AD199: 0 | AE199: 0 | AF199: 0 | AG199: 0 | AH199: 0 | AI199: 0 | AJ199: 0 | AK199: 0 | AL199: 0 | AM199: 0 | AN199: 0 | AO199: 0 | AP199: 0 | AQ199: 0 | AR199: 0 | AS199: 0 | AT199: 0 | AU199: 0 | AV199: 0 | AW199: 0 | AX199: 0 | AY199: 0 | AZ199: 0 | BA199: 0 | BB199: 0 | BC199: 0 | BD199: 0 | BE199: 0 | BF199: 0 | BG199: 0
C201: Asset Disposals (sale proceeds) | J201: Actuals | K201: Actuals | L201: Actuals | M201: Actuals | N201: Actuals | O201: Forecasts | P201: Forecasts | Q201: Forecasts | R201: Forecasts | S201: Forecasts | T201: Forecasts | U201: Forecasts | V201: Forecasts | W201: Forecasts | X201: Forecasts | Y201: Forecasts | Z201: Forecasts | AA201: Forecasts | AB201: Forecasts | AC201: Forecasts | AD201: Forecasts | AE201: Forecasts | AF201: Forecasts | AG201: Forecasts | AH201: Forecasts | AI201: Forecasts | AJ201: Forecasts | AK201: Forecasts | AL201: Forecasts | AM201: Forecasts | AN201: Forecasts | AO201: Forecasts | AP201: Forecasts | AQ201: Forecasts | AR201: Forecasts | AS201: Forecasts | AT201: Forecasts | AU201: Forecasts | AV201: Forecasts | AW201: Forecasts | AX201: Forecasts | AY201: Forecasts | AZ201: Forecasts | BA201: Forecasts | BB201: Forecasts | BC201: Forecasts | BD201: Forecasts | BE201: Forecasts | BF201: Forecasts | BG201: Forecasts
C202: =Asset_Classes -> Shared Channel | D202: A$m | J202: 0 | K202: 0 | L202: 0 | M202: 0 | N202: 0 | O202: 0 | P202: 0
C203: Shared Channel Over-Dredge | D203: A$m | J203: 0 | K203: 0 | L203: 0 | M203: 0 | N203: 0 | O203: 0 | P203: 0
C204: Melbourne Channel | D204: A$m | J204: 0 | K204: 0 | L204: 0 | M204: 0 | N204: 0 | O204: 0 | P204: 0
C205: Melbourne Channel Over-Dredge | D205: A$m | J205: 0 | K205: 0 | L205: 0 | M205: 0 | N205: 0 | O205: 0 | P205: 0
C206: Channel Protection Assets | D206: A$m | J206: 0 | K206: 0 | L206: 0 | M206: 0 | N206: 0 | O206: 0 | P206: 0
C207: Channel Service Protection | D207: A$m | J207: 0 | K207: 0 | L207: 0 | M207: 0 | N207: 0 | O207: 0 | P207: 0
C208: Roads | D208: A$m | J208: 0 | K208: 0.208 | L208: 0 | M208: 0 | N208: 0 | O208: 0 | P208: 0
C209: Port Rail Transformation Agreement | D209: A$m | J209: 0 | K209: 0 | L209: 0 | M209: 0 | N209: 0 | O209: 0 | P209: 0
C210: Other Rail | D210: A$m | J210: 0 | K210: 0 | L210: 0 | M210: 0 | N210: 0 | O210: 0 | P210: 0
C211: Buildings | D211: A$m | J211: 0 | K211: 0 | L211: 0 | M211: 0 | N211: 0 | O211: 0 | P211: 0
C212: Wharves - Initial Capital Asset Value / Renewal | D212: A$m | J212: 0 | K212: 0 | L212: 0 | M212: 0 | N212: 0 | O212: 0 | P212: 0
C213: Wharves - Growth | D213: A$m | J213: 0 | K213: 0 | L213: 0 | M213: 0 | N213: 0 | O213: 0 | P213: 0
C214: Plant | D214: A$m | J214: 0.216 | K214: 0.138 | L214: 0 | M214: 0.00908773 | N214: 0.02522806545 | O214: 0 | P214: 0
C215: Land | D215: A$m | J215: 0 | K215: 0 | L215: 0 | M215: 0 | N215: 0 | O215: 0 | P215: 0
C216: Port Capacity Project - Initial Capital Asset Value | D216: A$m | J216: 0 | K216: 0 | L216: 0 | M216: 0 | N216: 0 | O216: 0 | P216: 0
C217: Port Capacity Project - Wharves | D217: A$m | J217: 0 | K217: 0 | L217: 0 | M217: 0 | N217: 0 | O217: 0 | P217: 0
C218: Port Capacity Project - Civil | D218: A$m | J218: 0 | K218: 0 | L218: 0 | M218: 0 | N218: 0 | O218: 0 | P218: 0
C219: Navigational Aids | D219: A$m | J219: 0 | K219: 0 | L219: 0 | M219: 0 | N219: 0 | O219: 0 | P219: 0
C220: Utilities | D220: A$m | J220: 0 | K220: =0.2+0.038 -> 0.238 | L220: 0 | M220: 0 | N220: 0 | O220: 0 | P220: 0
C221: Civil | D221: A$m | J221: 0 | K221: 0 | L221: 0 | M221: 0 | N221: 0 | O221: 0 | P221: 0
C222: Minor Capital Works | D222: A$m | J222: 0 | K222: 0 | L222: 0 | M222: 0 | N222: 0 | O222: 0 | P222: 0
C223: Deferred Depreciation Asset | D223: A$m
C225: ="Total "&C201 -> Total Asset Disposals (sale proceeds) | D225: A$m | J225: =SUM(J202:J222) -> 0.216 | K225: 0.584 | L225: 0 | M225: 0.00908773 | N225: 0.02522806545 | O225: 0 | P225: 0 | Q225: =SUM(Q202:Q222) -> 0 | R225: 0 | S225: 0 | T225: 0 | U225: 0 | V225: 0 | W225: 0 | X225: 0 | Y225: 0 | Z225: 0 | AA225: 0 | AB225: 0 | AC225: 0 | AD225: 0 | AE225: 0 | AF225: 0 | AG225: 0 | AH225: 0 | AI225: 0 | AJ225: 0 | AK225: 0 | AL225: 0 | AM225: 0 | AN225: 0 | AO225: 0 | AP225: =SUM(AP202:AP222) -> 0 | AQ225: 0 | AR225: 0 | AS225: 0 | AT225: 0 | AU225: 0 | AV225: 0 | AW225: 0 | AX225: 0 | AY225: 0 | AZ225: 0 | BA225: 0 | BB225: 0 | BC225: 0 | BD225: 0 | BE225: 0 | BF225: 0 | BG225: 0
A226: =SUM(E226:BG226) -> 0 | D226: Check → | J226: =IF(ISERROR(J225),1,0) -> 0 | K226: =IF(ISERROR(K225),1,0) -> 0 | L226: 0 | M226: 0 | N226: 0 | O226: 0 | P226: 0 | Q226: 0 | R226: 0 | S226: 0 | T226: 0 | U226: 0 | V226: 0 | W226: 0 | X226: 0 | Y226: 0 | Z226: 0 | AA226: 0 | AB226: 0 | AC226: 0 | AD226: 0 | AE226: 0 | AF226: 0 | AG226: 0 | AH226: 0 | AI226: 0 | AJ226: 0 | AK226: 0 | AL226: 0 | AM226: 0 | AN226: 0 | AO226: 0 | AP226: 0 | AQ226: 0 | AR226: 0 | AS226: 0 | AT226: 0 | AU226: 0 | AV226: 0 | AW226: 0 | AX226: 0 | AY226: 0 | AZ226: 0 | BA226: 0 | BB226: 0 | BC226: 0 | BD226: 0 | BE226: 0 | BF226: 0 | BG226: 0
B228: =MAX($B$1:B227)+Subsection -> 5.07 | C228: Operating Expenditure by Service Allocation and Category
C230: This section inputs the operating expenses required by Clause 4.5 of the Pricing Order.
C232: Operating Expenditure Category | E232: Cost index | F232: Category | G232: Sub-category | J232: Actuals | K232: Actuals | L232: Actuals | M232: Actuals | N232: Actuals | O232: Forecasts | P232: Forecasts | Q232: Forecasts | R232: Forecasts | S232: Forecasts | T232: Forecasts | U232: Forecasts | V232: Forecasts | W232: Forecasts | X232: Forecasts | Y232: Forecasts | Z232: Forecasts | AA232: Forecasts | AB232: Forecasts | AC232: Forecasts | AD232: Forecasts | AE232: Forecasts | AF232: Forecasts | AG232: Forecasts | AH232: Forecasts | AI232: Forecasts | AJ232: Forecasts | AK232: Forecasts | AL232: Forecasts | AM232: Forecasts | AN232: Forecasts | AO232: Forecasts | AP232: Forecasts | AQ232: Forecasts | AR232: Forecasts | AS232: Forecasts | AT232: Forecasts | AU232: Forecasts | AV232: Forecasts | AW232: Forecasts | AX232: Forecasts | AY232: Forecasts | AZ232: Forecasts | BA232: Forecasts | BB232: Forecasts | BC232: Forecasts | BD232: Forecasts | BE232: Forecasts | BF232: Forecasts | BG232: Forecasts
C233: =IF(F233="",F234,IF(G233="",F233,G233)) -> Port Licence Fee | D233: A$m | E233: 1 | F233: Port Licence Fee | J233: 81.320711 | K233: =J233*(1+K43) -> 82.532757 | L233: 84.40764064 | M233: 86.30146251 | N233: 87.64607604 | O233: 88.74449272 | P233: 90.78982034
C234: =IF(F234="",F236,IF(G234="",F234,G234)) -> Cost Contribution Amount | D234: A$m | E234: =MAX($E$233:$E233)+1 -> 2 | F234: Cost Contribution Amount | J234: 14.98641304 | K234: 15.2901 | L234: 15.60782828 | M234: 15.85644536 | N234: 15.85644536 | O234: 16.35116652 | P234: 17.07349536
C235: =IF(F235="",F237,IF(G235="",F235,G235)) -> PRTA Costs | E235: =MAX($E$233:$E234)+1 -> 3 | F235: PRTA Costs | J235: 0 | K235: 0 | L235: 0 | M235: 0.3460891315 | N235: 4.308565296 | O235: 4.329997524 | P235: 4.506317253
C236: Insurance, Rates & Taxes
C237: Prescribed | D237: A$m | E237: =MAX($E$233:$E236)+1 -> 4 | F237: Insurance, Rates & Taxes | G237: Prescribed | J237: 0.00314732 | K237: 0.00141887 | L237: 0.00679904 | M237: 0.02323141 | N237: 0.00574013 | O237: 0.009 | P237: 0.023091
C238: Non-Prescribed | D238: A$m | E238: =MAX($E$233:$E237)+1 -> 5 | F238: Insurance, Rates & Taxes | G238: Non-Prescribed | J238: 0.17148671 | K238: 0.27470838 | L238: 0.36660933 | M238: 0.27565731 | N238: 0.19897129 | O238: 0.35045868 | P238: 0.2233738
C239: Shared | D239: A$m | E239: =MAX($E$233:$E238)+1 -> 6 | F239: Insurance, Rates & Taxes | G239: Shared | J239: 1.47548367 | K239: 1.62226935 | L239: 1.64155951 | M239: 1.8949996 | N239: 2.22591988 | O239: 2.75663525 | P239: 3.7704
C240: Land Tax
C241: Prescribed | D241: A$m | E241: =MAX($E$233:$E240)+1 -> 7 | F241: Land Tax | G241: Prescribed | J241: 0 | K241: 0 | L241: 0 | M241: 0 | N241: 0 | O241: 0 | P241: 0
C242: Non-Prescribed | D242: A$m | E242: =MAX($E$233:$E241)+1 -> 8 | F242: Land Tax | G242: Non-Prescribed | J242: 1.76122205 | K242: 0.38395458 | L242: 1.08973699 | M242: 1.07646059 | N242: 1.44085328 | O242: 1.320349 | P242: 1.15622633
C243: Shared | D243: A$m | E243: =MAX($E$233:$E242)+1 -> 9 | F243: Land Tax | G243: Shared | J243: 0 | K243: 0 | L243: 0 | M243: 0 | N243: 0 | O243: 0 | P243: 0
... 259 more rows

Sheet Allocators
A1: =Model_Name -> Port of Melbourne Regulatory Model (Public Version)
B2: =MATCH(C2,Sheet_Names,0) -> 6 | C2: =PROPER(MID(CELL("filename", B1), FIND("]", CELL("filename", B1))+1, 100)) -> Allocators
A3: =SUM(A7:A55) -> 0 | C3: =Error_Message -> No errors identified
C5: [To Contents]
B6: =MAX($B$1:B5)+Subsection -> 6.01 | C6: Prescribed Services
C8: Tariff index | F8: 1 | G8: =F8+1 -> 2 | H8: =G8+1 -> 3 | I8: 4 | J8: 5 | K8: 6 | L8: 7 | M8: 8 | N8: 9 | O8: 10 | P8: 11 | Q8: 12 | R8: 13 | S8: 14 | T8: 15 | U8: 16 | V8: 17 | W8: 18 | X8: 19 | Y8: 20 | Z8: 21 | AA8: 22 | AB8: 23 | AC8: 24 | AD8: 25 | AE8: 26 | AF8: 27 | AG8: 28 | AH8: 29 | AI8: 30 | AJ8: 31 | AK8: 32 | AL8: 33 | AM8: 34 | AN8: 35 | AO8: 36 | AP8: 37 | AQ8: 38 | AR8: 39 | AS8: 40 | AT8: 41 | AU8: 42 | AV8: 43 | AW8: 44 | AX8: 45 | AY8: 46 | AZ8: =AY8+1 -> 47 | BA8: =AZ8+1 -> 48 | BB8: =BA8+1 -> 49
C10: Service type | F10: =VLOOKUP(F$8,Data!$E$293:$H$345,2,FALSE) -> Wharfage | G10: =VLOOKUP(G$8,Data!$E$293:$H$345,2,FALSE) -> Wharfage | H10: =VLOOKUP(H$8,Data!$E$293:$H$345,2,FALSE) -> Wharfage | I10: =VLOOKUP(I$8,Data!$E$293:$H$345,2,FALSE) -> Wharfage | J10: =VLOOKUP(J$8,Data!$E$293:$H$345,2,FALSE) -> Wharfage | K10: =VLOOKUP(K$8,Data!$E$293:$H$345,2,FALSE) -> Wharfage | L10: =VLOOKUP(L$8,Data!$E$293:$H$345,2,FALSE) -> Wharfage | M10: =VLOOKUP(M$8,Data!$E$293:$H$345,2,FALSE) -> Wharfage | N10: =VLOOKUP(N$8,Data!$E$293:$H$345,2,FALSE) -> Wharfage | O10: =VLOOKUP(O$8,Data!$E$293:$H$345,2,FALSE) -> Wharfage | P10: =VLOOKUP(P$8,Data!$E$293:$H$345,2,FALSE) -> Wharfage | Q10: =VLOOKUP(Q$8,Data!$E$293:$H$345,2,FALSE) -> Wharfage | R10: =VLOOKUP(R$8,Data!$E$293:$H$345,2,FALSE) -> Wharfage | S10: =VLOOKUP(S$8,Data!$E$293:$H$345,2,FALSE) -> Wharfage | T10: =VLOOKUP(T$8,Data!$E$293:$H$345,2,FALSE) -> Wharfage | U10: =VLOOKUP(U$8,Data!$E$293:$H$345,2,FALSE) -> Wharfage | V10: =VLOOKUP(V$8,Data!$E$293:$H$345,2,FALSE) -> Wharfage | W10: =VLOOKUP(W$8,Data!$E$293:$H$345,2,FALSE) -> Wharfage | X10: =VLOOKUP(X$8,Data!$E$293:$H$345,2,FALSE) -> Channel | Y10: =VLOOKUP(Y$8,Data!$E$293:$H$345,2,FALSE) -> Channel | Z10: =VLOOKUP(Z$8,Data!$E$293:$H$345,2,FALSE) -> Channel | AA10: =VLOOKUP(AA$8,Data!$E$293:$H$345,2,FALSE) -> Channel | AB10: =VLOOKUP(AB$8,Data!$E$293:$H$345,2,FALSE) -> Channel | AC10: =VLOOKUP(AC$8,Data!$E$293:$H$345,2,FALSE) -> Channel | AD10: =VLOOKUP(AD$8,Data!$E$293:$H$345,2,FALSE) -> Channel | AE10: =VLOOKUP(AE$8,Data!$E$293:$H$345,2,FALSE) -> Channel | AF10: =VLOOKUP(AF$8,Data!$E$293:$H$345,2,FALSE) -> Channel | AG10: =VLOOKUP(AG$8,Data!$E$293:$H$345,2,FALSE) -> Channel | AH10: =VLOOKUP(AH$8,Data!$E$293:$H$345,2,FALSE) -> Channel | AI10: =VLOOKUP(AI$8,Data!$E$293:$H$345,2,FALSE) -> Channel | AJ10: =VLOOKUP(AJ$8,Data!$E$293:$H$345,2,FALSE) -> Channel | AK10: =VLOOKUP(AK$8,Data!$E$293:$H$345,2,FALSE) -> Channel | AL10: =VLOOKUP(AL$8,Data!$E$293:$H$345,2,FALSE) -> Channel | AM10: =VLOOKUP(AM$8,Data!$E$293:$H$345,2,FALSE) -> Channel | AN10: =VLOOKUP(AN$8,Data!$E$293:$H$345,2,FALSE) -> Channel | AO10: =VLOOKUP(AO$8,Data!$E$293:$H$345,2,FALSE) -> Channel | AP10: =VLOOKUP(AP$8,Data!$E$293:$H$345,2,FALSE) -> Hire | AQ10: =VLOOKUP(AQ$8,Data!$E$293:$H$345,2,FALSE) -> Hire | AR10: =VLOOKUP(AR$8,Data!$E$293:$H$345,2,FALSE) -> Hire | AS10: =VLOOKUP(AS$8,Data!$E$293:$H$345,2,FALSE) -> Hire | AT10: =VLOOKUP(AT$8,Data!$E$293:$H$345,2,FALSE) -> Hire | AU10: =VLOOKUP(AU$8,Data!$E$293:$H$345,2,FALSE) -> Hire | AV10: =VLOOKUP(AV$8,Data!$E$293:$H$345,2,FALSE) -> Hire | AW10: =VLOOKUP(AW$8,Data!$E$293:$H$345,2,FALSE) -> Other | AX10: =VLOOKUP(AX$8,Data!$E$293:$H$345,2,FALSE) -> Other | AY10: =VLOOKUP(AY$8,Data!$E$293:$H$345,2,FALSE) -> Other | AZ10: =VLOOKUP(AZ$8,Data!$E$293:$H$345,2,FALSE) -> Other | BA10: Other | BB10: Non-Prescribed Services
C11: Prescribed service | F11: =VLOOKUP(F$8,Data!$E$293:$H$345,3,FALSE) -> Containerised | G11: =VLOOKUP(G$8,Data!$E$293:$H$345,3,FALSE) -> Containerised | H11: =VLOOKUP(H$8,Data!$E$293:$H$345,3,FALSE) -> Containerised | I11: =VLOOKUP(I$8,Data!$E$293:$H$345,3,FALSE) -> Containerised | J11: =VLOOKUP(J$8,Data!$E$293:$H$345,3,FALSE) -> Containerised | K11: =VLOOKUP(K$8,Data!$E$293:$H$345,3,FALSE) -> Non-containerised/general | L11: =VLOOKUP(L$8,Data!$E$293:$H$345,3,FALSE) -> Accompanied passenger vehicles | M11: =VLOOKUP(M$8,Data!$E$293:$H$345,3,FALSE) -> Motor vehicles | N11: =VLOOKUP(N$8,Data!$E$293:$H$345,3,FALSE) -> Liquid bulk | O11: =VLOOKUP(O$8,Data!$E$293:$H$345,3,FALSE) -> Dry bulk | P11: =VLOOKUP(P$8,Data!$E$293:$H$345,3,FALSE) -> Dry bulk | Q11: =VLOOKUP(Q$8,Data!$E$293:$H$345,3,FALSE) -> Transhipment | R11: =VLOOKUP(R$8,Data!$E$293:$H$345,3,FALSE) -> Transhipment | S11: =VLOOKUP(S$8,Data!$E$293:$H$345,3,FALSE) -> Transhipment | T11: =VLOOKUP(T$8,Data!$E$293:$H$345,3,FALSE) -> Transhipment | U11: =VLOOKUP(U$8,Data!$E$293:$H$345,3,FALSE) -> Transhipment | V11: =VLOOKUP(V$8,Data!$E$293:$H$345,3,FALSE) -> Transhipment | W11: =VLOOKUP(W$8,Data!$E$293:$H$345,3,FALSE) -> Transhipment | X11: =VLOOKUP(X$8,Data!$E$293:$H$345,3,FALSE) -> General | Y11: =VLOOKUP(Y$8,Data!$E$293:$H$345,3,FALSE) -> General | Z11: =VLOOKUP(Z$8,Data!$E$293:$H$345,3,FALSE) -> General | AA11: =VLOOKUP(AA$8,Data!$E$293:$H$345,3,FALSE) -> General | AB11: =VLOOKUP(AB$8,Data!$E$293:$H$345,3,FALSE) -> Pure car carrier | AC11: =VLOOKUP(AC$8,Data!$E$293:$H$345,3,FALSE) -> Pure car carrier | AD11: =VLOOKUP(AD$8,Data!$E$293:$H$345,3,FALSE) -> Pure car carrier | AE11: =VLOOKUP(AE$8,Data!$E$293:$H$345,3,FALSE) -> Pure car carrier | AF11: =VLOOKUP(AF$8,Data!$E$293:$H$345,3,FALSE) -> Passenger cruise vessel | AG11: =VLOOKUP(AG$8,Data!$E$293:$H$345,3,FALSE) -> Passenger cruise vessel | AH11: =VLOOKUP(AH$8,Data!$E$293:$H$345,3,FALSE) -> Passenger cruise vessel | AI11: =VLOOKUP(AI$8,Data!$E$293:$H$345,3,FALSE) -> Passenger cruise vessel | AJ11: =VLOOKUP(AJ$8,Data!$E$293:$H$345,3,FALSE) -> Coastal liner vessel | AK11: =VLOOKUP(AK$8,Data!$E$293:$H$345,3,FALSE) -> Coastal liner vessel | AL11: =VLOOKUP(AL$8,Data!$E$293:$H$345,3,FALSE) -> Coastal liner vessel | AM11: =VLOOKUP(AM$8,Data!$E$293:$H$345,3,FALSE) -> Coastal liner vessel | AN11: =VLOOKUP(AN$8,Data!$E$293:$H$345,3,FALSE) -> Vessels using Dedicated and Geelong channels on the same entry to Port Phillip Bay | AO11: =VLOOKUP(AO$8,Data!$E$293:$H$345,3,FALSE) -> Vessels using Dedicated and Geelong channels on the same entry to Port Phillip Bay | AP11: =VLOOKUP(AP$8,Data!$E$293:$H$345,3,FALSE) -> Berth hire | AQ11: =VLOOKUP(AQ$8,Data!$E$293:$H$345,3,FALSE) -> Berth hire | AR11: =VLOOKUP(AR$8,Data!$E$293:$H$345,3,FALSE) -> Berth hire | AS11: =VLOOKUP(AS$8,Data!$E$293:$H$345,3,FALSE) -> Berth hire | AT11: =VLOOKUP(AT$8,Data!$E$293:$H$345,3,FALSE) -> Wharf access | AU11: =VLOOKUP(AU$8,Data!$E$293:$H$345,3,FALSE) -> Area hire | AV11: =VLOOKUP(AV$8,Data!$E$293:$H$345,3,FALSE) -> Area hire | AW11: =VLOOKUP(AW$8,Data!$E$293:$H$345,3,FALSE) -> Tanker inspection | AX11: =VLOOKUP(AX$8,Data!$E$293:$H$345,3,FALSE) -> Other gangway hire | AY11: =VLOOKUP(AY$8,Data!$E$293:$H$345,3,FALSE) -> Wharf inspection | AZ11: =VLOOKUP(AZ$8,Data!$E$293:$H$345,3,FALSE) -> Wharf inspection
F12: =IF(VLOOKUP(F$8,Data!$E$293:$H$345,4,FALSE)=F11,"",VLOOKUP(F$8,Data!$E$293:$H$345,4,FALSE)) -> Full - outward | G12: =IF(VLOOKUP(G$8,Data!$E$293:$H$345,4,FALSE)=G11,"",VLOOKUP(G$8,Data!$E$293:$H$345,4,FALSE)) -> Full - inward | H12: =IF(VLOOKUP(H$8,Data!$E$293:$H$345,4,FALSE)=H11,"",VLOOKUP(H$8,Data!$E$293:$H$345,4,FALSE)) -> Full Bass Strait | I12: =IF(VLOOKUP(I$8,Data!$E$293:$H$345,4,FALSE)=I11,"",VLOOKUP(I$8,Data!$E$293:$H$345,4,FALSE)) -> Empty (including nested units) | J12: =IF(VLOOKUP(J$8,Data!$E$293:$H$345,4,FALSE)=J11,"",VLOOKUP(J$8,Data!$E$293:$H$345,4,FALSE)) -> Empty (return of materials) | K12: =IF(VLOOKUP(K$8,Data!$E$293:$H$345,4,FALSE)=K11,"",VLOOKUP(K$8,Data!$E$293:$H$345,4,FALSE)) ->  | L12: =IF(VLOOKUP(L$8,Data!$E$293:$H$345,4,FALSE)=L11,"",VLOOKUP(L$8,Data!$E$293:$H$345,4,FALSE)) ->  | M12: =IF(VLOOKUP(M$8,Data!$E$293:$H$345,4,FALSE)=M11,"",VLOOKUP(M$8,Data!$E$293:$H$345,4,FALSE)) ->  | N12: =IF(VLOOKUP(N$8,Data!$E$293:$H$345,4,FALSE)=N11,"",VLOOKUP(N$8,Data!$E$293:$H$345,4,FALSE)) ->  | O12: =IF(VLOOKUP(O$8,Data!$E$293:$H$345,4,FALSE)=O11,"",VLOOKUP(O$8,Data!$E$293:$H$345,4,FALSE)) -> Outwards - overseas and coastal | P12: =IF(VLOOKUP(P$8,Data!$E$293:$H$345,4,FALSE)=P11,"",VLOOKUP(P$8,Data!$E$293:$H$345,4,FALSE)) -> Inwards - overseas and coastal | Q12: =IF(VLOOKUP(Q$8,Data!$E$293:$H$345,4,FALSE)=Q11,"",VLOOKUP(Q$8,Data!$E$293:$H$345,4,FALSE)) -> Full - outward | R12: =IF(VLOOKUP(R$8,Data!$E$293:$H$345,4,FALSE)=R11,"",VLOOKUP(R$8,Data!$E$293:$H$345,4,FALSE)) -> Full - inward | S12: =IF(VLOOKUP(S$8,Data!$E$293:$H$345,4,FALSE)=S11,"",VLOOKUP(S$8,Data!$E$293:$H$345,4,FALSE)) -> Full Bass Strait | T12: =IF(VLOOKUP(T$8,Data!$E$293:$H$345,4,FALSE)=T11,"",VLOOKUP(T$8,Data!$E$293:$H$345,4,FALSE)) -> Empty (including nested units) | U12: =IF(VLOOKUP(U$8,Data!$E$293:$H$345,4,FALSE)=U11,"",VLOOKUP(U$8,Data!$E$293:$H$345,4,FALSE)) -> Empty (return of materials) | V12: =IF(VLOOKUP(V$8,Data!$E$293:$H$345,4,FALSE)=V11,"",VLOOKUP(V$8,Data!$E$293:$H$345,4,FALSE)) -> Motor vehicles and break bulk | W12: =IF(VLOOKUP(W$8,Data!$E$293:$H$345,4,FALSE)=W11,"",VLOOKUP(W$8,Data!$E$293:$H$345,4,FALSE)) -> Non-containerised/general | X12: =IF(VLOOKUP(X$8,Data!$E$293:$H$345,4,FALSE)=X11,"",VLOOKUP(X$8,Data!$E$293:$H$345,4,FALSE)) -> Shared channels <= 12.10m | Y12: =IF(VLOOKUP(Y$8,Data!$E$293:$H$345,4,FALSE)=Y11,"",VLOOKUP(Y$8,Data!$E$293:$H$345,4,FALSE)) -> Dedicated channels <= 12.10m | Z12: =IF(VLOOKUP(Z$8,Data!$E$293:$H$345,4,FALSE)=Z11,"",VLOOKUP(Z$8,Data!$E$293:$H$345,4,FALSE)) -> Shared channels > 12.10m | AA12: =IF(VLOOKUP(AA$8,Data!$E$293:$H$345,4,FALSE)=AA11,"",VLOOKUP(AA$8,Data!$E$293:$H$345,4,FALSE)) -> Dedicated channels > 12.10m | AB12: =IF(VLOOKUP(AB$8,Data!$E$293:$H$345,4,FALSE)=AB11,"",VLOOKUP(AB$8,Data!$E$293:$H$345,4,FALSE)) -> Shared channels <= 12.10m | AC12: =IF(VLOOKUP(AC$8,Data!$E$293:$H$345,4,FALSE)=AC11,"",VLOOKUP(AC$8,Data!$E$293:$H$345,4,FALSE)) -> Dedicated channels <= 12.10m | AD12: =IF(VLOOKUP(AD$8,Data!$E$293:$H$345,4,FALSE)=AD11,"",VLOOKUP(AD$8,Data!$E$293:$H$345,4,FALSE)) -> Shared channels > 12.10m | AE12: =IF(VLOOKUP(AE$8,Data!$E$293:$H$345,4,FALSE)=AE11,"",VLOOKUP(AE$8,Data!$E$293:$H$345,4,FALSE)) -> Dedicated channels > 12.10m | AF12: =IF(VLOOKUP(AF$8,Data!$E$293:$H$345,4,FALSE)=AF11,"",VLOOKUP(AF$8,Data!$E$293:$H$345,4,FALSE)) -> Shared channels <= 12.10m | AG12: =IF(VLOOKUP(AG$8,Data!$E$293:$H$345,4,FALSE)=AG11,"",VLOOKUP(AG$8,Data!$E$293:$H$345,4,FALSE)) -> Dedicated channels <= 12.10m | AH12: =IF(VLOOKUP(AH$8,Data!$E$293:$H$345,4,FALSE)=AH11,"",VLOOKUP(AH$8,Data!$E$293:$H$345,4,FALSE)) -> Shared channels > 12.10m | AI12: =IF(VLOOKUP(AI$8,Data!$E$293:$H$345,4,FALSE)=AI11,"",VLOOKUP(AI$8,Data!$E$293:$H$345,4,FALSE)) -> Dedicated channels > 12.10m | AJ12: =IF(VLOOKUP(AJ$8,Data!$E$293:$H$345,4,FALSE)=AJ11,"",VLOOKUP(AJ$8,Data!$E$293:$H$345,4,FALSE)) -> Shared channels <= 12.10m | AK12: =IF(VLOOKUP(AK$8,Data!$E$293:$H$345,4,FALSE)=AK11,"",VLOOKUP(AK$8,Data!$E$293:$H$345,4,FALSE)) -> Dedicated channels <= 12.10m | AL12: =IF(VLOOKUP(AL$8,Data!$E$293:$H$345,4,FALSE)=AL11,"",VLOOKUP(AL$8,Data!$E$293:$H$345,4,FALSE)) -> Shared channels > 12.10m | AM12: =IF(VLOOKUP(AM$8,Data!$E$293:$H$345,4,FALSE)=AM11,"",VLOOKUP(AM$8,Data!$E$293:$H$345,4,FALSE)) -> Dedicated channels > 12.10m | AN12: =IF(VLOOKUP(AN$8,Data!$E$293:$H$345,4,FALSE)=AN11,"",VLOOKUP(AN$8,Data!$E$293:$H$345,4,FALSE)) -> Dedicated channels <= 12.10m | AO12: =IF(VLOOKUP(AO$8,Data!$E$293:$H$345,4,FALSE)=AO11,"",VLOOKUP(AO$8,Data!$E$293:$H$345,4,FALSE)) -> Dedicated channels > 12.10m | AP12: =IF(VLOOKUP(AP$8,Data!$E$293:$H$345,4,FALSE)=AP11,"",VLOOKUP(AP$8,Data!$E$293:$H$345,4,FALSE)) -> Full charge - Maribyrnong No.1 | AQ12: =IF(VLOOKUP(AQ$8,Data!$E$293:$H$345,4,FALSE)=AQ11,"",VLOOKUP(AQ$8,Data!$E$293:$H$345,4,FALSE)) -> Full charge - Holden Dock | AR12: =IF(VLOOKUP(AR$8,Data!$E$293:$H$345,4,FALSE)=AR11,"",VLOOKUP(AR$8,Data!$E$293:$H$345,4,FALSE)) -> Full charge - Passenger cruise ships at a berth other than Station Pier | AS12: =IF(VLOOKUP(AS$8,Data!$E$293:$H$345,4,FALSE)=AS11,"",VLOOKUP(AS$8,Data!$E$293:$H$345,4,FALSE)) -> Lay-up charge (24 Victoria Dock; Holden Dock; Maribyrnong No. 1; 24, 27, 28, 29 & 33 South Wharf; 6 Yarraville and F Appleton Dock) | AT12: =IF(VLOOKUP(AT$8,Data!$E$293:$H$345,4,FALSE)=AT11,"",VLOOKUP(AT$8,Data!$E$293:$H$345,4,FALSE)) -> Cargo | AU12: =IF(VLOOKUP(AU$8,Data!$E$293:$H$345,4,FALSE)=AU11,"",VLOOKUP(AU$8,Data!$E$293:$H$345,4,FALSE)) -> Standard rate - 6 Yarraville | AV12: =IF(VLOOKUP(AV$8,Data!$E$293:$H$345,4,FALSE)=AV11,"",VLOOKUP(AV$8,Data!$E$293:$H$345,4,FALSE)) -> Standard rate - F Appleton Dock | AW12: =IF(VLOOKUP(AW$8,Data!$E$293:$H$345,4,FALSE)=AW11,"",VLOOKUP(AW$8,Data!$E$293:$H$345,4,FALSE)) ->  | AX12: =IF(VLOOKUP(AX$8,Data!$E$293:$H$345,4,FALSE)=AX11,"",VLOOKUP(AX$8,Data!$E$293:$H$345,4,FALSE)) ->  | AY12: =IF(VLOOKUP(AY$8,Data!$E$293:$H$345,4,FALSE)=AY11,"",VLOOKUP(AY$8,Data!$E$293:$H$345,4,FALSE)) -> Pre-vessel arrival inspection | AZ12: =IF(VLOOKUP(AZ$8,Data!$E$293:$H$345,4,FALSE)=AZ11,"",VLOOKUP(AZ$8,Data!$E$293:$H$345,4,FALSE)) -> Post-vessel departure inspection | BA12: Contracted Prescribed Services
B14: =MAX($B$1:B12)+Subsection -> 6.02 | C14: Prescribed Service Bundle by Prescribed Service
C16: This table identifies which prescribed services are included in each prescribed services bundle.
C18: Prescribed Service Bundle | E18: Bundle
C19: Wharfage services for containerised cargo | D19: Yes/No | E19: 1 | F19: Yes | G19: Yes | H19: Yes | I19: Yes | J19: Yes | K19: No | L19: No | M19: No | N19: No | O19: No | P19: No | Q19: Yes | R19: Yes | S19: Yes | T19: Yes | U19: Yes | V19: No | W19: No | X19: No | Y19: No | Z19: No | AA19: No | AB19: No | AC19: No | AD19: No | AE19: No | AF19: No | AG19: No | AH19: No | AI19: No | AJ19: No | AK19: No | AL19: No | AM19: No | AN19: No | AO19: No | AP19: No | AQ19: No | AR19: No | AS19: No | AT19: No | AU19: No | AV19: No | AW19: No | AX19: No | AY19: No | AZ19: No | BA19: No | BB19: No
C20: Wharfage services for non-containerised/general cargo | D20: Yes/No | E20: 2 | F20: No | G20: No | H20: No | I20: No | J20: No | K20: Yes | L20: No | M20: No | N20: No | O20: No | P20: No | Q20: No | R20: No | S20: No | T20: No | U20: No | V20: No | W20: Yes | X20: No | Y20: No | Z20: No | AA20: No | AB20: No | AC20: No | AD20: No | AE20: No | AF20: No | AG20: No | AH20: No | AI20: No | AJ20: No | AK20: No | AL20: No | AM20: No | AN20: No | AO20: No | AP20: No | AQ20: No | AR20: No | AS20: No | AT20: No | AU20: No | AV20: No | AW20: No | AX20: No | AY20: No | AZ20: No | BA20: No | BB20: No
C21: Wharfage services for motor vehicle cargo | D21: Yes/No | E21: 3 | F21: No | G21: No | H21: No | I21: No | J21: No | K21: No | L21: Yes | M21: Yes | N21: No | O21: No | P21: No | Q21: No | R21: No | S21: No | T21: No | U21: No | V21: Yes | W21: No | X21: No | Y21: No | Z21: No | AA21: No | AB21: No | AC21: No | AD21: No | AE21: No | AF21: No | AG21: No | AH21: No | AI21: No | AJ21: No | AK21: No | AL21: No | AM21: No | AN21: No | AO21: No | AP21: No | AQ21: No | AR21: No | AS21: No | AT21: No | AU21: No | AV21: No | AW21: No | AX21: No | AY21: No | AZ21: No | BA21: No | BB21: No
C22: Wharfage services for liquid bulk cargo | D22: Yes/No | E22: 4 | F22: No | G22: No | H22: No | I22: No | J22: No | K22: No | L22: No | M22: No | N22: Yes | O22: No | P22: No | Q22: No | R22: No | S22: No | T22: No | U22: No | V22: No | W22: No | X22: No | Y22: No | Z22: No | AA22: No | AB22: No | AC22: No | AD22: No | AE22: No | AF22: No | AG22: No | AH22: No | AI22: No | AJ22: No | AK22: No | AL22: No | AM22: No | AN22: No | AO22: No | AP22: No | AQ22: No | AR22: No | AS22: No | AT22: No | AU22: No | AV22: No | AW22: No | AX22: No | AY22: No | AZ22: No | BA22: No | BB22: No
C23: Wharfage services for dry bulk cargo | D23: Yes/No | E23: 5 | F23: No | G23: No | H23: No | I23: No | J23: No | K23: No | L23: No | M23: No | N23: No | O23: Yes | P23: Yes | Q23: No | R23: No | S23: No | T23: No | U23: No | V23: No | W23: No | X23: No | Y23: No | Z23: No | AA23: No | AB23: No | AC23: No | AD23: No | AE23: No | AF23: No | AG23: No | AH23: No | AI23: No | AJ23: No | AK23: No | AL23: No | AM23: No | AN23: No | AO23: No | AP23: No | AQ23: No | AR23: No | AS23: No | AT23: No | AU23: No | AV23: No | AW23: No | AX23: No | AY23: No | AZ23: No | BA23: No | BB23: No
C24: Shared Channel Services | D24: Yes/No | E24: 6 | F24: No | G24: No | H24: No | I24: No | J24: No | K24: No | L24: No | M24: No | N24: No | O24: No | P24: No | Q24: No | R24: No | S24: No | T24: No | U24: No | V24: No | W24: No | X24: Yes | Y24: No | Z24: Yes | AA24: No | AB24: Yes | AC24: No | AD24: Yes | AE24: No | AF24: Yes | AG24: No | AH24: Yes | AI24: No | AJ24: Yes | AK24: No | AL24: Yes | AM24: No | AN24: No | AO24: No | AP24: No | AQ24: No | AR24: No | AS24: No | AT24: No | AU24: No | AV24: No | AW24: No | AX24: No | AY24: No | AZ24: No | BA24: No | BB24: No
C25: Dedicated Channel Services | D25: Yes/No | E25: 7 | F25: No | G25: No | H25: No | I25: No | J25: No | K25: No | L25: No | M25: No | N25: No | O25: No | P25: No | Q25: No | R25: No | S25: No | T25: No | U25: No | V25: No | W25: No | X25: No | Y25: Yes | Z25: No | AA25: Yes | AB25: No | AC25: Yes | AD25: No | AE25: Yes | AF25: No | AG25: Yes | AH25: No | AI25: Yes | AJ25: No | AK25: Yes | AL25: No | AM25: Yes | AN25: Yes | AO25: Yes | AP25: No | AQ25: No | AR25: No | AS25: No | AT25: No | AU25: No | AV25: No | AW25: No | AX25: No | AY25: No | AZ25: No | BA25: No | BB25: No
C26: Not part of a Prescribed Service Bundle | D26: Yes/No | E26: 8 | F26: No | G26: No | H26: No | I26: No | J26: No | K26: No | L26: No | M26: No | N26: No | O26: No | P26: No | Q26: No | R26: No | S26: No | T26: No | U26: No | V26: No | W26: No | X26: No | Y26: No | Z26: No | AA26: No | AB26: No | AC26: No | AD26: No | AE26: No | AF26: No | AG26: No | AH26: No | AI26: No | AJ26: No | AK26: No | AL26: No | AM26: No | AN26: No | AO26: No | AP26: Yes | AQ26: Yes | AR26: Yes | AS26: Yes | AT26: Yes | AU26: Yes | AV26: Yes | AW26: Yes | AX26: Yes | AY26: Yes | AZ26: Yes | BA26: Yes | BB26: Yes
B29: =MAX($B$1:B16)+Subsection -> 6.03 | C29: Operating Expenditure Categories Mapped to Services
C31: This table identifies what operating expenditure cost items are used to provide each prescribed service or non-prescribed service.
C33: Operating Expenditure Category | E33: =Cost_Index -> Cost index
C34: =Opex_Categories_Long -> Port Licence Fee | D34: Yes/No | E34: 1 | F34: Yes | G34: Yes | H34: Yes | I34: Yes | J34: Yes | K34: Yes | L34: Yes | M34: Yes | N34: Yes | O34: Yes | P34: Yes | Q34: Yes | R34: Yes | S34: Yes | T34: Yes | U34: Yes | V34: Yes | W34: Yes | X34: Yes | Y34: Yes | Z34: Yes | AA34: Yes | AB34: Yes | AC34: Yes | AD34: Yes | AE34: Yes | AF34: Yes | AG34: Yes | AH34: Yes | AI34: Yes | AJ34: Yes | AK34: Yes | AL34: Yes | AM34: Yes | AN34: Yes | AO34: Yes | AP34: Yes | AQ34: Yes | AR34: Yes | AS34: Yes | AT34: Yes | AU34: Yes | AV34: Yes | AW34: Yes | AX34: Yes | AY34: Yes | AZ34: Yes | BA34: No | BB34: No
C35: Cost Contribution Amount | D35: Yes/No | E35: 2 | F35: Yes | G35: Yes | H35: Yes | I35: Yes | J35: Yes | K35: Yes | L35: Yes | M35: Yes | N35: Yes | O35: Yes | P35: Yes | Q35: Yes | R35: Yes | S35: Yes | T35: Yes | U35: Yes | V35: Yes | W35: Yes | X35: Yes | Y35: Yes | Z35: Yes | AA35: Yes | AB35: Yes | AC35: Yes | AD35: Yes | AE35: Yes | AF35: Yes | AG35: Yes | AH35: Yes | AI35: Yes | AJ35: Yes | AK35: Yes | AL35: Yes | AM35: Yes | AN35: Yes | AO35: Yes | AP35: Yes | AQ35: Yes | AR35: Yes | AS35: Yes | AT35: Yes | AU35: Yes | AV35: Yes | AW35: Yes | AX35: Yes | AY35: Yes | AZ35: Yes | BA35: No | BB35: No
C36: PRTA Costs | D36: Yes/No | E36: 3 | F36: No | G36: Yes | H36: No | I36: No | J36: No | K36: No | L36: No | M36: No | N36: No | O36: No | P36: No | Q36: No | R36: No | S36: No | T36: No | U36: No | V36: No | W36: No | X36: No | Y36: No | Z36: No | AA36: No | AB36: No | AC36: No | AD36: No | AE36: No | AF36: No | AG36: No | AH36: No | AI36: No | AJ36: No | AK36: No | AL36: No | AM36: No | AN36: No | AO36: No | AP36: No | AQ36: No | AR36: No | AS36: No | AT36: No | AU36: No | AV36: No | AW36: No | AX36: No | AY36: No | AZ36: No | BA36: No | BB36: No
C37: Insurance, Rates & Taxes | E37: 0
C38: Prescribed | D38: Yes/No | E38: 4 | F38: Yes | G38: Yes | H38: Yes | I38: Yes | J38: Yes | K38: Yes | L38: Yes | M38: Yes | N38: Yes | O38: Yes | P38: Yes | Q38: Yes | R38: Yes | S38: Yes | T38: Yes | U38: Yes | V38: Yes | W38: Yes | X38: Yes | Y38: Yes | Z38: Yes | AA38: Yes | AB38: Yes | AC38: Yes | AD38: Yes | AE38: Yes | AF38: Yes | AG38: Yes | AH38: Yes | AI38: Yes | AJ38: Yes | AK38: Yes | AL38: Yes | AM38: Yes | AN38: Yes | AO38: Yes | AP38: Yes | AQ38: Yes | AR38: Yes | AS38: Yes | AT38: Yes | AU38: Yes | AV38: Yes | AW38: Yes | AX38: Yes | AY38: Yes | AZ38: Yes | BA38: No | BB38: No
C39: Non-Prescribed | D39: Yes/No | E39: 5 | F39: No | G39: No | H39: No | I39: No | J39: No | K39: No | L39: No | M39: No | N39: No | O39: No | P39: No | Q39: No | R39: No | S39: No | T39: No | U39: No | V39: No | W39: No | X39: No | Y39: No | Z39: No | AA39: No | AB39: No | AC39: No | AD39: No | AE39: No | AF39: No | AG39: No | AH39: No | AI39: No | AJ39: No | AK39: No | AL39: No | AM39: No | AN39: No | AO39: No | AP39: No | AQ39: No | AR39: No | AS39: No | AT39: No | AU39: No | AV39: No | AW39: No | AX39: No | AY39: No | AZ39: No | BA39: No | BB39: Yes
C40: Shared | D40: Yes/No | E40: 6 | F40: Yes | G40: Yes | H40: Yes | I40: Yes | J40: Yes | K40: Yes | L40: Yes | M40: Yes | N40: Yes | O40: Yes | P40: Yes | Q40: Yes | R40: Yes | S40: Yes | T40: Yes | U40: Yes | V40: Yes | W40: Yes | X40: Yes | Y40: Yes | Z40: Yes | AA40: Yes | AB40: Yes | AC40: Yes | AD40: Yes | AE40: Yes | AF40: Yes | AG40: Yes | AH40: Yes | AI40: Yes | AJ40: Yes | AK40: Yes | AL40: Yes | AM40: Yes | AN40: Yes | AO40: Yes | AP40: Yes | AQ40: Yes | AR40: Yes | AS40: Yes | AT40: Yes | AU40: Yes | AV40: Yes | AW40: Yes | AX40: Yes | AY40: Yes | AZ40: Yes | BA40: No | BB40: Yes
C41: Land Tax | E41: 0
C42: Prescribed | D42: Yes/No | E42: 7 | F42: Yes | G42: Yes | H42: Yes | I42: Yes | J42: Yes | K42: Yes | L42: Yes | M42: Yes | N42: Yes | O42: Yes | P42: Yes | Q42: Yes | R42: Yes | S42: Yes | T42: Yes | U42: Yes | V42: Yes | W42: Yes | X42: No | Y42: No | Z42: No | AA42: No | AB42: No | AC42: No | AD42: No | AE42: No | AF42: No | AG42: No | AH42: No | AI42: No | AJ42: No | AK42: No | AL42: No | AM42: No | AN42: No | AO42: No | AP42: No | AQ42: No | AR42: No | AS42: No | AT42: Yes | AU42: Yes | AV42: Yes | AW42: No | AX42: No | AY42: No | AZ42: No | BA42: No | BB42: No
C43: Non-Prescribed | D43: Yes/No | E43: 8 | F43: No | G43: No | H43: No | I43: No | J43: No | K43: No | L43: No | M43: No | N43: No | O43: No | P43: No | Q43: No | R43: No | S43: No | T43: No | U43: No | V43: No | W43: No | X43: No | Y43: No | Z43: No | AA43: No | AB43: No | AC43: No | AD43: No | AE43: No | AF43: No | AG43: No | AH43: No | AI43: No | AJ43: No | AK43: No | AL43: No | AM43: No | AN43: No | AO43: No | AP43: No | AQ43: No | AR43: No | AS43: No | AT43: No | AU43: No | AV43: No | AW43: No | AX43: No | AY43: No | AZ43: No | BA43: No | BB43: Yes
C44: Shared | D44: Yes/No | E44: 9 | F44: Yes | G44: Yes | H44: Yes | I44: Yes | J44: Yes | K44: Yes | L44: Yes | M44: Yes | N44: Yes | O44: Yes | P44: Yes | Q44: Yes | R44: Yes | S44: Yes | T44: Yes | U44: Yes | V44: Yes | W44: Yes | X44: No | Y44: No | Z44: No | AA44: No | AB44: No | AC44: No | AD44: No | AE44: No | AF44: No | AG44: No | AH44: No | AI44: No | AJ44: No | AK44: No | AL44: No | AM44: No | AN44: No | AO44: No | AP44: No | AQ44: No | AR44: No | AS44: No | AT44: Yes | AU44: Yes | AV44: Yes | AW44: No | AX44: No | AY44: No | AZ44: No | BA44: No | BB44: Yes
C45: Labour Costs | E45: 0
C46: Prescribed | D46: Yes/No | E46: 10 | F46: Yes | G46: Yes | H46: Yes | I46: Yes | J46: Yes | K46: Yes | L46: Yes | M46: Yes | N46: Yes | O46: Yes | P46: Yes | Q46: Yes | R46: Yes | S46: Yes | T46: Yes | U46: Yes | V46: Yes | W46: Yes | X46: Yes | Y46: Yes | Z46: Yes | AA46: Yes | AB46: Yes | AC46: Yes | AD46: Yes | AE46: Yes | AF46: Yes | AG46: Yes | AH46: Yes | AI46: Yes | AJ46: Yes | AK46: Yes | AL46: Yes | AM46: Yes | AN46: Yes | AO46: Yes | AP46: Yes | AQ46: Yes | AR46: Yes | AS46: Yes | AT46: Yes | AU46: Yes | AV46: Yes | AW46: Yes | AX46: Yes | AY46: Yes | AZ46: Yes | BA46: No | BB46: No
C47: Non-Prescribed | D47: Yes/No | E47: 11 | F47: No | G47: No | H47: No | I47: No | J47: No | K47: No | L47: No | M47: No | N47: No | O47: No | P47: No | Q47: No | R47: No | S47: No | T47: No | U47: No | V47: No | W47: No | X47: No | Y47: No | Z47: No | AA47: No | AB47: No | AC47: No | AD47: No | AE47: No | AF47: No | AG47: No | AH47: No | AI47: No | AJ47: No | AK47: No | AL47: No | AM47: No | AN47: No | AO47: No | AP47: No | AQ47: No | AR47: No | AS47: No | AT47: No | AU47: No | AV47: No | AW47: No | AX47: No | AY47: No | AZ47: No | BA47: No | BB47: Yes
C48: Shared (excluding Contaminated Land Group and Land Use Planning) | D48: Yes/No | E48: 12 | F48: Yes | G48: Yes | H48: Yes | I48: Yes | J48: Yes | K48: Yes | L48: Yes | M48: Yes | N48: Yes | O48: Yes | P48: Yes | Q48: Yes | R48: Yes | S48: Yes | T48: Yes | U48: Yes | V48: Yes | W48: Yes | X48: Yes | Y48: Yes | Z48: Yes | AA48: Yes | AB48: Yes | AC48: Yes | AD48: Yes | AE48: Yes | AF48: Yes | AG48: Yes | AH48: Yes | AI48: Yes | AJ48: Yes | AK48: Yes | AL48: Yes | AM48: Yes | AN48: Yes | AO48: Yes | AP48: Yes | AQ48: Yes | AR48: Yes | AS48: Yes | AT48: Yes | AU48: Yes | AV48: Yes | AW48: Yes | AX48: Yes | AY48: Yes | AZ48: Yes | BA48: No | BB48: Yes
C49: Contaminated Land Group | D49: Yes/No | E49: 13 | F49: Yes | G49: Yes | H49: Yes | I49: Yes | J49: Yes | K49: Yes | L49: Yes | M49: Yes | N49: Yes | O49: Yes | P49: Yes | Q49: Yes | R49: Yes | S49: Yes | T49: Yes | U49: Yes | V49: Yes | W49: Yes | X49: No | Y49: No | Z49: No | AA49: No | AB49: No | AC49: No | AD49: No | AE49: No | AF49: No | AG49: No | AH49: No | AI49: No | AJ49: No | AK49: No | AL49: No | AM49: No | AN49: No | AO49: No | AP49: No | AQ49: No | AR49: No | AS49: No | AT49: Yes | AU49: Yes | AV49: Yes | AW49: No | AX49: No | AY49: No | AZ49: No | BA49: No | BB49: Yes
C50: Land Use Planning | D50: Yes/No | E50: 14 | F50: Yes | G50: Yes | H50: Yes | I50: Yes | J50: Yes | K50: Yes | L50: Yes | M50: Yes | N50: Yes | O50: Yes | P50: Yes | Q50: Yes | R50: Yes | S50: Yes | T50: Yes | U50: Yes | V50: Yes | W50: Yes | X50: No | Y50: No | Z50: No | AA50: No | AB50: No | AC50: No | AD50: No | AE50: No | AF50: No | AG50: No | AH50: No | AI50: No | AJ50: No | AK50: No | AL50: No | AM50: No | AN50: No | AO50: No | AP50: No | AQ50: No | AR50: No | AS50: No | AT50: Yes | AU50: Yes | AV50: Yes | AW50: No | AX50: No | AY50: No | AZ50: No | BA50: No | BB50: Yes
C51: Repairs & Maintenance | E51: 0
C52: Prescribed | D52: Yes/No | E52: 15 | F52: Yes | G52: Yes | H52: Yes | I52: Yes | J52: Yes | K52: Yes | L52: Yes | M52: Yes | N52: Yes | O52: Yes | P52: Yes | Q52: Yes | R52: Yes | S52: Yes | T52: Yes | U52: Yes | V52: Yes | W52: Yes | X52: Yes | Y52: Yes | Z52: Yes | AA52: Yes | AB52: Yes | AC52: Yes | AD52: Yes | AE52: Yes | AF52: Yes | AG52: Yes | AH52: Yes | AI52: Yes | AJ52: Yes | AK52: Yes | AL52: Yes | AM52: Yes | AN52: Yes | AO52: Yes | AP52: Yes | AQ52: Yes | AR52: Yes | AS52: Yes | AT52: Yes | AU52: Yes | AV52: Yes | AW52: Yes | AX52: Yes | AY52: Yes | AZ52: Yes | BA52: No | BB52: No
C53: Non-Prescribed | D53: Yes/No | E53: 16 | F53: No | G53: No | H53: No | I53: No | J53: No | K53: No | L53: No | M53: No | N53: No | O53: No | P53: No | Q53: No | R53: No | S53: No | T53: No | U53: No | V53: No | W53: No | X53: No | Y53: No | Z53: No | AA53: No | AB53: No | AC53: No | AD53: No | AE53: No | AF53: No | AG53: No | AH53: No | AI53: No | AJ53: No | AK53: No | AL53: No | AM53: No | AN53: No | AO53: No | AP53: No | AQ53: No | AR53: No | AS53: No | AT53: No | AU53: No | AV53: No | AW53: No | AX53: No | AY53: No | AZ53: No | BA53: No | BB53: Yes
C54: Shared | D54: Yes/No | E54: 17 | F54: Yes | G54: Yes | H54: Yes | I54: Yes | J54: Yes | K54: Yes | L54: Yes | M54: Yes | N54: Yes | O54: Yes | P54: Yes | Q54: Yes | R54: Yes | S54: Yes | T54: Yes | U54: Yes | V54: Yes | W54: Yes | X54: Yes | Y54: Yes | Z54: Yes | AA54: Yes | AB54: Yes | AC54: Yes | AD54: Yes | AE54: Yes | AF54: Yes | AG54: Yes | AH54: Yes | AI54: Yes | AJ54: Yes | AK54: Yes | AL54: Yes | AM54: Yes | AN54: Yes | AO54: Yes | AP54: Yes | AQ54: Yes | AR54: Yes | AS54: Yes | AT54: Yes | AU54: Yes | AV54: Yes | AW54: Yes | AX54: Yes | AY54: Yes | AZ54: Yes | BA54: No | BB54: Yes
C55: Construction | E55: 0
C56: Prescribed | D56: Yes/No | E56: 18 | F56: Yes | G56: Yes | H56: Yes | I56: Yes | J56: Yes | K56: Yes | L56: Yes | M56: Yes | N56: Yes | O56: Yes | P56: Yes | Q56: Yes | R56: Yes | S56: Yes | T56: Yes | U56: Yes | V56: Yes | W56: Yes | X56: Yes | Y56: Yes | Z56: Yes | AA56: Yes | AB56: Yes | AC56: Yes | AD56: Yes | AE56: Yes | AF56: Yes | AG56: Yes | AH56: Yes | AI56: Yes | AJ56: Yes | AK56: Yes | AL56: Yes | AM56: Yes | AN56: Yes | AO56: Yes | AP56: Yes | AQ56: Yes | AR56: Yes | AS56: Yes | AT56: Yes | AU56: Yes | AV56: Yes | AW56: Yes | AX56: Yes | AY56: Yes | AZ56: Yes | BA56: No | BB56: No
C57: Non-Prescribed | D57: Yes/No | E57: 19 | F57: No | G57: No | H57: No | I57: No | J57: No | K57: No | L57: No | M57: No | N57: No | O57: No | P57: No | Q57: No | R57: No | S57: No | T57: No | U57: No | V57: No | W57: No | X57: No | Y57: No | Z57: No | AA57: No | AB57: No | AC57: No | AD57: No | AE57: No | AF57: No | AG57: No | AH57: No | AI57: No | AJ57: No | AK57: No | AL57: No | AM57: No | AN57: No | AO57: No | AP57: No | AQ57: No | AR57: No | AS57: No | AT57: No | AU57: No | AV57: No | AW57: No | AX57: No | AY57: No | AZ57: No | BA57: No | BB57: Yes
C58: Shared | D58: Yes/No | E58: 20 | F58: Yes | G58: Yes | H58: Yes | I58: Yes | J58: Yes | K58: Yes | L58: Yes | M58: Yes | N58: Yes | O58: Yes | P58: Yes | Q58: Yes | R58: Yes | S58: Yes | T58: Yes | U58: Yes | V58: Yes | W58: Yes | X58: Yes | Y58: Yes | Z58: Yes | AA58: Yes | AB58: Yes | AC58: Yes | AD58: Yes | AE58: Yes | AF58: Yes | AG58: Yes | AH58: Yes | AI58: Yes | AJ58: Yes | AK58: Yes | AL58: Yes | AM58: Yes | AN58: Yes | AO58: Yes | AP58: Yes | AQ58: Yes | AR58: Yes | AS58: Yes | AT58: Yes | AU58: Yes | AV58: Yes | AW58: Yes | AX58: Yes | AY58: Yes | AZ58: Yes | BA58: No | BB58: Yes
C59: Professional Services | E59: 0
C60: Prescribed (excluding Maintenance Dredging Projects) | D60: Yes/No | E60: 21 | F60: Yes | G60: Yes | H60: Yes | I60: Yes | J60: Yes | K60: Yes | L60: Yes | M60: Yes | N60: Yes | O60: Yes | P60: Yes | Q60: Yes | R60: Yes | S60: Yes | T60: Yes | U60: Yes | V60: Yes | W60: Yes | X60: Yes | Y60: Yes | Z60: Yes | AA60: Yes | AB60: Yes | AC60: Yes | AD60: Yes | AE60: Yes | AF60: Yes | AG60: Yes | AH60: Yes | AI60: Yes | AJ60: Yes | AK60: Yes | AL60: Yes | AM60: Yes | AN60: Yes | AO60: Yes | AP60: Yes | AQ60: Yes | AR60: Yes | AS60: Yes | AT60: Yes | AU60: Yes | AV60: Yes | AW60: Yes | AX60: Yes | AY60: Yes | AZ60: Yes | BA60: No | BB60: No
C61: Non-Prescribed | D61: Yes/No | E61: 22 | F61: No | G61: No | H61: No | I61: No | J61: No | K61: No | L61: No | M61: No | N61: No | O61: No | P61: No | Q61: No | R61: No | S61: No | T61: No | U61: No | V61: No | W61: No | X61: No | Y61: No | Z61: No | AA61: No | AB61: No | AC61: No | AD61: No | AE61: No | AF61: No | AG61: No | AH61: No | AI61: No | AJ61: No | AK61: No | AL61: No | AM61: No | AN61: No | AO61: No | AP61: No | AQ61: No | AR61: No | AS61: No | AT61: No | AU61: No | AV61: No | AW61: No | AX61: No | AY61: No | AZ61: No | BA61: No | BB61: Yes
C62: Shared (excluding Land Use Planning) | D62: Yes/No | E62: 23 | F62: Yes | G62: Yes | H62: Yes | I62: Yes | J62: Yes | K62: Yes | L62: Yes | M62: Yes | N62: Yes | O62: Yes | P62: Yes | Q62: Yes | R62: Yes | S62: Yes | T62: Yes | U62: Yes | V62: Yes | W62: Yes | X62: Yes | Y62: Yes | Z62: Yes | AA62: Yes | AB62: Yes | AC62: Yes | AD62: Yes | AE62: Yes | AF62: Yes | AG62: Yes | AH62: Yes | AI62: Yes | AJ62: Yes | AK62: Yes | AL62: Yes | AM62: Yes | AN62: Yes | AO62: Yes | AP62: Yes | AQ62: Yes | AR62: Yes | AS62: Yes | AT62: Yes | AU62: Yes | AV62: Yes | AW62: Yes | AX62: Yes | AY62: Yes | AZ62: Yes | BA62: No | BB62: Yes
C63: Maintenance Dredging Projects | D63: Yes/No | E63: 24 | F63: No | G63: No | H63: No | I63: No | J63: No | K63: No | L63: No | M63: No | N63: No | O63: No | P63: No | Q63: No | R63: No | S63: No | T63: No | U63: No | V63: No | W63: No | X63: Yes | Y63: Yes | Z63: Yes | AA63: Yes | AB63: Yes | AC63: Yes | AD63: Yes | AE63: Yes | AF63: Yes | AG63: Yes | AH63: Yes | AI63: Yes | AJ63: Yes | AK63: Yes | AL63: Yes | AM63: Yes | AN63: Yes | AO63: Yes | AP63: Yes | AQ63: Yes | AR63: Yes | AS63: Yes | AT63: No | AU63: No | AV63: No | AW63: No | AX63: No | AY63: No | AZ63: No | BA63: No | BB63: No
C64: Land Use Planning | D64: Yes/No | E64: 25 | F64: Yes | G64: Yes | H64: Yes | I64: Yes | J64: Yes | K64: Yes | L64: Yes | M64: Yes | N64: Yes | O64: Yes | P64: Yes | Q64: Yes | R64: Yes | S64: Yes | T64: Yes | U64: Yes | V64: Yes | W64: Yes | X64: No | Y64: No | Z64: No | AA64: No | AB64: No | AC64: No | AD64: No | AE64: No | AF64: No | AG64: No | AH64: No | AI64: No | AJ64: No | AK64: No | AL64: No | AM64: No | AN64: No | AO64: No | AP64: No | AQ64: No | AR64: No | AS64: No | AT64: Yes | AU64: Yes | AV64: Yes | AW64: No | AX64: No | AY64: No | AZ64: No | BA64: No | BB64: Yes
C65: Security | E65: 0
C66: Prescribed | D66: Yes/No | E66: 26 | F66: Yes | G66: Yes | H66: Yes | I66: Yes | J66: Yes | K66: Yes | L66: Yes | M66: Yes | N66: Yes | O66: Yes | P66: Yes | Q66: Yes | R66: Yes | S66: Yes | T66: Yes | U66: Yes | V66: Yes | W66: Yes | X66: Yes | Y66: Yes | Z66: Yes | AA66: Yes | AB66: Yes | AC66: Yes | AD66: Yes | AE66: Yes | AF66: Yes | AG66: Yes | AH66: Yes | AI66: Yes | AJ66: Yes | AK66: Yes | AL66: Yes | AM66: Yes | AN66: Yes | AO66: Yes | AP66: Yes | AQ66: Yes | AR66: Yes | AS66: Yes | AT66: Yes | AU66: Yes | AV66: Yes | AW66: Yes | AX66: Yes | AY66: Yes | AZ66: Yes | BA66: No | BB66: No
C67: Non-Prescribed | D67: Yes/No | E67: 27 | F67: No | G67: No | H67: No | I67: No | J67: No | K67: No | L67: No | M67: No | N67: No | O67: No | P67: No | Q67: No | R67: No | S67: No | T67: No | U67: No | V67: No | W67: No | X67: No | Y67: No | Z67: No | AA67: No | AB67: No | AC67: No | AD67: No | AE67: No | AF67: No | AG67: No | AH67: No | AI67: No | AJ67: No | AK67: No | AL67: No | AM67: No | AN67: No | AO67: No | AP67: No | AQ67: No | AR67: No | AS67: No | AT67: No | AU67: No | AV67: No | AW67: No | AX67: No | AY67: No | AZ67: No | BA67: No | BB67: Yes
C68: Shared | D68: Yes/No | E68: 28 | F68: Yes | G68: Yes | H68: Yes | I68: Yes | J68: Yes | K68: Yes | L68: Yes | M68: Yes | N68: Yes | O68: Yes | P68: Yes | Q68: Yes | R68: Yes | S68: Yes | T68: Yes | U68: Yes | V68: Yes | W68: Yes | X68: Yes | Y68: Yes | Z68: Yes | AA68: Yes | AB68: Yes | AC68: Yes | AD68: Yes | AE68: Yes | AF68: Yes | AG68: Yes | AH68: Yes | AI68: Yes | AJ68: Yes | AK68: Yes | AL68: Yes | AM68: Yes | AN68: Yes | AO68: Yes | AP68: Yes | AQ68: Yes | AR68: Yes | AS68: Yes | AT68: Yes | AU68: Yes | AV68: Yes | AW68: Yes | AX68: Yes | AY68: Yes | AZ68: Yes | BA68: No | BB68: Yes
C69: Utilities, Admin, Rental & IT | E69: 0
C70: Prescribed (excluding Marine Planning and Projects and Maintenance Dredging Projects) | D70: Yes/No | E70: 29 | F70: Yes | G70: Yes | H70: Yes | I70: Yes | J70: Yes | K70: Yes | L70: Yes | M70: Yes | N70: Yes | O70: Yes | P70: Yes | Q70: Yes | R70: Yes | S70: Yes | T70: Yes | U70: Yes | V70: Yes | W70: Yes | X70: Yes | Y70: Yes | Z70: Yes | AA70: Yes | AB70: Yes | AC70: Yes | AD70: Yes | AE70: Yes | AF70: Yes | AG70: Yes | AH70: Yes | AI70: Yes | AJ70: Yes | AK70: Yes | AL70: Yes | AM70: Yes | AN70: Yes | AO70: Yes | AP70: Yes | AQ70: Yes | AR70: Yes | AS70: Yes | AT70: Yes | AU70: Yes | AV70: Yes | AW70: Yes | AX70: Yes | AY70: Yes | AZ70: Yes | BA70: No | BB70: No
C71: Non-Prescribed | D71: Yes/No | E71: 30 | F71: No | G71: No | H71: No | I71: No | J71: No | K71: No | L71: No | M71: No | N71: No | O71: No | P71: No | Q71: No | R71: No | S71: No | T71: No | U71: No | V71: No | W71: No | X71: No | Y71: No | Z71: No | AA71: No | AB71: No | AC71: No | AD71: No | AE71: No | AF71: No | AG71: No | AH71: No | AI71: No | AJ71: No | AK71: No | AL71: No | AM71: No | AN71: No | AO71: No | AP71: No | AQ71: No | AR71: No | AS71: No | AT71: No | AU71: No | AV71: No | AW71: No | AX71: No | AY71: No | AZ71: No | BA71: No | BB71: Yes
C72: Shared (excluding Contaminated Land Group and Land Use Planning) | D72: Yes/No | E72: 31 | F72: Yes | G72: Yes | H72: Yes | I72: Yes | J72: Yes | K72: Yes | L72: Yes | M72: Yes | N72: Yes | O72: Yes | P72: Yes | Q72: Yes | R72: Yes | S72: Yes | T72: Yes | U72: Yes | V72: Yes | W72: Yes | X72: Yes | Y72: Yes | Z72: Yes | AA72: Yes | AB72: Yes | AC72: Yes | AD72: Yes | AE72: Yes | AF72: Yes | AG72: Yes | AH72: Yes | AI72: Yes | AJ72: Yes | AK72: Yes | AL72: Yes | AM72: Yes | AN72: Yes | AO72: Yes | AP72: Yes | AQ72: Yes | AR72: Yes | AS72: Yes | AT72: Yes | AU72: Yes | AV72: Yes | AW72: Yes | AX72: Yes | AY72: Yes | AZ72: Yes | BA72: No | BB72: Yes
C73: Marine Planning and Projects | D73: Yes/No | E73: 32 | F73: No | G73: No | H73: No | I73: No | J73: No | K73: No | L73: No | M73: No | N73: No | O73: No | P73: No | Q73: No | R73: No | S73: No | T73: No | U73: No | V73: No | W73: No | X73: Yes | Y73: Yes | Z73: Yes | AA73: Yes | AB73: Yes | AC73: Yes | AD73: Yes | AE73: Yes | AF73: Yes | AG73: Yes | AH73: Yes | AI73: Yes | AJ73: Yes | AK73: Yes | AL73: Yes | AM73: Yes | AN73: Yes | AO73: Yes | AP73: Yes | AQ73: Yes | AR73: Yes | AS73: Yes | AT73: No | AU73: No | AV73: No | AW73: No | AX73: No | AY73: No | AZ73: No | BA73: No | BB73: No
C74: Maintenance Dredging Projects | D74: Yes/No | E74: 33 | F74: No | G74: No | H74: No | I74: No | J74: No | K74: No | L74: No | M74: No | N74: No | O74: No | P74: No | Q74: No | R74: No | S74: No | T74: No | U74: No | V74: No | W74: No | X74: Yes | Y74: Yes | Z74: Yes | AA74: Yes | AB74: Yes | AC74: Yes | AD74: Yes | AE74: Yes | AF74: Yes | AG74: Yes | AH74: Yes | AI74: Yes | AJ74: Yes | AK74: Yes | AL74: Yes | AM74: Yes | AN74: Yes | AO74: Yes | AP74: Yes | AQ74: Yes | AR74: Yes | AS74: Yes | AT74: No | AU74: No | AV74: No | AW74: No | AX74: No | AY74: No | AZ74: No | BA74: No | BB74: No
C75: Contaminated Land Group | D75: Yes/No | E75: 34 | F75: Yes | G75: Yes | H75: Yes | I75: Yes | J75: Yes | K75: Yes | L75: Yes | M75: Yes | N75: Yes | O75: Yes | P75: Yes | Q75: Yes | R75: Yes | S75: Yes | T75: Yes | U75: Yes | V75: Yes | W75: Yes | X75: No | Y75: No | Z75: No | AA75: No | AB75: No | AC75: No | AD75: No | AE75: No | AF75: No | AG75: No | AH75: No | AI75: No | AJ75: No | AK75: No | AL75: No | AM75: No | AN75: No | AO75: No | AP75: No | AQ75: No | AR75: No | AS75: No | AT75: Yes | AU75: Yes | AV75: Yes | AW75: No | AX75: No | AY75: No | AZ75: No | BA75: No | BB75: Yes
C76: Land Use Planning | D76: Yes/No | E76: 35 | F76: Yes | G76: Yes | H76: Yes | I76: Yes | J76: Yes | K76: Yes | L76: Yes | M76: Yes | N76: Yes | O76: Yes | P76: Yes | Q76: Yes | R76: Yes | S76: Yes | T76: Yes | U76: Yes | V76: Yes | W76: Yes | X76: No | Y76: No | Z76: No | AA76: No | AB76: No | AC76: No | AD76: No | AE76: No | AF76: No | AG76: No | AH76: No | AI76: No | AJ76: No | AK76: No | AL76: No | AM76: No | AN76: No | AO76: No | AP76: No | AQ76: No | AR76: No | AS76: No | AT76: Yes | AU76: Yes | AV76: Yes | AW76: No | AX76: No | AY76: No | AZ76: No | BA76: No | BB76: Yes
C77: Non-Recurring | E77: 0
C78: Prescribed | D78: Yes/No | E78: 36 | F78: Yes | G78: Yes | H78: Yes | I78: Yes | J78: Yes | K78: Yes | L78: Yes | M78: Yes | N78: Yes | O78: Yes | P78: Yes | Q78: Yes | R78: Yes | S78: Yes | T78: Yes | U78: Yes | V78: Yes | W78: Yes | X78: Yes | Y78: Yes | Z78: Yes | AA78: Yes | AB78: Yes | AC78: Yes | AD78: Yes | AE78: Yes | AF78: Yes | AG78: Yes | AH78: Yes | AI78: Yes | AJ78: Yes | AK78: Yes | AL78: Yes | AM78: Yes | AN78: Yes | AO78: Yes | AP78: Yes | AQ78: Yes | AR78: Yes | AS78: Yes | AT78: Yes | AU78: Yes | AV78: Yes | AW78: Yes | AX78: Yes | AY78: Yes | AZ78: Yes | BA78: No | BB78: No
C79: Non-Prescribed | D79: Yes/No | E79: 37 | F79: No | G79: No | H79: No | I79: No | J79: No | K79: No | L79: No | M79: No | N79: No | O79: No | P79: No | Q79: No | R79: No | S79: No | T79: No | U79: No | V79: No | W79: No | X79: No | Y79: No | Z79: No | AA79: No | AB79: No | AC79: No | AD79: No | AE79: No | AF79: No | AG79: No | AH79: No | AI79: No | AJ79: No | AK79: No | AL79: No | AM79: No | AN79: No | AO79: No | AP79: No | AQ79: No | AR79: No | AS79: No | AT79: No | AU79: No | AV79: No | AW79: No | AX79: No | AY79: No | AZ79: No | BA79: No | BB79: Yes
C80: Shared (excluding Land Use Planning) | D80: Yes/No | E80: 38 | F80: Yes | G80: Yes | H80: Yes | I80: Yes | J80: Yes | K80: Yes | L80: Yes | M80: Yes | N80: Yes | O80: Yes | P80: Yes | Q80: Yes | R80: Yes | S80: Yes | T80: Yes | U80: Yes | V80: Yes | W80: Yes | X80: Yes | Y80: Yes | Z80: Yes | AA80: Yes | AB80: Yes | AC80: Yes | AD80: Yes | AE80: Yes | AF80: Yes | AG80: Yes | AH80: Yes | AI80: Yes | AJ80: Yes | AK80: Yes | AL80: Yes | AM80: Yes | AN80: Yes | AO80: Yes | AP80: Yes | AQ80: Yes | AR80: Yes | AS80: Yes | AT80: Yes | AU80: Yes | AV80: Yes | AW80: Yes | AX80: Yes | AY80: Yes | AZ80: Yes | BA80: No | BB80: Yes
C81: Land Use Planning | D81: Yes/No | E81: 39 | F81: Yes | G81: Yes | H81: Yes | I81: Yes | J81: Yes | K81: Yes | L81: Yes | M81: Yes | N81: Yes | O81: Yes | P81: Yes | Q81: Yes | R81: Yes | S81: Yes | T81: Yes | U81: Yes | V81: Yes | W81: Yes | X81: No | Y81: No | Z81: No | AA81: No | AB81: No | AC81: No | AD81: No | AE81: No | AF81: No | AG81: No | AH81: No | AI81: No | AJ81: No | AK81: No | AL81: No | AM81: No | AN81: No | AO81: No | AP81: No | AQ81: No | AR81: No | AS81: No | AT81: Yes | AU81: Yes | AV81: Yes | AW81: Yes | AX81: Yes | AY81: Yes | AZ81: Yes | BA81: No | BB81: Yes
B83: =MAX($B$1:B76)+Subsection -> 6.04 | C83: Asset Classes Mapped to Services
C85: This table identifies which assets are used to provide each prescribed service or non-prescribed service.
C87: Asset Class
E88: Asset Class Index
C89: =Asset_Classes -> Shared Channel | D89: Yes/No | E89: 1 | F89: No | G89: No | H89: No | I89: No | J89: No | K89: No | L89: No | M89: No | N89: No | O89: No | P89: No | Q89: No | R89: No | S89: No | T89: No | U89: No | V89: No | W89: No | X89: Yes | Y89: No | Z89: Yes | AA89: No | AB89: Yes | AC89: No | AD89: Yes | AE89: No | AF89: Yes | AG89: No | AH89: Yes | AI89: No | AJ89: Yes | AK89: No | AL89: Yes | AM89: No | AN89: No | AO89: No | AP89: No | AQ89: No | AR89: No | AS89: No | AT89: No | AU89: No | AV89: No | AW89: No | AX89: No | AY89: No | AZ89: No | BA89: No | BB89: Yes
C90: Shared Channel Over-Dredge | D90: Yes/No | E90: =MAX($E$89:E89)+1 -> 2 | F90: No | G90: No | H90: No | I90: No | J90: No | K90: No | L90: No | M90: No | N90: No | O90: No | P90: No | Q90: No | R90: No | S90: No | T90: No | U90: No | V90: No | W90: No | X90: Yes | Y90: No | Z90: Yes | AA90: No | AB90: Yes | AC90: No | AD90: Yes | AE90: No | AF90: Yes | AG90: No | AH90: Yes | AI90: No | AJ90: Yes | AK90: No | AL90: Yes | AM90: No | AN90: No | AO90: No | AP90: No | AQ90: No | AR90: No | AS90: No | AT90: No | AU90: No | AV90: No | AW90: No | AX90: No | AY90: No | AZ90: No | BA90: No | BB90: Yes
C91: Melbourne Channel | D91: Yes/No | E91: =MAX($E$89:E90)+1 -> 3 | F91: No | G91: No | H91: No | I91: No | J91: No | K91: No | L91: No | M91: No | N91: No | O91: No | P91: No | Q91: No | R91: No | S91: No | T91: No | U91: No | V91: No | W91: No | X91: No | Y91: Yes | Z91: No | AA91: Yes | AB91: No | AC91: Yes | AD91: No | AE91: Yes | AF91: No | AG91: Yes | AH91: No | AI91: Yes | AJ91: No | AK91: Yes | AL91: No | AM91: Yes | AN91: Yes | AO91: Yes | AP91: No | AQ91: No | AR91: No | AS91: No | AT91: No | AU91: No | AV91: No | AW91: No | AX91: No | AY91: No | AZ91: No | BA91: No | BB91: Yes
C92: Melbourne Channel Over-Dredge | D92: Yes/No | E92: =MAX($E$89:E91)+1 -> 4 | F92: No | G92: No | H92: No | I92: No | J92: No | K92: No | L92: No | M92: No | N92: No | O92: No | P92: No | Q92: No | R92: No | S92: No | T92: No | U92: No | V92: No | W92: No | X92: No | Y92: Yes | Z92: No | AA92: Yes | AB92: No | AC92: Yes | AD92: No | AE92: Yes | AF92: No | AG92: Yes | AH92: No | AI92: Yes | AJ92: No | AK92: Yes | AL92: No | AM92: Yes | AN92: Yes | AO92: Yes | AP92: No | AQ92: No | AR92: No | AS92: No | AT92: No | AU92: No | AV92: No | AW92: No | AX92: No | AY92: No | AZ92: No | BA92: No | BB92: Yes
C93: Channel Protection Assets | D93: Yes/No | E93: =MAX($E$89:E92)+1 -> 5 | F93: No | G93: No | H93: No | I93: No | J93: No | K93: No | L93: No | M93: No | N93: No | O93: No | P93: No | Q93: No | R93: No | S93: No | T93: No | U93: No | V93: No | W93: No | X93: Yes | Y93: Yes | Z93: Yes | AA93: Yes | AB93: Yes | AC93: Yes | AD93: Yes | AE93: Yes | AF93: Yes | AG93: Yes | AH93: Yes | AI93: Yes | AJ93: Yes | AK93: Yes | AL93: Yes | AM93: Yes | AN93: Yes | AO93: Yes | AP93: No | AQ93: No | AR93: No | AS93: No | AT93: No | AU93: No | AV93: No | AW93: No | AX93: No | AY93: No | AZ93: No | BA93: No | BB93: Yes
C94: Channel Service Protection | D94: Yes/No | E94: =MAX($E$89:E93)+1 -> 6 | F94: No | G94: No | H94: No | I94: No | J94: No | K94: No | L94: No | M94: No | N94: No | O94: No | P94: No | Q94: No | R94: No | S94: No | T94: No | U94: No | V94: No | W94: No | X94: Yes | Y94: Yes | Z94: Yes | AA94: Yes | AB94: Yes | AC94: Yes | AD94: Yes | AE94: Yes | AF94: Yes | AG94: Yes | AH94: Yes | AI94: Yes | AJ94: Yes | AK94: Yes | AL94: Yes | AM94: Yes | AN94: Yes | AO94: Yes | AP94: No | AQ94: No | AR94: No | AS94: No | AT94: No | AU94: No | AV94: No | AW94: No | AX94: No | AY94: No | AZ94: No | BA94: No | BB94: Yes
C95: Roads | D95: Yes/No | E95: =MAX($E$89:E94)+1 -> 7 | F95: Yes | G95: Yes | H95: Yes | I95: Yes | J95: Yes | K95: Yes | L95: Yes | M95: Yes | N95: Yes | O95: Yes | P95: Yes | Q95: Yes | R95: Yes | S95: Yes | T95: Yes | U95: Yes | V95: Yes | W95: Yes | X95: No | Y95: No | Z95: No | AA95: No | AB95: No | AC95: No | AD95: No | AE95: No | AF95: No | AG95: No | AH95: No | AI95: No | AJ95: No | AK95: No | AL95: No | AM95: No | AN95: No | AO95: No | AP95: No | AQ95: No | AR95: No | AS95: No | AT95: Yes | AU95: No | AV95: No | AW95: Yes | AX95: Yes | AY95: Yes | AZ95: Yes | BA95: No | BB95: Yes
C96: Port Rail Transformation Agreement | D96: Yes/No | E96: =MAX($E$89:E95)+1 -> 8 | F96: No | G96: Yes | H96: No | I96: No | J96: No | K96: No | L96: No | M96: No | N96: No | O96: No | P96: No | Q96: No | R96: No | S96: No | T96: No | U96: No | V96: No | W96: No | X96: No | Y96: No | Z96: No | AA96: No | AB96: No | AC96: No | AD96: No | AE96: No | AF96: No | AG96: No | AH96: No | AI96: No | AJ96: No | AK96: No | AL96: No | AM96: No | AN96: No | AO96: No | AP96: No | AQ96: No | AR96: No | AS96: No | AT96: No | AU96: No | AV96: No | AW96: No | AX96: No | AY96: No | AZ96: No | BA96: No | BB96: No
C97: Other Rail | D97: Yes/No | E97: =MAX($E$89:E96)+1 -> 9 | F97: Yes | G97: Yes | H97: Yes | I97: Yes | J97: Yes | K97: Yes | L97: Yes | M97: Yes | N97: Yes | O97: Yes | P97: Yes | Q97: Yes | R97: Yes | S97: Yes | T97: Yes | U97: Yes | V97: Yes | W97: Yes | X97: No | Y97: No | Z97: No | AA97: No | AB97: No | AC97: No | AD97: No | AE97: No | AF97: No | AG97: No | AH97: No | AI97: No | AJ97: No | AK97: No | AL97: No | AM97: No | AN97: No | AO97: No | AP97: No | AQ97: No | AR97: No | AS97: No | AT97: Yes | AU97: No | AV97: No | AW97: Yes | AX97: Yes | AY97: Yes | AZ97: Yes | BA97: No | BB97: Yes
C98: Buildings | D98: Yes/No | E98: =MAX($E$89:E97)+1 -> 10 | F98: Yes | G98: Yes | H98: Yes | I98: Yes | J98: Yes | K98: Yes | L98: Yes | M98: Yes | N98: Yes | O98: Yes | P98: Yes | Q98: Yes | R98: Yes | S98: Yes | T98: Yes | U98: Yes | V98: Yes | W98: Yes | X98: No | Y98: No | Z98: No | AA98: No | AB98: No | AC98: No | AD98: No | AE98: No | AF98: No | AG98: No | AH98: No | AI98: No | AJ98: No | AK98: No | AL98: No | AM98: No | AN98: No | AO98: No | AP98: Yes | AQ98: Yes | AR98: Yes | AS98: Yes | AT98: Yes | AU98: Yes | AV98: Yes | AW98: Yes | AX98: Yes | AY98: Yes | AZ98: Yes | BA98: No | BB98: Yes
C99: Wharves - Initial Capital Asset Value / Renewal | D99: Yes/No | E99: =MAX($E$89:E98)+1 -> 11 | F99: Yes | G99: Yes | H99: Yes | I99: Yes | J99: Yes | K99: Yes | L99: Yes | M99: Yes | N99: Yes | O99: Yes | P99: Yes | Q99: Yes | R99: Yes | S99: Yes | T99: Yes | U99: Yes | V99: Yes | W99: Yes | X99: No | Y99: No | Z99: No | AA99: No | AB99: No | AC99: No | AD99: No | AE99: No | AF99: No | AG99: No | AH99: No | AI99: No | AJ99: No | AK99: No | AL99: No | AM99: No | AN99: No | AO99: No | AP99: No | AQ99: No | AR99: No | AS99: No | AT99: No | AU99: No | AV99: No | AW99: No | AX99: No | AY99: No | AZ99: No | BA99: No | BB99: Yes
C100: Wharves - Growth | D100: Yes/No | E100: =MAX($E$89:E99)+1 -> 12 | F100: Yes | G100: Yes | H100: Yes | I100: Yes | J100: Yes | K100: Yes | L100: Yes | M100: Yes | N100: Yes | O100: Yes | P100: Yes | Q100: Yes | R100: Yes | S100: Yes | T100: Yes | U100: Yes | V100: Yes | W100: Yes | X100: No | Y100: No | Z100: No | AA100: No | AB100: No | AC100: No | AD100: No | AE100: No | AF100: No | AG100: No | AH100: No | AI100: No | AJ100: No | AK100: No | AL100: No | AM100: No | AN100: No | AO100: No | AP100: No | AQ100: No | AR100: No | AS100: No | AT100: No | AU100: No | AV100: No | AW100: No | AX100: No | AY100: No | AZ100: No | BA100: No | BB100: Yes
C101: Plant | D101: Yes/No | E101: =MAX($E$89:E100)+1 -> 13 | F101: Yes | G101: Yes | H101: Yes | I101: Yes | J101: Yes | K101: Yes | L101: Yes | M101: Yes | N101: Yes | O101: Yes | P101: Yes | Q101: Yes | R101: Yes | S101: Yes | T101: Yes | U101: Yes | V101: Yes | W101: Yes | X101: Yes | Y101: Yes | Z101: Yes | AA101: Yes | AB101: Yes | AC101: Yes | AD101: Yes | AE101: Yes | AF101: Yes | AG101: Yes | AH101: Yes | AI101: Yes | AJ101: Yes | AK101: Yes | AL101: Yes | AM101: Yes | AN101: Yes | AO101: Yes | AP101: Yes | AQ101: Yes | AR101: Yes | AS101: Yes | AT101: Yes | AU101: Yes | AV101: Yes | AW101: Yes | AX101: Yes | AY101: Yes | AZ101: Yes | BA101: No | BB101: Yes
C102: Land | D102: Yes/No | E102: =MAX($E$89:E101)+1 -> 14 | F102: Yes | G102: Yes | H102: Yes | I102: Yes | J102: Yes | K102: Yes | L102: Yes | M102: Yes | N102: Yes | O102: Yes | P102: Yes | Q102: Yes | R102: Yes | S102: Yes | T102: Yes | U102: Yes | V102: Yes | W102: Yes | X102: No | Y102: No | Z102: No | AA102: No | AB102: No | AC102: No | AD102: No | AE102: No | AF102: No | AG102: No | AH102: No | AI102: No | AJ102: No | AK102: No | AL102: No | AM102: No | AN102: No | AO102: No | AP102: No | AQ102: No | AR102: No | AS102: No | AT102: Yes | AU102: Yes | AV102: Yes | AW102: Yes | AX102: Yes | AY102: Yes | AZ102: Yes | BA102: No | BB102: Yes
C103: Port Capacity Project - Initial Capital Asset Value | D103: Yes/No | E103: =MAX($E$89:E102)+1 -> 15 | F103: Yes | G103: Yes | H103: Yes | I103: Yes | J103: Yes | K103: No | L103: Yes | M103: Yes | N103: No | O103: No | P103: No | Q103: Yes | R103: Yes | S103: Yes | T103: Yes | U103: Yes | V103: Yes | W103: No | X103: No | Y103: No | Z103: No | AA103: No | AB103: No | AC103: No | AD103: No | AE103: No | AF103: No | AG103: No | AH103: No | AI103: No | AJ103: No | AK103: No | AL103: No | AM103: No | AN103: No | AO103: No | AP103: No | AQ103: No | AR103: No | AS103: No | AT103: No | AU103: No | AV103: No | AW103: No | AX103: No | AY103: No | AZ103: No | BA103: No | BB103: Yes
C104: Port Capacity Project - Wharves | D104: Yes/No | E104: =MAX($E$89:E103)+1 -> 16 | F104: Yes | G104: Yes | H104: Yes | I104: Yes | J104: Yes | K104: No | L104: Yes | M104: Yes | N104: No | O104: No | P104: No | Q104: Yes | R104: Yes | S104: Yes | T104: Yes | U104: Yes | V104: Yes | W104: No | X104: No | Y104: No | Z104: No | AA104: No | AB104: No | AC104: No | AD104: No | AE104: No | AF104: No | AG104: No | AH104: No | AI104: No | AJ104: No | AK104: No | AL104: No | AM104: No | AN104: No | AO104: No | AP104: No | AQ104: No | AR104: No | AS104: No | AT104: No | AU104: No | AV104: No | AW104: No | AX104: No | AY104: No | AZ104: No | BA104: No | BB104: Yes
C105: Port Capacity Project - Civil | D105: Yes/No | E105: =MAX($E$89:E104)+1 -> 17 | F105: Yes | G105: Yes | H105: Yes | I105: Yes | J105: Yes | K105: No | L105: Yes | M105: Yes | N105: No | O105: No | P105: No | Q105: Yes | R105: Yes | S105: Yes | T105: Yes | U105: Yes | V105: Yes | W105: No | X105: No | Y105: No | Z105: No | AA105: No | AB105: No | AC105: No | AD105: No | AE105: No | AF105: No | AG105: No | AH105: No | AI105: No | AJ105: No | AK105: No | AL105: No | AM105: No | AN105: No | AO105: No | AP105: No | AQ105: No | AR105: No | AS105: No | AT105: No | AU105: No | AV105: No | AW105: No | AX105: No | AY105: No | AZ105: No | BA105: No | BB105: Yes
C106: Navigational Aids | D106: Yes/No | E106: =MAX($E$89:E105)+1 -> 18 | F106: No | G106: No | H106: No | I106: No | J106: No | K106: No | L106: No | M106: No | N106: No | O106: No | P106: No | Q106: No | R106: No | S106: No | T106: No | U106: No | V106: No | W106: No | X106: Yes | Y106: Yes | Z106: Yes | AA106: Yes | AB106: Yes | AC106: Yes | AD106: Yes | AE106: Yes | AF106: Yes | AG106: Yes | AH106: Yes | AI106: Yes | AJ106: Yes | AK106: Yes | AL106: Yes | AM106: Yes | AN106: Yes | AO106: Yes | AP106: No | AQ106: No | AR106: No | AS106: No | AT106: No | AU106: No | AV106: No | AW106: No | AX106: No | AY106: No | AZ106: No | BA106: No | BB106: Yes
C107: Utilities | D107: Yes/No | E107: =MAX($E$89:E106)+1 -> 19 | F107: Yes | G107: Yes | H107: Yes | I107: Yes | J107: Yes | K107: Yes | L107: Yes | M107: Yes | N107: Yes | O107: Yes | P107: Yes | Q107: Yes | R107: Yes | S107: Yes | T107: Yes | U107: Yes | V107: Yes | W107: Yes | X107: No | Y107: No | Z107: No | AA107: No | AB107: No | AC107: No | AD107: No | AE107: No | AF107: No | AG107: No | AH107: No | AI107: No | AJ107: No | AK107: No | AL107: No | AM107: No | AN107: No | AO107: No | AP107: Yes | AQ107: Yes | AR107: Yes | AS107: Yes | AT107: Yes | AU107: Yes | AV107: Yes | AW107: Yes | AX107: Yes | AY107: Yes | AZ107: Yes | BA107: No | BB107: Yes
C108: Civil | D108: Yes/No | E108: =MAX($E$89:E107)+1 -> 20 | F108: Yes | G108: Yes | H108: Yes | I108: Yes | J108: Yes | K108: Yes | L108: Yes | M108: Yes | N108: Yes | O108: Yes | P108: Yes | Q108: Yes | R108: Yes | S108: Yes | T108: Yes | U108: Yes | V108: Yes | W108: Yes | X108: No | Y108: No | Z108: No | AA108: No | AB108: No | AC108: No | AD108: No | AE108: No | AF108: No | AG108: No | AH108: No | AI108: No | AJ108: No | AK108: No | AL108: No | AM108: No | AN108: No | AO108: No | AP108: Yes | AQ108: Yes | AR108: Yes | AS108: Yes | AT108: Yes | AU108: Yes | AV108: Yes | AW108: Yes | AX108: Yes | AY108: Yes | AZ108: Yes | BA108: No | BB108: Yes
C109: Minor Capital Works | D109: Yes/No | E109: =MAX($E$89:E108)+1 -> 21 | F109: Yes | G109: Yes | H109: Yes | I109: Yes | J109: Yes | K109: Yes | L109: Yes | M109: Yes | N109: Yes | O109: Yes | P109: Yes | Q109: Yes | R109: Yes | S109: Yes | T109: Yes | U109: Yes | V109: Yes | W109: Yes | X109: Yes | Y109: Yes | Z109: Yes | AA109: Yes | AB109: Yes | AC109: Yes | AD109: Yes | AE109: Yes | AF109: Yes | AG109: Yes | AH109: Yes | AI109: Yes | AJ109: Yes | AK109: Yes | AL109: Yes | AM109: Yes | AN109: Yes | AO109: Yes | AP109: Yes | AQ109: Yes | AR109: Yes | AS109: Yes | AT109: Yes | AU109: Yes | AV109: Yes | AW109: Yes | AX109: Yes | AY109: Yes | AZ109: Yes | BA109: No | BB109: Yes
A111: END

Sheet Cost Mapping
A1: =Model_Name -> Port of Melbourne Regulatory Model (Public Version)
B2: =MATCH(C2,Sheet_Names,0) -> 7 | C2: =PROPER(MID(CELL("filename", B1), FIND("]", CELL("filename", B1))+1, 100)) -> Cost Mapping
A3: =SUM(A7:A201) -> 0 | C3: =Error_Message -> No errors identified
C5: [To Contents]
B6: =MAX($B$1:B5)+Subsection -> 7.01 | C6: Operating Expenditure Mapped to Services
C8: In this table the Stage 1 Allocation shows which operating expenditure cost items are dedicated to the Prescribed Services cost bucket, which are dedicated to the Non-prescribed Services cost bucket, and which are shared between buckets. The Stage 3 Allocation Inputs show which operating expenditure cost items are used to provide each Prescribed Service.
C10: Mapping with tariffs running from left to right
C12: This table inputs the table that maps operating expenditure categories (from top to bottom) to tariffs from left to right. This is taken from the 'Allocators' sheet with blank rows and columns removed.
I14: Step 1 Allocators | O14: Tariff Index ↓ | P14: Step 3 Allocators →
I15: Dedicated Prescribed | J15: Dedicated Non-prescribed | K15: Shared | M15: Step 1 Allocation Code | N15: Cost Index ↓ | O15: 1 | P15: =O15+1 -> 2 | Q15: 3 | R15: 4 | S15: 5 | T15: 6 | U15: 7 | V15: 8 | W15: 9 | X15: 10 | Y15: 11 | Z15: 12 | AA15: 13 | AB15: 14 | AC15: 15 | AD15: 16 | AE15: 17 | AF15: 18 | AG15: 19 | AH15: 20 | AI15: 21 | AJ15: 22 | AK15: 23 | AL15: 24 | AM15: 25 | AN15: 26 | AO15: 27 | AP15: 28 | AQ15: 29 | AR15: 30 | AS15: 31 | AT15: 32 | AU15: 33 | AV15: 34 | AW15: 35 | AX15: 36 | AY15: 37 | AZ15: 38 | BA15: 39 | BB15: 40 | BC15: 41 | BD15: 42 | BE15: =BD15+1 -> 43 | BF15: 44 | BG15: 45 | BH15: 46 | BI15: 47 | BJ15: 48 | BK15: 49
C16: =VLOOKUP($N16,Data!$E$233:$G$280,2,FALSE) -> Port Licence Fee | D16: =VLOOKUP($N16,Data!$E$233:$G$280,3,FALSE) -> 0 | H16: =IF(COUNTIF(I16:K16,TRUE)=1,0,1) -> 0 | I16: =AND(OR(O16:BI16),NOT(BK16)) -> TRUE | J16: =AND(BK16,NOT(OR(O16:BI16))) -> FALSE | K16: =NOT(OR(I16:J16)) -> FALSE | M16: =IF(I16,$I$15,IF(J16,$J$15,$K$15)) -> Dedicated Prescribed | N16: 1 | O16: =IF(VLOOKUP($N16,Allocators!$E$34:$BB$81,O$15+1,FALSE)="Yes",TRUE,FALSE) -> TRUE | P16: =IF(VLOOKUP($N16,Allocators!$E$34:$BB$81,P$15+1,FALSE)="Yes",TRUE,FALSE) -> TRUE | Q16: =IF(VLOOKUP($N16,Allocators!$E$34:$BB$81,Q$15+1,FALSE)="Yes",TRUE,FALSE) -> TRUE | R16: =IF(VLOOKUP($N16,Allocators!$E$34:$BB$81,R$15+1,FALSE)="Yes",TRUE,FALSE) -> TRUE | S16: =IF(VLOOKUP($N16,Allocators!$E$34:$BB$81,S$15+1,FALSE)="Yes",TRUE,FALSE) -> TRUE | T16: =IF(VLOOKUP($N16,Allocators!$E$34:$BB$81,T$15+1,FALSE)="Yes",TRUE,FALSE) -> TRUE | U16: =IF(VLOOKUP($N16,Allocators!$E$34:$BB$81,U$15+1,FALSE)="Yes",TRUE,FALSE) -> TRUE | V16: =IF(VLOOKUP($N16,Allocators!$E$34:$BB$81,V$15+1,FALSE)="Yes",TRUE,FALSE) -> TRUE | W16: =IF(VLOOKUP($N16,Allocators!$E$34:$BB$81,W$15+1,FALSE)="Yes",TRUE,FALSE) -> TRUE | X16: =IF(VLOOKUP($N16,Allocators!$E$34:$BB$81,X$15+1,FALSE)="Yes",TRUE,FALSE) -> TRUE | Y16: =IF(VLOOKUP($N16,Allocators!$E$34:$BB$81,Y$15+1,FALSE)="Yes",TRUE,FALSE) -> TRUE | Z16: =IF(VLOOKUP($N16,Allocators!$E$34:$BB$81,Z$15+1,FALSE)="Yes",TRUE,FALSE) -> TRUE | AA16: =IF(VLOOKUP($N16,Allocators!$E$34:$BB$81,AA$15+1,FALSE)="Yes",TRUE,FALSE) -> TRUE | AB16: =IF(VLOOKUP($N16,Allocators!$E$34:$BB$81,AB$15+1,FALSE)="Yes",TRUE,FALSE) -> TRUE | AC16: =IF(VLOOKUP($N16,Allocators!$E$34:$BB$81,AC$15+1,FALSE)="Yes",TRUE,FALSE) -> TRUE | AD16: =IF(VLOOKUP($N16,Allocators!$E$34:$BB$81,AD$15+1,FALSE)="Yes",TRUE,FALSE) -> TRUE | AE16: =IF(VLOOKUP($N16,Allocators!$E$34:$BB$81,AE$15+1,FALSE)="Yes",TRUE,FALSE) -> TRUE | AF16: =IF(VLOOKUP($N16,Allocators!$E$34:$BB$81,AF$15+1,FALSE)="Yes",TRUE,FALSE) -> TRUE | AG16: =IF(VLOOKUP($N16,Allocators!$E$34:$BB$81,AG$15+1,FALSE)="Yes",TRUE,FALSE) -> TRUE | AH16: =IF(VLOOKUP($N16,Allocators!$E$34:$BB$81,AH$15+1,FALSE)="Yes",TRUE,FALSE) -> TRUE | AI16: =IF(VLOOKUP($N16,Allocators!$E$34:$BB$81,AI$15+1,FALSE)="Yes",TRUE,FALSE) -> TRUE | AJ16: =IF(VLOOKUP($N16,Allocators!$E$34:$BB$81,AJ$15+1,FALSE)="Yes",TRUE,FALSE) -> TRUE | AK16: =IF(VLOOKUP($N16,Allocators!$E$34:$BB$81,AK$15+1,FALSE)="Yes",TRUE,FALSE) -> TRUE | AL16: =IF(VLOOKUP($N16,Allocators!$E$34:$BB$81,AL$15+1,FALSE)="Yes",TRUE,FALSE) -> TRUE | AM16: =IF(VLOOKUP($N16,Allocators!$E$34:$BB$81,AM$15+1,FALSE)="Yes",TRUE,FALSE) -> TRUE | AN16: =IF(VLOOKUP($N16,Allocators!$E$34:$BB$81,AN$15+1,FALSE)="Yes",TRUE,FALSE) -> TRUE | AO16: =IF(VLOOKUP($N16,Allocators!$E$34:$BB$81,AO$15+1,FALSE)="Yes",TRUE,FALSE) -> TRUE | AP16: =IF(VLOOKUP($N16,Allocators!$E$34:$BB$81,AP$15+1,FALSE)="Yes",TRUE,FALSE) -> TRUE | AQ16: =IF(VLOOKUP($N16,Allocators!$E$34:$BB$81,AQ$15+1,FALSE)="Yes",TRUE,FALSE) -> TRUE | AR16: =IF(VLOOKUP($N16,Allocators!$E$34:$BB$81,AR$15+1,FALSE)="Yes",TRUE,FALSE) -> TRUE | AS16: =IF(VLOOKUP($N16,Allocators!$E$34:$BB$81,AS$15+1,FALSE)="Yes",TRUE,FALSE) -> TRUE | AT16: =IF(VLOOKUP($N16,Allocators!$E$34:$BB$81,AT$15+1,FALSE)="Yes",TRUE,FALSE) -> TRUE | AU16: =IF(VLOOKUP($N16,Allocators!$E$34:$BB$81,AU$15+1,FALSE)="Yes",TRUE,FALSE) -> TRUE | AV16: =IF(VLOOKUP($N16,Allocators!$E$34:$BB$81,AV$15+1,FALSE)="Yes",TRUE,FALSE) -> TRUE | AW16: =IF(VLOOKUP($N16,Allocators!$E$34:$BB$81,AW$15+1,FALSE)="Yes",TRUE,FALSE) -> TRUE | AX16: =IF(VLOOKUP($N16,Allocators!$E$34:$BB$81,AX$15+1,FALSE)="Yes",TRUE,FALSE) -> TRUE | AY16: =IF(VLOOKUP($N16,Allocators!$E$34:$BB$81,AY$15+1,FALSE)="Yes",TRUE,FALSE) -> TRUE | AZ16: =IF(VLOOKUP($N16,Allocators!$E$34:$BB$81,AZ$15+1,FALSE)="Yes",TRUE,FALSE) -> TRUE | BA16: =IF(VLOOKUP($N16,Allocators!$E$34:$BB$81,BA$15+1,FALSE)="Yes",TRUE,FALSE) -> TRUE | BB16: =IF(VLOOKUP($N16,Allocators!$E$34:$BB$81,BB$15+1,FALSE)="Yes",TRUE,FALSE) -> TRUE | BC16: =IF(VLOOKUP($N16,Allocators!$E$34:$BB$81,BC$15+1,FALSE)="Yes",TRUE,FALSE) -> TRUE | BD16: =IF(VLOOKUP($N16,Allocators!$E$34:$BB$81,BD$15+1,FALSE)="Yes",TRUE,FALSE) -> TRUE | BE16: =IF(VLOOKUP($N16,Allocators!$E$34:$BB$81,BE$15+1,FALSE)="Yes",TRUE,FALSE) -> TRUE | BF16: =IF(VLOOKUP($N16,Allocators!$E$34:$BB$81,BF$15+1,FALSE)="Yes",TRUE,FALSE) -> TRUE | BG16: =IF(VLOOKUP($N16,Allocators!$E$34:$BB$81,BG$15+1,FALSE)="Yes",TRUE,FALSE) -> TRUE | BH16: =IF(VLOOKUP($N16,Allocators!$E$34:$BB$81,BH$15+1,FALSE)="Yes",TRUE,FALSE) -> TRUE | BI16: =IF(VLOOKUP($N16,Allocators!$E$34:$BB$81,BI$15+1,FALSE)="Yes",TRUE,FALSE) -> TRUE | BJ16: =IF(VLOOKUP($N16,Allocators!$E$34:$BB$81,BJ$15+1,FALSE)="Yes",TRUE,FALSE) -> FALSE | BK16: =IF(VLOOKUP($N16,Allocators!$E$34:$BB$81,BK$15+1,FALSE)="Yes",TRUE,FALSE) -> FALSE
C17: =VLOOKUP(N17,Data!$E$233:$G$280,2,FALSE) -> Cost Contribution Amount | D17: =VLOOKUP($N17,Data!$E$233:$G$280,3,FALSE) -> 0 | H17: =IF(COUNTIF(I17:K17,TRUE)=1,0,1) -> 0 | I17: TRUE | J17: FALSE | K17: =NOT(OR(I17:J17)) -> FALSE | M17: Dedicated Prescribed | N17: 2 | O17: =IF(VLOOKUP($N17,Allocators!$E$34:$BB$81,O$15+1,FALSE)="Yes",TRUE,FALSE) -> TRUE | P17: =IF(VLOOKUP($N17,Allocators!$E$34:$BB$81,P$15+1,FALSE)="Yes",TRUE,FALSE) -> TRUE | Q17: =IF(VLOOKUP($N17,Allocators!$E$34:$BB$81,Q$15+1,FALSE)="Yes",TRUE,FALSE) -> TRUE | R17: =IF(VLOOKUP($N17,Allocators!$E$34:$BB$81,R$15+1,FALSE)="Yes",TRUE,FALSE) -> TRUE | S17: =IF(VLOOKUP($N17,Allocators!$E$34:$BB$81,S$15+1,FALSE)="Yes",TRUE,FALSE) -> TRUE | T17: =IF(VLOOKUP($N17,Allocators!$E$34:$BB$81,T$15+1,FALSE)="Yes",TRUE,FALSE) -> TRUE | U17: =IF(VLOOKUP($N17,Allocators!$E$34:$BB$81,U$15+1,FALSE)="Yes",TRUE,FALSE) -> TRUE | V17: =IF(VLOOKUP($N17,Allocators!$E$34:$BB$81,V$15+1,FALSE)="Yes",TRUE,FALSE) -> TRUE | W17: =IF(VLOOKUP($N17,Allocators!$E$34:$BB$81,W$15+1,FALSE)="Yes",TRUE,FALSE) -> TRUE | X17: =IF(VLOOKUP($N17,Allocators!$E$34:$BB$81,X$15+1,FALSE)="Yes",TRUE,FALSE) -> TRUE | Y17: =IF(VLOOKUP($N17,Allocators!$E$34:$BB$81,Y$15+1,FALSE)="Yes",TRUE,FALSE) -> TRUE | Z17: =IF(VLOOKUP($N17,Allocators!$E$34:$BB$81,Z$15+1,FALSE)="Yes",TRUE,FALSE) -> TRUE | AA17: =IF(VLOOKUP($N17,Allocators!$E$34:$BB$81,AA$15+1,FALSE)="Yes",TRUE,FALSE) -> TRUE | AB17: =IF(VLOOKUP($N17,Allocators!$E$34:$BB$81,AB$15+1,FALSE)="Yes",TRUE,FALSE) -> TRUE | AC17: =IF(VLOOKUP($N17,Allocators!$E$34:$BB$81,AC$15+1,FALSE)="Yes",TRUE,FALSE) -> TRUE | AD17: =IF(VLOOKUP($N17,Allocators!$E$34:$BB$81,AD$15+1,FALSE)="Yes",TRUE,FALSE) -> TRUE | AE17: =IF(VLOOKUP($N17,Allocators!$E$34:$BB$81,AE$15+1,FALSE)="Yes",TRUE,FALSE) -> TRUE | AF17: =IF(VLOOKUP($N17,Allocators!$E$34:$BB$81,AF$15+1,FALSE)="Yes",TRUE,FALSE) -> TRUE | AG17: =IF(VLOOKUP($N17,Allocators!$E$34:$BB$81,AG$15+1,FALSE)="Yes",TRUE,FALSE) -> TRUE | AH17: =IF(VLOOKUP($N17,Allocators!$E$34:$BB$81,AH$15+1,FALSE)="Yes",TRUE,FALSE) -> TRUE | AI17: =IF(VLOOKUP($N17,Allocators!$E$34:$BB$81,AI$15+1,FALSE)="Yes",TRUE,FALSE) -> TRUE | AJ17: =IF(VLOOKUP($N17,Allocators!$E$34:$BB$81,AJ$15+1,FALSE)="Yes",TRUE,FALSE) -> TRUE | AK17: =IF(VLOOKUP($N17,Allocators!$E$34:$BB$81,AK$15+1,FALSE)="Yes",TRUE,FALSE) -> TRUE | AL17: =IF(VLOOKUP($N17,Allocators!$E$34:$BB$81,AL$15+1,FALSE)="Yes",TRUE,FALSE) -> TRUE | AM17: =IF(VLOOKUP($N17,Allocators!$E$34:$BB$81,AM$15+1,FALSE)="Yes",TRUE,FALSE) -> TRUE | AN17: =IF(VLOOKUP($N17,Allocators!$E$34:$BB$81,AN$15+1,FALSE)="Yes",TRUE,FALSE) -> TRUE | AO17: =IF(VLOOKUP($N17,Allocators!$E$34:$BB$81,AO$15+1,FALSE)="Yes",TRUE,FALSE) -> TRUE | AP17: =IF(VLOOKUP($N17,Allocators!$E$34:$BB$81,AP$15+1,FALSE)="Yes",TRUE,FALSE) -> TRUE | AQ17: =IF(VLOOKUP($N17,Allocators!$E$34:$BB$81,AQ$15+1,FALSE)="Yes",TRUE,FALSE) -> TRUE | AR17: =IF(VLOOKUP($N17,Allocators!$E$34:$BB$81,AR$15+1,FALSE)="Yes",TRUE,FALSE) -> TRUE | AS17: =IF(VLOOKUP($N17,Allocators!$E$34:$BB$81,AS$15+1,FALSE)="Yes",TRUE,FALSE) -> TRUE | AT17: =IF(VLOOKUP($N17,Allocators!$E$34:$BB$81,AT$15+1,FALSE)="Yes",TRUE,FALSE) -> TRUE | AU17: =IF(VLOOKUP($N17,Allocators!$E$34:$BB$81,AU$15+1,FALSE)="Yes",TRUE,FALSE) -> TRUE | AV17: =IF(VLOOKUP($N17,Allocators!$E$34:$BB$81,AV$15+1,FALSE)="Yes",TRUE,FALSE) -> TRUE | AW17: =IF(VLOOKUP($N17,Allocators!$E$34:$BB$81,AW$15+1,FALSE)="Yes",TRUE,FALSE) -> TRUE | AX17: =IF(VLOOKUP($N17,Allocators!$E$34:$BB$81,AX$15+1,FALSE)="Yes",TRUE,FALSE) -> TRUE | AY17: =IF(VLOOKUP($N17,Allocators!$E$34:$BB$81,AY$15+1,FALSE)="Yes",TRUE,FALSE) -> TRUE | AZ17: =IF(VLOOKUP($N17,Allocators!$E$34:$BB$81,AZ$15+1,FALSE)="Yes",TRUE,FALSE) -> TRUE | BA17: =IF(VLOOKUP($N17,Allocators!$E$34:$BB$81,BA$15+1,FALSE)="Yes",TRUE,FALSE) -> TRUE | BB17: =IF(VLOOKUP($N17,Allocators!$E$34:$BB$81,BB$15+1,FALSE)="Yes",TRUE,FALSE) -> TRUE | BC17: =IF(VLOOKUP($N17,Allocators!$E$34:$BB$81,BC$15+1,FALSE)="Yes",TRUE,FALSE) -> TRUE | BD17: =IF(VLOOKUP($N17,Allocators!$E$34:$BB$81,BD$15+1,FALSE)="Yes",TRUE,FALSE) -> TRUE | BE17: =IF(VLOOKUP($N17,Allocators!$E$34:$BB$81,BE$15+1,FALSE)="Yes",TRUE,FALSE) -> TRUE | BF17: =IF(VLOOKUP($N17,Allocators!$E$34:$BB$81,BF$15+1,FALSE)="Yes",TRUE,FALSE) -> TRUE | BG17: =IF(VLOOKUP($N17,Allocators!$E$34:$BB$81,BG$15+1,FALSE)="Yes",TRUE,FALSE) -> TRUE | BH17: =IF(VLOOKUP($N17,Allocators!$E$34:$BB$81,BH$15+1,FALSE)="Yes",TRUE,FALSE) -> TRUE | BI17: =IF(VLOOKUP($N17,Allocators!$E$34:$BB$81,BI$15+1,FALSE)="Yes",TRUE,FALSE) -> TRUE | BJ17: =IF(VLOOKUP($N17,Allocators!$E$34:$BB$81,BJ$15+1,FALSE)="Yes",TRUE,FALSE) -> FALSE | BK17: =IF(VLOOKUP($N17,Allocators!$E$34:$BB$81,BK$15+1,FALSE)="Yes",TRUE,FALSE) -> FALSE
C18: =VLOOKUP(N18,Data!$E$233:$G$280,2,FALSE) -> PRTA Costs | D18: =VLOOKUP($N18,Data!$E$233:$G$280,3,FALSE) -> 0 | H18: 0 | I18: TRUE | J18: FALSE | K18: FALSE | M18: Dedicated Prescribed | N18: 3 | O18: =IF(VLOOKUP($N18,Allocators!$E$34:$BB$81,O$15+1,FALSE)="Yes",TRUE,FALSE) -> FALSE | P18: =IF(VLOOKUP($N18,Allocators!$E$34:$BB$81,P$15+1,FALSE)="Yes",TRUE,FALSE) -> TRUE | Q18: =IF(VLOOKUP($N18,Allocators!$E$34:$BB$81,Q$15+1,FALSE)="Yes",TRUE,FALSE) -> FALSE | R18: =IF(VLOOKUP($N18,Allocators!$E$34:$BB$81,R$15+1,FALSE)="Yes",TRUE,FALSE) -> FALSE | S18: =IF(VLOOKUP($N18,Allocators!$E$34:$BB$81,S$15+1,FALSE)="Yes",TRUE,FALSE) -> FALSE | T18: =IF(VLOOKUP($N18,Allocators!$E$34:$BB$81,T$15+1,FALSE)="Yes",TRUE,FALSE) -> FALSE | U18: =IF(VLOOKUP($N18,Allocators!$E$34:$BB$81,U$15+1,FALSE)="Yes",TRUE,FALSE) -> FALSE | V18: =IF(VLOOKUP($N18,Allocators!$E$34:$BB$81,V$15+1,FALSE)="Yes",TRUE,FALSE) -> FALSE | W18: =IF(VLOOKUP($N18,Allocators!$E$34:$BB$81,W$15+1,FALSE)="Yes",TRUE,FALSE) -> FALSE | X18: =IF(VLOOKUP($N18,Allocators!$E$34:$BB$81,X$15+1,FALSE)="Yes",TRUE,FALSE) -> FALSE | Y18: =IF(VLOOKUP($N18,Allocators!$E$34:$BB$81,Y$15+1,FALSE)="Yes",TRUE,FALSE) -> FALSE | Z18: =IF(VLOOKUP($N18,Allocators!$E$34:$BB$81,Z$15+1,FALSE)="Yes",TRUE,FALSE) -> FALSE | AA18: =IF(VLOOKUP($N18,Allocators!$E$34:$BB$81,AA$15+1,FALSE)="Yes",TRUE,FALSE) -> FALSE | AB18: =IF(VLOOKUP($N18,Allocators!$E$34:$BB$81,AB$15+1,FALSE)="Yes",TRUE,FALSE) -> FALSE | AC18: =IF(VLOOKUP($N18,Allocators!$E$34:$BB$81,AC$15+1,FALSE)="Yes",TRUE,FALSE) -> FALSE | AD18: =IF(VLOOKUP($N18,Allocators!$E$34:$BB$81,AD$15+1,FALSE)="Yes",TRUE,FALSE) -> FALSE | AE18: =IF(VLOOKUP($N18,Allocators!$E$34:$BB$81,AE$15+1,FALSE)="Yes",TRUE,FALSE) -> FALSE | AF18: =IF(VLOOKUP($N18,Allocators!$E$34:$BB$81,AF$15+1,FALSE)="Yes",TRUE,FALSE) -> FALSE | AG18: =IF(VLOOKUP($N18,Allocators!$E$34:$BB$81,AG$15+1,FALSE)="Yes",TRUE,FALSE) -> FALSE | AH18: =IF(VLOOKUP($N18,Allocators!$E$34:$BB$81,AH$15+1,FALSE)="Yes",TRUE,FALSE) -> FALSE | AI18: =IF(VLOOKUP($N18,Allocators!$E$34:$BB$81,AI$15+1,FALSE)="Yes",TRUE,FALSE) -> FALSE | AJ18: =IF(VLOOKUP($N18,Allocators!$E$34:$BB$81,AJ$15+1,FALSE)="Yes",TRUE,FALSE) -> FALSE | AK18: =IF(VLOOKUP($N18,Allocators!$E$34:$BB$81,AK$15+1,FALSE)="Yes",TRUE,FALSE) -> FALSE | AL18: =IF(VLOOKUP($N18,Allocators!$E$34:$BB$81,AL$15+1,FALSE)="Yes",TRUE,FALSE) -> FALSE | AM18: =IF(VLOOKUP($N18,Allocators!$E$34:$BB$81,AM$15+1,FALSE)="Yes",TRUE,FALSE) -> FALSE | AN18: =IF(VLOOKUP($N18,Allocators!$E$34:$BB$81,AN$15+1,FALSE)="Yes",TRUE,FALSE) -> FALSE | AO18: =IF(VLOOKUP($N18,Allocators!$E$34:$BB$81,AO$15+1,FALSE)="Yes",TRUE,FALSE) -> FALSE | AP18: =IF(VLOOKUP($N18,Allocators!$E$34:$BB$81,AP$15+1,FALSE)="Yes",TRUE,FALSE) -> FALSE | AQ18: =IF(VLOOKUP($N18,Allocators!$E$34:$BB$81,AQ$15+1,FALSE)="Yes",TRUE,FALSE) -> FALSE | AR18: =IF(VLOOKUP($N18,Allocators!$E$34:$BB$81,AR$15+1,FALSE)="Yes",TRUE,FALSE) -> FALSE | AS18: =IF(VLOOKUP($N18,Allocators!$E$34:$BB$81,AS$15+1,FALSE)="Yes",TRUE,FALSE) -> FALSE | AT18: =IF(VLOOKUP($N18,Allocators!$E$34:$BB$81,AT$15+1,FALSE)="Yes",TRUE,FALSE) -> FALSE | AU18: =IF(VLOOKUP($N18,Allocators!$E$34:$BB$81,AU$15+1,FALSE)="Yes",TRUE,FALSE) -> FALSE | AV18: =IF(VLOOKUP($N18,Allocators!$E$34:$BB$81,AV$15+1,FALSE)="Yes",TRUE,FALSE) -> FALSE | AW18: =IF(VLOOKUP($N18,Allocators!$E$34:$BB$81,AW$15+1,FALSE)="Yes",TRUE,FALSE) -> FALSE | AX18: =IF(VLOOKUP($N18,Allocators!$E$34:$BB$81,AX$15+1,FALSE)="Yes",TRUE,FALSE) -> FALSE | AY18: =IF(VLOOKUP($N18,Allocators!$E$34:$BB$81,AY$15+1,FALSE)="Yes",TRUE,FALSE) -> FALSE | AZ18: =IF(VLOOKUP($N18,Allocators!$E$34:$BB$81,AZ$15+1,FALSE)="Yes",TRUE,FALSE) -> FALSE | BA18: =IF(VLOOKUP($N18,Allocators!$E$34:$BB$81,BA$15+1,FALSE)="Yes",TRUE,FALSE) -> FALSE | BB18: =IF(VLOOKUP($N18,Allocators!$E$34:$BB$81,BB$15+1,FALSE)="Yes",TRUE,FALSE) -> FALSE | BC18: =IF(VLOOKUP($N18,Allocators!$E$34:$BB$81,BC$15+1,FALSE)="Yes",TRUE,FALSE) -> FALSE | BD18: =IF(VLOOKUP($N18,Allocators!$E$34:$BB$81,BD$15+1,FALSE)="Yes",TRUE,FALSE) -> FALSE | BE18: =IF(VLOOKUP($N18,Allocators!$E$34:$BB$81,BE$15+1,FALSE)="Yes",TRUE,FALSE) -> FALSE | BF18: =IF(VLOOKUP($N18,Allocators!$E$34:$BB$81,BF$15+1,FALSE)="Yes",TRUE,FALSE) -> FALSE | BG18: =IF(VLOOKUP($N18,Allocators!$E$34:$BB$81,BG$15+1,FALSE)="Yes",TRUE,FALSE) -> FALSE | BH18: =IF(VLOOKUP($N18,Allocators!$E$34:$BB$81,BH$15+1,FALSE)="Yes",TRUE,FALSE) -> FALSE | BI18: =IF(VLOOKUP($N18,Allocators!$E$34:$BB$81,BI$15+1,FALSE)="Yes",TRUE,FALSE) -> FALSE | BJ18: =IF(VLOOKUP($N18,Allocators!$E$34:$BB$81,BJ$15+1,FALSE)="Yes",TRUE,FALSE) -> FALSE | BK18: =IF(VLOOKUP($N18,Allocators!$E$34:$BB$81,BK$15+1,FALSE)="Yes",TRUE,FALSE) -> FALSE
C19: =VLOOKUP(N19,Data!$E$233:$G$280,2,FALSE) -> Insurance, Rates & Taxes | D19: =VLOOKUP($N19,Data!$E$233:$G$280,3,FALSE) -> Prescribed | H19: =IF(COUNTIF(I19:K19,TRUE)=1,0,1) -> 0 | I19: TRUE | J19: FALSE | K19: =NOT(OR(I19:J19)) -> FALSE | M19: =IF(I19,$I$15,IF(J19,$J$15,$K$15)) -> Dedicated Prescribed | N19: 4 | O19: =IF(VLOOKUP($N19,Allocators!$E$34:$BB$81,O$15+1,FALSE)="Yes",TRUE,FALSE) -> TRUE | P19: =IF(VLOOKUP($N19,Allocators!$E$34:$BB$81,P$15+1,FALSE)="Yes",TRUE,FALSE) -> TRUE | Q19: =IF(VLOOKUP($N19,Allocators!$E$34:$BB$81,Q$15+1,FALSE)="Yes",TRUE,FALSE) -> TRUE | R19: =IF(VLOOKUP($N19,Allocators!$E$34:$BB$81,R$15+1,FALSE)="Yes",TRUE,FALSE) -> TRUE | S19: =IF(VLOOKUP($N19,Allocators!$E$34:$BB$81,S$15+1,FALSE)="Yes",TRUE,FALSE) -> TRUE | T19: =IF(VLOOKUP($N19,Allocators!$E$34:$BB$81,T$15+1,FALSE)="Yes",TRUE,FALSE) -> TRUE | U19: =IF(VLOOKUP($N19,Allocators!$E$34:$BB$81,U$15+1,FALSE)="Yes",TRUE,FALSE) -> TRUE | V19: =IF(VLOOKUP($N19,Allocators!$E$34:$BB$81,V$15+1,FALSE)="Yes",TRUE,FALSE) -> TRUE | W19: =IF(VLOOKUP($N19,Allocators!$E$34:$BB$81,W$15+1,FALSE)="Yes",TRUE,FALSE) -> TRUE | X19: =IF(VLOOKUP($N19,Allocators!$E$34:$BB$81,X$15+1,FALSE)="Yes",TRUE,FALSE) -> TRUE | Y19: =IF(VLOOKUP($N19,Allocators!$E$34:$BB$81,Y$15+1,FALSE)="Yes",TRUE,FALSE) -> TRUE | Z19: =IF(VLOOKUP($N19,Allocators!$E$34:$BB$81,Z$15+1,FALSE)="Yes",TRUE,FALSE) -> TRUE | AA19: =IF(VLOOKUP($N19,Allocators!$E$34:$BB$81,AA$15+1,FALSE)="Yes",TRUE,FALSE) -> TRUE | AB19: =IF(VLOOKUP($N19,Allocators!$E$34:$BB$81,AB$15+1,FALSE)="Yes",TRUE,FALSE) -> TRUE | AC19: =IF(VLOOKUP($N19,Allocators!$E$34:$BB$81,AC$15+1,FALSE)="Yes",TRUE,FALSE) -> TRUE | AD19: =IF(VLOOKUP($N19,Allocators!$E$34:$BB$81,AD$15+1,FALSE)="Yes",TRUE,FALSE) -> TRUE | AE19: =IF(VLOOKUP($N19,Allocators!$E$34:$BB$81,AE$15+1,FALSE)="Yes",TRUE,FALSE) -> TRUE | AF19: =IF(VLOOKUP($N19,Allocators!$E$34:$BB$81,AF$15+1,FALSE)="Yes",TRUE,FALSE) -> TRUE | AG19: =IF(VLOOKUP($N19,Allocators!$E$34:$BB$81,AG$15+1,FALSE)="Yes",TRUE,FALSE) -> TRUE | AH19: =IF(VLOOKUP($N19,Allocators!$E$34:$BB$81,AH$15+1,FALSE)="Yes",TRUE,FALSE) -> TRUE | AI19: =IF(VLOOKUP($N19,Allocators!$E$34:$BB$81,AI$15+1,FALSE)="Yes",TRUE,FALSE) -> TRUE | AJ19: =IF(VLOOKUP($N19,Allocators!$E$34:$BB$81,AJ$15+1,FALSE)="Yes",TRUE,FALSE) -> TRUE | AK19: =IF(VLOOKUP($N19,Allocators!$E$34:$BB$81,AK$15+1,FALSE)="Yes",TRUE,FALSE) -> TRUE | AL19: =IF(VLOOKUP($N19,Allocators!$E$34:$BB$81,AL$15+1,FALSE)="Yes",TRUE,FALSE) -> TRUE | AM19: =IF(VLOOKUP($N19,Allocators!$E$34:$BB$81,AM$15+1,FALSE)="Yes",TRUE,FALSE) -> TRUE | AN19: =IF(VLOOKUP($N19,Allocators!$E$34:$BB$81,AN$15+1,FALSE)="Yes",TRUE,FALSE) -> TRUE | AO19: =IF(VLOOKUP($N19,Allocators!$E$34:$BB$81,AO$15+1,FALSE)="Yes",TRUE,FALSE) -> TRUE | AP19: =IF(VLOOKUP($N19,Allocators!$E$34:$BB$81,AP$15+1,FALSE)="Yes",TRUE,FALSE) -> TRUE | AQ19: =IF(VLOOKUP($N19,Allocators!$E$34:$BB$81,AQ$15+1,FALSE)="Yes",TRUE,FALSE) -> TRUE | AR19: =IF(VLOOKUP($N19,Allocators!$E$34:$BB$81,AR$15+1,FALSE)="Yes",TRUE,FALSE) -> TRUE | AS19: =IF(VLOOKUP($N19,Allocators!$E$34:$BB$81,AS$15+1,FALSE)="Yes",TRUE,FALSE) -> TRUE | AT19: =IF(VLOOKUP($N19,Allocators!$E$34:$BB$81,AT$15+1,FALSE)="Yes",TRUE,FALSE) -> TRUE | AU19: =IF(VLOOKUP($N19,Allocators!$E$34:$BB$81,AU$15+1,FALSE)="Yes",TRUE,FALSE) -> TRUE | AV19: =IF(VLOOKUP($N19,Allocators!$E$34:$BB$81,AV$15+1,FALSE)="Yes",TRUE,FALSE) -> TRUE | AW19: =IF(VLOOKUP($N19,Allocators!$E$34:$BB$81,AW$15+1,FALSE)="Yes",TRUE,FALSE) -> TRUE | AX19: =IF(VLOOKUP($N19,Allocators!$E$34:$BB$81,AX$15+1,FALSE)="Yes",TRUE,FALSE) -> TRUE | AY19: =IF(VLOOKUP($N19,Allocators!$E$34:$BB$81,AY$15+1,FALSE)="Yes",TRUE,FALSE) -> TRUE | AZ19: =IF(VLOOKUP($N19,Allocators!$E$34:$BB$81,AZ$15+1,FALSE)="Yes",TRUE,FALSE) -> TRUE | BA19: =IF(VLOOKUP($N19,Allocators!$E$34:$BB$81,BA$15+1,FALSE)="Yes",TRUE,FALSE) -> TRUE | BB19: =IF(VLOOKUP($N19,Allocators!$E$34:$BB$81,BB$15+1,FALSE)="Yes",TRUE,FALSE) -> TRUE | BC19: =IF(VLOOKUP($N19,Allocators!$E$34:$BB$81,BC$15+1,FALSE)="Yes",TRUE,FALSE) -> TRUE | BD19: =IF(VLOOKUP($N19,Allocators!$E$34:$BB$81,BD$15+1,FALSE)="Yes",TRUE,FALSE) -> TRUE | BE19: =IF(VLOOKUP($N19,Allocators!$E$34:$BB$81,BE$15+1,FALSE)="Yes",TRUE,FALSE) -> TRUE | BF19: =IF(VLOOKUP($N19,Allocators!$E$34:$BB$81,BF$15+1,FALSE)="Yes",TRUE,FALSE) -> TRUE | BG19: =IF(VLOOKUP($N19,Allocators!$E$34:$BB$81,BG$15+1,FALSE)="Yes",TRUE,FALSE) -> TRUE | BH19: =IF(VLOOKUP($N19,Allocators!$E$34:$BB$81,BH$15+1,FALSE)="Yes",TRUE,FALSE) -> TRUE | BI19: =IF(VLOOKUP($N19,Allocators!$E$34:$BB$81,BI$15+1,FALSE)="Yes",TRUE,FALSE) -> TRUE | BJ19: =IF(VLOOKUP($N19,Allocators!$E$34:$BB$81,BJ$15+1,FALSE)="Yes",TRUE,FALSE) -> FALSE | BK19: =IF(VLOOKUP($N19,Allocators!$E$34:$BB$81,BK$15+1,FALSE)="Yes",TRUE,FALSE) -> FALSE
C20: =VLOOKUP(N20,Data!$E$233:$G$280,2,FALSE) -> Insurance, Rates & Taxes | D20: =VLOOKUP($N20,Data!$E$233:$G$280,3,FALSE) -> Non-Prescribed | H20: =IF(COUNTIF(I20:K20,TRUE)=1,0,1) -> 0 | I20: FALSE | J20: TRUE | K20: =NOT(OR(I20:J20)) -> FALSE | M20: =IF(I20,$I$15,IF(J20,$J$15,$K$15)) -> Dedicated Non-prescribed | N20: 5 | O20: =IF(VLOOKUP($N20,Allocators!$E$34:$BB$81,O$15+1,FALSE)="Yes",TRUE,FALSE) -> FALSE | P20: =IF(VLOOKUP($N20,Allocators!$E$34:$BB$81,P$15+1,FALSE)="Yes",TRUE,FALSE) -> FALSE | Q20: =IF(VLOOKUP($N20,Allocators!$E$34:$BB$81,Q$15+1,FALSE)="Yes",TRUE,FALSE) -> FALSE | R20: =IF(VLOOKUP($N20,Allocators!$E$34:$BB$81,R$15+1,FALSE)="Yes",TRUE,FALSE) -> FALSE | S20: =IF(VLOOKUP($N20,Allocators!$E$34:$BB$81,S$15+1,FALSE)="Yes",TRUE,FALSE) -> FALSE | T20: =IF(VLOOKUP($N20,Allocators!$E$34:$BB$81,T$15+1,FALSE)="Yes",TRUE,FALSE) -> FALSE | U20: =IF(VLOOKUP($N20,Allocators!$E$34:$BB$81,U$15+1,FALSE)="Yes",TRUE,FALSE) -> FALSE | V20: =IF(VLOOKUP($N20,Allocators!$E$34:$BB$81,V$15+1,FALSE)="Yes",TRUE,FALSE) -> FALSE | W20: =IF(VLOOKUP($N20,Allocators!$E$34:$BB$81,W$15+1,FALSE)="Yes",TRUE,FALSE) -> FALSE | X20: =IF(VLOOKUP($N20,Allocators!$E$34:$BB$81,X$15+1,FALSE)="Yes",TRUE,FALSE) -> FALSE | Y20: =IF(VLOOKUP($N20,Allocators!$E$34:$BB$81,Y$15+1,FALSE)="Yes",TRUE,FALSE) -> FALSE | Z20: =IF(VLOOKUP($N20,Allocators!$E$34:$BB$81,Z$15+1,FALSE)="Yes",TRUE,FALSE) -> FALSE | AA20: =IF(VLOOKUP($N20,Allocators!$E$34:$BB$81,AA$15+1,FALSE)="Yes",TRUE,FALSE) -> FALSE | AB20: =IF(VLOOKUP($N20,Allocators!$E$34:$BB$81,AB$15+1,FALSE)="Yes",TRUE,FALSE) -> FALSE | AC20: =IF(VLOOKUP($N20,Allocators!$E$34:$BB$81,AC$15+1,FALSE)="Yes",TRUE,FALSE) -> FALSE | AD20: =IF(VLOOKUP($N20,Allocators!$E$34:$BB$81,AD$15+1,FALSE)="Yes",TRUE,FALSE) -> FALSE | AE20: =IF(VLOOKUP($N20,Allocators!$E$34:$BB$81,AE$15+1,FALSE)="Yes",TRUE,FALSE) -> FALSE | AF20: =IF(VLOOKUP($N20,Allocators!$E$34:$BB$81,AF$15+1,FALSE)="Yes",TRUE,FALSE) -> FALSE | AG20: =IF(VLOOKUP($N20,Allocators!$E$34:$BB$81,AG$15+1,FALSE)="Yes",TRUE,FALSE) -> FALSE | AH20: =IF(VLOOKUP($N20,Allocators!$E$34:$BB$81,AH$15+1,FALSE)="Yes",TRUE,FALSE) -> FALSE | AI20: =IF(VLOOKUP($N20,Allocators!$E$34:$BB$81,AI$15+1,FALSE)="Yes",TRUE,FALSE) -> FALSE | AJ20: =IF(VLOOKUP($N20,Allocators!$E$34:$BB$81,AJ$15+1,FALSE)="Yes",TRUE,FALSE) -> FALSE | AK20: =IF(VLOOKUP($N20,Allocators!$E$34:$BB$81,AK$15+1,FALSE)="Yes",TRUE,FALSE) -> FALSE | AL20: =IF(VLOOKUP($N20,Allocators!$E$34:$BB$81,AL$15+1,FALSE)="Yes",TRUE,FALSE) -> FALSE | AM20: =IF(VLOOKUP($N20,Allocators!$E$34:$BB$81,AM$15+1,FALSE)="Yes",TRUE,FALSE) -> FALSE | AN20: =IF(VLOOKUP($N20,Allocators!$E$34:$BB$81,AN$15+1,FALSE)="Yes",TRUE,FALSE) -> FALSE | AO20: =IF(VLOOKUP($N20,Allocators!$E$34:$BB$81,AO$15+1,FALSE)="Yes",TRUE,FALSE) -> FALSE | AP20: =IF(VLOOKUP($N20,Allocators!$E$34:$BB$81,AP$15+1,FALSE)="Yes",TRUE,FALSE) -> FALSE | AQ20: =IF(VLOOKUP($N20,Allocators!$E$34:$BB$81,AQ$15+1,FALSE)="Yes",TRUE,FALSE) -> FALSE | AR20: =IF(VLOOKUP($N20,Allocators!$E$34:$BB$81,AR$15+1,FALSE)="Yes",TRUE,FALSE) -> FALSE | AS20: =IF(VLOOKUP($N20,Allocators!$E$34:$BB$81,AS$15+1,FALSE)="Yes",TRUE,FALSE) -> FALSE | AT20: =IF(VLOOKUP($N20,Allocators!$E$34:$BB$81,AT$15+1,FALSE)="Yes",TRUE,FALSE) -> FALSE | AU20: =IF(VLOOKUP($N20,Allocators!$E$34:$BB$81,AU$15+1,FALSE)="Yes",TRUE,FALSE) -> FALSE | AV20: =IF(VLOOKUP($N20,Allocators!$E$34:$BB$81,AV$15+1,FALSE)="Yes",TRUE,FALSE) -> FALSE | AW20: =IF(VLOOKUP($N20,Allocators!$E$34:$BB$81,AW$15+1,FALSE)="Yes",TRUE,FALSE) -> FALSE | AX20: =IF(VLOOKUP($N20,Allocators!$E$34:$BB$81,AX$15+1,FALSE)="Yes",TRUE,FALSE) -> FALSE | AY20: =IF(VLOOKUP($N20,Allocators!$E$34:$BB$81,AY$15+1,FALSE)="Yes",TRUE,FALSE) -> FALSE | AZ20: =IF(VLOOKUP($N20,Allocators!$E$34:$BB$81,AZ$15+1,FALSE)="Yes",TRUE,FALSE) -> FALSE | BA20: =IF(VLOOKUP($N20,Allocators!$E$34:$BB$81,BA$15+1,FALSE)="Yes",TRUE,FALSE) -> FALSE | BB20: =IF(VLOOKUP($N20,Allocators!$E$34:$BB$81,BB$15+1,FALSE)="Yes",TRUE,FALSE) -> FALSE | BC20: =IF(VLOOKUP($N20,Allocators!$E$34:$BB$81,BC$15+1,FALSE)="Yes",TRUE,FALSE) -> FALSE | BD20: =IF(VLOOKUP($N20,Allocators!$E$34:$BB$81,BD$15+1,FALSE)="Yes",TRUE,FALSE) -> FALSE | BE20: =IF(VLOOKUP($N20,Allocators!$E$34:$BB$81,BE$15+1,FALSE)="Yes",TRUE,FALSE) -> FALSE | BF20: =IF(VLOOKUP($N20,Allocators!$E$34:$BB$81,BF$15+1,FALSE)="Yes",TRUE,FALSE) -> FALSE | BG20: =IF(VLOOKUP($N20,Allocators!$E$34:$BB$81,BG$15+1,FALSE)="Yes",TRUE,FALSE) -> FALSE | BH20: =IF(VLOOKUP($N20,Allocators!$E$34:$BB$81,BH$15+1,FALSE)="Yes",TRUE,FALSE) -> FALSE | BI20: =IF(VLOOKUP($N20,Allocators!$E$34:$BB$81,BI$15+1,FALSE)="Yes",TRUE,FALSE) -> FALSE | BJ20: =IF(VLOOKUP($N20,Allocators!$E$34:$BB$81,BJ$15+1,FALSE)="Yes",TRUE,FALSE) -> FALSE | BK20: =IF(VLOOKUP($N20,Allocators!$E$34:$BB$81,BK$15+1,FALSE)="Yes",TRUE,FALSE) -> TRUE
C21: =VLOOKUP(N21,Data!$E$233:$G$280,2,FALSE) -> Insurance, Rates & Taxes | D21: =VLOOKUP($N21,Data!$E$233:$G$280,3,FALSE) -> Shared | H21: 0 | I21: FALSE | J21: FALSE | K21: TRUE | M21: Shared | N21: 6 | O21: =IF(VLOOKUP($N21,Allocators!$E$34:$BB$81,O$15+1,FALSE)="Yes",TRUE,FALSE) -> TRUE | P21: =IF(VLOOKUP($N21,Allocators!$E$34:$BB$81,P$15+1,FALSE)="Yes",TRUE,FALSE) -> TRUE | Q21: =IF(VLOOKUP($N21,Allocators!$E$34:$BB$81,Q$15+1,FALSE)="Yes",TRUE,FALSE) -> TRUE | R21: =IF(VLOOKUP($N21,Allocators!$E$34:$BB$81,R$15+1,FALSE)="Yes",TRUE,FALSE) -> TRUE | S21: =IF(VLOOKUP($N21,Allocators!$E$34:$BB$81,S$15+1,FALSE)="Yes",TRUE,FALSE) -> TRUE | T21: =IF(VLOOKUP($N21,Allocators!$E$34:$BB$81,T$15+1,FALSE)="Yes",TRUE,FALSE) -> TRUE | U21: =IF(VLOOKUP($N21,Allocators!$E$34:$BB$81,U$15+1,FALSE)="Yes",TRUE,FALSE) -> TRUE | V21: =IF(VLOOKUP($N21,Allocators!$E$34:$BB$81,V$15+1,FALSE)="Yes",TRUE,FALSE) -> TRUE | W21: =IF(VLOOKUP($N21,Allocators!$E$34:$BB$81,W$15+1,FALSE)="Yes",TRUE,FALSE) -> TRUE | X21: =IF(VLOOKUP($N21,Allocators!$E$34:$BB$81,X$15+1,FALSE)="Yes",TRUE,FALSE) -> TRUE | Y21: =IF(VLOOKUP($N21,Allocators!$E$34:$BB$81,Y$15+1,FALSE)="Yes",TRUE,FALSE) -> TRUE | Z21: =IF(VLOOKUP($N21,Allocators!$E$34:$BB$81,Z$15+1,FALSE)="Yes",TRUE,FALSE) -> TRUE | AA21: =IF(VLOOKUP($N21,Allocators!$E$34:$BB$81,AA$15+1,FALSE)="Yes",TRUE,FALSE) -> TRUE | AB21: =IF(VLOOKUP($N21,Allocators!$E$34:$BB$81,AB$15+1,FALSE)="Yes",TRUE,FALSE) -> TRUE | AC21: =IF(VLOOKUP($N21,Allocators!$E$34:$BB$81,AC$15+1,FALSE)="Yes",TRUE,FALSE) -> TRUE | AD21: =IF(VLOOKUP($N21,Allocators!$E$34:$BB$81,AD$15+1,FALSE)="Yes",TRUE,FALSE) -> TRUE | AE21: =IF(VLOOKUP($N21,Allocators!$E$34:$BB$81,AE$15+1,FALSE)="Yes",TRUE,FALSE) -> TRUE | AF21: =IF(VLOOKUP($N21,Allocators!$E$34:$BB$81,AF$15+1,FALSE)="Yes",TRUE,FALSE) -> TRUE | AG21: =IF(VLOOKUP($N21,Allocators!$E$34:$BB$81,AG$15+1,FALSE)="Yes",TRUE,FALSE) -> TRUE | AH21: =IF(VLOOKUP($N21,Allocators!$E$34:$BB$81,AH$15+1,FALSE)="Yes",TRUE,FALSE) -> TRUE | AI21: =IF(VLOOKUP($N21,Allocators!$E$34:$BB$81,AI$15+1,FALSE)="Yes",TRUE,FALSE) -> TRUE | AJ21: =IF(VLOOKUP($N21,Allocators!$E$34:$BB$81,AJ$15+1,FALSE)="Yes",TRUE,FALSE) -> TRUE | AK21: =IF(VLOOKUP($N21,Allocators!$E$34:$BB$81,AK$15+1,FALSE)="Yes",TRUE,FALSE) -> TRUE | AL21: =IF(VLOOKUP($N21,Allocators!$E$34:$BB$81,AL$15+1,FALSE)="Yes",TRUE,FALSE) -> TRUE | AM21: =IF(VLOOKUP($N21,Allocators!$E$34:$BB$81,AM$15+1,FALSE)="Yes",TRUE,FALSE) -> TRUE | AN21: =IF(VLOOKUP($N21,Allocators!$E$34:$BB$81,AN$15+1,FALSE)="Yes",TRUE,FALSE) -> TRUE | AO21: =IF(VLOOKUP($N21,Allocators!$E$34:$BB$81,AO$15+1,FALSE)="Yes",TRUE,FALSE) -> TRUE | AP21: =IF(VLOOKUP($N21,Allocators!$E$34:$BB$81,AP$15+1,FALSE)="Yes",TRUE,FALSE) -> TRUE | AQ21: =IF(VLOOKUP($N21,Allocators!$E$34:$BB$81,AQ$15+1,FALSE)="Yes",TRUE,FALSE) -> TRUE | AR21: =IF(VLOOKUP($N21,Allocators!$E$34:$BB$81,AR$15+1,FALSE)="Yes",TRUE,FALSE) -> TRUE | AS21: =IF(VLOOKUP($N21,Allocators!$E$34:$BB$81,AS$15+1,FALSE)="Yes",TRUE,FALSE) -> TRUE | AT21: =IF(VLOOKUP($N21,Allocators!$E$34:$BB$81,AT$15+1,FALSE)="Yes",TRUE,FALSE) -> TRUE | AU21: =IF(VLOOKUP($N21,Allocators!$E$34:$BB$81,AU$15+1,FALSE)="Yes",TRUE,FALSE) -> TRUE | AV21: =IF(VLOOKUP($N21,Allocators!$E$34:$BB$81,AV$15+1,FALSE)="Yes",TRUE,FALSE) -> TRUE | AW21: =IF(VLOOKUP($N21,Allocators!$E$34:$BB$81,AW$15+1,FALSE)="Yes",TRUE,FALSE) -> TRUE | AX21: =IF(VLOOKUP($N21,Allocators!$E$34:$BB$81,AX$15+1,FALSE)="Yes",TRUE,FALSE) -> TRUE | AY21: =IF(VLOOKUP($N21,Allocators!$E$34:$BB$81,AY$15+1,FALSE)="Yes",TRUE,FALSE) -> TRUE | AZ21: =IF(VLOOKUP($N21,Allocators!$E$34:$BB$81,AZ$15+1,FALSE)="Yes",TRUE,FALSE) -> TRUE | BA21: =IF(VLOOKUP($N21,Allocators!$E$34:$BB$81,BA$15+1,FALSE)="Yes",TRUE,FALSE) -> TRUE | BB21: =IF(VLOOKUP($N21,Allocators!$E$34:$BB$81,BB$15+1,FALSE)="Yes",TRUE,FALSE) -> TRUE | BC21: =IF(VLOOKUP($N21,Allocators!$E$34:$BB$81,BC$15+1,FALSE)="Yes",TRUE,FALSE) -> TRUE | BD21: =IF(VLOOKUP($N21,Allocators!$E$34:$BB$81,BD$15+1,FALSE)="Yes",TRUE,FALSE) -> TRUE | BE21: =IF(VLOOKUP($N21,Allocators!$E$34:$BB$81,BE$15+1,FALSE)="Yes",TRUE,FALSE) -> TRUE | BF21: =IF(VLOOKUP($N21,Allocators!$E$34:$BB$81,BF$15+1,FALSE)="Yes",TRUE,FALSE) -> TRUE | BG21: =IF(VLOOKUP($N21,Allocators!$E$34:$BB$81,BG$15+1,FALSE)="Yes",TRUE,FALSE) -> TRUE | BH21: =IF(VLOOKUP($N21,Allocators!$E$34:$BB$81,BH$15+1,FALSE)="Yes",TRUE,FALSE) -> TRUE | BI21: =IF(VLOOKUP($N21,Allocators!$E$34:$BB$81,BI$15+1,FALSE)="Yes",TRUE,FALSE) -> TRUE | BJ21: =IF(VLOOKUP($N21,Allocators!$E$34:$BB$81,BJ$15+1,FALSE)="Yes",TRUE,FALSE) -> FALSE | BK21: =IF(VLOOKUP($N21,Allocators!$E$34:$BB$81,BK$15+1,FALSE)="Yes",TRUE,FALSE) -> TRUE
C22: =VLOOKUP(N22,Data!$E$233:$G$280,2,FALSE) -> Land Tax | D22: =VLOOKUP($N22,Data!$E$233:$G$280,3,FALSE) -> Prescribed | H22: 0 | I22: TRUE | J22: FALSE | K22: FALSE | M22: Dedicated Prescribed | N22: 7 | O22: =IF(VLOOKUP($N22,Allocators!$E$34:$BB$81,O$15+1,FALSE)="Yes",TRUE,FALSE) -> TRUE | P22: =IF(VLOOKUP($N22,Allocators!$E$34:$BB$81,P$15+1,FALSE)="Yes",TRUE,FALSE) -> TRUE | Q22: =IF(VLOOKUP($N22,Allocators!$E$34:$BB$81,Q$15+1,FALSE)="Yes",TRUE,FALSE) -> TRUE | R22: =IF(VLOOKUP($N22,Allocators!$E$34:$BB$81,R$15+1,FALSE)="Yes",TRUE,FALSE) -> TRUE | S22: =IF(VLOOKUP($N22,Allocators!$E$34:$BB$81,S$15+1,FALSE)="Yes",TRUE,FALSE) -> TRUE | T22: =IF(VLOOKUP($N22,Allocators!$E$34:$BB$81,T$15+1,FALSE)="Yes",TRUE,FALSE) -> TRUE | U22: =IF(VLOOKUP($N22,Allocators!$E$34:$BB$81,U$15+1,FALSE)="Yes",TRUE,FALSE) -> TRUE | V22: =IF(VLOOKUP($N22,Allocators!$E$34:$BB$81,V$15+1,FALSE)="Yes",TRUE,FALSE) -> TRUE | W22: =IF(VLOOKUP($N22,Allocators!$E$34:$BB$81,W$15+1,FALSE)="Yes",TRUE,FALSE) -> TRUE | X22: =IF(VLOOKUP($N22,Allocators!$E$34:$BB$81,X$15+1,FALSE)="Yes",TRUE,FALSE) -> TRUE | Y22: =IF(VLOOKUP($N22,Allocators!$E$34:$BB$81,Y$15+1,FALSE)="Yes",TRUE,FALSE) -> TRUE | Z22: =IF(VLOOKUP($N22,Allocators!$E$34:$BB$81,Z$15+1,FALSE)="Yes",TRUE,FALSE) -> TRUE | AA22: =IF(VLOOKUP($N22,Allocators!$E$34:$BB$81,AA$15+1,FALSE)="Yes",TRUE,FALSE) -> TRUE | AB22: =IF(VLOOKUP($N22,Allocators!$E$34:$BB$81,AB$15+1,FALSE)="Yes",TRUE,FALSE) -> TRUE | AC22: =IF(VLOOKUP($N22,Allocators!$E$34:$BB$81,AC$15+1,FALSE)="Yes",TRUE,FALSE) -> TRUE | AD22: =IF(VLOOKUP($N22,Allocators!$E$34:$BB$81,AD$15+1,FALSE)="Yes",TRUE,FALSE) -> TRUE | AE22: =IF(VLOOKUP($N22,Allocators!$E$34:$BB$81,AE$15+1,FALSE)="Yes",TRUE,FALSE) -> TRUE | AF22: =IF(VLOOKUP($N22,Allocators!$E$34:$BB$81,AF$15+1,FALSE)="Yes",TRUE,FALSE) -> TRUE | AG22: =IF(VLOOKUP($N22,Allocators!$E$34:$BB$81,AG$15+1,FALSE)="Yes",TRUE,FALSE) -> FALSE | AH22: =IF(VLOOKUP($N22,Allocators!$E$34:$BB$81,AH$15+1,FALSE)="Yes",TRUE,FALSE) -> FALSE | AI22: =IF(VLOOKUP($N22,Allocators!$E$34:$BB$81,AI$15+1,FALSE)="Yes",TRUE,FALSE) -> FALSE | AJ22: =IF(VLOOKUP($N22,Allocators!$E$34:$BB$81,AJ$15+1,FALSE)="Yes",TRUE,FALSE) -> FALSE | AK22: =IF(VLOOKUP($N22,Allocators!$E$34:$BB$81,AK$15+1,FALSE)="Yes",TRUE,FALSE) -> FALSE | AL22: =IF(VLOOKUP($N22,Allocators!$E$34:$BB$81,AL$15+1,FALSE)="Yes",TRUE,FALSE) -> FALSE | AM22: =IF(VLOOKUP($N22,Allocators!$E$34:$BB$81,AM$15+1,FALSE)="Yes",TRUE,FALSE) -> FALSE | AN22: =IF(VLOOKUP($N22,Allocators!$E$34:$BB$81,AN$15+1,FALSE)="Yes",TRUE,FALSE) -> FALSE | AO22: =IF(VLOOKUP($N22,Allocators!$E$34:$BB$81,AO$15+1,FALSE)="Yes",TRUE,FALSE) -> FALSE | AP22: =IF(VLOOKUP($N22,Allocators!$E$34:$BB$81,AP$15+1,FALSE)="Yes",TRUE,FALSE) -> FALSE | AQ22: =IF(VLOOKUP($N22,Allocators!$E$34:$BB$81,AQ$15+1,FALSE)="Yes",TRUE,FALSE) -> FALSE | AR22: =IF(VLOOKUP($N22,Allocators!$E$34:$BB$81,AR$15+1,FALSE)="Yes",TRUE,FALSE) -> FALSE | AS22: =IF(VLOOKUP($N22,Allocators!$E$34:$BB$81,AS$15+1,FALSE)="Yes",TRUE,FALSE) -> FALSE | AT22: =IF(VLOOKUP($N22,Allocators!$E$34:$BB$81,AT$15+1,FALSE)="Yes",TRUE,FALSE) -> FALSE | AU22: =IF(VLOOKUP($N22,Allocators!$E$34:$BB$81,AU$15+1,FALSE)="Yes",TRUE,FALSE) -> FALSE | AV22: =IF(VLOOKUP($N22,Allocators!$E$34:$BB$81,AV$15+1,FALSE)="Yes",TRUE,FALSE) -> FALSE | AW22: =IF(VLOOKUP($N22,Allocators!$E$34:$BB$81,AW$15+1,FALSE)="Yes",TRUE,FALSE) -> FALSE | AX22: =IF(VLOOKUP($N22,Allocators!$E$34:$BB$81,AX$15+1,FALSE)="Yes",TRUE,FALSE) -> FALSE | AY22: =IF(VLOOKUP($N22,Allocators!$E$34:$BB$81,AY$15+1,FALSE)="Yes",TRUE,FALSE) -> FALSE | AZ22: =IF(VLOOKUP($N22,Allocators!$E$34:$BB$81,AZ$15+1,FALSE)="Yes",TRUE,FALSE) -> FALSE | BA22: =IF(VLOOKUP($N22,Allocators!$E$34:$BB$81,BA$15+1,FALSE)="Yes",TRUE,FALSE) -> FALSE | BB22: =IF(VLOOKUP($N22,Allocators!$E$34:$BB$81,BB$15+1,FALSE)="Yes",TRUE,FALSE) -> FALSE | BC22: =IF(VLOOKUP($N22,Allocators!$E$34:$BB$81,BC$15+1,FALSE)="Yes",TRUE,FALSE) -> TRUE | BD22: =IF(VLOOKUP($N22,Allocators!$E$34:$BB$81,BD$15+1,FALSE)="Yes",TRUE,FALSE) -> TRUE | BE22: =IF(VLOOKUP($N22,Allocators!$E$34:$BB$81,BE$15+1,FALSE)="Yes",TRUE,FALSE) -> TRUE | BF22: =IF(VLOOKUP($N22,Allocators!$E$34:$BB$81,BF$15+1,FALSE)="Yes",TRUE,FALSE) -> FALSE | BG22: =IF(VLOOKUP($N22,Allocators!$E$34:$BB$81,BG$15+1,FALSE)="Yes",TRUE,FALSE) -> FALSE | BH22: =IF(VLOOKUP($N22,Allocators!$E$34:$BB$81,BH$15+1,FALSE)="Yes",TRUE,FALSE) -> FALSE | BI22: =IF(VLOOKUP($N22,Allocators!$E$34:$BB$81,BI$15+1,FALSE)="Yes",TRUE,FALSE) -> FALSE | BJ22: =IF(VLOOKUP($N22,Allocators!$E$34:$BB$81,BJ$15+1,FALSE)="Yes",TRUE,FALSE) -> FALSE | BK22: =IF(VLOOKUP($N22,Allocators!$E$34:$BB$81,BK$15+1,FALSE)="Yes",TRUE,FALSE) -> FALSE
C23: =VLOOKUP(N23,Data!$E$233:$G$280,2,FALSE) -> Land Tax | D23: =VLOOKUP($N23,Data!$E$233:$G$280,3,FALSE) -> Non-Prescribed | H23: 0 | I23: FALSE | J23: TRUE | K23: FALSE | M23: Dedicated Non-prescribed | N23: 8 | O23: =IF(VLOOKUP($N23,Allocators!$E$34:$BB$81,O$15+1,FALSE)="Yes",TRUE,FALSE) -> FALSE | P23: =IF(VLOOKUP($N23,Allocators!$E$34:$BB$81,P$15+1,FALSE)="Yes",TRUE,FALSE) -> FALSE | Q23: =IF(VLOOKUP($N23,Allocators!$E$34:$BB$81,Q$15+1,FALSE)="Yes",TRUE,FALSE) -> FALSE | R23: =IF(VLOOKUP($N23,Allocators!$E$34:$BB$81,R$15+1,FALSE)="Yes",TRUE,FALSE) -> FALSE | S23: =IF(VLOOKUP($N23,Allocators!$E$34:$BB$81,S$15+1,FALSE)="Yes",TRUE,FALSE) -> FALSE | T23: =IF(VLOOKUP($N23,Allocators!$E$34:$BB$81,T$15+1,FALSE)="Yes",TRUE,FALSE) -> FALSE | U23: =IF(VLOOKUP($N23,Allocators!$E$34:$BB$81,U$15+1,FALSE)="Yes",TRUE,FALSE) -> FALSE | V23: =IF(VLOOKUP($N23,Allocators!$E$34:$BB$81,V$15+1,FALSE)="Yes",TRUE,FALSE) -> FALSE | W23: =IF(VLOOKUP($N23,Allocators!$E$34:$BB$81,W$15+1,FALSE)="Yes",TRUE,FALSE) -> FALSE | X23: =IF(VLOOKUP($N23,Allocators!$E$34:$BB$81,X$15+1,FALSE)="Yes",TRUE,FALSE) -> FALSE | Y23: =IF(VLOOKUP($N23,Allocators!$E$34:$BB$81,Y$15+1,FALSE)="Yes",TRUE,FALSE) -> FALSE | Z23: =IF(VLOOKUP($N23,Allocators!$E$34:$BB$81,Z$15+1,FALSE)="Yes",TRUE,FALSE) -> FALSE | AA23: =IF(VLOOKUP($N23,Allocators!$E$34:$BB$81,AA$15+1,FALSE)="Yes",TRUE,FALSE) -> FALSE | AB23: =IF(VLOOKUP($N23,Allocators!$E$34:$BB$81,AB$15+1,FALSE)="Yes",TRUE,FALSE) -> FALSE | AC23: =IF(VLOOKUP($N23,Allocators!$E$34:$BB$81,AC$15+1,FALSE)="Yes",TRUE,FALSE) -> FALSE | AD23: =IF(VLOOKUP($N23,Allocators!$E$34:$BB$81,AD$15+1,FALSE)="Yes",TRUE,FALSE) -> FALSE | AE23: =IF(VLOOKUP($N23,Allocators!$E$34:$BB$81,AE$15+1,FALSE)="Yes",TRUE,FALSE) -> FALSE | AF23: =IF(VLOOKUP($N23,Allocators!$E$34:$BB$81,AF$15+1,FALSE)="Yes",TRUE,FALSE) -> FALSE | AG23: =IF(VLOOKUP($N23,Allocators!$E$34:$BB$81,AG$15+1,FALSE)="Yes",TRUE,FALSE) -> FALSE | AH23: =IF(VLOOKUP($N23,Allocators!$E$34:$BB$81,AH$15+1,FALSE)="Yes",TRUE,FALSE) -> FALSE | AI23: =IF(VLOOKUP($N23,Allocators!$E$34:$BB$81,AI$15+1,FALSE)="Yes",TRUE,FALSE) -> FALSE | AJ23: =IF(VLOOKUP($N23,Allocators!$E$34:$BB$81,AJ$15+1,FALSE)="Yes",TRUE,FALSE) -> FALSE | AK23: =IF(VLOOKUP($N23,Allocators!$E$34:$BB$81,AK$15+1,FALSE)="Yes",TRUE,FALSE) -> FALSE | AL23: =IF(VLOOKUP($N23,Allocators!$E$34:$BB$81,AL$15+1,FALSE)="Yes",TRUE,FALSE) -> FALSE | AM23: =IF(VLOOKUP($N23,Allocators!$E$34:$BB$81,AM$15+1,FALSE)="Yes",TRUE,FALSE) -> FALSE | AN23: =IF(VLOOKUP($N23,Allocators!$E$34:$BB$81,AN$15+1,FALSE)="Yes",TRUE,FALSE) -> FALSE | AO23: =IF(VLOOKUP($N23,Allocators!$E$34:$BB$81,AO$15+1,FALSE)="Yes",TRUE,FALSE) -> FALSE | AP23: =IF(VLOOKUP($N23,Allocators!$E$34:$BB$81,AP$15+1,FALSE)="Yes",TRUE,FALSE) -> FALSE | AQ23: =IF(VLOOKUP($N23,Allocators!$E$34:$BB$81,AQ$15+1,FALSE)="Yes",TRUE,FALSE) -> FALSE | AR23: =IF(VLOOKUP($N23,Allocators!$E$34:$BB$81,AR$15+1,FALSE)="Yes",TRUE,FALSE) -> FALSE | AS23: =IF(VLOOKUP($N23,Allocators!$E$34:$BB$81,AS$15+1,FALSE)="Yes",TRUE,FALSE) -> FALSE | AT23: =IF(VLOOKUP($N23,Allocators!$E$34:$BB$81,AT$15+1,FALSE)="Yes",TRUE,FALSE) -> FALSE | AU23: =IF(VLOOKUP($N23,Allocators!$E$34:$BB$81,AU$15+1,FALSE)="Yes",TRUE,FALSE) -> FALSE | AV23: =IF(VLOOKUP($N23,Allocators!$E$34:$BB$81,AV$15+1,FALSE)="Yes",TRUE,FALSE) -> FALSE | AW23: =IF(VLOOKUP($N23,Allocators!$E$34:$BB$81,AW$15+1,FALSE)="Yes",TRUE,FALSE) -> FALSE | AX23: =IF(VLOOKUP($N23,Allocators!$E$34:$BB$81,AX$15+1,FALSE)="Yes",TRUE,FALSE) -> FALSE | AY23: =IF(VLOOKUP($N23,Allocators!$E$34:$BB$81,AY$15+1,FALSE)="Yes",TRUE,FALSE) -> FALSE | AZ23: =IF(VLOOKUP($N23,Allocators!$E$34:$BB$81,AZ$15+1,FALSE)="Yes",TRUE,FALSE) -> FALSE | BA23: =IF(VLOOKUP($N23,Allocators!$E$34:$BB$81,BA$15+1,FALSE)="Yes",TRUE,FALSE) -> FALSE | BB23: =IF(VLOOKUP($N23,Allocators!$E$34:$BB$81,BB$15+1,FALSE)="Yes",TRUE,FALSE) -> FALSE | BC23: =IF(VLOOKUP($N23,Allocators!$E$34:$BB$81,BC$15+1,FALSE)="Yes",TRUE,FALSE) -> FALSE | BD23: =IF(VLOOKUP($N23,Allocators!$E$34:$BB$81,BD$15+1,FALSE)="Yes",TRUE,FALSE) -> FALSE | BE23: =IF(VLOOKUP($N23,Allocators!$E$34:$BB$81,BE$15+1,FALSE)="Yes",TRUE,FALSE) -> FALSE | BF23: =IF(VLOOKUP($N23,Allocators!$E$34:$BB$81,BF$15+1,FALSE)="Yes",TRUE,FALSE) -> FALSE | BG23: =IF(VLOOKUP($N23,Allocators!$E$34:$BB$81,BG$15+1,FALSE)="Yes",TRUE,FALSE) -> FALSE | BH23: =IF(VLOOKUP($N23,Allocators!$E$34:$BB$81,BH$15+1,FALSE)="Yes",TRUE,FALSE) -> FALSE | BI23: =IF(VLOOKUP($N23,Allocators!$E$34:$BB$81,BI$15+1,FALSE)="Yes",TRUE,FALSE) -> FALSE | BJ23: =IF(VLOOKUP($N23,Allocators!$E$34:$BB$81,BJ$15+1,FALSE)="Yes",TRUE,FALSE) -> FALSE | BK23: =IF(VLOOKUP($N23,Allocators!$E$34:$BB$81,BK$15+1,FALSE)="Yes",TRUE,FALSE) -> TRUE
C24: =VLOOKUP(N24,Data!$E$233:$G$280,2,FALSE) -> Land Tax | D24: =VLOOKUP($N24,Data!$E$233:$G$280,3,FALSE) -> Shared | H24: 0 | I24: FALSE | J24: FALSE | K24: TRUE | M24: Shared | N24: 9 | O24: =IF(VLOOKUP($N24,Allocators!$E$34:$BB$81,O$15+1,FALSE)="Yes",TRUE,FALSE) -> TRUE | P24: =IF(VLOOKUP($N24,Allocators!$E$34:$BB$81,P$15+1,FALSE)="Yes",TRUE,FALSE) -> TRUE | Q24: =IF(VLOOKUP($N24,Allocators!$E$34:$BB$81,Q$15+1,FALSE)="Yes",TRUE,FALSE) -> TRUE | R24: =IF(VLOOKUP($N24,Allocators!$E$34:$BB$81,R$15+1,FALSE)="Yes",TRUE,FALSE) -> TRUE | S24: =IF(VLOOKUP($N24,Allocators!$E$34:$BB$81,S$15+1,FALSE)="Yes",TRUE,FALSE) -> TRUE | T24: =IF(VLOOKUP($N24,Allocators!$E$34:$BB$81,T$15+1,FALSE)="Yes",TRUE,FALSE) -> TRUE | U24: =IF(VLOOKUP($N24,Allocators!$E$34:$BB$81,U$15+1,FALSE)="Yes",TRUE,FALSE) -> TRUE | V24: =IF(VLOOKUP($N24,Allocators!$E$34:$BB$81,V$15+1,FALSE)="Yes",TRUE,FALSE) -> TRUE | W24: =IF(VLOOKUP($N24,Allocators!$E$34:$BB$81,W$15+1,FALSE)="Yes",TRUE,FALSE) -> TRUE | X24: =IF(VLOOKUP($N24,Allocators!$E$34:$BB$81,X$15+1,FALSE)="Yes",TRUE,FALSE) -> TRUE | Y24: =IF(VLOOKUP($N24,Allocators!$E$34:$BB$81,Y$15+1,FALSE)="Yes",TRUE,FALSE) -> TRUE | Z24: =IF(VLOOKUP($N24,Allocators!$E$34:$BB$81,Z$15+1,FALSE)="Yes",TRUE,FALSE) -> TRUE | AA24: =IF(VLOOKUP($N24,Allocators!$E$34:$BB$81,AA$15+1,FALSE)="Yes",TRUE,FALSE) -> TRUE | AB24: =IF(VLOOKUP($N24,Allocators!$E$34:$BB$81,AB$15+1,FALSE)="Yes",TRUE,FALSE) -> TRUE | AC24: =IF(VLOOKUP($N24,Allocators!$E$34:$BB$81,AC$15+1,FALSE)="Yes",TRUE,FALSE) -> TRUE | AD24: =IF(VLOOKUP($N24,Allocators!$E$34:$BB$81,AD$15+1,FALSE)="Yes",TRUE,FALSE) -> TRUE | AE24: =IF(VLOOKUP($N24,Allocators!$E$34:$BB$81,AE$15+1,FALSE)="Yes",TRUE,FALSE) -> TRUE | AF24: =IF(VLOOKUP($N24,Allocators!$E$34:$BB$81,AF$15+1,FALSE)="Yes",TRUE,FALSE) -> TRUE | AG24: =IF(VLOOKUP($N24,Allocators!$E$34:$BB$81,AG$15+1,FALSE)="Yes",TRUE,FALSE) -> FALSE | AH24: =IF(VLOOKUP($N24,Allocators!$E$34:$BB$81,AH$15+1,FALSE)="Yes",TRUE,FALSE) -> FALSE | AI24: =IF(VLOOKUP($N24,Allocators!$E$34:$BB$81,AI$15+1,FALSE)="Yes",TRUE,FALSE) -> FALSE | AJ24: =IF(VLOOKUP($N24,Allocators!$E$34:$BB$81,AJ$15+1,FALSE)="Yes",TRUE,FALSE) -> FALSE | AK24: =IF(VLOOKUP($N24,Allocators!$E$34:$BB$81,AK$15+1,FALSE)="Yes",TRUE,FALSE) -> FALSE | AL24: =IF(VLOOKUP($N24,Allocators!$E$34:$BB$81,AL$15+1,FALSE)="Yes",TRUE,FALSE) -> FALSE | AM24: =IF(VLOOKUP($N24,Allocators!$E$34:$BB$81,AM$15+1,FALSE)="Yes",TRUE,FALSE) -> FALSE | AN24: =IF(VLOOKUP($N24,Allocators!$E$34:$BB$81,AN$15+1,FALSE)="Yes",TRUE,FALSE) -> FALSE | AO24: =IF(VLOOKUP($N24,Allocators!$E$34:$BB$81,AO$15+1,FALSE)="Yes",TRUE,FALSE) -> FALSE | AP24: =IF(VLOOKUP($N24,Allocators!$E$34:$BB$81,AP$15+1,FALSE)="Yes",TRUE,FALSE) -> FALSE | AQ24: =IF(VLOOKUP($N24,Allocators!$E$34:$BB$81,AQ$15+1,FALSE)="Yes",TRUE,FALSE) -> FALSE | AR24: =IF(VLOOKUP($N24,Allocators!$E$34:$BB$81,AR$15+1,FALSE)="Yes",TRUE,FALSE) -> FALSE | AS24: =IF(VLOOKUP($N24,Allocators!$E$34:$BB$81,AS$15+1,FALSE)="Yes",TRUE,FALSE) -> FALSE | AT24: =IF(VLOOKUP($N24,Allocators!$E$34:$BB$81,AT$15+1,FALSE)="Yes",TRUE,FALSE) -> FALSE | AU24: =IF(VLOOKUP($N24,Allocators!$E$34:$BB$81,AU$15+1,FALSE)="Yes",TRUE,FALSE) -> FALSE | AV24: =IF(VLOOKUP($N24,Allocators!$E$34:$BB$81,AV$15+1,FALSE)="Yes",TRUE,FALSE) -> FALSE | AW24: =IF(VLOOKUP($N24,Allocators!$E$34:$BB$81,AW$15+1,FALSE)="Yes",TRUE,FALSE) -> FALSE | AX24: =IF(VLOOKUP($N24,Allocators!$E$34:$BB$81,AX$15+1,FALSE)="Yes",TRUE,FALSE) -> FALSE | AY24: =IF(VLOOKUP($N24,Allocators!$E$34:$BB$81,AY$15+1,FALSE)="Yes",TRUE,FALSE) -> FALSE | AZ24: =IF(VLOOKUP($N24,Allocators!$E$34:$BB$81,AZ$15+1,FALSE)="Yes",TRUE,FALSE) -> FALSE | BA24: =IF(VLOOKUP($N24,Allocators!$E$34:$BB$81,BA$15+1,FALSE)="Yes",TRUE,FALSE) -> FALSE | BB24: =IF(VLOOKUP($N24,Allocators!$E$34:$BB$81,BB$15+1,FALSE)="Yes",TRUE,FALSE) -> FALSE | BC24: =IF(VLOOKUP($N24,Allocators!$E$34:$BB$81,BC$15+1,FALSE)="Yes",TRUE,FALSE) -> TRUE | BD24: =IF(VLOOKUP($N24,Allocators!$E$34:$BB$81,BD$15+1,FALSE)="Yes",TRUE,FALSE) -> TRUE | BE24: =IF(VLOOKUP($N24,Allocators!$E$34:$BB$81,BE$15+1,FALSE)="Yes",TRUE,FALSE) -> TRUE | BF24: =IF(VLOOKUP($N24,Allocators!$E$34:$BB$81,BF$15+1,FALSE)="Yes",TRUE,FALSE) -> FALSE | BG24: =IF(VLOOKUP($N24,Allocators!$E$34:$BB$81,BG$15+1,FALSE)="Yes",TRUE,FALSE) -> FALSE | BH24: =IF(VLOOKUP($N24,Allocators!$E$34:$BB$81,BH$15+1,FALSE)="Yes",TRUE,FALSE) -> FALSE | BI24: =IF(VLOOKUP($N24,Allocators!$E$34:$BB$81,BI$15+1,FALSE)="Yes",TRUE,FALSE) -> FALSE | BJ24: =IF(VLOOKUP($N24,Allocators!$E$34:$BB$81,BJ$15+1,FALSE)="Yes",TRUE,FALSE) -> FALSE | BK24: =IF(VLOOKUP($N24,Allocators!$E$34:$BB$81,BK$15+1,FALSE)="Yes",TRUE,FALSE) -> TRUE
C25: =VLOOKUP(N25,Data!$E$233:$G$280,2,FALSE) -> Labour Costs | D25: =VLOOKUP($N25,Data!$E$233:$G$280,3,FALSE) -> Prescribed | H25: 0 | I25: TRUE | J25: FALSE | K25: FALSE | M25: Dedicated Prescribed | N25: 10 | O25: =IF(VLOOKUP($N25,Allocators!$E$34:$BB$81,O$15+1,FALSE)="Yes",TRUE,FALSE) -> TRUE | P25: =IF(VLOOKUP($N25,Allocators!$E$34:$BB$81,P$15+1,FALSE)="Yes",TRUE,FALSE) -> TRUE | Q25: =IF(VLOOKUP($N25,Allocators!$E$34:$BB$81,Q$15+1,FALSE)="Yes",TRUE,FALSE) -> TRUE | R25: =IF(VLOOKUP($N25,Allocators!$E$34:$BB$81,R$15+1,FALSE)="Yes",TRUE,FALSE) -> TRUE | S25: =IF(VLOOKUP($N25,Allocators!$E$34:$BB$81,S$15+1,FALSE)="Yes",TRUE,FALSE) -> TRUE | T25: =IF(VLOOKUP($N25,Allocators!$E$34:$BB$81,T$15+1,FALSE)="Yes",TRUE,FALSE) -> TRUE | U25: =IF(VLOOKUP($N25,Allocators!$E$34:$BB$81,U$15+1,FALSE)="Yes",TRUE,FALSE) -> TRUE | V25: =IF(VLOOKUP($N25,Allocators!$E$34:$BB$81,V$15+1,FALSE)="Yes",TRUE,FALSE) -> TRUE | W25: =IF(VLOOKUP($N25,Allocators!$E$34:$BB$81,W$15+1,FALSE)="Yes",TRUE,FALSE) -> TRUE | X25: =IF(VLOOKUP($N25,Allocators!$E$34:$BB$81,X$15+1,FALSE)="Yes",TRUE,FALSE) -> TRUE | Y25: =IF(VLOOKUP($N25,Allocators!$E$34:$BB$81,Y$15+1,FALSE)="Yes",TRUE,FALSE) -> TRUE | Z25: =IF(VLOOKUP($N25,Allocators!$E$34:$BB$81,Z$15+1,FALSE)="Yes",TRUE,FALSE) -> TRUE | AA25: =IF(VLOOKUP($N25,Allocators!$E$34:$BB$81,AA$15+1,FALSE)="Yes",TRUE,FALSE) -> TRUE | AB25: =IF(VLOOKUP($N25,Allocators!$E$34:$BB$81,AB$15+1,FALSE)="Yes",TRUE,FALSE) -> TRUE | AC25: =IF(VLOOKUP($N25,Allocators!$E$34:$BB$81,AC$15+1,FALSE)="Yes",TRUE,FALSE) -> TRUE | AD25: =IF(VLOOKUP($N25,Allocators!$E$34:$BB$81,AD$15+1,FALSE)="Yes",TRUE,FALSE) -> TRUE | AE25: =IF(VLOOKUP($N25,Allocators!$E$34:$BB$81,AE$15+1,FALSE)="Yes",TRUE,FALSE) -> TRUE | AF25: =IF(VLOOKUP($N25,Allocators!$E$34:$BB$81,AF$15+1,FALSE)="Yes",TRUE,FALSE) -> TRUE | AG25: =IF(VLOOKUP($N25,Allocators!$E$34:$BB$81,AG$15+1,FALSE)="Yes",TRUE,FALSE) -> TRUE | AH25: =IF(VLOOKUP($N25,Allocators!$E$34:$BB$81,AH$15+1,FALSE)="Yes",TRUE,FALSE) -> TRUE | AI25: =IF(VLOOKUP($N25,Allocators!$E$34:$BB$81,AI$15+1,FALSE)="Yes",TRUE,FALSE) -> TRUE | AJ25: =IF(VLOOKUP($N25,Allocators!$E$34:$BB$81,AJ$15+1,FALSE)="Yes",TRUE,FALSE) -> TRUE | AK25: =IF(VLOOKUP($N25,Allocators!$E$34:$BB$81,AK$15+1,FALSE)="Yes",TRUE,FALSE) -> TRUE | AL25: =IF(VLOOKUP($N25,Allocators!$E$34:$BB$81,AL$15+1,FALSE)="Yes",TRUE,FALSE) -> TRUE | AM25: =IF(VLOOKUP($N25,Allocators!$E$34:$BB$81,AM$15+1,FALSE)="Yes",TRUE,FALSE) -> TRUE | AN25: =IF(VLOOKUP($N25,Allocators!$E$34:$BB$81,AN$15+1,FALSE)="Yes",TRUE,FALSE) -> TRUE | AO25: =IF(VLOOKUP($N25,Allocators!$E$34:$BB$81,AO$15+1,FALSE)="Yes",TRUE,FALSE) -> TRUE | AP25: =IF(VLOOKUP($N25,Allocators!$E$34:$BB$81,AP$15+1,FALSE)="Yes",TRUE,FALSE) -> TRUE | AQ25: =IF(VLOOKUP($N25,Allocators!$E$34:$BB$81,AQ$15+1,FALSE)="Yes",TRUE,FALSE) -> TRUE | AR25: =IF(VLOOKUP($N25,Allocators!$E$34:$BB$81,AR$15+1,FALSE)="Yes",TRUE,FALSE) -> TRUE | AS25: =IF(VLOOKUP($N25,Allocators!$E$34:$BB$81,AS$15+1,FALSE)="Yes",TRUE,FALSE) -> TRUE | AT25: =IF(VLOOKUP($N25,Allocators!$E$34:$BB$81,AT$15+1,FALSE)="Yes",TRUE,FALSE) -> TRUE | AU25: =IF(VLOOKUP($N25,Allocators!$E$34:$BB$81,AU$15+1,FALSE)="Yes",TRUE,FALSE) -> TRUE | AV25: =IF(VLOOKUP($N25,Allocators!$E$34:$BB$81,AV$15+1,FALSE)="Yes",TRUE,FALSE) -> TRUE | AW25: =IF(VLOOKUP($N25,Allocators!$E$34:$BB$81,AW$15+1,FALSE)="Yes",TRUE,FALSE) -> TRUE | AX25: =IF(VLOOKUP($N25,Allocators!$E$34:$BB$81,AX$15+1,FALSE)="Yes",TRUE,FALSE) -> TRUE | AY25: =IF(VLOOKUP($N25,Allocators!$E$34:$BB$81,AY$15+1,FALSE)="Yes",TRUE,FALSE) -> TRUE | AZ25: =IF(VLOOKUP($N25,Allocators!$E$34:$BB$81,AZ$15+1,FALSE)="Yes",TRUE,FALSE) -> TRUE | BA25: =IF(VLOOKUP($N25,Allocators!$E$34:$BB$81,BA$15+1,FALSE)="Yes",TRUE,FALSE) -> TRUE | BB25: =IF(VLOOKUP($N25,Allocators!$E$34:$BB$81,BB$15+1,FALSE)="Yes",TRUE,FALSE) -> TRUE | BC25: =IF(VLOOKUP($N25,Allocators!$E$34:$BB$81,BC$15+1,FALSE)="Yes",TRUE,FALSE) -> TRUE | BD25: =IF(VLOOKUP($N25,Allocators!$E$34:$BB$81,BD$15+1,FALSE)="Yes",TRUE,FALSE) -> TRUE | BE25: =IF(VLOOKUP($N25,Allocators!$E$34:$BB$81,BE$15+1,FALSE)="Yes",TRUE,FALSE) -> TRUE | BF25: =IF(VLOOKUP($N25,Allocators!$E$34:$BB$81,BF$15+1,FALSE)="Yes",TRUE,FALSE) -> TRUE | BG25: =IF(VLOOKUP($N25,Allocators!$E$34:$BB$81,BG$15+1,FALSE)="Yes",TRUE,FALSE) -> TRUE | BH25: =IF(VLOOKUP($N25,Allocators!$E$34:$BB$81,BH$15+1,FALSE)="Yes",TRUE,FALSE) -> TRUE | BI25: =IF(VLOOKUP($N25,Allocators!$E$34:$BB$81,BI$15+1,FALSE)="Yes",TRUE,FALSE) -> TRUE | BJ25: =IF(VLOOKUP($N25,Allocators!$E$34:$BB$81,BJ$15+1,FALSE)="Yes",TRUE,FALSE) -> FALSE | BK25: =IF(VLOOKUP($N25,Allocators!$E$34:$BB$81,BK$15+1,FALSE)="Yes",TRUE,FALSE) -> FALSE
C26: =VLOOKUP(N26,Data!$E$233:$G$280,2,FALSE) -> Labour Costs | D26: =VLOOKUP($N26,Data!$E$233:$G$280,3,FALSE) -> Non-Prescribed | H26: 0 | I26: FALSE | J26: TRUE | K26: FALSE | M26: Dedicated Non-prescribed | N26: 11 | O26: =IF(VLOOKUP($N26,Allocators!$E$34:$BB$81,O$15+1,FALSE)="Yes",TRUE,FALSE) -> FALSE | P26: =IF(VLOOKUP($N26,Allocators!$E$34:$BB$81,P$15+1,FALSE)="Yes",TRUE,FALSE) -> FALSE | Q26: =IF(VLOOKUP($N26,Allocators!$E$34:$BB$81,Q$15+1,FALSE)="Yes",TRUE,FALSE) -> FALSE | R26: =IF(VLOOKUP($N26,Allocators!$E$34:$BB$81,R$15+1,FALSE)="Yes",TRUE,FALSE) -> FALSE | S26: =IF(VLOOKUP($N26,Allocators!$E$34:$BB$81,S$15+1,FALSE)="Yes",TRUE,FALSE) -> FALSE | T26: =IF(VLOOKUP($N26,Allocators!$E$34:$BB$81,T$15+1,FALSE)="Yes",TRUE,FALSE) -> FALSE | U26: =IF(VLOOKUP($N26,Allocators!$E$34:$BB$81,U$15+1,FALSE)="Yes",TRUE,FALSE) -> FALSE | V26: =IF(VLOOKUP($N26,Allocators!$E$34:$BB$81,V$15+1,FALSE)="Yes",TRUE,FALSE) -> FALSE | W26: =IF(VLOOKUP($N26,Allocators!$E$34:$BB$81,W$15+1,FALSE)="Yes",TRUE,FALSE) -> FALSE | X26: =IF(VLOOKUP($N26,Allocators!$E$34:$BB$81,X$15+1,FALSE)="Yes",TRUE,FALSE) -> FALSE | Y26: =IF(VLOOKUP($N26,Allocators!$E$34:$BB$81,Y$15+1,FALSE)="Yes",TRUE,FALSE) -> FALSE | Z26: =IF(VLOOKUP($N26,Allocators!$E$34:$BB$81,Z$15+1,FALSE)="Yes",TRUE,FALSE) -> FALSE | AA26: =IF(VLOOKUP($N26,Allocators!$E$34:$BB$81,AA$15+1,FALSE)="Yes",TRUE,FALSE) -> FALSE | AB26: =IF(VLOOKUP($N26,Allocators!$E$34:$BB$81,AB$15+1,FALSE)="Yes",TRUE,FALSE) -> FALSE | AC26: =IF(VLOOKUP($N26,Allocators!$E$34:$BB$81,AC$15+1,FALSE)="Yes",TRUE,FALSE) -> FALSE | AD26: =IF(VLOOKUP($N26,Allocators!$E$34:$BB$81,AD$15+1,FALSE)="Yes",TRUE,FALSE) -> FALSE | AE26: =IF(VLOOKUP($N26,Allocators!$E$34:$BB$81,AE$15+1,FALSE)="Yes",TRUE,FALSE) -> FALSE | AF26: =IF(VLOOKUP($N26,Allocators!$E$34:$BB$81,AF$15+1,FALSE)="Yes",TRUE,FALSE) -> FALSE | AG26: =IF(VLOOKUP($N26,Allocators!$E$34:$BB$81,AG$15+1,FALSE)="Yes",TRUE,FALSE) -> FALSE | AH26: =IF(VLOOKUP($N26,Allocators!$E$34:$BB$81,AH$15+1,FALSE)="Yes",TRUE,FALSE) -> FALSE | AI26: =IF(VLOOKUP($N26,Allocators!$E$34:$BB$81,AI$15+1,FALSE)="Yes",TRUE,FALSE) -> FALSE | AJ26: =IF(VLOOKUP($N26,Allocators!$E$34:$BB$81,AJ$15+1,FALSE)="Yes",TRUE,FALSE) -> FALSE | AK26: =IF(VLOOKUP($N26,Allocators!$E$34:$BB$81,AK$15+1,FALSE)="Yes",TRUE,FALSE) -> FALSE | AL26: =IF(VLOOKUP($N26,Allocators!$E$34:$BB$81,AL$15+1,FALSE)="Yes",TRUE,FALSE) -> FALSE | AM26: =IF(VLOOKUP($N26,Allocators!$E$34:$BB$81,AM$15+1,FALSE)="Yes",TRUE,FALSE) -> FALSE | AN26: =IF(VLOOKUP($N26,Allocators!$E$34:$BB$81,AN$15+1,FALSE)="Yes",TRUE,FALSE) -> FALSE | AO26: =IF(VLOOKUP($N26,Allocators!$E$34:$BB$81,AO$15+1,FALSE)="Yes",TRUE,FALSE) -> FALSE | AP26: =IF(VLOOKUP($N26,Allocators!$E$34:$BB$81,AP$15+1,FALSE)="Yes",TRUE,FALSE) -> FALSE | AQ26: =IF(VLOOKUP($N26,Allocators!$E$34:$BB$81,AQ$15+1,FALSE)="Yes",TRUE,FALSE) -> FALSE | AR26: =IF(VLOOKUP($N26,Allocators!$E$34:$BB$81,AR$15+1,FALSE)="Yes",TRUE,FALSE) -> FALSE | AS26: =IF(VLOOKUP($N26,Allocators!$E$34:$BB$81,AS$15+1,FALSE)="Yes",TRUE,FALSE) -> FALSE | AT26: =IF(VLOOKUP($N26,Allocators!$E$34:$BB$81,AT$15+1,FALSE)="Yes",TRUE,FALSE) -> FALSE | AU26: =IF(VLOOKUP($N26,Allocators!$E$34:$BB$81,AU$15+1,FALSE)="Yes",TRUE,FALSE) -> FALSE | AV26: =IF(VLOOKUP($N26,Allocators!$E$34:$BB$81,AV$15+1,FALSE)="Yes",TRUE,FALSE) -> FALSE | AW26: =IF(VLOOKUP($N26,Allocators!$E$34:$BB$81,AW$15+1,FALSE)="Yes",TRUE,FALSE) -> FALSE | AX26: =IF(VLOOKUP($N26,Allocators!$E$34:$BB$81,AX$15+1,FALSE)="Yes",TRUE,FALSE) -> FALSE | AY26: =IF(VLOOKUP($N26,Allocators!$E$34:$BB$81,AY$15+1,FALSE)="Yes",TRUE,FALSE) -> FALSE | AZ26: =IF(VLOOKUP($N26,Allocators!$E$34:$BB$81,AZ$15+1,FALSE)="Yes",TRUE,FALSE) -> FALSE | BA26: =IF(VLOOKUP($N26,Allocators!$E$34:$BB$81,BA$15+1,FALSE)="Yes",TRUE,FALSE) -> FALSE | BB26: =IF(VLOOKUP($N26,Allocators!$E$34:$BB$81,BB$15+1,FALSE)="Yes",TRUE,FALSE) -> FALSE | BC26: =IF(VLOOKUP($N26,Allocators!$E$34:$BB$81,BC$15+1,FALSE)="Yes",TRUE,FALSE) -> FALSE | BD26: =IF(VLOOKUP($N26,Allocators!$E$34:$BB$81,BD$15+1,FALSE)="Yes",TRUE,FALSE) -> FALSE | BE26: =IF(VLOOKUP($N26,Allocators!$E$34:$BB$81,BE$15+1,FALSE)="Yes",TRUE,FALSE) -> FALSE | BF26: =IF(VLOOKUP($N26,Allocators!$E$34:$BB$81,BF$15+1,FALSE)="Yes",TRUE,FALSE) -> FALSE | BG26: =IF(VLOOKUP($N26,Allocators!$E$34:$BB$81,BG$15+1,FALSE)="Yes",TRUE,FALSE) -> FALSE | BH26: =IF(VLOOKUP($N26,Allocators!$E$34:$BB$81,BH$15+1,FALSE)="Yes",TRUE,FALSE) -> FALSE | BI26: =IF(VLOOKUP($N26,Allocators!$E$34:$BB$81,BI$15+1,FALSE)="Yes",TRUE,FALSE) -> FALSE | BJ26: =IF(VLOOKUP($N26,Allocators!$E$34:$BB$81,BJ$15+1,FALSE)="Yes",TRUE,FALSE) -> FALSE | BK26: =IF(VLOOKUP($N26,Allocators!$E$34:$BB$81,BK$15+1,FALSE)="Yes",TRUE,FALSE) -> TRUE
C27: =VLOOKUP(N27,Data!$E$233:$G$280,2,FALSE) -> Labour Costs | D27: =VLOOKUP($N27,Data!$E$233:$G$280,3,FALSE) -> Shared (excluding Contaminated Land Group and Land Use Planning) | H27: 0 | I27: FALSE | J27: FALSE | K27: TRUE | M27: Shared | N27: 12 | O27: =IF(VLOOKUP($N27,Allocators!$E$34:$BB$81,O$15+1,FALSE)="Yes",TRUE,FALSE) -> TRUE | P27: =IF(VLOOKUP($N27,Allocators!$E$34:$BB$81,P$15+1,FALSE)="Yes",TRUE,FALSE) -> TRUE | Q27: =IF(VLOOKUP($N27,Allocators!$E$34:$BB$81,Q$15+1,FALSE)="Yes",TRUE,FALSE) -> TRUE | R27: =IF(VLOOKUP($N27,Allocators!$E$34:$BB$81,R$15+1,FALSE)="Yes",TRUE,FALSE) -> TRUE | S27: =IF(VLOOKUP($N27,Allocators!$E$34:$BB$81,S$15+1,FALSE)="Yes",TRUE,FALSE) -> TRUE | T27: =IF(VLOOKUP($N27,Allocators!$E$34:$BB$81,T$15+1,FALSE)="Yes",TRUE,FALSE) -> TRUE | U27: =IF(VLOOKUP($N27,Allocators!$E$34:$BB$81,U$15+1,FALSE)="Yes",TRUE,FALSE) -> TRUE | V27: =IF(VLOOKUP($N27,Allocators!$E$34:$BB$81,V$15+1,FALSE)="Yes",TRUE,FALSE) -> TRUE | W27: =IF(VLOOKUP($N27,Allocators!$E$34:$BB$81,W$15+1,FALSE)="Yes",TRUE,FALSE) -> TRUE | X27: =IF(VLOOKUP($N27,Allocators!$E$34:$BB$81,X$15+1,FALSE)="Yes",TRUE,FALSE) -> TRUE | Y27: =IF(VLOOKUP($N27,Allocators!$E$34:$BB$81,Y$15+1,FALSE)="Yes",TRUE,FALSE) -> TRUE | Z27: =IF(VLOOKUP($N27,Allocators!$E$34:$BB$81,Z$15+1,FALSE)="Yes",TRUE,FALSE) -> TRUE | AA27: =IF(VLOOKUP($N27,Allocators!$E$34:$BB$81,AA$15+1,FALSE)="Yes",TRUE,FALSE) -> TRUE | AB27: =IF(VLOOKUP($N27,Allocators!$E$34:$BB$81,AB$15+1,FALSE)="Yes",TRUE,FALSE) -> TRUE | AC27: =IF(VLOOKUP($N27,Allocators!$E$34:$BB$81,AC$15+1,FALSE)="Yes",TRUE,FALSE) -> TRUE | AD27: =IF(VLOOKUP($N27,Allocators!$E$34:$BB$81,AD$15+1,FALSE)="Yes",TRUE,FALSE) -> TRUE | AE27: =IF(VLOOKUP($N27,Allocators!$E$34:$BB$81,AE$15+1,FALSE)="Yes",TRUE,FALSE) -> TRUE | AF27: =IF(VLOOKUP($N27,Allocators!$E$34:$BB$81,AF$15+1,FALSE)="Yes",TRUE,FALSE) -> TRUE | AG27: =IF(VLOOKUP($N27,Allocators!$E$34:$BB$81,AG$15+1,FALSE)="Yes",TRUE,FALSE) -> TRUE | AH27: =IF(VLOOKUP($N27,Allocators!$E$34:$BB$81,AH$15+1,FALSE)="Yes",TRUE,FALSE) -> TRUE | AI27: =IF(VLOOKUP($N27,Allocators!$E$34:$BB$81,AI$15+1,FALSE)="Yes",TRUE,FALSE) -> TRUE | AJ27: =IF(VLOOKUP($N27,Allocators!$E$34:$BB$81,AJ$15+1,FALSE)="Yes",TRUE,FALSE) -> TRUE | AK27: =IF(VLOOKUP($N27,Allocators!$E$34:$BB$81,AK$15+1,FALSE)="Yes",TRUE,FALSE) -> TRUE | AL27: =IF(VLOOKUP($N27,Allocators!$E$34:$BB$81,AL$15+1,FALSE)="Yes",TRUE,FALSE) -> TRUE | AM27: =IF(VLOOKUP($N27,Allocators!$E$34:$BB$81,AM$15+1,FALSE)="Yes",TRUE,FALSE) -> TRUE | AN27: =IF(VLOOKUP($N27,Allocators!$E$34:$BB$81,AN$15+1,FALSE)="Yes",TRUE,FALSE) -> TRUE | AO27: =IF(VLOOKUP($N27,Allocators!$E$34:$BB$81,AO$15+1,FALSE)="Yes",TRUE,FALSE) -> TRUE | AP27: =IF(VLOOKUP($N27,Allocators!$E$34:$BB$81,AP$15+1,FALSE)="Yes",TRUE,FALSE) -> TRUE | AQ27: =IF(VLOOKUP($N27,Allocators!$E$34:$BB$81,AQ$15+1,FALSE)="Yes",TRUE,FALSE) -> TRUE | AR27: =IF(VLOOKUP($N27,Allocators!$E$34:$BB$81,AR$15+1,FALSE)="Yes",TRUE,FALSE) -> TRUE | AS27: =IF(VLOOKUP($N27,Allocators!$E$34:$BB$81,AS$15+1,FALSE)="Yes",TRUE,FALSE) -> TRUE | AT27: =IF(VLOOKUP($N27,Allocators!$E$34:$BB$81,AT$15+1,FALSE)="Yes",TRUE,FALSE) -> TRUE | AU27: =IF(VLOOKUP($N27,Allocators!$E$34:$BB$81,AU$15+1,FALSE)="Yes",TRUE,FALSE) -> TRUE | AV27: =IF(VLOOKUP($N27,Allocators!$E$34:$BB$81,AV$15+1,FALSE)="Yes",TRUE,FALSE) -> TRUE | AW27: =IF(VLOOKUP($N27,Allocators!$E$34:$BB$81,AW$15+1,FALSE)="Yes",TRUE,FALSE) -> TRUE | AX27: =IF(VLOOKUP($N27,Allocators!$E$34:$BB$81,AX$15+1,FALSE)="Yes",TRUE,FALSE) -> TRUE | AY27: =IF(VLOOKUP($N27,Allocators!$E$34:$BB$81,AY$15+1,FALSE)="Yes",TRUE,FALSE) -> TRUE | AZ27: =IF(VLOOKUP($N27,Allocators!$E$34:$BB$81,AZ$15+1,FALSE)="Yes",TRUE,FALSE) -> TRUE | BA27: =IF(VLOOKUP($N27,Allocators!$E$34:$BB$81,BA$15+1,FALSE)="Yes",TRUE,FALSE) -> TRUE | BB27: =IF(VLOOKUP($N27,Allocators!$E$34:$BB$81,BB$15+1,FALSE)="Yes",TRUE,FALSE) -> TRUE | BC27: =IF(VLOOKUP($N27,Allocators!$E$34:$BB$81,BC$15+1,FALSE)="Yes",TRUE,FALSE) -> TRUE | BD27: =IF(VLOOKUP($N27,Allocators!$E$34:$BB$81,BD$15+1,FALSE)="Yes",TRUE,FALSE) -> TRUE | BE27: =IF(VLOOKUP($N27,Allocators!$E$34:$BB$81,BE$15+1,FALSE)="Yes",TRUE,FALSE) -> TRUE | BF27: =IF(VLOOKUP($N27,Allocators!$E$34:$BB$81,BF$15+1,FALSE)="Yes",TRUE,FALSE) -> TRUE | BG27: =IF(VLOOKUP($N27,Allocators!$E$34:$BB$81,BG$15+1,FALSE)="Yes",TRUE,FALSE) -> TRUE | BH27: =IF(VLOOKUP($N27,Allocators!$E$34:$BB$81,BH$15+1,FALSE)="Yes",TRUE,FALSE) -> TRUE | BI27: =IF(VLOOKUP($N27,Allocators!$E$34:$BB$81,BI$15+1,FALSE)="Yes",TRUE,FALSE) -> TRUE | BJ27: =IF(VLOOKUP($N27,Allocators!$E$34:$BB$81,BJ$15+1,FALSE)="Yes",TRUE,FALSE) -> FALSE | BK27: =IF(VLOOKUP($N27,Allocators!$E$34:$BB$81,BK$15+1,FALSE)="Yes",TRUE,FALSE) -> TRUE
C28: =VLOOKUP(N28,Data!$E$233:$G$280,2,FALSE) -> Labour Costs | D28: =VLOOKUP($N28,Data!$E$233:$G$280,3,FALSE) -> Contaminated Land Group | H28: 0 | I28: FALSE | J28: FALSE | K28: TRUE | M28: Shared | N28: 13 | O28: =IF(VLOOKUP($N28,Allocators!$E$34:$BB$81,O$15+1,FALSE)="Yes",TRUE,FALSE) -> TRUE | P28: =IF(VLOOKUP($N28,Allocators!$E$34:$BB$81,P$15+1,FALSE)="Yes",TRUE,FALSE) -> TRUE | Q28: =IF(VLOOKUP($N28,Allocators!$E$34:$BB$81,Q$15+1,FALSE)="Yes",TRUE,FALSE) -> TRUE | R28: =IF(VLOOKUP($N28,Allocators!$E$34:$BB$81,R$15+1,FALSE)="Yes",TRUE,FALSE) -> TRUE | S28: =IF(VLOOKUP($N28,Allocators!$E$34:$BB$81,S$15+1,FALSE)="Yes",TRUE,FALSE) -> TRUE | T28: =IF(VLOOKUP($N28,Allocators!$E$34:$BB$81,T$15+1,FALSE)="Yes",TRUE,FALSE) -> TRUE | U28: =IF(VLOOKUP($N28,Allocators!$E$34:$BB$81,U$15+1,FALSE)="Yes",TRUE,FALSE) -> TRUE | V28: =IF(VLOOKUP($N28,Allocators!$E$34:$BB$81,V$15+1,FALSE)="Yes",TRUE,FALSE) -> TRUE | W28: =IF(VLOOKUP($N28,Allocators!$E$34:$BB$81,W$15+1,FALSE)="Yes",TRUE,FALSE) -> TRUE | X28: =IF(VLOOKUP($N28,Allocators!$E$34:$BB$81,X$15+1,FALSE)="Yes",TRUE,FALSE) -> TRUE | Y28: =IF(VLOOKUP($N28,Allocators!$E$34:$BB$81,Y$15+1,FALSE)="Yes",TRUE,FALSE) -> TRUE | Z28: =IF(VLOOKUP($N28,Allocators!$E$34:$BB$81,Z$15+1,FALSE)="Yes",TRUE,FALSE) -> TRUE | AA28: =IF(VLOOKUP($N28,Allocators!$E$34:$BB$81,AA$15+1,FALSE)="Yes",TRUE,FALSE) -> TRUE | AB28: =IF(VLOOKUP($N28,Allocators!$E$34:$BB$81,AB$15+1,FALSE)="Yes",TRUE,FALSE) -> TRUE | AC28: =IF(VLOOKUP($N28,Allocators!$E$34:$BB$81,AC$15+1,FALSE)="Yes",TRUE,FALSE) -> TRUE | AD28: =IF(VLOOKUP($N28,Allocators!$E$34:$BB$81,AD$15+1,FALSE)="Yes",TRUE,FALSE) -> TRUE | AE28: =IF(VLOOKUP($N28,Allocators!$E$34:$BB$81,AE$15+1,FALSE)="Yes",TRUE,FALSE) -> TRUE | AF28: =IF(VLOOKUP($N28,Allocators!$E$34:$BB$81,AF$15+1,FALSE)="Yes",TRUE,FALSE) -> TRUE | AG28: =IF(VLOOKUP($N28,Allocators!$E$34:$BB$81,AG$15+1,FALSE)="Yes",TRUE,FALSE) -> FALSE | AH28: =IF(VLOOKUP($N28,Allocators!$E$34:$BB$81,AH$15+1,FALSE)="Yes",TRUE,FALSE) -> FALSE | AI28: =IF(VLOOKUP($N28,Allocators!$E$34:$BB$81,AI$15+1,FALSE)="Yes",TRUE,FALSE) -> FALSE | AJ28: =IF(VLOOKUP($N28,Allocators!$E$34:$BB$81,AJ$15+1,FALSE)="Yes",TRUE,FALSE) -> FALSE | AK28: =IF(VLOOKUP($N28,Allocators!$E$34:$BB$81,AK$15+1,FALSE)="Yes",TRUE,FALSE) -> FALSE | AL28: =IF(VLOOKUP($N28,Allocators!$E$34:$BB$81,AL$15+1,FALSE)="Yes",TRUE,FALSE) -> FALSE | AM28: =IF(VLOOKUP($N28,Allocators!$E$34:$BB$81,AM$15+1,FALSE)="Yes",TRUE,FALSE) -> FALSE | AN28: =IF(VLOOKUP($N28,Allocators!$E$34:$BB$81,AN$15+1,FALSE)="Yes",TRUE,FALSE) -> FALSE | AO28: =IF(VLOOKUP($N28,Allocators!$E$34:$BB$81,AO$15+1,FALSE)="Yes",TRUE,FALSE) -> FALSE | AP28: =IF(VLOOKUP($N28,Allocators!$E$34:$BB$81,AP$15+1,FALSE)="Yes",TRUE,FALSE) -> FALSE | AQ28: =IF(VLOOKUP($N28,Allocators!$E$34:$BB$81,AQ$15+1,FALSE)="Yes",TRUE,FALSE) -> FALSE | AR28: =IF(VLOOKUP($N28,Allocators!$E$34:$BB$81,AR$15+1,FALSE)="Yes",TRUE,FALSE) -> FALSE | AS28: =IF(VLOOKUP($N28,Allocators!$E$34:$BB$81,AS$15+1,FALSE)="Yes",TRUE,FALSE) -> FALSE | AT28: =IF(VLOOKUP($N28,Allocators!$E$34:$BB$81,AT$15+1,FALSE)="Yes",TRUE,FALSE) -> FALSE | AU28: =IF(VLOOKUP($N28,Allocators!$E$34:$BB$81,AU$15+1,FALSE)="Yes",TRUE,FALSE) -> FALSE | AV28: =IF(VLOOKUP($N28,Allocators!$E$34:$BB$81,AV$15+1,FALSE)="Yes",TRUE,FALSE) -> FALSE | AW28: =IF(VLOOKUP($N28,Allocators!$E$34:$BB$81,AW$15+1,FALSE)="Yes",TRUE,FALSE) -> FALSE | AX28: =IF(VLOOKUP($N28,Allocators!$E$34:$BB$81,AX$15+1,FALSE)="Yes",TRUE,FALSE) -> FALSE | AY28: =IF(VLOOKUP($N28,Allocators!$E$34:$BB$81,AY$15+1,FALSE)="Yes",TRUE,FALSE) -> FALSE | AZ28: =IF(VLOOKUP($N28,Allocators!$E$34:$BB$81,AZ$15+1,FALSE)="Yes",TRUE,FALSE) -> FALSE | BA28: =IF(VLOOKUP($N28,Allocators!$E$34:$BB$81,BA$15+1,FALSE)="Yes",TRUE,FALSE) -> FALSE | BB28: =IF(VLOOKUP($N28,Allocators!$E$34:$BB$81,BB$15+1,FALSE)="Yes",TRUE,FALSE) -> FALSE | BC28: =IF(VLOOKUP($N28,Allocators!$E$34:$BB$81,BC$15+1,FALSE)="Yes",TRUE,FALSE) -> TRUE | BD28: =IF(VLOOKUP($N28,Allocators!$E$34:$BB$81,BD$15+1,FALSE)="Yes",TRUE,FALSE) -> TRUE | BE28: =IF(VLOOKUP($N28,Allocators!$E$34:$BB$81,BE$15+1,FALSE)="Yes",TRUE,FALSE) -> TRUE | BF28: =IF(VLOOKUP($N28,Allocators!$E$34:$BB$81,BF$15+1,FALSE)="Yes",TRUE,FALSE) -> FALSE | BG28: =IF(VLOOKUP($N28,Allocators!$E$34:$BB$81,BG$15+1,FALSE)="Yes",TRUE,FALSE) -> FALSE | BH28: =IF(VLOOKUP($N28,Allocators!$E$34:$BB$81,BH$15+1,FALSE)="Yes",TRUE,FALSE) -> FALSE | BI28: =IF(VLOOKUP($N28,Allocators!$E$34:$BB$81,BI$15+1,FALSE)="Yes",TRUE,FALSE) -> FALSE | BJ28: =IF(VLOOKUP($N28,Allocators!$E$34:$BB$81,BJ$15+1,FALSE)="Yes",TRUE,FALSE) -> FALSE | BK28: =IF(VLOOKUP($N28,Allocators!$E$34:$BB$81,BK$15+1,FALSE)="Yes",TRUE,FALSE) -> TRUE
C29: =VLOOKUP(N29,Data!$E$233:$G$280,2,FALSE) -> Labour Costs | D29: =VLOOKUP($N29,Data!$E$233:$G$280,3,FALSE) -> Land Use Planning | H29: 0 | I29: FALSE | J29: FALSE | K29: TRUE | M29: Shared | N29: 14 | O29: =IF(VLOOKUP($N29,Allocators!$E$34:$BB$81,O$15+1,FALSE)="Yes",TRUE,FALSE) -> TRUE | P29: =IF(VLOOKUP($N29,Allocators!$E$34:$BB$81,P$15+1,FALSE)="Yes",TRUE,FALSE) -> TRUE | Q29: =IF(VLOOKUP($N29,Allocators!$E$34:$BB$81,Q$15+1,FALSE)="Yes",TRUE,FALSE) -> TRUE | R29: =IF(VLOOKUP($N29,Allocators!$E$34:$BB$81,R$15+1,FALSE)="Yes",TRUE,FALSE) -> TRUE | S29: =IF(VLOOKUP($N29,Allocators!$E$34:$BB$81,S$15+1,FALSE)="Yes",TRUE,FALSE) -> TRUE | T29: =IF(VLOOKUP($N29,Allocators!$E$34:$BB$81,T$15+1,FALSE)="Yes",TRUE,FALSE) -> TRUE | U29: =IF(VLOOKUP($N29,Allocators!$E$34:$BB$81,U$15+1,FALSE)="Yes",TRUE,FALSE) -> TRUE | V29: =IF(VLOOKUP($N29,Allocators!$E$34:$BB$81,V$15+1,FALSE)="Yes",TRUE,FALSE) -> TRUE | W29: =IF(VLOOKUP($N29,Allocators!$E$34:$BB$81,W$15+1,FALSE)="Yes",TRUE,FALSE) -> TRUE | X29: =IF(VLOOKUP($N29,Allocators!$E$34:$BB$81,X$15+1,FALSE)="Yes",TRUE,FALSE) -> TRUE | Y29: =IF(VLOOKUP($N29,Allocators!$E$34:$BB$81,Y$15+1,FALSE)="Yes",TRUE,FALSE) -> TRUE | Z29: =IF(VLOOKUP($N29,Allocators!$E$34:$BB$81,Z$15+1,FALSE)="Yes",TRUE,FALSE) -> TRUE | AA29: =IF(VLOOKUP($N29,Allocators!$E$34:$BB$81,AA$15+1,FALSE)="Yes",TRUE,FALSE) -> TRUE | AB29: =IF(VLOOKUP($N29,Allocators!$E$34:$BB$81,AB$15+1,FALSE)="Yes",TRUE,FALSE) -> TRUE | AC29: =IF(VLOOKUP($N29,Allocators!$E$34:$BB$81,AC$15+1,FALSE)="Yes",TRUE,FALSE) -> TRUE | AD29: =IF(VLOOKUP($N29,Allocators!$E$34:$BB$81,AD$15+1,FALSE)="Yes",TRUE,FALSE) -> TRUE | AE29: =IF(VLOOKUP($N29,Allocators!$E$34:$BB$81,AE$15+1,FALSE)="Yes",TRUE,FALSE) -> TRUE | AF29: =IF(VLOOKUP($N29,Allocators!$E$34:$BB$81,AF$15+1,FALSE)="Yes",TRUE,FALSE) -> TRUE | AG29: =IF(VLOOKUP($N29,Allocators!$E$34:$BB$81,AG$15+1,FALSE)="Yes",TRUE,FALSE) -> FALSE | AH29: =IF(VLOOKUP($N29,Allocators!$E$34:$BB$81,AH$15+1,FALSE)="Yes",TRUE,FALSE) -> FALSE | AI29: =IF(VLOOKUP($N29,Allocators!$E$34:$BB$81,AI$15+1,FALSE)="Yes",TRUE,FALSE) -> FALSE | AJ29: =IF(VLOOKUP($N29,Allocators!$E$34:$BB$81,AJ$15+1,FALSE)="Yes",TRUE,FALSE) -> FALSE | AK29: =IF(VLOOKUP($N29,Allocators!$E$34:$BB$81,AK$15+1,FALSE)="Yes",TRUE,FALSE) -> FALSE | AL29: =IF(VLOOKUP($N29,Allocators!$E$34:$BB$81,AL$15+1,FALSE)="Yes",TRUE,FALSE) -> FALSE | AM29: =IF(VLOOKUP($N29,Allocators!$E$34:$BB$81,AM$15+1,FALSE)="Yes",TRUE,FALSE) -> FALSE | AN29: =IF(VLOOKUP($N29,Allocators!$E$34:$BB$81,AN$15+1,FALSE)="Yes",TRUE,FALSE) -> FALSE | AO29: =IF(VLOOKUP($N29,Allocators!$E$34:$BB$81,AO$15+1,FALSE)="Yes",TRUE,FALSE) -> FALSE | AP29: =IF(VLOOKUP($N29,Allocators!$E$34:$BB$81,AP$15+1,FALSE)="Yes",TRUE,FALSE) -> FALSE | AQ29: =IF(VLOOKUP($N29,Allocators!$E$34:$BB$81,AQ$15+1,FALSE)="Yes",TRUE,FALSE) -> FALSE | AR29: =IF(VLOOKUP($N29,Allocators!$E$34:$BB$81,AR$15+1,FALSE)="Yes",TRUE,FALSE) -> FALSE | AS29: =IF(VLOOKUP($N29,Allocators!$E$34:$BB$81,AS$15+1,FALSE)="Yes",TRUE,FALSE) -> FALSE | AT29: =IF(VLOOKUP($N29,Allocators!$E$34:$BB$81,AT$15+1,FALSE)="Yes",TRUE,FALSE) -> FALSE | AU29: =IF(VLOOKUP($N29,Allocators!$E$34:$BB$81,AU$15+1,FALSE)="Yes",TRUE,FALSE) -> FALSE | AV29: =IF(VLOOKUP($N29,Allocators!$E$34:$BB$81,AV$15+1,FALSE)="Yes",TRUE,FALSE) -> FALSE | AW29: =IF(VLOOKUP($N29,Allocators!$E$34:$BB$81,AW$15+1,FALSE)="Yes",TRUE,FALSE) -> FALSE | AX29: =IF(VLOOKUP($N29,Allocators!$E$34:$BB$81,AX$15+1,FALSE)="Yes",TRUE,FALSE) -> FALSE | AY29: =IF(VLOOKUP($N29,Allocators!$E$34:$BB$81,AY$15+1,FALSE)="Yes",TRUE,FALSE) -> FALSE | AZ29: =IF(VLOOKUP($N29,Allocators!$E$34:$BB$81,AZ$15+1,FALSE)="Yes",TRUE,FALSE) -> FALSE | BA29: =IF(VLOOKUP($N29,Allocators!$E$34:$BB$81,BA$15+1,FALSE)="Yes",TRUE,FALSE) -> FALSE | BB29: =IF(VLOOKUP($N29,Allocators!$E$34:$BB$81,BB$15+1,FALSE)="Yes",TRUE,FALSE) -> FALSE | BC29: =IF(VLOOKUP($N29,Allocators!$E$34:$BB$81,BC$15+1,FALSE)="Yes",TRUE,FALSE) -> TRUE | BD29: =IF(VLOOKUP($N29,Allocators!$E$34:$BB$81,BD$15+1,FALSE)="Yes",TRUE,FALSE) -> TRUE | BE29: =IF(VLOOKUP($N29,Allocators!$E$34:$BB$81,BE$15+1,FALSE)="Yes",TRUE,FALSE) -> TRUE | BF29: =IF(VLOOKUP($N29,Allocators!$E$34:$BB$81,BF$15+1,FALSE)="Yes",TRUE,FALSE) -> FALSE | BG29: =IF(VLOOKUP($N29,Allocators!$E$34:$BB$81,BG$15+1,FALSE)="Yes",TRUE,FALSE) -> FALSE | BH29: =IF(VLOOKUP($N29,Allocators!$E$34:$BB$81,BH$15+1,FALSE)="Yes",TRUE,FALSE) -> FALSE | BI29: =IF(VLOOKUP($N29,Allocators!$E$34:$BB$81,BI$15+1,FALSE)="Yes",TRUE,FALSE) -> FALSE | BJ29: =IF(VLOOKUP($N29,Allocators!$E$34:$BB$81,BJ$15+1,FALSE)="Yes",TRUE,FALSE) -> FALSE | BK29: =IF(VLOOKUP($N29,Allocators!$E$34:$BB$81,BK$15+1,FALSE)="Yes",TRUE,FALSE) -> TRUE
C30: =VLOOKUP(N30,Data!$E$233:$G$280,2,FALSE) -> Repairs & Maintenance | D30: =VLOOKUP($N30,Data!$E$233:$G$280,3,FALSE) -> Prescribed | H30: 0 | I30: TRUE | J30: FALSE | K30: FALSE | M30: Dedicated Prescribed | N30: 15 | O30: =IF(VLOOKUP($N30,Allocators!$E$34:$BB$81,O$15+1,FALSE)="Yes",TRUE,FALSE) -> TRUE | P30: =IF(VLOOKUP($N30,Allocators!$E$34:$BB$81,P$15+1,FALSE)="Yes",TRUE,FALSE) -> TRUE | Q30: =IF(VLOOKUP($N30,Allocators!$E$34:$BB$81,Q$15+1,FALSE)="Yes",TRUE,FALSE) -> TRUE | R30: =IF(VLOOKUP($N30,Allocators!$E$34:$BB$81,R$15+1,FALSE)="Yes",TRUE,FALSE) -> TRUE | S30: =IF(VLOOKUP($N30,Allocators!$E$34:$BB$81,S$15+1,FALSE)="Yes",TRUE,FALSE) -> TRUE | T30: =IF(VLOOKUP($N30,Allocators!$E$34:$BB$81,T$15+1,FALSE)="Yes",TRUE,FALSE) -> TRUE | U30: =IF(VLOOKUP($N30,Allocators!$E$34:$BB$81,U$15+1,FALSE)="Yes",TRUE,FALSE) -> TRUE | V30: =IF(VLOOKUP($N30,Allocators!$E$34:$BB$81,V$15+1,FALSE)="Yes",TRUE,FALSE) -> TRUE | W30: =IF(VLOOKUP($N30,Allocators!$E$34:$BB$81,W$15+1,FALSE)="Yes",TRUE,FALSE) -> TRUE | X30: =IF(VLOOKUP($N30,Allocators!$E$34:$BB$81,X$15+1,FALSE)="Yes",TRUE,FALSE) -> TRUE | Y30: =IF(VLOOKUP($N30,Allocators!$E$34:$BB$81,Y$15+1,FALSE)="Yes",TRUE,FALSE) -> TRUE | Z30: =IF(VLOOKUP($N30,Allocators!$E$34:$BB$81,Z$15+1,FALSE)="Yes",TRUE,FALSE) -> TRUE | AA30: =IF(VLOOKUP($N30,Allocators!$E$34:$BB$81,AA$15+1,FALSE)="Yes",TRUE,FALSE) -> TRUE | AB30: =IF(VLOOKUP($N30,Allocators!$E$34:$BB$81,AB$15+1,FALSE)="Yes",TRUE,FALSE) -> TRUE | AC30: =IF(VLOOKUP($N30,Allocators!$E$34:$BB$81,AC$15+1,FALSE)="Yes",TRUE,FALSE) -> TRUE | AD30: =IF(VLOOKUP($N30,Allocators!$E$34:$BB$81,AD$15+1,FALSE)="Yes",TRUE,FALSE) -> TRUE | AE30: =IF(VLOOKUP($N30,Allocators!$E$34:$BB$81,AE$15+1,FALSE)="Yes",TRUE,FALSE) -> TRUE | AF30: =IF(VLOOKUP($N30,Allocators!$E$34:$BB$81,AF$15+1,FALSE)="Yes",TRUE,FALSE) -> TRUE | AG30: =IF(VLOOKUP($N30,Allocators!$E$34:$BB$81,AG$15+1,FALSE)="Yes",TRUE,FALSE) -> TRUE | AH30: =IF(VLOOKUP($N30,Allocators!$E$34:$BB$81,AH$15+1,FALSE)="Yes",TRUE,FALSE) -> TRUE | AI30: =IF(VLOOKUP($N30,Allocators!$E$34:$BB$81,AI$15+1,FALSE)="Yes",TRUE,FALSE) -> TRUE | AJ30: =IF(VLOOKUP($N30,Allocators!$E$34:$BB$81,AJ$15+1,FALSE)="Yes",TRUE,FALSE) -> TRUE | AK30: =IF(VLOOKUP($N30,Allocators!$E$34:$BB$81,AK$15+1,FALSE)="Yes",TRUE,FALSE) -> TRUE | AL30: =IF(VLOOKUP($N30,Allocators!$E$34:$BB$81,AL$15+1,FALSE)="Yes",TRUE,FALSE) -> TRUE | AM30: =IF(VLOOKUP($N30,Allocators!$E$34:$BB$81,AM$15+1,FALSE)="Yes",TRUE,FALSE) -> TRUE | AN30: =IF(VLOOKUP($N30,Allocators!$E$34:$BB$81,AN$15+1,FALSE)="Yes",TRUE,FALSE) -> TRUE | AO30: =IF(VLOOKUP($N30,Allocators!$E$34:$BB$81,AO$15+1,FALSE)="Yes",TRUE,FALSE) -> TRUE | AP30: =IF(VLOOKUP($N30,Allocators!$E$34:$BB$81,AP$15+1,FALSE)="Yes",TRUE,FALSE) -> TRUE | AQ30: =IF(VLOOKUP($N30,Allocators!$E$34:$BB$81,AQ$15+1,FALSE)="Yes",TRUE,FALSE) -> TRUE | AR30: =IF(VLOOKUP($N30,Allocators!$E$34:$BB$81,AR$15+1,FALSE)="Yes",TRUE,FALSE) -> TRUE | AS30: =IF(VLOOKUP($N30,Allocators!$E$34:$BB$81,AS$15+1,FALSE)="Yes",TRUE,FALSE) -> TRUE | AT30: =IF(VLOOKUP($N30,Allocators!$E$34:$BB$81,AT$15+1,FALSE)="Yes",TRUE,FALSE) -> TRUE | AU30: =IF(VLOOKUP($N30,Allocators!$E$34:$BB$81,AU$15+1,FALSE)="Yes",TRUE,FALSE) -> TRUE | AV30: =IF(VLOOKUP($N30,Allocators!$E$34:$BB$81,AV$15+1,FALSE)="Yes",TRUE,FALSE) -> TRUE | AW30: =IF(VLOOKUP($N30,Allocators!$E$34:$BB$81,AW$15+1,FALSE)="Yes",TRUE,FALSE) -> TRUE | AX30: =IF(VLOOKUP($N30,Allocators!$E$34:$BB$81,AX$15+1,FALSE)="Yes",TRUE,FALSE) -> TRUE | AY30: =IF(VLOOKUP($N30,Allocators!$E$34:$BB$81,AY$15+1,FALSE)="Yes",TRUE,FALSE) -> TRUE | AZ30: =IF(VLOOKUP($N30,Allocators!$E$34:$BB$81,AZ$15+1,FALSE)="Yes",TRUE,FALSE) -> TRUE | BA30: =IF(VLOOKUP($N30,Allocators!$E$34:$BB$81,BA$15+1,FALSE)="Yes",TRUE,FALSE) -> TRUE | BB30: =IF(VLOOKUP($N30,Allocators!$E$34:$BB$81,BB$15+1,FALSE)="Yes",TRUE,FALSE) -> TRUE | BC30: =IF(VLOOKUP($N30,Allocators!$E$34:$BB$81,BC$15+1,FALSE)="Yes",TRUE,FALSE) -> TRUE | BD30: =IF(VLOOKUP($N30,Allocators!$E$34:$BB$81,BD$15+1,FALSE)="Yes",TRUE,FALSE) -> TRUE | BE30: =IF(VLOOKUP($N30,Allocators!$E$34:$BB$81,BE$15+1,FALSE)="Yes",TRUE,FALSE) -> TRUE | BF30: =IF(VLOOKUP($N30,Allocators!$E$34:$BB$81,BF$15+1,FALSE)="Yes",TRUE,FALSE) -> TRUE | BG30: =IF(VLOOKUP($N30,Allocators!$E$34:$BB$81,BG$15+1,FALSE)="Yes",TRUE,FALSE) -> TRUE | BH30: =IF(VLOOKUP($N30,Allocators!$E$34:$BB$81,BH$15+1,FALSE)="Yes",TRUE,FALSE) -> TRUE | BI30: =IF(VLOOKUP($N30,Allocators!$E$34:$BB$81,BI$15+1,FALSE)="Yes",TRUE,FALSE) -> TRUE | BJ30: =IF(VLOOKUP($N30,Allocators!$E$34:$BB$81,BJ$15+1,FALSE)="Yes",TRUE,FALSE) -> FALSE | BK30: =IF(VLOOKUP($N30,Allocators!$E$34:$BB$81,BK$15+1,FALSE)="Yes",TRUE,FALSE) -> FALSE
C31: =VLOOKUP(N31,Data!$E$233:$G$280,2,FALSE) -> Repairs & Maintenance | D31: =VLOOKUP($N31,Data!$E$233:$G$280,3,FALSE) -> Non-Prescribed | H31: 0 | I31: FALSE | J31: TRUE | K31: FALSE | M31: Dedicated Non-prescribed | N31: 16 | O31: =IF(VLOOKUP($N31,Allocators!$E$34:$BB$81,O$15+1,FALSE)="Yes",TRUE,FALSE) -> FALSE | P31: =IF(VLOOKUP($N31,Allocators!$E$34:$BB$81,P$15+1,FALSE)="Yes",TRUE,FALSE) -> FALSE | Q31: =IF(VLOOKUP($N31,Allocators!$E$34:$BB$81,Q$15+1,FALSE)="Yes",TRUE,FALSE) -> FALSE | R31: =IF(VLOOKUP($N31,Allocators!$E$34:$BB$81,R$15+1,FALSE)="Yes",TRUE,FALSE) -> FALSE | S31: =IF(VLOOKUP($N31,Allocators!$E$34:$BB$81,S$15+1,FALSE)="Yes",TRUE,FALSE) -> FALSE | T31: =IF(VLOOKUP($N31,Allocators!$E$34:$BB$81,T$15+1,FALSE)="Yes",TRUE,FALSE) -> FALSE | U31: =IF(VLOOKUP($N31,Allocators!$E$34:$BB$81,U$15+1,FALSE)="Yes",TRUE,FALSE) -> FALSE | V31: =IF(VLOOKUP($N31,Allocators!$E$34:$BB$81,V$15+1,FALSE)="Yes",TRUE,FALSE) -> FALSE | W31: =IF(VLOOKUP($N31,Allocators!$E$34:$BB$81,W$15+1,FALSE)="Yes",TRUE,FALSE) -> FALSE | X31: =IF(VLOOKUP($N31,Allocators!$E$34:$BB$81,X$15+1,FALSE)="Yes",TRUE,FALSE) -> FALSE | Y31: =IF(VLOOKUP($N31,Allocators!$E$34:$BB$81,Y$15+1,FALSE)="Yes",TRUE,FALSE) -> FALSE | Z31: =IF(VLOOKUP($N31,Allocators!$E$34:$BB$81,Z$15+1,FALSE)="Yes",TRUE,FALSE) -> FALSE | AA31: =IF(VLOOKUP($N31,Allocators!$E$34:$BB$81,AA$15+1,FALSE)="Yes",TRUE,FALSE) -> FALSE | AB31: =IF(VLOOKUP($N31,Allocators!$E$34:$BB$81,AB$15+1,FALSE)="Yes",TRUE,FALSE) -> FALSE | AC31: =IF(VLOOKUP($N31,Allocators!$E$34:$BB$81,AC$15+1,FALSE)="Yes",TRUE,FALSE) -> FALSE | AD31: =IF(VLOOKUP($N31,Allocators!$E$34:$BB$81,AD$15+1,FALSE)="Yes",TRUE,FALSE) -> FALSE | AE31: =IF(VLOOKUP($N31,Allocators!$E$34:$BB$81,AE$15+1,FALSE)="Yes",TRUE,FALSE) -> FALSE | AF31: =IF(VLOOKUP($N31,Allocators!$E$34:$BB$81,AF$15+1,FALSE)="Yes",TRUE,FALSE) -> FALSE | AG31: =IF(VLOOKUP($N31,Allocators!$E$34:$BB$81,AG$15+1,FALSE)="Yes",TRUE,FALSE) -> FALSE | AH31: =IF(VLOOKUP($N31,Allocators!$E$34:$BB$81,AH$15+1,FALSE)="Yes",TRUE,FALSE) -> FALSE | AI31: =IF(VLOOKUP($N31,Allocators!$E$34:$BB$81,AI$15+1,FALSE)="Yes",TRUE,FALSE) -> FALSE | AJ31: =IF(VLOOKUP($N31,Allocators!$E$34:$BB$81,AJ$15+1,FALSE)="Yes",TRUE,FALSE) -> FALSE | AK31: =IF(VLOOKUP($N31,Allocators!$E$34:$BB$81,AK$15+1,FALSE)="Yes",TRUE,FALSE) -> FALSE | AL31: =IF(VLOOKUP($N31,Allocators!$E$34:$BB$81,AL$15+1,FALSE)="Yes",TRUE,FALSE) -> FALSE | AM31: =IF(VLOOKUP($N31,Allocators!$E$34:$BB$81,AM$15+1,FALSE)="Yes",TRUE,FALSE) -> FALSE | AN31: =IF(VLOOKUP($N31,Allocators!$E$34:$BB$81,AN$15+1,FALSE)="Yes",TRUE,FALSE) -> FALSE | AO31: =IF(VLOOKUP($N31,Allocators!$E$34:$BB$81,AO$15+1,FALSE)="Yes",TRUE,FALSE) -> FALSE | AP31: =IF(VLOOKUP($N31,Allocators!$E$34:$BB$81,AP$15+1,FALSE)="Yes",TRUE,FALSE) -> FALSE | AQ31: =IF(VLOOKUP($N31,Allocators!$E$34:$BB$81,AQ$15+1,FALSE)="Yes",TRUE,FALSE) -> FALSE | AR31: =IF(VLOOKUP($N31,Allocators!$E$34:$BB$81,AR$15+1,FALSE)="Yes",TRUE,FALSE) -> FALSE | AS31: =IF(VLOOKUP($N31,Allocators!$E$34:$BB$81,AS$15+1,FALSE)="Yes",TRUE,FALSE) -> FALSE | AT31: =IF(VLOOKUP($N31,Allocators!$E$34:$BB$81,AT$15+1,FALSE)="Yes",TRUE,FALSE) -> FALSE | AU31: =IF(VLOOKUP($N31,Allocators!$E$34:$BB$81,AU$15+1,FALSE)="Yes",TRUE,FALSE) -> FALSE | AV31: =IF(VLOOKUP($N31,Allocators!$E$34:$BB$81,AV$15+1,FALSE)="Yes",TRUE,FALSE) -> FALSE | AW31: =IF(VLOOKUP($N31,Allocators!$E$34:$BB$81,AW$15+1,FALSE)="Yes",TRUE,FALSE) -> FALSE | AX31: =IF(VLOOKUP($N31,Allocators!$E$34:$BB$81,AX$15+1,FALSE)="Yes",TRUE,FALSE) -> FALSE | AY31: =IF(VLOOKUP($N31,Allocators!$E$34:$BB$81,AY$15+1,FALSE)="Yes",TRUE,FALSE) -> FALSE | AZ31: =IF(VLOOKUP($N31,Allocators!$E$34:$BB$81,AZ$15+1,FALSE)="Yes",TRUE,FALSE) -> FALSE | BA31: =IF(VLOOKUP($N31,Allocators!$E$34:$BB$81,BA$15+1,FALSE)="Yes",TRUE,FALSE) -> FALSE | BB31: =IF(VLOOKUP($N31,Allocators!$E$34:$BB$81,BB$15+1,FALSE)="Yes",TRUE,FALSE) -> FALSE | BC31: =IF(VLOOKUP($N31,Allocators!$E$34:$BB$81,BC$15+1,FALSE)="Yes",TRUE,FALSE) -> FALSE | BD31: =IF(VLOOKUP($N31,Allocators!$E$34:$BB$81,BD$15+1,FALSE)="Yes",TRUE,FALSE) -> FALSE | BE31: =IF(VLOOKUP($N31,Allocators!$E$34:$BB$81,BE$15+1,FALSE)="Yes",TRUE,FALSE) -> FALSE | BF31: =IF(VLOOKUP($N31,Allocators!$E$34:$BB$81,BF$15+1,FALSE)="Yes",TRUE,FALSE) -> FALSE | BG31: =IF(VLOOKUP($N31,Allocators!$E$34:$BB$81,BG$15+1,FALSE)="Yes",TRUE,FALSE) -> FALSE | BH31: =IF(VLOOKUP($N31,Allocators!$E$34:$BB$81,BH$15+1,FALSE)="Yes",TRUE,FALSE) -> FALSE | BI31: =IF(VLOOKUP($N31,Allocators!$E$34:$BB$81,BI$15+1,FALSE)="Yes",TRUE,FALSE) -> FALSE | BJ31: =IF(VLOOKUP($N31,Allocators!$E$34:$BB$81,BJ$15+1,FALSE)="Yes",TRUE,FALSE) -> FALSE | BK31: =IF(VLOOKUP($N31,Allocators!$E$34:$BB$81,BK$15+1,FALSE)="Yes",TRUE,FALSE) -> TRUE
C32: =VLOOKUP(N32,Data!$E$233:$G$280,2,FALSE) -> Repairs & Maintenance | D32: =VLOOKUP($N32,Data!$E$233:$G$280,3,FALSE) -> Shared | H32: 0 | I32: FALSE | J32: FALSE | K32: TRUE | M32: Shared | N32: 17 | O32: =IF(VLOOKUP($N32,Allocators!$E$34:$BB$81,O$15+1,FALSE)="Yes",TRUE,FALSE) -> TRUE | P32: =IF(VLOOKUP($N32,Allocators!$E$34:$BB$81,P$15+1,FALSE)="Yes",TRUE,FALSE) -> TRUE | Q32: =IF(VLOOKUP($N32,Allocators!$E$34:$BB$81,Q$15+1,FALSE)="Yes",TRUE,FALSE) -> TRUE | R32: =IF(VLOOKUP($N32,Allocators!$E$34:$BB$81,R$15+1,FALSE)="Yes",TRUE,FALSE) -> TRUE | S32: =IF(VLOOKUP($N32,Allocators!$E$34:$BB$81,S$15+1,FALSE)="Yes",TRUE,FALSE) -> TRUE | T32: =IF(VLOOKUP($N32,Allocators!$E$34:$BB$81,T$15+1,FALSE)="Yes",TRUE,FALSE) -> TRUE | U32: =IF(VLOOKUP($N32,Allocators!$E$34:$BB$81,U$15+1,FALSE)="Yes",TRUE,FALSE) -> TRUE | V32: =IF(VLOOKUP($N32,Allocators!$E$34:$BB$81,V$15+1,FALSE)="Yes",TRUE,FALSE) -> TRUE | W32: =IF(VLOOKUP($N32,Allocators!$E$34:$BB$81,W$15+1,FALSE)="Yes",TRUE,FALSE) -> TRUE | X32: =IF(VLOOKUP($N32,Allocators!$E$34:$BB$81,X$15+1,FALSE)="Yes",TRUE,FALSE) -> TRUE | Y32: =IF(VLOOKUP($N32,Allocators!$E$34:$BB$81,Y$15+1,FALSE)="Yes",TRUE,FALSE) -> TRUE | Z32: =IF(VLOOKUP($N32,Allocators!$E$34:$BB$81,Z$15+1,FALSE)="Yes",TRUE,FALSE) -> TRUE | AA32: =IF(VLOOKUP($N32,Allocators!$E$34:$BB$81,AA$15+1,FALSE)="Yes",TRUE,FALSE) -> TRUE | AB32: =IF(VLOOKUP($N32,Allocators!$E$34:$BB$81,AB$15+1,FALSE)="Yes",TRUE,FALSE) -> TRUE | AC32: =IF(VLOOKUP($N32,Allocators!$E$34:$BB$81,AC$15+1,FALSE)="Yes",TRUE,FALSE) -> TRUE | AD32: =IF(VLOOKUP($N32,Allocators!$E$34:$BB$81,AD$15+1,FALSE)="Yes",TRUE,FALSE) -> TRUE | AE32: =IF(VLOOKUP($N32,Allocators!$E$34:$BB$81,AE$15+1,FALSE)="Yes",TRUE,FALSE) -> TRUE | AF32: =IF(VLOOKUP($N32,Allocators!$E$34:$BB$81,AF$15+1,FALSE)="Yes",TRUE,FALSE) -> TRUE | AG32: =IF(VLOOKUP($N32,Allocators!$E$34:$BB$81,AG$15+1,FALSE)="Yes",TRUE,FALSE) -> TRUE | AH32: =IF(VLOOKUP($N32,Allocators!$E$34:$BB$81,AH$15+1,FALSE)="Yes",TRUE,FALSE) -> TRUE | AI32: =IF(VLOOKUP($N32,Allocators!$E$34:$BB$81,AI$15+1,FALSE)="Yes",TRUE,FALSE) -> TRUE | AJ32: =IF(VLOOKUP($N32,Allocators!$E$34:$BB$81,AJ$15+1,FALSE)="Yes",TRUE,FALSE) -> TRUE | AK32: =IF(VLOOKUP($N32,Allocators!$E$34:$BB$81,AK$15+1,FALSE)="Yes",TRUE,FALSE) -> TRUE | AL32: =IF(VLOOKUP($N32,Allocators!$E$34:$BB$81,AL$15+1,FALSE)="Yes",TRUE,FALSE) -> TRUE | AM32: =IF(VLOOKUP($N32,Allocators!$E$34:$BB$81,AM$15+1,FALSE)="Yes",TRUE,FALSE) -> TRUE | AN32: =IF(VLOOKUP($N32,Allocators!$E$34:$BB$81,AN$15+1,FALSE)="Yes",TRUE,FALSE) -> TRUE | AO32: =IF(VLOOKUP($N32,Allocators!$E$34:$BB$81,AO$15+1,FALSE)="Yes",TRUE,FALSE) -> TRUE | AP32: =IF(VLOOKUP($N32,Allocators!$E$34:$BB$81,AP$15+1,FALSE)="Yes",TRUE,FALSE) -> TRUE | AQ32: =IF(VLOOKUP($N32,Allocators!$E$34:$BB$81,AQ$15+1,FALSE)="Yes",TRUE,FALSE) -> TRUE | AR32: =IF(VLOOKUP($N32,Allocators!$E$34:$BB$81,AR$15+1,FALSE)="Yes",TRUE,FALSE) -> TRUE | AS32: =IF(VLOOKUP($N32,Allocators!$E$34:$BB$81,AS$15+1,FALSE)="Yes",TRUE,FALSE) -> TRUE | AT32: =IF(VLOOKUP($N32,Allocators!$E$34:$BB$81,AT$15+1,FALSE)="Yes",TRUE,FALSE) -> TRUE | AU32: =IF(VLOOKUP($N32,Allocators!$E$34:$BB$81,AU$15+1,FALSE)="Yes",TRUE,FALSE) -> TRUE | AV32: =IF(VLOOKUP($N32,Allocators!$E$34:$BB$81,AV$15+1,FALSE)="Yes",TRUE,FALSE) -> TRUE | AW32: =IF(VLOOKUP($N32,Allocators!$E$34:$BB$81,AW$15+1,FALSE)="Yes",TRUE,FALSE) -> TRUE | AX32: =IF(VLOOKUP($N32,Allocators!$E$34:$BB$81,AX$15+1,FALSE)="Yes",TRUE,FALSE) -> TRUE | AY32: =IF(VLOOKUP($N32,Allocators!$E$34:$BB$81,AY$15+1,FALSE)="Yes",TRUE,FALSE) -> TRUE | AZ32: =IF(VLOOKUP($N32,Allocators!$E$34:$BB$81,AZ$15+1,FALSE)="Yes",TRUE,FALSE) -> TRUE | BA32: =IF(VLOOKUP($N32,Allocators!$E$34:$BB$81,BA$15+1,FALSE)="Yes",TRUE,FALSE) -> TRUE | BB32: =IF(VLOOKUP($N32,Allocators!$E$34:$BB$81,BB$15+1,FALSE)="Yes",TRUE,FALSE) -> TRUE | BC32: =IF(VLOOKUP($N32,Allocators!$E$34:$BB$81,BC$15+1,FALSE)="Yes",TRUE,FALSE) -> TRUE | BD32: =IF(VLOOKUP($N32,Allocators!$E$34:$BB$81,BD$15+1,FALSE)="Yes",TRUE,FALSE) -> TRUE | BE32: =IF(VLOOKUP($N32,Allocators!$E$34:$BB$81,BE$15+1,FALSE)="Yes",TRUE,FALSE) -> TRUE | BF32: =IF(VLOOKUP($N32,Allocators!$E$34:$BB$81,BF$15+1,FALSE)="Yes",TRUE,FALSE) -> TRUE | BG32: =IF(VLOOKUP($N32,Allocators!$E$34:$BB$81,BG$15+1,FALSE)="Yes",TRUE,FALSE) -> TRUE | BH32: =IF(VLOOKUP($N32,Allocators!$E$34:$BB$81,BH$15+1,FALSE)="Yes",TRUE,FALSE) -> TRUE | BI32: =IF(VLOOKUP($N32,Allocators!$E$34:$BB$81,BI$15+1,FALSE)="Yes",TRUE,FALSE) -> TRUE | BJ32: =IF(VLOOKUP($N32,Allocators!$E$34:$BB$81,BJ$15+1,FALSE)="Yes",TRUE,FALSE) -> FALSE | BK32: =IF(VLOOKUP($N32,Allocators!$E$34:$BB$81,BK$15+1,FALSE)="Yes",TRUE,FALSE) -> TRUE
C33: =VLOOKUP(N33,Data!$E$233:$G$280,2,FALSE) -> Construction | D33: =VLOOKUP($N33,Data!$E$233:$G$280,3,FALSE) -> Prescribed | H33: 0 | I33: TRUE | J33: FALSE | K33: FALSE | M33: Dedicated Prescribed | N33: 18 | O33: =IF(VLOOKUP($N33,Allocators!$E$34:$BB$81,O$15+1,FALSE)="Yes",TRUE,FALSE) -> TRUE | P33: =IF(VLOOKUP($N33,Allocators!$E$34:$BB$81,P$15+1,FALSE)="Yes",TRUE,FALSE) -> TRUE | Q33: =IF(VLOOKUP($N33,Allocators!$E$34:$BB$81,Q$15+1,FALSE)="Yes",TRUE,FALSE) -> TRUE | R33: =IF(VLOOKUP($N33,Allocators!$E$34:$BB$81,R$15+1,FALSE)="Yes",TRUE,FALSE) -> TRUE | S33: =IF(VLOOKUP($N33,Allocators!$E$34:$BB$81,S$15+1,FALSE)="Yes",TRUE,FALSE) -> TRUE | T33: =IF(VLOOKUP($N33,Allocators!$E$34:$BB$81,T$15+1,FALSE)="Yes",TRUE,FALSE) -> TRUE | U33: =IF(VLOOKUP($N33,Allocators!$E$34:$BB$81,U$15+1,FALSE)="Yes",TRUE,FALSE) -> TRUE | V33: =IF(VLOOKUP($N33,Allocators!$E$34:$BB$81,V$15+1,FALSE)="Yes",TRUE,FALSE) -> TRUE | W33: =IF(VLOOKUP($N33,Allocators!$E$34:$BB$81,W$15+1,FALSE)="Yes",TRUE,FALSE) -> TRUE | X33: =IF(VLOOKUP($N33,Allocators!$E$34:$BB$81,X$15+1,FALSE)="Yes",TRUE,FALSE) -> TRUE | Y33: =IF(VLOOKUP($N33,Allocators!$E$34:$BB$81,Y$15+1,FALSE)="Yes",TRUE,FALSE) -> TRUE | Z33: =IF(VLOOKUP($N33,Allocators!$E$34:$BB$81,Z$15+1,FALSE)="Yes",TRUE,FALSE) -> TRUE | AA33: =IF(VLOOKUP($N33,Allocators!$E$34:$BB$81,AA$15+1,FALSE)="Yes",TRUE,FALSE) -> TRUE | AB33: =IF(VLOOKUP($N33,Allocators!$E$34:$BB$81,AB$15+1,FALSE)="Yes",TRUE,FALSE) -> TRUE | AC33: =IF(VLOOKUP($N33,Allocators!$E$34:$BB$81,AC$15+1,FALSE)="Yes",TRUE,FALSE) -> TRUE | AD33: =IF(VLOOKUP($N33,Allocators!$E$34:$BB$81,AD$15+1,FALSE)="Yes",TRUE,FALSE) -> TRUE | AE33: =IF(VLOOKUP($N33,Allocators!$E$34:$BB$81,AE$15+1,FALSE)="Yes",TRUE,FALSE) -> TRUE | AF33: =IF(VLOOKUP($N33,Allocators!$E$34:$BB$81,AF$15+1,FALSE)="Yes",TRUE,FALSE) -> TRUE | AG33: =IF(VLOOKUP($N33,Allocators!$E$34:$BB$81,AG$15+1,FALSE)="Yes",TRUE,FALSE) -> TRUE | AH33: =IF(VLOOKUP($N33,Allocators!$E$34:$BB$81,AH$15+1,FALSE)="Yes",TRUE,FALSE) -> TRUE | AI33: =IF(VLOOKUP($N33,Allocators!$E$34:$BB$81,AI$15+1,FALSE)="Yes",TRUE,FALSE) -> TRUE | AJ33: =IF(VLOOKUP($N33,Allocators!$E$34:$BB$81,AJ$15+1,FALSE)="Yes",TRUE,FALSE) -> TRUE | AK33: =IF(VLOOKUP($N33,Allocators!$E$34:$BB$81,AK$15+1,FALSE)="Yes",TRUE,FALSE) -> TRUE | AL33: =IF(VLOOKUP($N33,Allocators!$E$34:$BB$81,AL$15+1,FALSE)="Yes",TRUE,FALSE) -> TRUE | AM33: =IF(VLOOKUP($N33,Allocators!$E$34:$BB$81,AM$15+1,FALSE)="Yes",TRUE,FALSE) -> TRUE | AN33: =IF(VLOOKUP($N33,Allocators!$E$34:$BB$81,AN$15+1,FALSE)="Yes",TRUE,FALSE) -> TRUE | AO33: =IF(VLOOKUP($N33,Allocators!$E$34:$BB$81,AO$15+1,FALSE)="Yes",TRUE,FALSE) -> TRUE | AP33: =IF(VLOOKUP($N33,Allocators!$E$34:$BB$81,AP$15+1,FALSE)="Yes",TRUE,FALSE) -> TRUE | AQ33: =IF(VLOOKUP($N33,Allocators!$E$34:$BB$81,AQ$15+1,FALSE)="Yes",TRUE,FALSE) -> TRUE | AR33: =IF(VLOOKUP($N33,Allocators!$E$34:$BB$81,AR$15+1,FALSE)="Yes",TRUE,FALSE) -> TRUE | AS33: =IF(VLOOKUP($N33,Allocators!$E$34:$BB$81,AS$15+1,FALSE)="Yes",TRUE,FALSE) -> TRUE | AT33: =IF(VLOOKUP($N33,Allocators!$E$34:$BB$81,AT$15+1,FALSE)="Yes",TRUE,FALSE) -> TRUE | AU33: =IF(VLOOKUP($N33,Allocators!$E$34:$BB$81,AU$15+1,FALSE)="Yes",TRUE,FALSE) -> TRUE | AV33: =IF(VLOOKUP($N33,Allocators!$E$34:$BB$81,AV$15+1,FALSE)="Yes",TRUE,FALSE) -> TRUE | AW33: =IF(VLOOKUP($N33,Allocators!$E$34:$BB$81,AW$15+1,FALSE)="Yes",TRUE,FALSE) -> TRUE | AX33: =IF(VLOOKUP($N33,Allocators!$E$34:$BB$81,AX$15+1,FALSE)="Yes",TRUE,FALSE) -> TRUE | AY33: =IF(VLOOKUP($N33,Allocators!$E$34:$BB$81,AY$15+1,FALSE)="Yes",TRUE,FALSE) -> TRUE | AZ33: =IF(VLOOKUP($N33,Allocators!$E$34:$BB$81,AZ$15+1,FALSE)="Yes",TRUE,FALSE) -> TRUE | BA33: =IF(VLOOKUP($N33,Allocators!$E$34:$BB$81,BA$15+1,FALSE)="Yes",TRUE,FALSE) -> TRUE | BB33: =IF(VLOOKUP($N33,Allocators!$E$34:$BB$81,BB$15+1,FALSE)="Yes",TRUE,FALSE) -> TRUE | BC33: =IF(VLOOKUP($N33,Allocators!$E$34:$BB$81,BC$15+1,FALSE)="Yes",TRUE,FALSE) -> TRUE | BD33: =IF(VLOOKUP($N33,Allocators!$E$34:$BB$81,BD$15+1,FALSE)="Yes",TRUE,FALSE) -> TRUE | BE33: =IF(VLOOKUP($N33,Allocators!$E$34:$BB$81,BE$15+1,FALSE)="Yes",TRUE,FALSE) -> TRUE | BF33: =IF(VLOOKUP($N33,Allocators!$E$34:$BB$81,BF$15+1,FALSE)="Yes",TRUE,FALSE) -> TRUE | BG33: =IF(VLOOKUP($N33,Allocators!$E$34:$BB$81,BG$15+1,FALSE)="Yes",TRUE,FALSE) -> TRUE | BH33: =IF(VLOOKUP($N33,Allocators!$E$34:$BB$81,BH$15+1,FALSE)="Yes",TRUE,FALSE) -> TRUE | BI33: =IF(VLOOKUP($N33,Allocators!$E$34:$BB$81,BI$15+1,FALSE)="Yes",TRUE,FALSE) -> TRUE | BJ33: =IF(VLOOKUP($N33,Allocators!$E$34:$BB$81,BJ$15+1,FALSE)="Yes",TRUE,FALSE) -> FALSE | BK33: =IF(VLOOKUP($N33,Allocators!$E$34:$BB$81,BK$15+1,FALSE)="Yes",TRUE,FALSE) -> FALSE
C34: =VLOOKUP(N34,Data!$E$233:$G$280,2,FALSE) -> Construction | D34: =VLOOKUP($N34,Data!$E$233:$G$280,3,FALSE) -> Non-Prescribed | H34: 0 | I34: FALSE | J34: TRUE | K34: FALSE | M34: Dedicated Non-prescribed | N34: 19 | O34: =IF(VLOOKUP($N34,Allocators!$E$34:$BB$81,O$15+1,FALSE)="Yes",TRUE,FALSE) -> FALSE | P34: =IF(VLOOKUP($N34,Allocators!$E$34:$BB$81,P$15+1,FALSE)="Yes",TRUE,FALSE) -> FALSE | Q34: =IF(VLOOKUP($N34,Allocators!$E$34:$BB$81,Q$15+1,FALSE)="Yes",TRUE,FALSE) -> FALSE | R34: =IF(VLOOKUP($N34,Allocators!$E$34:$BB$81,R$15+1,FALSE)="Yes",TRUE,FALSE) -> FALSE | S34: =IF(VLOOKUP($N34,Allocators!$E$34:$BB$81,S$15+1,FALSE)="Yes",TRUE,FALSE) -> FALSE | T34: =IF(VLOOKUP($N34,Allocators!$E$34:$BB$81,T$15+1,FALSE)="Yes",TRUE,FALSE) -> FALSE | U34: =IF(VLOOKUP($N34,Allocators!$E$34:$BB$81,U$15+1,FALSE)="Yes",TRUE,FALSE) -> FALSE | V34: =IF(VLOOKUP($N34,Allocators!$E$34:$BB$81,V$15+1,FALSE)="Yes",TRUE,FALSE) -> FALSE | W34: =IF(VLOOKUP($N34,Allocators!$E$34:$BB$81,W$15+1,FALSE)="Yes",TRUE,FALSE) -> FALSE | X34: =IF(VLOOKUP($N34,Allocators!$E$34:$BB$81,X$15+1,FALSE)="Yes",TRUE,FALSE) -> FALSE | Y34: =IF(VLOOKUP($N34,Allocators!$E$34:$BB$81,Y$15+1,FALSE)="Yes",TRUE,FALSE) -> FALSE | Z34: =IF(VLOOKUP($N34,Allocators!$E$34:$BB$81,Z$15+1,FALSE)="Yes",TRUE,FALSE) -> FALSE | AA34: =IF(VLOOKUP($N34,Allocators!$E$34:$BB$81,AA$15+1,FALSE)="Yes",TRUE,FALSE) -> FALSE | AB34: =IF(VLOOKUP($N34,Allocators!$E$34:$BB$81,AB$15+1,FALSE)="Yes",TRUE,FALSE) -> FALSE | AC34: =IF(VLOOKUP($N34,Allocators!$E$34:$BB$81,AC$15+1,FALSE)="Yes",TRUE,FALSE) -> FALSE | AD34: =IF(VLOOKUP($N34,Allocators!$E$34:$BB$81,AD$15+1,FALSE)="Yes",TRUE,FALSE) -> FALSE | AE34: =IF(VLOOKUP($N34,Allocators!$E$34:$BB$81,AE$15+1,FALSE)="Yes",TRUE,FALSE) -> FALSE | AF34: =IF(VLOOKUP($N34,Allocators!$E$34:$BB$81,AF$15+1,FALSE)="Yes",TRUE,FALSE) -> FALSE | AG34: =IF(VLOOKUP($N34,Allocators!$E$34:$BB$81,AG$15+1,FALSE)="Yes",TRUE,FALSE) -> FALSE | AH34: =IF(VLOOKUP($N34,Allocators!$E$34:$BB$81,AH$15+1,FALSE)="Yes",TRUE,FALSE) -> FALSE | AI34: =IF(VLOOKUP($N34,Allocators!$E$34:$BB$81,AI$15+1,FALSE)="Yes",TRUE,FALSE) -> FALSE | AJ34: =IF(VLOOKUP($N34,Allocators!$E$34:$BB$81,AJ$15+1,FALSE)="Yes",TRUE,FALSE) -> FALSE | AK34: =IF(VLOOKUP($N34,Allocators!$E$34:$BB$81,AK$15+1,FALSE)="Yes",TRUE,FALSE) -> FALSE | AL34: =IF(VLOOKUP($N34,Allocators!$E$34:$BB$81,AL$15+1,FALSE)="Yes",TRUE,FALSE) -> FALSE | AM34: =IF(VLOOKUP($N34,Allocators!$E$34:$BB$81,AM$15+1,FALSE)="Yes",TRUE,FALSE) -> FALSE | AN34: =IF(VLOOKUP($N34,Allocators!$E$34:$BB$81,AN$15+1,FALSE)="Yes",TRUE,FALSE) -> FALSE | AO34: =IF(VLOOKUP($N34,Allocators!$E$34:$BB$81,AO$15+1,FALSE)="Yes",TRUE,FALSE) -> FALSE | AP34: =IF(VLOOKUP($N34,Allocators!$E$34:$BB$81,AP$15+1,FALSE)="Yes",TRUE,FALSE) -> FALSE | AQ34: =IF(VLOOKUP($N34,Allocators!$E$34:$BB$81,AQ$15+1,FALSE)="Yes",TRUE,FALSE) -> FALSE | AR34: =IF(VLOOKUP($N34,Allocators!$E$34:$BB$81,AR$15+1,FALSE)="Yes",TRUE,FALSE) -> FALSE | AS34: =IF(VLOOKUP($N34,Allocators!$E$34:$BB$81,AS$15+1,FALSE)="Yes",TRUE,FALSE) -> FALSE | AT34: =IF(VLOOKUP($N34,Allocators!$E$34:$BB$81,AT$15+1,FALSE)="Yes",TRUE,FALSE) -> FALSE | AU34: =IF(VLOOKUP($N34,Allocators!$E$34:$BB$81,AU$15+1,FALSE)="Yes",TRUE,FALSE) -> FALSE | AV34: =IF(VLOOKUP($N34,Allocators!$E$34:$BB$81,AV$15+1,FALSE)="Yes",TRUE,FALSE) -> FALSE | AW34: =IF(VLOOKUP($N34,Allocators!$E$34:$BB$81,AW$15+1,FALSE)="Yes",TRUE,FALSE) -> FALSE | AX34: =IF(VLOOKUP($N34,Allocators!$E$34:$BB$81,AX$15+1,FALSE)="Yes",TRUE,FALSE) -> FALSE | AY34: =IF(VLOOKUP($N34,Allocators!$E$34:$BB$81,AY$15+1,FALSE)="Yes",TRUE,FALSE) -> FALSE | AZ34: =IF(VLOOKUP($N34,Allocators!$E$34:$BB$81,AZ$15+1,FALSE)="Yes",TRUE,FALSE) -> FALSE | BA34: =IF(VLOOKUP($N34,Allocators!$E$34:$BB$81,BA$15+1,FALSE)="Yes",TRUE,FALSE) -> FALSE | BB34: =IF(VLOOKUP($N34,Allocators!$E$34:$BB$81,BB$15+1,FALSE)="Yes",TRUE,FALSE) -> FALSE | BC34: =IF(VLOOKUP($N34,Allocators!$E$34:$BB$81,BC$15+1,FALSE)="Yes",TRUE,FALSE) -> FALSE | BD34: =IF(VLOOKUP($N34,Allocators!$E$34:$BB$81,BD$15+1,FALSE)="Yes",TRUE,FALSE) -> FALSE | BE34: =IF(VLOOKUP($N34,Allocators!$E$34:$BB$81,BE$15+1,FALSE)="Yes",TRUE,FALSE) -> FALSE | BF34: =IF(VLOOKUP($N34,Allocators!$E$34:$BB$81,BF$15+1,FALSE)="Yes",TRUE,FALSE) -> FALSE | BG34: =IF(VLOOKUP($N34,Allocators!$E$34:$BB$81,BG$15+1,FALSE)="Yes",TRUE,FALSE) -> FALSE | BH34: =IF(VLOOKUP($N34,Allocators!$E$34:$BB$81,BH$15+1,FALSE)="Yes",TRUE,FALSE) -> FALSE | BI34: =IF(VLOOKUP($N34,Allocators!$E$34:$BB$81,BI$15+1,FALSE)="Yes",TRUE,FALSE) -> FALSE | BJ34: =IF(VLOOKUP($N34,Allocators!$E$34:$BB$81,BJ$15+1,FALSE)="Yes",TRUE,FALSE) -> FALSE | BK34: =IF(VLOOKUP($N34,Allocators!$E$34:$BB$81,BK$15+1,FALSE)="Yes",TRUE,FALSE) -> TRUE
C35: =VLOOKUP(N35,Data!$E$233:$G$280,2,FALSE) -> Construction | D35: =VLOOKUP($N35,Data!$E$233:$G$280,3,FALSE) -> Shared | H35: 0 | I35: FALSE | J35: FALSE | K35: TRUE | M35: Shared | N35: 20 | O35: =IF(VLOOKUP($N35,Allocators!$E$34:$BB$81,O$15+1,FALSE)="Yes",TRUE,FALSE) -> TRUE | P35: =IF(VLOOKUP($N35,Allocators!$E$34:$BB$81,P$15+1,FALSE)="Yes",TRUE,FALSE) -> TRUE | Q35: =IF(VLOOKUP($N35,Allocators!$E$34:$BB$81,Q$15+1,FALSE)="Yes",TRUE,FALSE) -> TRUE | R35: =IF(VLOOKUP($N35,Allocators!$E$34:$BB$81,R$15+1,FALSE)="Yes",TRUE,FALSE) -> TRUE | S35: =IF(VLOOKUP($N35,Allocators!$E$34:$BB$81,S$15+1,FALSE)="Yes",TRUE,FALSE) -> TRUE | T35: =IF(VLOOKUP($N35,Allocators!$E$34:$BB$81,T$15+1,FALSE)="Yes",TRUE,FALSE) -> TRUE | U35: =IF(VLOOKUP($N35,Allocators!$E$34:$BB$81,U$15+1,FALSE)="Yes",TRUE,FALSE) -> TRUE | V35: =IF(VLOOKUP($N35,Allocators!$E$34:$BB$81,V$15+1,FALSE)="Yes",TRUE,FALSE) -> TRUE | W35: =IF(VLOOKUP($N35,Allocators!$E$34:$BB$81,W$15+1,FALSE)="Yes",TRUE,FALSE) -> TRUE | X35: =IF(VLOOKUP($N35,Allocators!$E$34:$BB$81,X$15+1,FALSE)="Yes",TRUE,FALSE) -> TRUE | Y35: =IF(VLOOKUP($N35,Allocators!$E$34:$BB$81,Y$15+1,FALSE)="Yes",TRUE,FALSE) -> TRUE | Z35: =IF(VLOOKUP($N35,Allocators!$E$34:$BB$81,Z$15+1,FALSE)="Yes",TRUE,FALSE) -> TRUE | AA35: =IF(VLOOKUP($N35,Allocators!$E$34:$BB$81,AA$15+1,FALSE)="Yes",TRUE,FALSE) -> TRUE | AB35: =IF(VLOOKUP($N35,Allocators!$E$34:$BB$81,AB$15+1,FALSE)="Yes",TRUE,FALSE) -> TRUE | AC35: =IF(VLOOKUP($N35,Allocators!$E$34:$BB$81,AC$15+1,FALSE)="Yes",TRUE,FALSE) -> TRUE | AD35: =IF(VLOOKUP($N35,Allocators!$E$34:$BB$81,AD$15+1,FALSE)="Yes",TRUE,FALSE) -> TRUE | AE35: =IF(VLOOKUP($N35,Allocators!$E$34:$BB$81,AE$15+1,FALSE)="Yes",TRUE,FALSE) -> TRUE | AF35: =IF(VLOOKUP($N35,Allocators!$E$34:$BB$81,AF$15+1,FALSE)="Yes",TRUE,FALSE) -> TRUE | AG35: =IF(VLOOKUP($N35,Allocators!$E$34:$BB$81,AG$15+1,FALSE)="Yes",TRUE,FALSE) -> TRUE | AH35: =IF(VLOOKUP($N35,Allocators!$E$34:$BB$81,AH$15+1,FALSE)="Yes",TRUE,FALSE) -> TRUE | AI35: =IF(VLOOKUP($N35,Allocators!$E$34:$BB$81,AI$15+1,FALSE)="Yes",TRUE,FALSE) -> TRUE | AJ35: =IF(VLOOKUP($N35,Allocators!$E$34:$BB$81,AJ$15+1,FALSE)="Yes",TRUE,FALSE) -> TRUE | AK35: =IF(VLOOKUP($N35,Allocators!$E$34:$BB$81,AK$15+1,FALSE)="Yes",TRUE,FALSE) -> TRUE | AL35: =IF(VLOOKUP($N35,Allocators!$E$34:$BB$81,AL$15+1,FALSE)="Yes",TRUE,FALSE) -> TRUE | AM35: =IF(VLOOKUP($N35,Allocators!$E$34:$BB$81,AM$15+1,FALSE)="Yes",TRUE,FALSE) -> TRUE | AN35: =IF(VLOOKUP($N35,Allocators!$E$34:$BB$81,AN$15+1,FALSE)="Yes",TRUE,FALSE) -> TRUE | AO35: =IF(VLOOKUP($N35,Allocators!$E$34:$BB$81,AO$15+1,FALSE)="Yes",TRUE,FALSE) -> TRUE | AP35: =IF(VLOOKUP($N35,Allocators!$E$34:$BB$81,AP$15+1,FALSE)="Yes",TRUE,FALSE) -> TRUE | AQ35: =IF(VLOOKUP($N35,Allocators!$E$34:$BB$81,AQ$15+1,FALSE)="Yes",TRUE,FALSE) -> TRUE | AR35: =IF(VLOOKUP($N35,Allocators!$E$34:$BB$81,AR$15+1,FALSE)="Yes",TRUE,FALSE) -> TRUE | AS35: =IF(VLOOKUP($N35,Allocators!$E$34:$BB$81,AS$15+1,FALSE)="Yes",TRUE,FALSE) -> TRUE | AT35: =IF(VLOOKUP($N35,Allocators!$E$34:$BB$81,AT$15+1,FALSE)="Yes",TRUE,FALSE) -> TRUE | AU35: =IF(VLOOKUP($N35,Allocators!$E$34:$BB$81,AU$15+1,FALSE)="Yes",TRUE,FALSE) -> TRUE | AV35: =IF(VLOOKUP($N35,Allocators!$E$34:$BB$81,AV$15+1,FALSE)="Yes",TRUE,FALSE) -> TRUE | AW35: =IF(VLOOKUP($N35,Allocators!$E$34:$BB$81,AW$15+1,FALSE)="Yes",TRUE,FALSE) -> TRUE | AX35: =IF(VLOOKUP($N35,Allocators!$E$34:$BB$81,AX$15+1,FALSE)="Yes",TRUE,FALSE) -> TRUE | AY35: =IF(VLOOKUP($N35,Allocators!$E$34:$BB$81,AY$15+1,FALSE)="Yes",TRUE,FALSE) -> TRUE | AZ35: =IF(VLOOKUP($N35,Allocators!$E$34:$BB$81,AZ$15+1,FALSE)="Yes",TRUE,FALSE) -> TRUE | BA35: =IF(VLOOKUP($N35,Allocators!$E$34:$BB$81,BA$15+1,FALSE)="Yes",TRUE,FALSE) -> TRUE | BB35: =IF(VLOOKUP($N35,Allocators!$E$34:$BB$81,BB$15+1,FALSE)="Yes",TRUE,FALSE) -> TRUE | BC35: =IF(VLOOKUP($N35,Allocators!$E$34:$BB$81,BC$15+1,FALSE)="Yes",TRUE,FALSE) -> TRUE | BD35: =IF(VLOOKUP($N35,Allocators!$E$34:$BB$81,BD$15+1,FALSE)="Yes",TRUE,FALSE) -> TRUE | BE35: =IF(VLOOKUP($N35,Allocators!$E$34:$BB$81,BE$15+1,FALSE)="Yes",TRUE,FALSE) -> TRUE | BF35: =IF(VLOOKUP($N35,Allocators!$E$34:$BB$81,BF$15+1,FALSE)="Yes",TRUE,FALSE) -> TRUE | BG35: =IF(VLOOKUP($N35,Allocators!$E$34:$BB$81,BG$15+1,FALSE)="Yes",TRUE,FALSE) -> TRUE | BH35: =IF(VLOOKUP($N35,Allocators!$E$34:$BB$81,BH$15+1,FALSE)="Yes",TRUE,FALSE) -> TRUE | BI35: =IF(VLOOKUP($N35,Allocators!$E$34:$BB$81,BI$15+1,FALSE)="Yes",TRUE,FALSE) -> TRUE | BJ35: =IF(VLOOKUP($N35,Allocators!$E$34:$BB$81,BJ$15+1,FALSE)="Yes",TRUE,FALSE) -> FALSE | BK35: =IF(VLOOKUP($N35,Allocators!$E$34:$BB$81,BK$15+1,FALSE)="Yes",TRUE,FALSE) -> TRUE
C36: =VLOOKUP(N36,Data!$E$233:$G$280,2,FALSE) -> Professional Services | D36: =VLOOKUP($N36,Data!$E$233:$G$280,3,FALSE) -> Prescribed (excluding Maintenance Dredging Projects) | H36: 0 | I36: TRUE | J36: FALSE | K36: FALSE | M36: Dedicated Prescribed | N36: 21 | O36: =IF(VLOOKUP($N36,Allocators!$E$34:$BB$81,O$15+1,FALSE)="Yes",TRUE,FALSE) -> TRUE | P36: =IF(VLOOKUP($N36,Allocators!$E$34:$BB$81,P$15+1,FALSE)="Yes",TRUE,FALSE) -> TRUE | Q36: =IF(VLOOKUP($N36,Allocators!$E$34:$BB$81,Q$15+1,FALSE)="Yes",TRUE,FALSE) -> TRUE | R36: =IF(VLOOKUP($N36,Allocators!$E$34:$BB$81,R$15+1,FALSE)="Yes",TRUE,FALSE) -> TRUE | S36: =IF(VLOOKUP($N36,Allocators!$E$34:$BB$81,S$15+1,FALSE)="Yes",TRUE,FALSE) -> TRUE | T36: =IF(VLOOKUP($N36,Allocators!$E$34:$BB$81,T$15+1,FALSE)="Yes",TRUE,FALSE) -> TRUE | U36: =IF(VLOOKUP($N36,Allocators!$E$34:$BB$81,U$15+1,FALSE)="Yes",TRUE,FALSE) -> TRUE | V36: =IF(VLOOKUP($N36,Allocators!$E$34:$BB$81,V$15+1,FALSE)="Yes",TRUE,FALSE) -> TRUE | W36: =IF(VLOOKUP($N36,Allocators!$E$34:$BB$81,W$15+1,FALSE)="Yes",TRUE,FALSE) -> TRUE | X36: =IF(VLOOKUP($N36,Allocators!$E$34:$BB$81,X$15+1,FALSE)="Yes",TRUE,FALSE) -> TRUE | Y36: =IF(VLOOKUP($N36,Allocators!$E$34:$BB$81,Y$15+1,FALSE)="Yes",TRUE,FALSE) -> TRUE | Z36: =IF(VLOOKUP($N36,Allocators!$E$34:$BB$81,Z$15+1,FALSE)="Yes",TRUE,FALSE) -> TRUE | AA36: =IF(VLOOKUP($N36,Allocators!$E$34:$BB$81,AA$15+1,FALSE)="Yes",TRUE,FALSE) -> TRUE | AB36: =IF(VLOOKUP($N36,Allocators!$E$34:$BB$81,AB$15+1,FALSE)="Yes",TRUE,FALSE) -> TRUE | AC36: =IF(VLOOKUP($N36,Allocators!$E$34:$BB$81,AC$15+1,FALSE)="Yes",TRUE,FALSE) -> TRUE | AD36: =IF(VLOOKUP($N36,Allocators!$E$34:$BB$81,AD$15+1,FALSE)="Yes",TRUE,FALSE) -> TRUE | AE36: =IF(VLOOKUP($N36,Allocators!$E$34:$BB$81,AE$15+1,FALSE)="Yes",TRUE,FALSE) -> TRUE | AF36: =IF(VLOOKUP($N36,Allocators!$E$34:$BB$81,AF$15+1,FALSE)="Yes",TRUE,FALSE) -> TRUE | AG36: =IF(VLOOKUP($N36,Allocators!$E$34:$BB$81,AG$15+1,FALSE)="Yes",TRUE,FALSE) -> TRUE | AH36: =IF(VLOOKUP($N36,Allocators!$E$34:$BB$81,AH$15+1,FALSE)="Yes",TRUE,FALSE) -> TRUE | AI36: =IF(VLOOKUP($N36,Allocators!$E$34:$BB$81,AI$15+1,FALSE)="Yes",TRUE,FALSE) -> TRUE | AJ36: =IF(VLOOKUP($N36,Allocators!$E$34:$BB$81,AJ$15+1,FALSE)="Yes",TRUE,FALSE) -> TRUE | AK36: =IF(VLOOKUP($N36,Allocators!$E$34:$BB$81,AK$15+1,FALSE)="Yes",TRUE,FALSE) -> TRUE | AL36: =IF(VLOOKUP($N36,Allocators!$E$34:$BB$81,AL$15+1,FALSE)="Yes",TRUE,FALSE) -> TRUE | AM36: =IF(VLOOKUP($N36,Allocators!$E$34:$BB$81,AM$15+1,FALSE)="Yes",TRUE,FALSE) -> TRUE | AN36: =IF(VLOOKUP($N36,Allocators!$E$34:$BB$81,AN$15+1,FALSE)="Yes",TRUE,FALSE) -> TRUE | AO36: =IF(VLOOKUP($N36,Allocators!$E$34:$BB$81,AO$15+1,FALSE)="Yes",TRUE,FALSE) -> TRUE | AP36: =IF(VLOOKUP($N36,Allocators!$E$34:$BB$81,AP$15+1,FALSE)="Yes",TRUE,FALSE) -> TRUE | AQ36: =IF(VLOOKUP($N36,Allocators!$E$34:$BB$81,AQ$15+1,FALSE)="Yes",TRUE,FALSE) -> TRUE | AR36: =IF(VLOOKUP($N36,Allocators!$E$34:$BB$81,AR$15+1,FALSE)="Yes",TRUE,FALSE) -> TRUE | AS36: =IF(VLOOKUP($N36,Allocators!$E$34:$BB$81,AS$15+1,FALSE)="Yes",TRUE,FALSE) -> TRUE | AT36: =IF(VLOOKUP($N36,Allocators!$E$34:$BB$81,AT$15+1,FALSE)="Yes",TRUE,FALSE) -> TRUE | AU36: =IF(VLOOKUP($N36,Allocators!$E$34:$BB$81,AU$15+1,FALSE)="Yes",TRUE,FALSE) -> TRUE | AV36: =IF(VLOOKUP($N36,Allocators!$E$34:$BB$81,AV$15+1,FALSE)="Yes",TRUE,FALSE) -> TRUE | AW36: =IF(VLOOKUP($N36,Allocators!$E$34:$BB$81,AW$15+1,FALSE)="Yes",TRUE,FALSE) -> TRUE | AX36: =IF(VLOOKUP($N36,Allocators!$E$34:$BB$81,AX$15+1,FALSE)="Yes",TRUE,FALSE) -> TRUE | AY36: =IF(VLOOKUP($N36,Allocators!$E$34:$BB$81,AY$15+1,FALSE)="Yes",TRUE,FALSE) -> TRUE | AZ36: =IF(VLOOKUP($N36,Allocators!$E$34:$BB$81,AZ$15+1,FALSE)="Yes",TRUE,FALSE) -> TRUE | BA36: =IF(VLOOKUP($N36,Allocators!$E$34:$BB$81,BA$15+1,FALSE)="Yes",TRUE,FALSE) -> TRUE | BB36: =IF(VLOOKUP($N36,Allocators!$E$34:$BB$81,BB$15+1,FALSE)="Yes",TRUE,FALSE) -> TRUE | BC36: =IF(VLOOKUP($N36,Allocators!$E$34:$BB$81,BC$15+1,FALSE)="Yes",TRUE,FALSE) -> TRUE | BD36: =IF(VLOOKUP($N36,Allocators!$E$34:$BB$81,BD$15+1,FALSE)="Yes",TRUE,FALSE) -> TRUE | BE36: =IF(VLOOKUP($N36,Allocators!$E$34:$BB$81,BE$15+1,FALSE)="Yes",TRUE,FALSE) -> TRUE | BF36: =IF(VLOOKUP($N36,Allocators!$E$34:$BB$81,BF$15+1,FALSE)="Yes",TRUE,FALSE) -> TRUE | BG36: =IF(VLOOKUP($N36,Allocators!$E$34:$BB$81,BG$15+1,FALSE)="Yes",TRUE,FALSE) -> TRUE | BH36: =IF(VLOOKUP($N36,Allocators!$E$34:$BB$81,BH$15+1,FALSE)="Yes",TRUE,FALSE) -> TRUE | BI36: =IF(VLOOKUP($N36,Allocators!$E$34:$BB$81,BI$15+1,FALSE)="Yes",TRUE,FALSE) -> TRUE | BJ36: =IF(VLOOKUP($N36,Allocators!$E$34:$BB$81,BJ$15+1,FALSE)="Yes",TRUE,FALSE) -> FALSE | BK36: =IF(VLOOKUP($N36,Allocators!$E$34:$BB$81,BK$15+1,FALSE)="Yes",TRUE,FALSE) -> FALSE
C37: =VLOOKUP(N37,Data!$E$233:$G$280,2,FALSE) -> Professional Services | D37: =VLOOKUP($N37,Data!$E$233:$G$280,3,FALSE) -> Non-Prescribed | H37: 0 | I37: FALSE | J37: TRUE | K37: FALSE | M37: Dedicated Non-prescribed | N37: 22 | O37: =IF(VLOOKUP($N37,Allocators!$E$34:$BB$81,O$15+1,FALSE)="Yes",TRUE,FALSE) -> FALSE | P37: =IF(VLOOKUP($N37,Allocators!$E$34:$BB$81,P$15+1,FALSE)="Yes",TRUE,FALSE) -> FALSE | Q37: =IF(VLOOKUP($N37,Allocators!$E$34:$BB$81,Q$15+1,FALSE)="Yes",TRUE,FALSE) -> FALSE | R37: =IF(VLOOKUP($N37,Allocators!$E$34:$BB$81,R$15+1,FALSE)="Yes",TRUE,FALSE) -> FALSE | S37: =IF(VLOOKUP($N37,Allocators!$E$34:$BB$81,S$15+1,FALSE)="Yes",TRUE,FALSE) -> FALSE | T37: =IF(VLOOKUP($N37,Allocators!$E$34:$BB$81,T$15+1,FALSE)="Yes",TRUE,FALSE) -> FALSE | U37: =IF(VLOOKUP($N37,Allocators!$E$34:$BB$81,U$15+1,FALSE)="Yes",TRUE,FALSE) -> FALSE | V37: =IF(VLOOKUP($N37,Allocators!$E$34:$BB$81,V$15+1,FALSE)="Yes",TRUE,FALSE) -> FALSE | W37: =IF(VLOOKUP($N37,Allocators!$E$34:$BB$81,W$15+1,FALSE)="Yes",TRUE,FALSE) -> FALSE | X37: =IF(VLOOKUP($N37,Allocators!$E$34:$BB$81,X$15+1,FALSE)="Yes",TRUE,FALSE) -> FALSE | Y37: =IF(VLOOKUP($N37,Allocators!$E$34:$BB$81,Y$15+1,FALSE)="Yes",TRUE,FALSE) -> FALSE | Z37: =IF(VLOOKUP($N37,Allocators!$E$34:$BB$81,Z$15+1,FALSE)="Yes",TRUE,FALSE) -> FALSE | AA37: =IF(VLOOKUP($N37,Allocators!$E$34:$BB$81,AA$15+1,FALSE)="Yes",TRUE,FALSE) -> FALSE | AB37: =IF(VLOOKUP($N37,Allocators!$E$34:$BB$81,AB$15+1,FALSE)="Yes",TRUE,FALSE) -> FALSE | AC37: =IF(VLOOKUP($N37,Allocators!$E$34:$BB$81,AC$15+1,FALSE)="Yes",TRUE,FALSE) -> FALSE | AD37: =IF(VLOOKUP($N37,Allocators!$E$34:$BB$81,AD$15+1,FALSE)="Yes",TRUE,FALSE) -> FALSE | AE37: =IF(VLOOKUP($N37,Allocators!$E$34:$BB$81,AE$15+1,FALSE)="Yes",TRUE,FALSE) -> FALSE | AF37: =IF(VLOOKUP($N37,Allocators!$E$34:$BB$81,AF$15+1,FALSE)="Yes",TRUE,FALSE) -> FALSE | AG37: =IF(VLOOKUP($N37,Allocators!$E$34:$BB$81,AG$15+1,FALSE)="Yes",TRUE,FALSE) -> FALSE | AH37: =IF(VLOOKUP($N37,Allocators!$E$34:$BB$81,AH$15+1,FALSE)="Yes",TRUE,FALSE) -> FALSE | AI37: =IF(VLOOKUP($N37,Allocators!$E$34:$BB$81,AI$15+1,FALSE)="Yes",TRUE,FALSE) -> FALSE | AJ37: =IF(VLOOKUP($N37,Allocators!$E$34:$BB$81,AJ$15+1,FALSE)="Yes",TRUE,FALSE) -> FALSE | AK37: =IF(VLOOKUP($N37,Allocators!$E$34:$BB$81,AK$15+1,FALSE)="Yes",TRUE,FALSE) -> FALSE | AL37: =IF(VLOOKUP($N37,Allocators!$E$34:$BB$81,AL$15+1,FALSE)="Yes",TRUE,FALSE) -> FALSE | AM37: =IF(VLOOKUP($N37,Allocators!$E$34:$BB$81,AM$15+1,FALSE)="Yes",TRUE,FALSE) -> FALSE | AN37: =IF(VLOOKUP($N37,Allocators!$E$34:$BB$81,AN$15+1,FALSE)="Yes",TRUE,FALSE) -> FALSE | AO37: =IF(VLOOKUP($N37,Allocators!$E$34:$BB$81,AO$15+1,FALSE)="Yes",TRUE,FALSE) -> FALSE | AP37: =IF(VLOOKUP($N37,Allocators!$E$34:$BB$81,AP$15+1,FALSE)="Yes",TRUE,FALSE) -> FALSE | AQ37: =IF(VLOOKUP($N37,Allocators!$E$34:$BB$81,AQ$15+1,FALSE)="Yes",TRUE,FALSE) -> FALSE | AR37: =IF(VLOOKUP($N37,Allocators!$E$34:$BB$81,AR$15+1,FALSE)="Yes",TRUE,FALSE) -> FALSE | AS37: =IF(VLOOKUP($N37,Allocators!$E$34:$BB$81,AS$15+1,FALSE)="Yes",TRUE,FALSE) -> FALSE | AT37: =IF(VLOOKUP($N37,Allocators!$E$34:$BB$81,AT$15+1,FALSE)="Yes",TRUE,FALSE) -> FALSE | AU37: =IF(VLOOKUP($N37,Allocators!$E$34:$BB$81,AU$15+1,FALSE)="Yes",TRUE,FALSE) -> FALSE | AV37: =IF(VLOOKUP($N37,Allocators!$E$34:$BB$81,AV$15+1,FALSE)="Yes",TRUE,FALSE) -> FALSE | AW37: =IF(VLOOKUP($N37,Allocators!$E$34:$BB$81,AW$15+1,FALSE)="Yes",TRUE,FALSE) -> FALSE | AX37: =IF(VLOOKUP($N37,Allocators!$E$34:$BB$81,AX$15+1,FALSE)="Yes",TRUE,FALSE) -> FALSE | AY37: =IF(VLOOKUP($N37,Allocators!$E$34:$BB$81,AY$15+1,FALSE)="Yes",TRUE,FALSE) -> FALSE | AZ37: =IF(VLOOKUP($N37,Allocators!$E$34:$BB$81,AZ$15+1,FALSE)="Yes",TRUE,FALSE) -> FALSE | BA37: =IF(VLOOKUP($N37,Allocators!$E$34:$BB$81,BA$15+1,FALSE)="Yes",TRUE,FALSE) -> FALSE | BB37: =IF(VLOOKUP($N37,Allocators!$E$34:$BB$81,BB$15+1,FALSE)="Yes",TRUE,FALSE) -> FALSE | BC37: =IF(VLOOKUP($N37,Allocators!$E$34:$BB$81,BC$15+1,FALSE)="Yes",TRUE,FALSE) -> FALSE | BD37: =IF(VLOOKUP($N37,Allocators!$E$34:$BB$81,BD$15+1,FALSE)="Yes",TRUE,FALSE) -> FALSE | BE37: =IF(VLOOKUP($N37,Allocators!$E$34:$BB$81,BE$15+1,FALSE)="Yes",TRUE,FALSE) -> FALSE | BF37: =IF(VLOOKUP($N37,Allocators!$E$34:$BB$81,BF$15+1,FALSE)="Yes",TRUE,FALSE) -> FALSE | BG37: =IF(VLOOKUP($N37,Allocators!$E$34:$BB$81,BG$15+1,FALSE)="Yes",TRUE,FALSE) -> FALSE | BH37: =IF(VLOOKUP($N37,Allocators!$E$34:$BB$81,BH$15+1,FALSE)="Yes",TRUE,FALSE) -> FALSE | BI37: =IF(VLOOKUP($N37,Allocators!$E$34:$BB$81,BI$15+1,FALSE)="Yes",TRUE,FALSE) -> FALSE | BJ37: =IF(VLOOKUP($N37,Allocators!$E$34:$BB$81,BJ$15+1,FALSE)="Yes",TRUE,FALSE) -> FALSE | BK37: =IF(VLOOKUP($N37,Allocators!$E$34:$BB$81,BK$15+1,FALSE)="Yes",TRUE,FALSE) -> TRUE
C38: =VLOOKUP(N38,Data!$E$233:$G$280,2,FALSE) -> Professional Services | D38: =VLOOKUP($N38,Data!$E$233:$G$280,3,FALSE) -> Shared (excluding Land Use Planning) | H38: 0 | I38: FALSE | J38: FALSE | K38: TRUE | M38: Shared | N38: 23 | O38: =IF(VLOOKUP($N38,Allocators!$E$34:$BB$81,O$15+1,FALSE)="Yes",TRUE,FALSE) -> TRUE | P38: =IF(VLOOKUP($N38,Allocators!$E$34:$BB$81,P$15+1,FALSE)="Yes",TRUE,FALSE) -> TRUE | Q38: =IF(VLOOKUP($N38,Allocators!$E$34:$BB$81,Q$15+1,FALSE)="Yes",TRUE,FALSE) -> TRUE | R38: =IF(VLOOKUP($N38,Allocators!$E$34:$BB$81,R$15+1,FALSE)="Yes",TRUE,FALSE) -> TRUE | S38: =IF(VLOOKUP($N38,Allocators!$E$34:$BB$81,S$15+1,FALSE)="Yes",TRUE,FALSE) -> TRUE | T38: =IF(VLOOKUP($N38,Allocators!$E$34:$BB$81,T$15+1,FALSE)="Yes",TRUE,FALSE) -> TRUE | U38: =IF(VLOOKUP($N38,Allocators!$E$34:$BB$81,U$15+1,FALSE)="Yes",TRUE,FALSE) -> TRUE | V38: =IF(VLOOKUP($N38,Allocators!$E$34:$BB$81,V$15+1,FALSE)="Yes",TRUE,FALSE) -> TRUE | W38: =IF(VLOOKUP($N38,Allocators!$E$34:$BB$81,W$15+1,FALSE)="Yes",TRUE,FALSE) -> TRUE | X38: =IF(VLOOKUP($N38,Allocators!$E$34:$BB$81,X$15+1,FALSE)="Yes",TRUE,FALSE) -> TRUE | Y38: =IF(VLOOKUP($N38,Allocators!$E$34:$BB$81,Y$15+1,FALSE)="Yes",TRUE,FALSE) -> TRUE | Z38: =IF(VLOOKUP($N38,Allocators!$E$34:$BB$81,Z$15+1,FALSE)="Yes",TRUE,FALSE) -> TRUE | AA38: =IF(VLOOKUP($N38,Allocators!$E$34:$BB$81,AA$15+1,FALSE)="Yes",TRUE,FALSE) -> TRUE | AB38: =IF(VLOOKUP($N38,Allocators!$E$34:$BB$81,AB$15+1,FALSE)="Yes",TRUE,FALSE) -> TRUE | AC38: =IF(VLOOKUP($N38,Allocators!$E$34:$BB$81,AC$15+1,FALSE)="Yes",TRUE,FALSE) -> TRUE | AD38: =IF(VLOOKUP($N38,Allocators!$E$34:$BB$81,AD$15+1,FALSE)="Yes",TRUE,FALSE) -> TRUE | AE38: =IF(VLOOKUP($N38,Allocators!$E$34:$BB$81,AE$15+1,FALSE)="Yes",TRUE,FALSE) -> TRUE | AF38: =IF(VLOOKUP($N38,Allocators!$E$34:$BB$81,AF$15+1,FALSE)="Yes",TRUE,FALSE) -> TRUE | AG38: =IF(VLOOKUP($N38,Allocators!$E$34:$BB$81,AG$15+1,FALSE)="Yes",TRUE,FALSE) -> TRUE | AH38: =IF(VLOOKUP($N38,Allocators!$E$34:$BB$81,AH$15+1,FALSE)="Yes",TRUE,FALSE) -> TRUE | AI38: =IF(VLOOKUP($N38,Allocators!$E$34:$BB$81,AI$15+1,FALSE)="Yes",TRUE,FALSE) -> TRUE | AJ38: =IF(VLOOKUP($N38,Allocators!$E$34:$BB$81,AJ$15+1,FALSE)="Yes",TRUE,FALSE) -> TRUE | AK38: =IF(VLOOKUP($N38,Allocators!$E$34:$BB$81,AK$15+1,FALSE)="Yes",TRUE,FALSE) -> TRUE | AL38: =IF(VLOOKUP($N38,Allocators!$E$34:$BB$81,AL$15+1,FALSE)="Yes",TRUE,FALSE) -> TRUE | AM38: =IF(VLOOKUP($N38,Allocators!$E$34:$BB$81,AM$15+1,FALSE)="Yes",TRUE,FALSE) -> TRUE | AN38: =IF(VLOOKUP($N38,Allocators!$E$34:$BB$81,AN$15+1,FALSE)="Yes",TRUE,FALSE) -> TRUE | AO38: =IF(VLOOKUP($N38,Allocators!$E$34:$BB$81,AO$15+1,FALSE)="Yes",TRUE,FALSE) -> TRUE | AP38: =IF(VLOOKUP($N38,Allocators!$E$34:$BB$81,AP$15+1,FALSE)="Yes",TRUE,FALSE) -> TRUE | AQ38: =IF(VLOOKUP($N38,Allocators!$E$34:$BB$81,AQ$15+1,FALSE)="Yes",TRUE,FALSE) -> TRUE | AR38: =IF(VLOOKUP($N38,Allocators!$E$34:$BB$81,AR$15+1,FALSE)="Yes",TRUE,FALSE) -> TRUE | AS38: =IF(VLOOKUP($N38,Allocators!$E$34:$BB$81,AS$15+1,FALSE)="Yes",TRUE,FALSE) -> TRUE | AT38: =IF(VLOOKUP($N38,Allocators!$E$34:$BB$81,AT$15+1,FALSE)="Yes",TRUE,FALSE) -> TRUE | AU38: =IF(VLOOKUP($N38,Allocators!$E$34:$BB$81,AU$15+1,FALSE)="Yes",TRUE,FALSE) -> TRUE | AV38: =IF(VLOOKUP($N38,Allocators!$E$34:$BB$81,AV$15+1,FALSE)="Yes",TRUE,FALSE) -> TRUE | AW38: =IF(VLOOKUP($N38,Allocators!$E$34:$BB$81,AW$15+1,FALSE)="Yes",TRUE,FALSE) -> TRUE | AX38: =IF(VLOOKUP($N38,Allocators!$E$34:$BB$81,AX$15+1,FALSE)="Yes",TRUE,FALSE) -> TRUE | AY38: =IF(VLOOKUP($N38,Allocators!$E$34:$BB$81,AY$15+1,FALSE)="Yes",TRUE,FALSE) -> TRUE | AZ38: =IF(VLOOKUP($N38,Allocators!$E$34:$BB$81,AZ$15+1,FALSE)="Yes",TRUE,FALSE) -> TRUE | BA38: =IF(VLOOKUP($N38,Allocators!$E$34:$BB$81,BA$15+1,FALSE)="Yes",TRUE,FALSE) -> TRUE | BB38: =IF(VLOOKUP($N38,Allocators!$E$34:$BB$81,BB$15+1,FALSE)="Yes",TRUE,FALSE) -> TRUE | BC38: =IF(VLOOKUP($N38,Allocators!$E$34:$BB$81,BC$15+1,FALSE)="Yes",TRUE,FALSE) -> TRUE | BD38: =IF(VLOOKUP($N38,Allocators!$E$34:$BB$81,BD$15+1,FALSE)="Yes",TRUE,FALSE) -> TRUE | BE38: =IF(VLOOKUP($N38,Allocators!$E$34:$BB$81,BE$15+1,FALSE)="Yes",TRUE,FALSE) -> TRUE | BF38: =IF(VLOOKUP($N38,Allocators!$E$34:$BB$81,BF$15+1,FALSE)="Yes",TRUE,FALSE) -> TRUE | BG38: =IF(VLOOKUP($N38,Allocators!$E$34:$BB$81,BG$15+1,FALSE)="Yes",TRUE,FALSE) -> TRUE | BH38: =IF(VLOOKUP($N38,Allocators!$E$34:$BB$81,BH$15+1,FALSE)="Yes",TRUE,FALSE) -> TRUE | BI38: =IF(VLOOKUP($N38,Allocators!$E$34:$BB$81,BI$15+1,FALSE)="Yes",TRUE,FALSE) -> TRUE | BJ38: =IF(VLOOKUP($N38,Allocators!$E$34:$BB$81,BJ$15+1,FALSE)="Yes",TRUE,FALSE) -> FALSE | BK38: =IF(VLOOKUP($N38,Allocators!$E$34:$BB$81,BK$15+1,FALSE)="Yes",TRUE,FALSE) -> TRUE
C39: =VLOOKUP(N39,Data!$E$233:$G$280,2,FALSE) -> Professional Services | D39: =VLOOKUP($N39,Data!$E$233:$G$280,3,FALSE) -> Maintenance Dredging Projects | H39: 0 | I39: TRUE | J39: FALSE | K39: FALSE | M39: Dedicated Prescribed | N39: 24 | O39: =IF(VLOOKUP($N39,Allocators!$E$34:$BB$81,O$15+1,FALSE)="Yes",TRUE,FALSE) -> FALSE | P39: =IF(VLOOKUP($N39,Allocators!$E$34:$BB$81,P$15+1,FALSE)="Yes",TRUE,FALSE) -> FALSE | Q39: =IF(VLOOKUP($N39,Allocators!$E$34:$BB$81,Q$15+1,FALSE)="Yes",TRUE,FALSE) -> FALSE | R39: =IF(VLOOKUP($N39,Allocators!$E$34:$BB$81,R$15+1,FALSE)="Yes",TRUE,FALSE) -> FALSE | S39: =IF(VLOOKUP($N39,Allocators!$E$34:$BB$81,S$15+1,FALSE)="Yes",TRUE,FALSE) -> FALSE | T39: =IF(VLOOKUP($N39,Allocators!$E$34:$BB$81,T$15+1,FALSE)="Yes",TRUE,FALSE) -> FALSE | U39: =IF(VLOOKUP($N39,Allocators!$E$34:$BB$81,U$15+1,FALSE)="Yes",TRUE,FALSE) -> FALSE | V39: =IF(VLOOKUP($N39,Allocators!$E$34:$BB$81,V$15+1,FALSE)="Yes",TRUE,FALSE) -> FALSE | W39: =IF(VLOOKUP($N39,Allocators!$E$34:$BB$81,W$15+1,FALSE)="Yes",TRUE,FALSE) -> FALSE | X39: =IF(VLOOKUP($N39,Allocators!$E$34:$BB$81,X$15+1,FALSE)="Yes",TRUE,FALSE) -> FALSE | Y39: =IF(VLOOKUP($N39,Allocators!$E$34:$BB$81,Y$15+1,FALSE)="Yes",TRUE,FALSE) -> FALSE | Z39: =IF(VLOOKUP($N39,Allocators!$E$34:$BB$81,Z$15+1,FALSE)="Yes",TRUE,FALSE) -> FALSE | AA39: =IF(VLOOKUP($N39,Allocators!$E$34:$BB$81,AA$15+1,FALSE)="Yes",TRUE,FALSE) -> FALSE | AB39: =IF(VLOOKUP($N39,Allocators!$E$34:$BB$81,AB$15+1,FALSE)="Yes",TRUE,FALSE) -> FALSE | AC39: =IF(VLOOKUP($N39,Allocators!$E$34:$BB$81,AC$15+1,FALSE)="Yes",TRUE,FALSE) -> FALSE | AD39: =IF(VLOOKUP($N39,Allocators!$E$34:$BB$81,AD$15+1,FALSE)="Yes",TRUE,FALSE) -> FALSE | AE39: =IF(VLOOKUP($N39,Allocators!$E$34:$BB$81,AE$15+1,FALSE)="Yes",TRUE,FALSE) -> FALSE | AF39: =IF(VLOOKUP($N39,Allocators!$E$34:$BB$81,AF$15+1,FALSE)="Yes",TRUE,FALSE) -> FALSE | AG39: =IF(VLOOKUP($N39,Allocators!$E$34:$BB$81,AG$15+1,FALSE)="Yes",TRUE,FALSE) -> TRUE | AH39: =IF(VLOOKUP($N39,Allocators!$E$34:$BB$81,AH$15+1,FALSE)="Yes",TRUE,FALSE) -> TRUE | AI39: =IF(VLOOKUP($N39,Allocators!$E$34:$BB$81,AI$15+1,FALSE)="Yes",TRUE,FALSE) -> TRUE | AJ39: =IF(VLOOKUP($N39,Allocators!$E$34:$BB$81,AJ$15+1,FALSE)="Yes",TRUE,FALSE) -> TRUE | AK39: =IF(VLOOKUP($N39,Allocators!$E$34:$BB$81,AK$15+1,FALSE)="Yes",TRUE,FALSE) -> TRUE | AL39: =IF(VLOOKUP($N39,Allocators!$E$34:$BB$81,AL$15+1,FALSE)="Yes",TRUE,FALSE) -> TRUE | AM39: =IF(VLOOKUP($N39,Allocators!$E$34:$BB$81,AM$15+1,FALSE)="Yes",TRUE,FALSE) -> TRUE | AN39: =IF(VLOOKUP($N39,Allocators!$E$34:$BB$81,AN$15+1,FALSE)="Yes",TRUE,FALSE) -> TRUE | AO39: =IF(VLOOKUP($N39,Allocators!$E$34:$BB$81,AO$15+1,FALSE)="Yes",TRUE,FALSE) -> TRUE | AP39: =IF(VLOOKUP($N39,Allocators!$E$34:$BB$81,AP$15+1,FALSE)="Yes",TRUE,FALSE) -> TRUE | AQ39: =IF(VLOOKUP($N39,Allocators!$E$34:$BB$81,AQ$15+1,FALSE)="Yes",TRUE,FALSE) -> TRUE | AR39: =IF(VLOOKUP($N39,Allocators!$E$34:$BB$81,AR$15+1,FALSE)="Yes",TRUE,FALSE) -> TRUE | AS39: =IF(VLOOKUP($N39,Allocators!$E$34:$BB$81,AS$15+1,FALSE)="Yes",TRUE,FALSE) -> TRUE | AT39: =IF(VLOOKUP($N39,Allocators!$E$34:$BB$81,AT$15+1,FALSE)="Yes",TRUE,FALSE) -> TRUE | AU39: =IF(VLOOKUP($N39,Allocators!$E$34:$BB$81,AU$15+1,FALSE)="Yes",TRUE,FALSE) -> TRUE | AV39: =IF(VLOOKUP($N39,Allocators!$E$34:$BB$81,AV$15+1,FALSE)="Yes",TRUE,FALSE) -> TRUE | AW39: =IF(VLOOKUP($N39,Allocators!$E$34:$BB$81,AW$15+1,FALSE)="Yes",TRUE,FALSE) -> TRUE | AX39: =IF(VLOOKUP($N39,Allocators!$E$34:$BB$81,AX$15+1,FALSE)="Yes",TRUE,FALSE) -> TRUE | AY39: =IF(VLOOKUP($N39,Allocators!$E$34:$BB$81,AY$15+1,FALSE)="Yes",TRUE,FALSE) -> TRUE | AZ39: =IF(VLOOKUP($N39,Allocators!$E$34:$BB$81,AZ$15+1,FALSE)="Yes",TRUE,FALSE) -> TRUE | BA39: =IF(VLOOKUP($N39,Allocators!$E$34:$BB$81,BA$15+1,FALSE)="Yes",TRUE,FALSE) -> TRUE | BB39: =IF(VLOOKUP($N39,Allocators!$E$34:$BB$81,BB$15+1,FALSE)="Yes",TRUE,FALSE) -> TRUE | BC39: =IF(VLOOKUP($N39,Allocators!$E$34:$BB$81,BC$15+1,FALSE)="Yes",TRUE,FALSE) -> FALSE | BD39: =IF(VLOOKUP($N39,Allocators!$E$34:$BB$81,BD$15+1,FALSE)="Yes",TRUE,FALSE) -> FALSE | BE39: =IF(VLOOKUP($N39,Allocators!$E$34:$BB$81,BE$15+1,FALSE)="Yes",TRUE,FALSE) -> FALSE | BF39: =IF(VLOOKUP($N39,Allocators!$E$34:$BB$81,BF$15+1,FALSE)="Yes",TRUE,FALSE) -> FALSE | BG39: =IF(VLOOKUP($N39,Allocators!$E$34:$BB$81,BG$15+1,FALSE)="Yes",TRUE,FALSE) -> FALSE | BH39: =IF(VLOOKUP($N39,Allocators!$E$34:$BB$81,BH$15+1,FALSE)="Yes",TRUE,FALSE) -> FALSE | BI39: =IF(VLOOKUP($N39,Allocators!$E$34:$BB$81,BI$15+1,FALSE)="Yes",TRUE,FALSE) -> FALSE | BJ39: =IF(VLOOKUP($N39,Allocators!$E$34:$BB$81,BJ$15+1,FALSE)="Yes",TRUE,FALSE) -> FALSE | BK39: =IF(VLOOKUP($N39,Allocators!$E$34:$BB$81,BK$15+1,FALSE)="Yes",TRUE,FALSE) -> FALSE
C40: =VLOOKUP(N40,Data!$E$233:$G$280,2,FALSE) -> Professional Services | D40: =VLOOKUP($N40,Data!$E$233:$G$280,3,FALSE) -> Land Use Planning | H40: 0 | I40: FALSE | J40: FALSE | K40: TRUE | M40: Shared | N40: 25 | O40: =IF(VLOOKUP($N40,Allocators!$E$34:$BB$81,O$15+1,FALSE)="Yes",TRUE,FALSE) -> TRUE | P40: =IF(VLOOKUP($N40,Allocators!$E$34:$BB$81,P$15+1,FALSE)="Yes",TRUE,FALSE) -> TRUE | Q40: =IF(VLOOKUP($N40,Allocators!$E$34:$BB$81,Q$15+1,FALSE)="Yes",TRUE,FALSE) -> TRUE | R40: =IF(VLOOKUP($N40,Allocators!$E$34:$BB$81,R$15+1,FALSE)="Yes",TRUE,FALSE) -> TRUE | S40: =IF(VLOOKUP($N40,Allocators!$E$34:$BB$81,S$15+1,FALSE)="Yes",TRUE,FALSE) -> TRUE | T40: =IF(VLOOKUP($N40,Allocators!$E$34:$BB$81,T$15+1,FALSE)="Yes",TRUE,FALSE) -> TRUE | U40: =IF(VLOOKUP($N40,Allocators!$E$34:$BB$81,U$15+1,FALSE)="Yes",TRUE,FALSE) -> TRUE | V40: =IF(VLOOKUP($N40,Allocators!$E$34:$BB$81,V$15+1,FALSE)="Yes",TRUE,FALSE) -> TRUE | W40: =IF(VLOOKUP($N40,Allocators!$E$34:$BB$81,W$15+1,FALSE)="Yes",TRUE,FALSE) -> TRUE | X40: =IF(VLOOKUP($N40,Allocators!$E$34:$BB$81,X$15+1,FALSE)="Yes",TRUE,FALSE) -> TRUE | Y40: =IF(VLOOKUP($N40,Allocators!$E$34:$BB$81,Y$15+1,FALSE)="Yes",TRUE,FALSE) -> TRUE | Z40: =IF(VLOOKUP($N40,Allocators!$E$34:$BB$81,Z$15+1,FALSE)="Yes",TRUE,FALSE) -> TRUE | AA40: =IF(VLOOKUP($N40,Allocators!$E$34:$BB$81,AA$15+1,FALSE)="Yes",TRUE,FALSE) -> TRUE | AB40: =IF(VLOOKUP($N40,Allocators!$E$34:$BB$81,AB$15+1,FALSE)="Yes",TRUE,FALSE) -> TRUE | AC40: =IF(VLOOKUP($N40,Allocators!$E$34:$BB$81,AC$15+1,FALSE)="Yes",TRUE,FALSE) -> TRUE | AD40: =IF(VLOOKUP($N40,Allocators!$E$34:$BB$81,AD$15+1,FALSE)="Yes",TRUE,FALSE) -> TRUE | AE40: =IF(VLOOKUP($N40,Allocators!$E$34:$BB$81,AE$15+1,FALSE)="Yes",TRUE,FALSE) -> TRUE | AF40: =IF(VLOOKUP($N40,Allocators!$E$34:$BB$81,AF$15+1,FALSE)="Yes",TRUE,FALSE) -> TRUE | AG40: =IF(VLOOKUP($N40,Allocators!$E$34:$BB$81,AG$15+1,FALSE)="Yes",TRUE,FALSE) -> FALSE | AH40: =IF(VLOOKUP($N40,Allocators!$E$34:$BB$81,AH$15+1,FALSE)="Yes",TRUE,FALSE) -> FALSE | AI40: =IF(VLOOKUP($N40,Allocators!$E$34:$BB$81,AI$15+1,FALSE)="Yes",TRUE,FALSE) -> FALSE | AJ40: =IF(VLOOKUP($N40,Allocators!$E$34:$BB$81,AJ$15+1,FALSE)="Yes",TRUE,FALSE) -> FALSE | AK40: =IF(VLOOKUP($N40,Allocators!$E$34:$BB$81,AK$15+1,FALSE)="Yes",TRUE,FALSE) -> FALSE | AL40: =IF(VLOOKUP($N40,Allocators!$E$34:$BB$81,AL$15+1,FALSE)="Yes",TRUE,FALSE) -> FALSE | AM40: =IF(VLOOKUP($N40,Allocators!$E$34:$BB$81,AM$15+1,FALSE)="Yes",TRUE,FALSE) -> FALSE | AN40: =IF(VLOOKUP($N40,Allocators!$E$34:$BB$81,AN$15+1,FALSE)="Yes",TRUE,FALSE) -> FALSE | AO40: =IF(VLOOKUP($N40,Allocators!$E$34:$BB$81,AO$15+1,FALSE)="Yes",TRUE,FALSE) -> FALSE | AP40: =IF(VLOOKUP($N40,Allocators!$E$34:$BB$81,AP$15+1,FALSE)="Yes",TRUE,FALSE) -> FALSE | AQ40: =IF(VLOOKUP($N40,Allocators!$E$34:$BB$81,AQ$15+1,FALSE)="Yes",TRUE,FALSE) -> FALSE | AR40: =IF(VLOOKUP($N40,Allocators!$E$34:$BB$81,AR$15+1,FALSE)="Yes",TRUE,FALSE) -> FALSE | AS40: =IF(VLOOKUP($N40,Allocators!$E$34:$BB$81,AS$15+1,FALSE)="Yes",TRUE,FALSE) -> FALSE | AT40: =IF(VLOOKUP($N40,Allocators!$E$34:$BB$81,AT$15+1,FALSE)="Yes",TRUE,FALSE) -> FALSE | AU40: =IF(VLOOKUP($N40,Allocators!$E$34:$BB$81,AU$15+1,FALSE)="Yes",TRUE,FALSE) -> FALSE | AV40: =IF(VLOOKUP($N40,Allocators!$E$34:$BB$81,AV$15+1,FALSE)="Yes",TRUE,FALSE) -> FALSE | AW40: =IF(VLOOKUP($N40,Allocators!$E$34:$BB$81,AW$15+1,FALSE)="Yes",TRUE,FALSE) -> FALSE | AX40: =IF(VLOOKUP($N40,Allocators!$E$34:$BB$81,AX$15+1,FALSE)="Yes",TRUE,FALSE) -> FALSE | AY40: =IF(VLOOKUP($N40,Allocators!$E$34:$BB$81,AY$15+1,FALSE)="Yes",TRUE,FALSE) -> FALSE | AZ40: =IF(VLOOKUP($N40,Allocators!$E$34:$BB$81,AZ$15+1,FALSE)="Yes",TRUE,FALSE) -> FALSE | BA40: =IF(VLOOKUP($N40,Allocators!$E$34:$BB$81,BA$15+1,FALSE)="Yes",TRUE,FALSE) -> FALSE | BB40: =IF(VLOOKUP($N40,Allocators!$E$34:$BB$81,BB$15+1,FALSE)="Yes",TRUE,FALSE) -> FALSE | BC40: =IF(VLOOKUP($N40,Allocators!$E$34:$BB$81,BC$15+1,FALSE)="Yes",TRUE,FALSE) -> TRUE | BD40: =IF(VLOOKUP($N40,Allocators!$E$34:$BB$81,BD$15+1,FALSE)="Yes",TRUE,FALSE) -> TRUE | BE40: =IF(VLOOKUP($N40,Allocators!$E$34:$BB$81,BE$15+1,FALSE)="Yes",TRUE,FALSE) -> TRUE | BF40: =IF(VLOOKUP($N40,Allocators!$E$34:$BB$81,BF$15+1,FALSE)="Yes",TRUE,FALSE) -> FALSE | BG40: =IF(VLOOKUP($N40,Allocators!$E$34:$BB$81,BG$15+1,FALSE)="Yes",TRUE,FALSE) -> FALSE | BH40: =IF(VLOOKUP($N40,Allocators!$E$34:$BB$81,BH$15+1,FALSE)="Yes",TRUE,FALSE) -> FALSE | BI40: =IF(VLOOKUP($N40,Allocators!$E$34:$BB$81,BI$15+1,FALSE)="Yes",TRUE,FALSE) -> FALSE | BJ40: =IF(VLOOKUP($N40,Allocators!$E$34:$BB$81,BJ$15+1,FALSE)="Yes",TRUE,FALSE) -> FALSE | BK40: =IF(VLOOKUP($N40,Allocators!$E$34:$BB$81,BK$15+1,FALSE)="Yes",TRUE,FALSE) -> TRUE
C41: =VLOOKUP(N41,Data!$E$233:$G$280,2,FALSE) -> Security | D41: =VLOOKUP($N41,Data!$E$233:$G$280,3,FALSE) -> Prescribed | H41: 0 | I41: TRUE | J41: FALSE | K41: FALSE | M41: Dedicated Prescribed | N41: 26 | O41: =IF(VLOOKUP($N41,Allocators!$E$34:$BB$81,O$15+1,FALSE)="Yes",TRUE,FALSE) -> TRUE | P41: =IF(VLOOKUP($N41,Allocators!$E$34:$BB$81,P$15+1,FALSE)="Yes",TRUE,FALSE) -> TRUE | Q41: =IF(VLOOKUP($N41,Allocators!$E$34:$BB$81,Q$15+1,FALSE)="Yes",TRUE,FALSE) -> TRUE | R41: =IF(VLOOKUP($N41,Allocators!$E$34:$BB$81,R$15+1,FALSE)="Yes",TRUE,FALSE) -> TRUE | S41: =IF(VLOOKUP($N41,Allocators!$E$34:$BB$81,S$15+1,FALSE)="Yes",TRUE,FALSE) -> TRUE | T41: =IF(VLOOKUP($N41,Allocators!$E$34:$BB$81,T$15+1,FALSE)="Yes",TRUE,FALSE) -> TRUE | U41: =IF(VLOOKUP($N41,Allocators!$E$34:$BB$81,U$15+1,FALSE)="Yes",TRUE,FALSE) -> TRUE | V41: =IF(VLOOKUP($N41,Allocators!$E$34:$BB$81,V$15+1,FALSE)="Yes",TRUE,FALSE) -> TRUE | W41: =IF(VLOOKUP($N41,Allocators!$E$34:$BB$81,W$15+1,FALSE)="Yes",TRUE,FALSE) -> TRUE | X41: =IF(VLOOKUP($N41,Allocators!$E$34:$BB$81,X$15+1,FALSE)="Yes",TRUE,FALSE) -> TRUE | Y41: =IF(VLOOKUP($N41,Allocators!$E$34:$BB$81,Y$15+1,FALSE)="Yes",TRUE,FALSE) -> TRUE | Z41: =IF(VLOOKUP($N41,Allocators!$E$34:$BB$81,Z$15+1,FALSE)="Yes",TRUE,FALSE) -> TRUE | AA41: =IF(VLOOKUP($N41,Allocators!$E$34:$BB$81,AA$15+1,FALSE)="Yes",TRUE,FALSE) -> TRUE | AB41: =IF(VLOOKUP($N41,Allocators!$E$34:$BB$81,AB$15+1,FALSE)="Yes",TRUE,FALSE) -> TRUE | AC41: =IF(VLOOKUP($N41,Allocators!$E$34:$BB$81,AC$15+1,FALSE)="Yes",TRUE,FALSE) -> TRUE | AD41: =IF(VLOOKUP($N41,Allocators!$E$34:$BB$81,AD$15+1,FALSE)="Yes",TRUE,FALSE) -> TRUE | AE41: =IF(VLOOKUP($N41,Allocators!$E$34:$BB$81,AE$15+1,FALSE)="Yes",TRUE,FALSE) -> TRUE | AF41: =IF(VLOOKUP($N41,Allocators!$E$34:$BB$81,AF$15+1,FALSE)="Yes",TRUE,FALSE) -> TRUE | AG41: =IF(VLOOKUP($N41,Allocators!$E$34:$BB$81,AG$15+1,FALSE)="Yes",TRUE,FALSE) -> TRUE | AH41: =IF(VLOOKUP($N41,Allocators!$E$34:$BB$81,AH$15+1,FALSE)="Yes",TRUE,FALSE) -> TRUE | AI41: =IF(VLOOKUP($N41,Allocators!$E$34:$BB$81,AI$15+1,FALSE)="Yes",TRUE,FALSE) -> TRUE | AJ41: =IF(VLOOKUP($N41,Allocators!$E$34:$BB$81,AJ$15+1,FALSE)="Yes",TRUE,FALSE) -> TRUE | AK41: =IF(VLOOKUP($N41,Allocators!$E$34:$BB$81,AK$15+1,FALSE)="Yes",TRUE,FALSE) -> TRUE | AL41: =IF(VLOOKUP($N41,Allocators!$E$34:$BB$81,AL$15+1,FALSE)="Yes",TRUE,FALSE) -> TRUE | AM41: =IF(VLOOKUP($N41,Allocators!$E$34:$BB$81,AM$15+1,FALSE)="Yes",TRUE,FALSE) -> TRUE | AN41: =IF(VLOOKUP($N41,Allocators!$E$34:$BB$81,AN$15+1,FALSE)="Yes",TRUE,FALSE) -> TRUE | AO41: =IF(VLOOKUP($N41,Allocators!$E$34:$BB$81,AO$15+1,FALSE)="Yes",TRUE,FALSE) -> TRUE | AP41: =IF(VLOOKUP($N41,Allocators!$E$34:$BB$81,AP$15+1,FALSE)="Yes",TRUE,FALSE) -> TRUE | AQ41: =IF(VLOOKUP($N41,Allocators!$E$34:$BB$81,AQ$15+1,FALSE)="Yes",TRUE,FALSE) -> TRUE | AR41: =IF(VLOOKUP($N41,Allocators!$E$34:$BB$81,AR$15+1,FALSE)="Yes",TRUE,FALSE) -> TRUE | AS41: =IF(VLOOKUP($N41,Allocators!$E$34:$BB$81,AS$15+1,FALSE)="Yes",TRUE,FALSE) -> TRUE | AT41: =IF(VLOOKUP($N41,Allocators!$E$34:$BB$81,AT$15+1,FALSE)="Yes",TRUE,FALSE) -> TRUE | AU41: =IF(VLOOKUP($N41,Allocators!$E$34:$BB$81,AU$15+1,FALSE)="Yes",TRUE,FALSE) -> TRUE | AV41: =IF(VLOOKUP($N41,Allocators!$E$34:$BB$81,AV$15+1,FALSE)="Yes",TRUE,FALSE) -> TRUE | AW41: =IF(VLOOKUP($N41,Allocators!$E$34:$BB$81,AW$15+1,FALSE)="Yes",TRUE,FALSE) -> TRUE | AX41: =IF(VLOOKUP($N41,Allocators!$E$34:$BB$81,AX$15+1,FALSE)="Yes",TRUE,FALSE) -> TRUE | AY41: =IF(VLOOKUP($N41,Allocators!$E$34:$BB$81,AY$15+1,FALSE)="Yes",TRUE,FALSE) -> TRUE | AZ41: =IF(VLOOKUP($N41,Allocators!$E$34:$BB$81,AZ$15+1,FALSE)="Yes",TRUE,FALSE) -> TRUE | BA41: =IF(VLOOKUP($N41,Allocators!$E$34:$BB$81,BA$15+1,FALSE)="Yes",TRUE,FALSE) -> TRUE | BB41: =IF(VLOOKUP($N41,Allocators!$E$34:$BB$81,BB$15+1,FALSE)="Yes",TRUE,FALSE) -> TRUE | BC41: =IF(VLOOKUP($N41,Allocators!$E$34:$BB$81,BC$15+1,FALSE)="Yes",TRUE,FALSE) -> TRUE | BD41: =IF(VLOOKUP($N41,Allocators!$E$34:$BB$81,BD$15+1,FALSE)="Yes",TRUE,FALSE) -> TRUE | BE41: =IF(VLOOKUP($N41,Allocators!$E$34:$BB$81,BE$15+1,FALSE)="Yes",TRUE,FALSE) -> TRUE | BF41: =IF(VLOOKUP($N41,Allocators!$E$34:$BB$81,BF$15+1,FALSE)="Yes",TRUE,FALSE) -> TRUE | BG41: =IF(VLOOKUP($N41,Allocators!$E$34:$BB$81,BG$15+1,FALSE)="Yes",TRUE,FALSE) -> TRUE | BH41: =IF(VLOOKUP($N41,Allocators!$E$34:$BB$81,BH$15+1,FALSE)="Yes",TRUE,FALSE) -> TRUE | BI41: =IF(VLOOKUP($N41,Allocators!$E$34:$BB$81,BI$15+1,FALSE)="Yes",TRUE,FALSE) -> TRUE | BJ41: =IF(VLOOKUP($N41,Allocators!$E$34:$BB$81,BJ$15+1,FALSE)="Yes",TRUE,FALSE) -> FALSE | BK41: =IF(VLOOKUP($N41,Allocators!$E$34:$BB$81,BK$15+1,FALSE)="Yes",TRUE,FALSE) -> FALSE
C42: =VLOOKUP(N42,Data!$E$233:$G$280,2,FALSE) -> Security | D42: =VLOOKUP($N42,Data!$E$233:$G$280,3,FALSE) -> Non-Prescribed | H42: 0 | I42: FALSE | J42: TRUE | K42: FALSE | M42: Dedicated Non-prescribed | N42: 27 | O42: =IF(VLOOKUP($N42,Allocators!$E$34:$BB$81,O$15+1,FALSE)="Yes",TRUE,FALSE) -> FALSE | P42: =IF(VLOOKUP($N42,Allocators!$E$34:$BB$81,P$15+1,FALSE)="Yes",TRUE,FALSE) -> FALSE | Q42: =IF(VLOOKUP($N42,Allocators!$E$34:$BB$81,Q$15+1,FALSE)="Yes",TRUE,FALSE) -> FALSE | R42: =IF(VLOOKUP($N42,Allocators!$E$34:$BB$81,R$15+1,FALSE)="Yes",TRUE,FALSE) -> FALSE | S42: =IF(VLOOKUP($N42,Allocators!$E$34:$BB$81,S$15+1,FALSE)="Yes",TRUE,FALSE) -> FALSE | T42: =IF(VLOOKUP($N42,Allocators!$E$34:$BB$81,T$15+1,FALSE)="Yes",TRUE,FALSE) -> FALSE | U42: =IF(VLOOKUP($N42,Allocators!$E$34:$BB$81,U$15+1,FALSE)="Yes",TRUE,FALSE) -> FALSE | V42: =IF(VLOOKUP($N42,Allocators!$E$34:$BB$81,V$15+1,FALSE)="Yes",TRUE,FALSE) -> FALSE | W42: =IF(VLOOKUP($N42,Allocators!$E$34:$BB$81,W$15+1,FALSE)="Yes",TRUE,FALSE) -> FALSE | X42: =IF(VLOOKUP($N42,Allocators!$E$34:$BB$81,X$15+1,FALSE)="Yes",TRUE,FALSE) -> FALSE | Y42: =IF(VLOOKUP($N42,Allocators!$E$34:$BB$81,Y$15+1,FALSE)="Yes",TRUE,FALSE) -> FALSE | Z42: =IF(VLOOKUP($N42,Allocators!$E$34:$BB$81,Z$15+1,FALSE)="Yes",TRUE,FALSE) -> FALSE | AA42: =IF(VLOOKUP($N42,Allocators!$E$34:$BB$81,AA$15+1,FALSE)="Yes",TRUE,FALSE) -> FALSE | AB42: =IF(VLOOKUP($N42,Allocators!$E$34:$BB$81,AB$15+1,FALSE)="Yes",TRUE,FALSE) -> FALSE | AC42: =IF(VLOOKUP($N42,Allocators!$E$34:$BB$81,AC$15+1,FALSE)="Yes",TRUE,FALSE) -> FALSE | AD42: =IF(VLOOKUP($N42,Allocators!$E$34:$BB$81,AD$15+1,FALSE)="Yes",TRUE,FALSE) -> FALSE | AE42: =IF(VLOOKUP($N42,Allocators!$E$34:$BB$81,AE$15+1,FALSE)="Yes",TRUE,FALSE) -> FALSE | AF42: =IF(VLOOKUP($N42,Allocators!$E$34:$BB$81,AF$15+1,FALSE)="Yes",TRUE,FALSE) -> FALSE | AG42: =IF(VLOOKUP($N42,Allocators!$E$34:$BB$81,AG$15+1,FALSE)="Yes",TRUE,FALSE) -> FALSE | AH42: =IF(VLOOKUP($N42,Allocators!$E$34:$BB$81,AH$15+1,FALSE)="Yes",TRUE,FALSE) -> FALSE | AI42: =IF(VLOOKUP($N42,Allocators!$E$34:$BB$81,AI$15+1,FALSE)="Yes",TRUE,FALSE) -> FALSE | AJ42: =IF(VLOOKUP($N42,Allocators!$E$34:$BB$81,AJ$15+1,FALSE)="Yes",TRUE,FALSE) -> FALSE | AK42: =IF(VLOOKUP($N42,Allocators!$E$34:$BB$81,AK$15+1,FALSE)="Yes",TRUE,FALSE) -> FALSE | AL42: =IF(VLOOKUP($N42,Allocators!$E$34:$BB$81,AL$15+1,FALSE)="Yes",TRUE,FALSE) -> FALSE | AM42: =IF(VLOOKUP($N42,Allocators!$E$34:$BB$81,AM$15+1,FALSE)="Yes",TRUE,FALSE) -> FALSE | AN42: =IF(VLOOKUP($N42,Allocators!$E$34:$BB$81,AN$15+1,FALSE)="Yes",TRUE,FALSE) -> FALSE | AO42: =IF(VLOOKUP($N42,Allocators!$E$34:$BB$81,AO$15+1,FALSE)="Yes",TRUE,FALSE) -> FALSE | AP42: =IF(VLOOKUP($N42,Allocators!$E$34:$BB$81,AP$15+1,FALSE)="Yes",TRUE,FALSE) -> FALSE | AQ42: =IF(VLOOKUP($N42,Allocators!$E$34:$BB$81,AQ$15+1,FALSE)="Yes",TRUE,FALSE) -> FALSE | AR42: =IF(VLOOKUP($N42,Allocators!$E$34:$BB$81,AR$15+1,FALSE)="Yes",TRUE,FALSE) -> FALSE | AS42: =IF(VLOOKUP($N42,Allocators!$E$34:$BB$81,AS$15+1,FALSE)="Yes",TRUE,FALSE) -> FALSE | AT42: =IF(VLOOKUP($N42,Allocators!$E$34:$BB$81,AT$15+1,FALSE)="Yes",TRUE,FALSE) -> FALSE | AU42: =IF(VLOOKUP($N42,Allocators!$E$34:$BB$81,AU$15+1,FALSE)="Yes",TRUE,FALSE) -> FALSE | AV42: =IF(VLOOKUP($N42,Allocators!$E$34:$BB$81,AV$15+1,FALSE)="Yes",TRUE,FALSE) -> FALSE | AW42: =IF(VLOOKUP($N42,Allocators!$E$34:$BB$81,AW$15+1,FALSE)="Yes",TRUE,FALSE) -> FALSE | AX42: =IF(VLOOKUP($N42,Allocators!$E$34:$BB$81,AX$15+1,FALSE)="Yes",TRUE,FALSE) -> FALSE | AY42: =IF(VLOOKUP($N42,Allocators!$E$34:$BB$81,AY$15+1,FALSE)="Yes",TRUE,FALSE) -> FALSE | AZ42: =IF(VLOOKUP($N42,Allocators!$E$34:$BB$81,AZ$15+1,FALSE)="Yes",TRUE,FALSE) -> FALSE | BA42: =IF(VLOOKUP($N42,Allocators!$E$34:$BB$81,BA$15+1,FALSE)="Yes",TRUE,FALSE) -> FALSE | BB42: =IF(VLOOKUP($N42,Allocators!$E$34:$BB$81,BB$15+1,FALSE)="Yes",TRUE,FALSE) -> FALSE | BC42: =IF(VLOOKUP($N42,Allocators!$E$34:$BB$81,BC$15+1,FALSE)="Yes",TRUE,FALSE) -> FALSE | BD42: =IF(VLOOKUP($N42,Allocators!$E$34:$BB$81,BD$15+1,FALSE)="Yes",TRUE,FALSE) -> FALSE | BE42: =IF(VLOOKUP($N42,Allocators!$E$34:$BB$81,BE$15+1,FALSE)="Yes",TRUE,FALSE) -> FALSE | BF42: =IF(VLOOKUP($N42,Allocators!$E$34:$BB$81,BF$15+1,FALSE)="Yes",TRUE,FALSE) -> FALSE | BG42: =IF(VLOOKUP($N42,Allocators!$E$34:$BB$81,BG$15+1,FALSE)="Yes",TRUE,FALSE) -> FALSE | BH42: =IF(VLOOKUP($N42,Allocators!$E$34:$BB$81,BH$15+1,FALSE)="Yes",TRUE,FALSE) -> FALSE | BI42: =IF(VLOOKUP($N42,Allocators!$E$34:$BB$81,BI$15+1,FALSE)="Yes",TRUE,FALSE) -> FALSE | BJ42: =IF(VLOOKUP($N42,Allocators!$E$34:$BB$81,BJ$15+1,FALSE)="Yes",TRUE,FALSE) -> FALSE | BK42: =IF(VLOOKUP($N42,Allocators!$E$34:$BB$81,BK$15+1,FALSE)="Yes",TRUE,FALSE) -> TRUE
C43: =VLOOKUP(N43,Data!$E$233:$G$280,2,FALSE) -> Security | D43: =VLOOKUP($N43,Data!$E$233:$G$280,3,FALSE) -> Shared | H43: 0 | I43: FALSE | J43: FALSE | K43: TRUE | M43: Shared | N43: 28 | O43: =IF(VLOOKUP($N43,Allocators!$E$34:$BB$81,O$15+1,FALSE)="Yes",TRUE,FALSE) -> TRUE | P43: =IF(VLOOKUP($N43,Allocators!$E$34:$BB$81,P$15+1,FALSE)="Yes",TRUE,FALSE) -> TRUE | Q43: =IF(VLOOKUP($N43,Allocators!$E$34:$BB$81,Q$15+1,FALSE)="Yes",TRUE,FALSE) -> TRUE | R43: =IF(VLOOKUP($N43,Allocators!$E$34:$BB$81,R$15+1,FALSE)="Yes",TRUE,FALSE) -> TRUE | S43: =IF(VLOOKUP($N43,Allocators!$E$34:$BB$81,S$15+1,FALSE)="Yes",TRUE,FALSE) -> TRUE | T43: =IF(VLOOKUP($N43,Allocators!$E$34:$BB$81,T$15+1,FALSE)="Yes",TRUE,FALSE) -> TRUE | U43: =IF(VLOOKUP($N43,Allocators!$E$34:$BB$81,U$15+1,FALSE)="Yes",TRUE,FALSE) -> TRUE | V43: =IF(VLOOKUP($N43,Allocators!$E$34:$BB$81,V$15+1,FALSE)="Yes",TRUE,FALSE) -> TRUE | W43: =IF(VLOOKUP($N43,Allocators!$E$34:$BB$81,W$15+1,FALSE)="Yes",TRUE,FALSE) -> TRUE | X43: =IF(VLOOKUP($N43,Allocators!$E$34:$BB$81,X$15+1,FALSE)="Yes",TRUE,FALSE) -> TRUE | Y43: =IF(VLOOKUP($N43,Allocators!$E$34:$BB$81,Y$15+1,FALSE)="Yes",TRUE,FALSE) -> TRUE | Z43: =IF(VLOOKUP($N43,Allocators!$E$34:$BB$81,Z$15+1,FALSE)="Yes",TRUE,FALSE) -> TRUE | AA43: =IF(VLOOKUP($N43,Allocators!$E$34:$BB$81,AA$15+1,FALSE)="Yes",TRUE,FALSE) -> TRUE | AB43: =IF(VLOOKUP($N43,Allocators!$E$34:$BB$81,AB$15+1,FALSE)="Yes",TRUE,FALSE) -> TRUE | AC43: =IF(VLOOKUP($N43,Allocators!$E$34:$BB$81,AC$15+1,FALSE)="Yes",TRUE,FALSE) -> TRUE | AD43: =IF(VLOOKUP($N43,Allocators!$E$34:$BB$81,AD$15+1,FALSE)="Yes",TRUE,FALSE) -> TRUE | AE43: =IF(VLOOKUP($N43,Allocators!$E$34:$BB$81,AE$15+1,FALSE)="Yes",TRUE,FALSE) -> TRUE | AF43: =IF(VLOOKUP($N43,Allocators!$E$34:$BB$81,AF$15+1,FALSE)="Yes",TRUE,FALSE) -> TRUE | AG43: =IF(VLOOKUP($N43,Allocators!$E$34:$BB$81,AG$15+1,FALSE)="Yes",TRUE,FALSE) -> TRUE | AH43: =IF(VLOOKUP($N43,Allocators!$E$34:$BB$81,AH$15+1,FALSE)="Yes",TRUE,FALSE) -> TRUE | AI43: =IF(VLOOKUP($N43,Allocators!$E$34:$BB$81,AI$15+1,FALSE)="Yes",TRUE,FALSE) -> TRUE | AJ43: =IF(VLOOKUP($N43,Allocators!$E$34:$BB$81,AJ$15+1,FALSE)="Yes",TRUE,FALSE) -> TRUE | AK43: =IF(VLOOKUP($N43,Allocators!$E$34:$BB$81,AK$15+1,FALSE)="Yes",TRUE,FALSE) -> TRUE | AL43: =IF(VLOOKUP($N43,Allocators!$E$34:$BB$81,AL$15+1,FALSE)="Yes",TRUE,FALSE) -> TRUE | AM43: =IF(VLOOKUP($N43,Allocators!$E$34:$BB$81,AM$15+1,FALSE)="Yes",TRUE,FALSE) -> TRUE | AN43: =IF(VLOOKUP($N43,Allocators!$E$34:$BB$81,AN$15+1,FALSE)="Yes",TRUE,FALSE) -> TRUE | AO43: =IF(VLOOKUP($N43,Allocators!$E$34:$BB$81,AO$15+1,FALSE)="Yes",TRUE,FALSE) -> TRUE | AP43: =IF(VLOOKUP($N43,Allocators!$E$34:$BB$81,AP$15+1,FALSE)="Yes",TRUE,FALSE) -> TRUE | AQ43: =IF(VLOOKUP($N43,Allocators!$E$34:$BB$81,AQ$15+1,FALSE)="Yes",TRUE,FALSE) -> TRUE | AR43: =IF(VLOOKUP($N43,Allocators!$E$34:$BB$81,AR$15+1,FALSE)="Yes",TRUE,FALSE) -> TRUE | AS43: =IF(VLOOKUP($N43,Allocators!$E$34:$BB$81,AS$15+1,FALSE)="Yes",TRUE,FALSE) -> TRUE | AT43: =IF(VLOOKUP($N43,Allocators!$E$34:$BB$81,AT$15+1,FALSE)="Yes",TRUE,FALSE) -> TRUE | AU43: =IF(VLOOKUP($N43,Allocators!$E$34:$BB$81,AU$15+1,FALSE)="Yes",TRUE,FALSE) -> TRUE | AV43: =IF(VLOOKUP($N43,Allocators!$E$34:$BB$81,AV$15+1,FALSE)="Yes",TRUE,FALSE) -> TRUE | AW43: =IF(VLOOKUP($N43,Allocators!$E$34:$BB$81,AW$15+1,FALSE)="Yes",TRUE,FALSE) -> TRUE | AX43: =IF(VLOOKUP($N43,Allocators!$E$34:$BB$81,AX$15+1,FALSE)="Yes",TRUE,FALSE) -> TRUE | AY43: =IF(VLOOKUP($N43,Allocators!$E$34:$BB$81,AY$15+1,FALSE)="Yes",TRUE,FALSE) -> TRUE | AZ43: =IF(VLOOKUP($N43,Allocators!$E$34:$BB$81,AZ$15+1,FALSE)="Yes",TRUE,FALSE) -> TRUE | BA43: =IF(VLOOKUP($N43,Allocators!$E$34:$BB$81,BA$15+1,FALSE)="Yes",TRUE,FALSE) -> TRUE | BB43: =IF(VLOOKUP($N43,Allocators!$E$34:$BB$81,BB$15+1,FALSE)="Yes",TRUE,FALSE) -> TRUE | BC43: =IF(VLOOKUP($N43,Allocators!$E$34:$BB$81,BC$15+1,FALSE)="Yes",TRUE,FALSE) -> TRUE | BD43: =IF(VLOOKUP($N43,Allocators!$E$34:$BB$81,BD$15+1,FALSE)="Yes",TRUE,FALSE) -> TRUE | BE43: =IF(VLOOKUP($N43,Allocators!$E$34:$BB$81,BE$15+1,FALSE)="Yes",TRUE,FALSE) -> TRUE | BF43: =IF(VLOOKUP($N43,Allocators!$E$34:$BB$81,BF$15+1,FALSE)="Yes",TRUE,FALSE) -> TRUE | BG43: =IF(VLOOKUP($N43,Allocators!$E$34:$BB$81,BG$15+1,FALSE)="Yes",TRUE,FALSE) -> TRUE | BH43: =IF(VLOOKUP($N43,Allocators!$E$34:$BB$81,BH$15+1,FALSE)="Yes",TRUE,FALSE) -> TRUE | BI43: =IF(VLOOKUP($N43,Allocators!$E$34:$BB$81,BI$15+1,FALSE)="Yes",TRUE,FALSE) -> TRUE | BJ43: =IF(VLOOKUP($N43,Allocators!$E$34:$BB$81,BJ$15+1,FALSE)="Yes",TRUE,FALSE) -> FALSE | BK43: =IF(VLOOKUP($N43,Allocators!$E$34:$BB$81,BK$15+1,FALSE)="Yes",TRUE,FALSE) -> TRUE
C44: =VLOOKUP(N44,Data!$E$233:$G$280,2,FALSE) -> Utilities, Admin, Rental & IT | D44: =VLOOKUP($N44,Data!$E$233:$G$280,3,FALSE) -> Prescribed (excluding Marine Planning and Projects and Maintenance Dredging Projects) | H44: 0 | I44: TRUE | J44: FALSE | K44: FALSE | M44: Dedicated Prescribed | N44: 29 | O44: =IF(VLOOKUP($N44,Allocators!$E$34:$BB$81,O$15+1,FALSE)="Yes",TRUE,FALSE) -> TRUE | P44: =IF(VLOOKUP($N44,Allocators!$E$34:$BB$81,P$15+1,FALSE)="Yes",TRUE,FALSE) -> TRUE | Q44: =IF(VLOOKUP($N44,Allocators!$E$34:$BB$81,Q$15+1,FALSE)="Yes",TRUE,FALSE) -> TRUE | R44: =IF(VLOOKUP($N44,Allocators!$E$34:$BB$81,R$15+1,FALSE)="Yes",TRUE,FALSE) -> TRUE | S44: =IF(VLOOKUP($N44,Allocators!$E$34:$BB$81,S$15+1,FALSE)="Yes",TRUE,FALSE) -> TRUE | T44: =IF(VLOOKUP($N44,Allocators!$E$34:$BB$81,T$15+1,FALSE)="Yes",TRUE,FALSE) -> TRUE | U44: =IF(VLOOKUP($N44,Allocators!$E$34:$BB$81,U$15+1,FALSE)="Yes",TRUE,FALSE) -> TRUE | V44: =IF(VLOOKUP($N44,Allocators!$E$34:$BB$81,V$15+1,FALSE)="Yes",TRUE,FALSE) -> TRUE | W44: =IF(VLOOKUP($N44,Allocators!$E$34:$BB$81,W$15+1,FALSE)="Yes",TRUE,FALSE) -> TRUE | X44: =IF(VLOOKUP($N44,Allocators!$E$34:$BB$81,X$15+1,FALSE)="Yes",TRUE,FALSE) -> TRUE | Y44: =IF(VLOOKUP($N44,Allocators!$E$34:$BB$81,Y$15+1,FALSE)="Yes",TRUE,FALSE) -> TRUE | Z44: =IF(VLOOKUP($N44,Allocators!$E$34:$BB$81,Z$15+1,FALSE)="Yes",TRUE,FALSE) -> TRUE | AA44: =IF(VLOOKUP($N44,Allocators!$E$34:$BB$81,AA$15+1,FALSE)="Yes",TRUE,FALSE) -> TRUE | AB44: =IF(VLOOKUP($N44,Allocators!$E$34:$BB$81,AB$15+1,FALSE)="Yes",TRUE,FALSE) -> TRUE | AC44: =IF(VLOOKUP($N44,Allocators!$E$34:$BB$81,AC$15+1,FALSE)="Yes",TRUE,FALSE) -> TRUE | AD44: =IF(VLOOKUP($N44,Allocators!$E$34:$BB$81,AD$15+1,FALSE)="Yes",TRUE,FALSE) -> TRUE | AE44: =IF(VLOOKUP($N44,Allocators!$E$34:$BB$81,AE$15+1,FALSE)="Yes",TRUE,FALSE) -> TRUE | AF44: =IF(VLOOKUP($N44,Allocators!$E$34:$BB$81,AF$15+1,FALSE)="Yes",TRUE,FALSE) -> TRUE | AG44: =IF(VLOOKUP($N44,Allocators!$E$34:$BB$81,AG$15+1,FALSE)="Yes",TRUE,FALSE) -> TRUE | AH44: =IF(VLOOKUP($N44,Allocators!$E$34:$BB$81,AH$15+1,FALSE)="Yes",TRUE,FALSE) -> TRUE | AI44: =IF(VLOOKUP($N44,Allocators!$E$34:$BB$81,AI$15+1,FALSE)="Yes",TRUE,FALSE) -> TRUE | AJ44: =IF(VLOOKUP($N44,Allocators!$E$34:$BB$81,AJ$15+1,FALSE)="Yes",TRUE,FALSE) -> TRUE | AK44: =IF(VLOOKUP($N44,Allocators!$E$34:$BB$81,AK$15+1,FALSE)="Yes",TRUE,FALSE) -> TRUE | AL44: =IF(VLOOKUP($N44,Allocators!$E$34:$BB$81,AL$15+1,FALSE)="Yes",TRUE,FALSE) -> TRUE | AM44: =IF(VLOOKUP($N44,Allocators!$E$34:$BB$81,AM$15+1,FALSE)="Yes",TRUE,FALSE) -> TRUE | AN44: =IF(VLOOKUP($N44,Allocators!$E$34:$BB$81,AN$15+1,FALSE)="Yes",TRUE,FALSE) -> TRUE | AO44: =IF(VLOOKUP($N44,Allocators!$E$34:$BB$81,AO$15+1,FALSE)="Yes",TRUE,FALSE) -> TRUE | AP44: =IF(VLOOKUP($N44,Allocators!$E$34:$BB$81,AP$15+1,FALSE)="Yes",TRUE,FALSE) -> TRUE | AQ44: =IF(VLOOKUP($N44,Allocators!$E$34:$BB$81,AQ$15+1,FALSE)="Yes",TRUE,FALSE) -> TRUE | AR44: =IF(VLOOKUP($N44,Allocators!$E$34:$BB$81,AR$15+1,FALSE)="Yes",TRUE,FALSE) -> TRUE | AS44: =IF(VLOOKUP($N44,Allocators!$E$34:$BB$81,AS$15+1,FALSE)="Yes",TRUE,FALSE) -> TRUE | AT44: =IF(VLOOKUP($N44,Allocators!$E$34:$BB$81,AT$15+1,FALSE)="Yes",TRUE,FALSE) -> TRUE | AU44: =IF(VLOOKUP($N44,Allocators!$E$34:$BB$81,AU$15+1,FALSE)="Yes",TRUE,FALSE) -> TRUE | AV44: =IF(VLOOKUP($N44,Allocators!$E$34:$BB$81,AV$15+1,FALSE)="Yes",TRUE,FALSE) -> TRUE | AW44: =IF(VLOOKUP($N44,Allocators!$E$34:$BB$81,AW$15+1,FALSE)="Yes",TRUE,FALSE) -> TRUE | AX44: =IF(VLOOKUP($N44,Allocators!$E$34:$BB$81,AX$15+1,FALSE)="Yes",TRUE,FALSE) -> TRUE | AY44: =IF(VLOOKUP($N44,Allocators!$E$34:$BB$81,AY$15+1,FALSE)="Yes",TRUE,FALSE) -> TRUE | AZ44: =IF(VLOOKUP($N44,Allocators!$E$34:$BB$81,AZ$15+1,FALSE)="Yes",TRUE,FALSE) -> TRUE | BA44: =IF(VLOOKUP($N44,Allocators!$E$34:$BB$81,BA$15+1,FALSE)="Yes",TRUE,FALSE) -> TRUE | BB44: =IF(VLOOKUP($N44,Allocators!$E$34:$BB$81,BB$15+1,FALSE)="Yes",TRUE,FALSE) -> TRUE | BC44: =IF(VLOOKUP($N44,Allocators!$E$34:$BB$81,BC$15+1,FALSE)="Yes",TRUE,FALSE) -> TRUE | BD44: =IF(VLOOKUP($N44,Allocators!$E$34:$BB$81,BD$15+1,FALSE)="Yes",TRUE,FALSE) -> TRUE | BE44: =IF(VLOOKUP($N44,Allocators!$E$34:$BB$81,BE$15+1,FALSE)="Yes",TRUE,FALSE) -> TRUE | BF44: =IF(VLOOKUP($N44,Allocators!$E$34:$BB$81,BF$15+1,FALSE)="Yes",TRUE,FALSE) -> TRUE | BG44: =IF(VLOOKUP($N44,Allocators!$E$34:$BB$81,BG$15+1,FALSE)="Yes",TRUE,FALSE) -> TRUE | BH44: =IF(VLOOKUP($N44,Allocators!$E$34:$BB$81,BH$15+1,FALSE)="Yes",TRUE,FALSE) -> TRUE | BI44: =IF(VLOOKUP($N44,Allocators!$E$34:$BB$81,BI$15+1,FALSE)="Yes",TRUE,FALSE) -> TRUE | BJ44: =IF(VLOOKUP($N44,Allocators!$E$34:$BB$81,BJ$15+1,FALSE)="Yes",TRUE,FALSE) -> FALSE | BK44: =IF(VLOOKUP($N44,Allocators!$E$34:$BB$81,BK$15+1,FALSE)="Yes",TRUE,FALSE) -> FALSE
C45: =VLOOKUP(N45,Data!$E$233:$G$280,2,FALSE) -> Utilities, Admin, Rental & IT | D45: =VLOOKUP($N45,Data!$E$233:$G$280,3,FALSE) -> Non-Prescribed | H45: 0 | I45: FALSE | J45: TRUE | K45: FALSE | M45: Dedicated Non-prescribed | N45: 30 | O45: =IF(VLOOKUP($N45,Allocators!$E$34:$BB$81,O$15+1,FALSE)="Yes",TRUE,FALSE) -> FALSE | P45: =IF(VLOOKUP($N45,Allocators!$E$34:$BB$81,P$15+1,FALSE)="Yes",TRUE,FALSE) -> FALSE | Q45: =IF(VLOOKUP($N45,Allocators!$E$34:$BB$81,Q$15+1,FALSE)="Yes",TRUE,FALSE) -> FALSE | R45: =IF(VLOOKUP($N45,Allocators!$E$34:$BB$81,R$15+1,FALSE)="Yes",TRUE,FALSE) -> FALSE | S45: =IF(VLOOKUP($N45,Allocators!$E$34:$BB$81,S$15+1,FALSE)="Yes",TRUE,FALSE) -> FALSE | T45: =IF(VLOOKUP($N45,Allocators!$E$34:$BB$81,T$15+1,FALSE)="Yes",TRUE,FALSE) -> FALSE | U45: =IF(VLOOKUP($N45,Allocators!$E$34:$BB$81,U$15+1,FALSE)="Yes",TRUE,FALSE) -> FALSE | V45: =IF(VLOOKUP($N45,Allocators!$E$34:$BB$81,V$15+1,FALSE)="Yes",TRUE,FALSE) -> FALSE | W45: =IF(VLOOKUP($N45,Allocators!$E$34:$BB$81,W$15+1,FALSE)="Yes",TRUE,FALSE) -> FALSE | X45: =IF(VLOOKUP($N45,Allocators!$E$34:$BB$81,X$15+1,FALSE)="Yes",TRUE,FALSE) -> FALSE | Y45: =IF(VLOOKUP($N45,Allocators!$E$34:$BB$81,Y$15+1,FALSE)="Yes",TRUE,FALSE) -> FALSE | Z45: =IF(VLOOKUP($N45,Allocators!$E$34:$BB$81,Z$15+1,FALSE)="Yes",TRUE,FALSE) -> FALSE | AA45: =IF(VLOOKUP($N45,Allocators!$E$34:$BB$81,AA$15+1,FALSE)="Yes",TRUE,FALSE) -> FALSE | AB45: =IF(VLOOKUP($N45,Allocators!$E$34:$BB$81,AB$15+1,FALSE)="Yes",TRUE,FALSE) -> FALSE | AC45: =IF(VLOOKUP($N45,Allocators!$E$34:$BB$81,AC$15+1,FALSE)="Yes",TRUE,FALSE) -> FALSE | AD45: =IF(VLOOKUP($N45,Allocators!$E$34:$BB$81,AD$15+1,FALSE)="Yes",TRUE,FALSE) -> FALSE | AE45: =IF(VLOOKUP($N45,Allocators!$E$34:$BB$81,AE$15+1,FALSE)="Yes",TRUE,FALSE) -> FALSE | AF45: =IF(VLOOKUP($N45,Allocators!$E$34:$BB$81,AF$15+1,FALSE)="Yes",TRUE,FALSE) -> FALSE | AG45: =IF(VLOOKUP($N45,Allocators!$E$34:$BB$81,AG$15+1,FALSE)="Yes",TRUE,FALSE) -> FALSE | AH45: =IF(VLOOKUP($N45,Allocators!$E$34:$BB$81,AH$15+1,FALSE)="Yes",TRUE,FALSE) -> FALSE | AI45: =IF(VLOOKUP($N45,Allocators!$E$34:$BB$81,AI$15+1,FALSE)="Yes",TRUE,FALSE) -> FALSE | AJ45: =IF(VLOOKUP($N45,Allocators!$E$34:$BB$81,AJ$15+1,FALSE)="Yes",TRUE,FALSE) -> FALSE | AK45: =IF(VLOOKUP($N45,Allocators!$E$34:$BB$81,AK$15+1,FALSE)="Yes",TRUE,FALSE) -> FALSE | AL45: =IF(VLOOKUP($N45,Allocators!$E$34:$BB$81,AL$15+1,FALSE)="Yes",TRUE,FALSE) -> FALSE | AM45: =IF(VLOOKUP($N45,Allocators!$E$34:$BB$81,AM$15+1,FALSE)="Yes",TRUE,FALSE) -> FALSE | AN45: =IF(VLOOKUP($N45,Allocators!$E$34:$BB$81,AN$15+1,FALSE)="Yes",TRUE,FALSE) -> FALSE | AO45: =IF(VLOOKUP($N45,Allocators!$E$34:$BB$81,AO$15+1,FALSE)="Yes",TRUE,FALSE) -> FALSE | AP45: =IF(VLOOKUP($N45,Allocators!$E$34:$BB$81,AP$15+1,FALSE)="Yes",TRUE,FALSE) -> FALSE | AQ45: =IF(VLOOKUP($N45,Allocators!$E$34:$BB$81,AQ$15+1,FALSE)="Yes",TRUE,FALSE) -> FALSE | AR45: =IF(VLOOKUP($N45,Allocators!$E$34:$BB$81,AR$15+1,FALSE)="Yes",TRUE,FALSE) -> FALSE | AS45: =IF(VLOOKUP($N45,Allocators!$E$34:$BB$81,AS$15+1,FALSE)="Yes",TRUE,FALSE) -> FALSE | AT45: =IF(VLOOKUP($N45,Allocators!$E$34:$BB$81,AT$15+1,FALSE)="Yes",TRUE,FALSE) -> FALSE | AU45: =IF(VLOOKUP($N45,Allocators!$E$34:$BB$81,AU$15+1,FALSE)="Yes",TRUE,FALSE) -> FALSE | AV45: =IF(VLOOKUP($N45,Allocators!$E$34:$BB$81,AV$15+1,FALSE)="Yes",TRUE,FALSE) -> FALSE | AW45: =IF(VLOOKUP($N45,Allocators!$E$34:$BB$81,AW$15+1,FALSE)="Yes",TRUE,FALSE) -> FALSE | AX45: =IF(VLOOKUP($N45,Allocators!$E$34:$BB$81,AX$15+1,FALSE)="Yes",TRUE,FALSE) -> FALSE | AY45: =IF(VLOOKUP($N45,Allocators!$E$34:$BB$81,AY$15+1,FALSE)="Yes",TRUE,FALSE) -> FALSE | AZ45: =IF(VLOOKUP($N45,Allocators!$E$34:$BB$81,AZ$15+1,FALSE)="Yes",TRUE,FALSE) -> FALSE | BA45: =IF(VLOOKUP($N45,Allocators!$E$34:$BB$81,BA$15+1,FALSE)="Yes",TRUE,FALSE) -> FALSE | BB45: =IF(VLOOKUP($N45,Allocators!$E$34:$BB$81,BB$15+1,FALSE)="Yes",TRUE,FALSE) -> FALSE | BC45: =IF(VLOOKUP($N45,Allocators!$E$34:$BB$81,BC$15+1,FALSE)="Yes",TRUE,FALSE) -> FALSE | BD45: =IF(VLOOKUP($N45,Allocators!$E$34:$BB$81,BD$15+1,FALSE)="Yes",TRUE,FALSE) -> FALSE | BE45: =IF(VLOOKUP($N45,Allocators!$E$34:$BB$81,BE$15+1,FALSE)="Yes",TRUE,FALSE) -> FALSE | BF45: =IF(VLOOKUP($N45,Allocators!$E$34:$BB$81,BF$15+1,FALSE)="Yes",TRUE,FALSE) -> FALSE | BG45: =IF(VLOOKUP($N45,Allocators!$E$34:$BB$81,BG$15+1,FALSE)="Yes",TRUE,FALSE) -> FALSE | BH45: =IF(VLOOKUP($N45,Allocators!$E$34:$BB$81,BH$15+1,FALSE)="Yes",TRUE,FALSE) -> FALSE | BI45: =IF(VLOOKUP($N45,Allocators!$E$34:$BB$81,BI$15+1,FALSE)="Yes",TRUE,FALSE) -> FALSE | BJ45: =IF(VLOOKUP($N45,Allocators!$E$34:$BB$81,BJ$15+1,FALSE)="Yes",TRUE,FALSE) -> FALSE | BK45: =IF(VLOOKUP($N45,Allocators!$E$34:$BB$81,BK$15+1,FALSE)="Yes",TRUE,FALSE) -> TRUE
C46: =VLOOKUP(N46,Data!$E$233:$G$280,2,FALSE) -> Utilities, Admin, Rental & IT | D46: =VLOOKUP($N46,Data!$E$233:$G$280,3,FALSE) -> Shared (excluding Contaminated Land Group and Land Use Planning) | H46: 0 | I46: FALSE | J46: FALSE | K46: TRUE | M46: Shared | N46: 31 | O46: =IF(VLOOKUP($N46,Allocators!$E$34:$BB$81,O$15+1,FALSE)="Yes",TRUE,FALSE) -> TRUE | P46: =IF(VLOOKUP($N46,Allocators!$E$34:$BB$81,P$15+1,FALSE)="Yes",TRUE,FALSE) -> TRUE | Q46: =IF(VLOOKUP($N46,Allocators!$E$34:$BB$81,Q$15+1,FALSE)="Yes",TRUE,FALSE) -> TRUE | R46: =IF(VLOOKUP($N46,Allocators!$E$34:$BB$81,R$15+1,FALSE)="Yes",TRUE,FALSE) -> TRUE | S46: =IF(VLOOKUP($N46,Allocators!$E$34:$BB$81,S$15+1,FALSE)="Yes",TRUE,FALSE) -> TRUE | T46: =IF(VLOOKUP($N46,Allocators!$E$34:$BB$81,T$15+1,FALSE)="Yes",TRUE,FALSE) -> TRUE | U46: =IF(VLOOKUP($N46,Allocators!$E$34:$BB$81,U$15+1,FALSE)="Yes",TRUE,FALSE) -> TRUE | V46: =IF(VLOOKUP($N46,Allocators!$E$34:$BB$81,V$15+1,FALSE)="Yes",TRUE,FALSE) -> TRUE | W46: =IF(VLOOKUP($N46,Allocators!$E$34:$BB$81,W$15+1,FALSE)="Yes",TRUE,FALSE) -> TRUE | X46: =IF(VLOOKUP($N46,Allocators!$E$34:$BB$81,X$15+1,FALSE)="Yes",TRUE,FALSE) -> TRUE | Y46: =IF(VLOOKUP($N46,Allocators!$E$34:$BB$81,Y$15+1,FALSE)="Yes",TRUE,FALSE) -> TRUE | Z46: =IF(VLOOKUP($N46,Allocators!$E$34:$BB$81,Z$15+1,FALSE)="Yes",TRUE,FALSE) -> TRUE | AA46: =IF(VLOOKUP($N46,Allocators!$E$34:$BB$81,AA$15+1,FALSE)="Yes",TRUE,FALSE) -> TRUE | AB46: =IF(VLOOKUP($N46,Allocators!$E$34:$BB$81,AB$15+1,FALSE)="Yes",TRUE,FALSE) -> TRUE | AC46: =IF(VLOOKUP($N46,Allocators!$E$34:$BB$81,AC$15+1,FALSE)="Yes",TRUE,FALSE) -> TRUE | AD46: =IF(VLOOKUP($N46,Allocators!$E$34:$BB$81,AD$15+1,FALSE)="Yes",TRUE,FALSE) -> TRUE | AE46: =IF(VLOOKUP($N46,Allocators!$E$34:$BB$81,AE$15+1,FALSE)="Yes",TRUE,FALSE) -> TRUE | AF46: =IF(VLOOKUP($N46,Allocators!$E$34:$BB$81,AF$15+1,FALSE)="Yes",TRUE,FALSE) -> TRUE | AG46: =IF(VLOOKUP($N46,Allocators!$E$34:$BB$81,AG$15+1,FALSE)="Yes",TRUE,FALSE) -> TRUE | AH46: =IF(VLOOKUP($N46,Allocators!$E$34:$BB$81,AH$15+1,FALSE)="Yes",TRUE,FALSE) -> TRUE | AI46: =IF(VLOOKUP($N46,Allocators!$E$34:$BB$81,AI$15+1,FALSE)="Yes",TRUE,FALSE) -> TRUE | AJ46: =IF(VLOOKUP($N46,Allocators!$E$34:$BB$81,AJ$15+1,FALSE)="Yes",TRUE,FALSE) -> TRUE | AK46: =IF(VLOOKUP($N46,Allocators!$E$34:$BB$81,AK$15+1,FALSE)="Yes",TRUE,FALSE) -> TRUE | AL46: =IF(VLOOKUP($N46,Allocators!$E$34:$BB$81,AL$15+1,FALSE)="Yes",TRUE,FALSE) -> TRUE | AM46: =IF(VLOOKUP($N46,Allocators!$E$34:$BB$81,AM$15+1,FALSE)="Yes",TRUE,FALSE) -> TRUE | AN46: =IF(VLOOKUP($N46,Allocators!$E$34:$BB$81,AN$15+1,FALSE)="Yes",TRUE,FALSE) -> TRUE | AO46: =IF(VLOOKUP($N46,Allocators!$E$34:$BB$81,AO$15+1,FALSE)="Yes",TRUE,FALSE) -> TRUE | AP46: =IF(VLOOKUP($N46,Allocators!$E$34:$BB$81,AP$15+1,FALSE)="Yes",TRUE,FALSE) -> TRUE | AQ46: =IF(VLOOKUP($N46,Allocators!$E$34:$BB$81,AQ$15+1,FALSE)="Yes",TRUE,FALSE) -> TRUE | AR46: =IF(VLOOKUP($N46,Allocators!$E$34:$BB$81,AR$15+1,FALSE)="Yes",TRUE,FALSE) -> TRUE | AS46: =IF(VLOOKUP($N46,Allocators!$E$34:$BB$81,AS$15+1,FALSE)="Yes",TRUE,FALSE) -> TRUE | AT46: =IF(VLOOKUP($N46,Allocators!$E$34:$BB$81,AT$15+1,FALSE)="Yes",TRUE,FALSE) -> TRUE | AU46: =IF(VLOOKUP($N46,Allocators!$E$34:$BB$81,AU$15+1,FALSE)="Yes",TRUE,FALSE) -> TRUE | AV46: =IF(VLOOKUP($N46,Allocators!$E$34:$BB$81,AV$15+1,FALSE)="Yes",TRUE,FALSE) -> TRUE | AW46: =IF(VLOOKUP($N46,Allocators!$E$34:$BB$81,AW$15+1,FALSE)="Yes",TRUE,FALSE) -> TRUE | AX46: =IF(VLOOKUP($N46,Allocators!$E$34:$BB$81,AX$15+1,FALSE)="Yes",TRUE,FALSE) -> TRUE | AY46: =IF(VLOOKUP($N46,Allocators!$E$34:$BB$81,AY$15+1,FALSE)="Yes",TRUE,FALSE) -> TRUE | AZ46: =IF(VLOOKUP($N46,Allocators!$E$34:$BB$81,AZ$15+1,FALSE)="Yes",TRUE,FALSE) -> TRUE | BA46: =IF(VLOOKUP($N46,Allocators!$E$34:$BB$81,BA$15+1,FALSE)="Yes",TRUE,FALSE) -> TRUE | BB46: =IF(VLOOKUP($N46,Allocators!$E$34:$BB$81,BB$15+1,FALSE)="Yes",TRUE,FALSE) -> TRUE | BC46: =IF(VLOOKUP($N46,Allocators!$E$34:$BB$81,BC$15+1,FALSE)="Yes",TRUE,FALSE) -> TRUE | BD46: =IF(VLOOKUP($N46,Allocators!$E$34:$BB$81,BD$15+1,FALSE)="Yes",TRUE,FALSE) -> TRUE | BE46: =IF(VLOOKUP($N46,Allocators!$E$34:$BB$81,BE$15+1,FALSE)="Yes",TRUE,FALSE) -> TRUE | BF46: =IF(VLOOKUP($N46,Allocators!$E$34:$BB$81,BF$15+1,FALSE)="Yes",TRUE,FALSE) -> TRUE | BG46: =IF(VLOOKUP($N46,Allocators!$E$34:$BB$81,BG$15+1,FALSE)="Yes",TRUE,FALSE) -> TRUE | BH46: =IF(VLOOKUP($N46,Allocators!$E$34:$BB$81,BH$15+1,FALSE)="Yes",TRUE,FALSE) -> TRUE | BI46: =IF(VLOOKUP($N46,Allocators!$E$34:$BB$81,BI$15+1,FALSE)="Yes",TRUE,FALSE) -> TRUE | BJ46: =IF(VLOOKUP($N46,Allocators!$E$34:$BB$81,BJ$15+1,FALSE)="Yes",TRUE,FALSE) -> FALSE | BK46: =IF(VLOOKUP($N46,Allocators!$E$34:$BB$81,BK$15+1,FALSE)="Yes",TRUE,FALSE) -> TRUE
C47: =VLOOKUP(N47,Data!$E$233:$G$280,2,FALSE) -> Utilities, Admin, Rental & IT | D47: =VLOOKUP($N47,Data!$E$233:$G$280,3,FALSE) -> Marine Planning and Projects | H47: 0 | I47: TRUE | J47: FALSE | K47: FALSE | M47: Dedicated Prescribed | N47: 32 | O47: =IF(VLOOKUP($N47,Allocators!$E$34:$BB$81,O$15+1,FALSE)="Yes",TRUE,FALSE) -> FALSE | P47: =IF(VLOOKUP($N47,Allocators!$E$34:$BB$81,P$15+1,FALSE)="Yes",TRUE,FALSE) -> FALSE | Q47: =IF(VLOOKUP($N47,Allocators!$E$34:$BB$81,Q$15+1,FALSE)="Yes",TRUE,FALSE) -> FALSE | R47: =IF(VLOOKUP($N47,Allocators!$E$34:$BB$81,R$15+1,FALSE)="Yes",TRUE,FALSE) -> FALSE | S47: =IF(VLOOKUP($N47,Allocators!$E$34:$BB$81,S$15+1,FALSE)="Yes",TRUE,FALSE) -> FALSE | T47: =IF(VLOOKUP($N47,Allocators!$E$34:$BB$81,T$15+1,FALSE)="Yes",TRUE,FALSE) -> FALSE | U47: =IF(VLOOKUP($N47,Allocators!$E$34:$BB$81,U$15+1,FALSE)="Yes",TRUE,FALSE) -> FALSE | V47: =IF(VLOOKUP($N47,Allocators!$E$34:$BB$81,V$15+1,FALSE)="Yes",TRUE,FALSE) -> FALSE | W47: =IF(VLOOKUP($N47,Allocators!$E$34:$BB$81,W$15+1,FALSE)="Yes",TRUE,FALSE) -> FALSE | X47: =IF(VLOOKUP($N47,Allocators!$E$34:$BB$81,X$15+1,FALSE)="Yes",TRUE,FALSE) -> FALSE | Y47: =IF(VLOOKUP($N47,Allocators!$E$34:$BB$81,Y$15+1,FALSE)="Yes",TRUE,FALSE) -> FALSE | Z47: =IF(VLOOKUP($N47,Allocators!$E$34:$BB$81,Z$15+1,FALSE)="Yes",TRUE,FALSE) -> FALSE | AA47: =IF(VLOOKUP($N47,Allocators!$E$34:$BB$81,AA$15+1,FALSE)="Yes",TRUE,FALSE) -> FALSE | AB47: =IF(VLOOKUP($N47,Allocators!$E$34:$BB$81,AB$15+1,FALSE)="Yes",TRUE,FALSE) -> FALSE | AC47: =IF(VLOOKUP($N47,Allocators!$E$34:$BB$81,AC$15+1,FALSE)="Yes",TRUE,FALSE) -> FALSE | AD47: =IF(VLOOKUP($N47,Allocators!$E$34:$BB$81,AD$15+1,FALSE)="Yes",TRUE,FALSE) -> FALSE | AE47: =IF(VLOOKUP($N47,Allocators!$E$34:$BB$81,AE$15+1,FALSE)="Yes",TRUE,FALSE) -> FALSE | AF47: =IF(VLOOKUP($N47,Allocators!$E$34:$BB$81,AF$15+1,FALSE)="Yes",TRUE,FALSE) -> FALSE | AG47: =IF(VLOOKUP($N47,Allocators!$E$34:$BB$81,AG$15+1,FALSE)="Yes",TRUE,FALSE) -> TRUE | AH47: =IF(VLOOKUP($N47,Allocators!$E$34:$BB$81,AH$15+1,FALSE)="Yes",TRUE,FALSE) -> TRUE | AI47: =IF(VLOOKUP($N47,Allocators!$E$34:$BB$81,AI$15+1,FALSE)="Yes",TRUE,FALSE) -> TRUE | AJ47: =IF(VLOOKUP($N47,Allocators!$E$34:$BB$81,AJ$15+1,FALSE)="Yes",TRUE,FALSE) -> TRUE | AK47: =IF(VLOOKUP($N47,Allocators!$E$34:$BB$81,AK$15+1,FALSE)="Yes",TRUE,FALSE) -> TRUE | AL47: =IF(VLOOKUP($N47,Allocators!$E$34:$BB$81,AL$15+1,FALSE)="Yes",TRUE,FALSE) -> TRUE | AM47: =IF(VLOOKUP($N47,Allocators!$E$34:$BB$81,AM$15+1,FALSE)="Yes",TRUE,FALSE) -> TRUE | AN47: =IF(VLOOKUP($N47,Allocators!$E$34:$BB$81,AN$15+1,FALSE)="Yes",TRUE,FALSE) -> TRUE | AO47: =IF(VLOOKUP($N47,Allocators!$E$34:$BB$81,AO$15+1,FALSE)="Yes",TRUE,FALSE) -> TRUE | AP47: =IF(VLOOKUP($N47,Allocators!$E$34:$BB$81,AP$15+1,FALSE)="Yes",TRUE,FALSE) -> TRUE | AQ47: =IF(VLOOKUP($N47,Allocators!$E$34:$BB$81,AQ$15+1,FALSE)="Yes",TRUE,FALSE) -> TRUE | AR47: =IF(VLOOKUP($N47,Allocators!$E$34:$BB$81,AR$15+1,FALSE)="Yes",TRUE,FALSE) -> TRUE | AS47: =IF(VLOOKUP($N47,Allocators!$E$34:$BB$81,AS$15+1,FALSE)="Yes",TRUE,FALSE) -> TRUE | AT47: =IF(VLOOKUP($N47,Allocators!$E$34:$BB$81,AT$15+1,FALSE)="Yes",TRUE,FALSE) -> TRUE | AU47: =IF(VLOOKUP($N47,Allocators!$E$34:$BB$81,AU$15+1,FALSE)="Yes",TRUE,FALSE) -> TRUE | AV47: =IF(VLOOKUP($N47,Allocators!$E$34:$BB$81,AV$15+1,FALSE)="Yes",TRUE,FALSE) -> TRUE | AW47: =IF(VLOOKUP($N47,Allocators!$E$34:$BB$81,AW$15+1,FALSE)="Yes",TRUE,FALSE) -> TRUE | AX47: =IF(VLOOKUP($N47,Allocators!$E$34:$BB$81,AX$15+1,FALSE)="Yes",TRUE,FALSE) -> TRUE | AY47: =IF(VLOOKUP($N47,Allocators!$E$34:$BB$81,AY$15+1,FALSE)="Yes",TRUE,FALSE) -> TRUE | AZ47: =IF(VLOOKUP($N47,Allocators!$E$34:$BB$81,AZ$15+1,FALSE)="Yes",TRUE,FALSE) -> TRUE | BA47: =IF(VLOOKUP($N47,Allocators!$E$34:$BB$81,BA$15+1,FALSE)="Yes",TRUE,FALSE) -> TRUE | BB47: =IF(VLOOKUP($N47,Allocators!$E$34:$BB$81,BB$15+1,FALSE)="Yes",TRUE,FALSE) -> TRUE | BC47: =IF(VLOOKUP($N47,Allocators!$E$34:$BB$81,BC$15+1,FALSE)="Yes",TRUE,FALSE) -> FALSE | BD47: =IF(VLOOKUP($N47,Allocators!$E$34:$BB$81,BD$15+1,FALSE)="Yes",TRUE,FALSE) -> FALSE | BE47: =IF(VLOOKUP($N47,Allocators!$E$34:$BB$81,BE$15+1,FALSE)="Yes",TRUE,FALSE) -> FALSE | BF47: =IF(VLOOKUP($N47,Allocators!$E$34:$BB$81,BF$15+1,FALSE)="Yes",TRUE,FALSE) -> FALSE | BG47: =IF(VLOOKUP($N47,Allocators!$E$34:$BB$81,BG$15+1,FALSE)="Yes",TRUE,FALSE) -> FALSE | BH47: =IF(VLOOKUP($N47,Allocators!$E$34:$BB$81,BH$15+1,FALSE)="Yes",TRUE,FALSE) -> FALSE | BI47: =IF(VLOOKUP($N47,Allocators!$E$34:$BB$81,BI$15+1,FALSE)="Yes",TRUE,FALSE) -> FALSE | BJ47: =IF(VLOOKUP($N47,Allocators!$E$34:$BB$81,BJ$15+1,FALSE)="Yes",TRUE,FALSE) -> FALSE | BK47: =IF(VLOOKUP($N47,Allocators!$E$34:$BB$81,BK$15+1,FALSE)="Yes",TRUE,FALSE) -> FALSE
C48: =VLOOKUP(N48,Data!$E$233:$G$280,2,FALSE) -> Utilities, Admin, Rental & IT | D48: =VLOOKUP($N48,Data!$E$233:$G$280,3,FALSE) -> Maintenance Dredging Projects | H48: 0 | I48: TRUE | J48: FALSE | K48: FALSE | M48: Dedicated Prescribed | N48: 33 | O48: =IF(VLOOKUP($N48,Allocators!$E$34:$BB$81,O$15+1,FALSE)="Yes",TRUE,FALSE) -> FALSE | P48: =IF(VLOOKUP($N48,Allocators!$E$34:$BB$81,P$15+1,FALSE)="Yes",TRUE,FALSE) -> FALSE | Q48: =IF(VLOOKUP($N48,Allocators!$E$34:$BB$81,Q$15+1,FALSE)="Yes",TRUE,FALSE) -> FALSE | R48: =IF(VLOOKUP($N48,Allocators!$E$34:$BB$81,R$15+1,FALSE)="Yes",TRUE,FALSE) -> FALSE | S48: =IF(VLOOKUP($N48,Allocators!$E$34:$BB$81,S$15+1,FALSE)="Yes",TRUE,FALSE) -> FALSE | T48: =IF(VLOOKUP($N48,Allocators!$E$34:$BB$81,T$15+1,FALSE)="Yes",TRUE,FALSE) -> FALSE | U48: =IF(VLOOKUP($N48,Allocators!$E$34:$BB$81,U$15+1,FALSE)="Yes",TRUE,FALSE) -> FALSE | V48: =IF(VLOOKUP($N48,Allocators!$E$34:$BB$81,V$15+1,FALSE)="Yes",TRUE,FALSE) -> FALSE | W48: =IF(VLOOKUP($N48,Allocators!$E$34:$BB$81,W$15+1,FALSE)="Yes",TRUE,FALSE) -> FALSE | X48: =IF(VLOOKUP($N48,Allocators!$E$34:$BB$81,X$15+1,FALSE)="Yes",TRUE,FALSE) -> FALSE | Y48: =IF(VLOOKUP($N48,Allocators!$E$34:$BB$81,Y$15+1,FALSE)="Yes",TRUE,FALSE) -> FALSE | Z48: =IF(VLOOKUP($N48,Allocators!$E$34:$BB$81,Z$15+1,FALSE)="Yes",TRUE,FALSE) -> FALSE | AA48: =IF(VLOOKUP($N48,Allocators!$E$34:$BB$81,AA$15+1,FALSE)="Yes",TRUE,FALSE) -> FALSE | AB48: =IF(VLOOKUP($N48,Allocators!$E$34:$BB$81,AB$15+1,FALSE)="Yes",TRUE,FALSE) -> FALSE | AC48: =IF(VLOOKUP($N48,Allocators!$E$34:$BB$81,AC$15+1,FALSE)="Yes",TRUE,FALSE) -> FALSE | AD48: =IF(VLOOKUP($N48,Allocators!$E$34:$BB$81,AD$15+1,FALSE)="Yes",TRUE,FALSE) -> FALSE | AE48: =IF(VLOOKUP($N48,Allocators!$E$34:$BB$81,AE$15+1,FALSE)="Yes",TRUE,FALSE) -> FALSE | AF48: =IF(VLOOKUP($N48,Allocators!$E$34:$BB$81,AF$15+1,FALSE)="Yes",TRUE,FALSE) -> FALSE | AG48: =IF(VLOOKUP($N48,Allocators!$E$34:$BB$81,AG$15+1,FALSE)="Yes",TRUE,FALSE) -> TRUE | AH48: =IF(VLOOKUP($N48,Allocators!$E$34:$BB$81,AH$15+1,FALSE)="Yes",TRUE,FALSE) -> TRUE | AI48: =IF(VLOOKUP($N48,Allocators!$E$34:$BB$81,AI$15+1,FALSE)="Yes",TRUE,FALSE) -> TRUE | AJ48: =IF(VLOOKUP($N48,Allocators!$E$34:$BB$81,AJ$15+1,FALSE)="Yes",TRUE,FALSE) -> TRUE | AK48: =IF(VLOOKUP($N48,Allocators!$E$34:$BB$81,AK$15+1,FALSE)="Yes",TRUE,FALSE) -> TRUE | AL48: =IF(VLOOKUP($N48,Allocators!$E$34:$BB$81,AL$15+1,FALSE)="Yes",TRUE,FALSE) -> TRUE | AM48: =IF(VLOOKUP($N48,Allocators!$E$34:$BB$81,AM$15+1,FALSE)="Yes",TRUE,FALSE) -> TRUE | AN48: =IF(VLOOKUP($N48,Allocators!$E$34:$BB$81,AN$15+1,FALSE)="Yes",TRUE,FALSE) -> TRUE | AO48: =IF(VLOOKUP($N48,Allocators!$E$34:$BB$81,AO$15+1,FALSE)="Yes",TRUE,FALSE) -> TRUE | AP48: =IF(VLOOKUP($N48,Allocators!$E$34:$BB$81,AP$15+1,FALSE)="Yes",TRUE,FALSE) -> TRUE | AQ48: =IF(VLOOKUP($N48,Allocators!$E$34:$BB$81,AQ$15+1,FALSE)="Yes",TRUE,FALSE) -> TRUE | AR48: =IF(VLOOKUP($N48,Allocators!$E$34:$BB$81,AR$15+1,FALSE)="Yes",TRUE,FALSE) -> TRUE | AS48: =IF(VLOOKUP($N48,Allocators!$E$34:$BB$81,AS$15+1,FALSE)="Yes",TRUE,FALSE) -> TRUE | AT48: =IF(VLOOKUP($N48,Allocators!$E$34:$BB$81,AT$15+1,FALSE)="Yes",TRUE,FALSE) -> TRUE | AU48: =IF(VLOOKUP($N48,Allocators!$E$34:$BB$81,AU$15+1,FALSE)="Yes",TRUE,FALSE) -> TRUE | AV48: =IF(VLOOKUP($N48,Allocators!$E$34:$BB$81,AV$15+1,FALSE)="Yes",TRUE,FALSE) -> TRUE | AW48: =IF(VLOOKUP($N48,Allocators!$E$34:$BB$81,AW$15+1,FALSE)="Yes",TRUE,FALSE) -> TRUE | AX48: =IF(VLOOKUP($N48,Allocators!$E$34:$BB$81,AX$15+1,FALSE)="Yes",TRUE,FALSE) -> TRUE | AY48: =IF(VLOOKUP($N48,Allocators!$E$34:$BB$81,AY$15+1,FALSE)="Yes",TRUE,FALSE) -> TRUE | AZ48: =IF(VLOOKUP($N48,Allocators!$E$34:$BB$81,AZ$15+1,FALSE)="Yes",TRUE,FALSE) -> TRUE | BA48: =IF(VLOOKUP($N48,Allocators!$E$34:$BB$81,BA$15+1,FALSE)="Yes",TRUE,FALSE) -> TRUE | BB48: =IF(VLOOKUP($N48,Allocators!$E$34:$BB$81,BB$15+1,FALSE)="Yes",TRUE,FALSE) -> TRUE | BC48: =IF(VLOOKUP($N48,Allocators!$E$34:$BB$81,BC$15+1,FALSE)="Yes",TRUE,FALSE) -> FALSE | BD48: =IF(VLOOKUP($N48,Allocators!$E$34:$BB$81,BD$15+1,FALSE)="Yes",TRUE,FALSE) -> FALSE | BE48: =IF(VLOOKUP($N48,Allocators!$E$34:$BB$81,BE$15+1,FALSE)="Yes",TRUE,FALSE) -> FALSE | BF48: =IF(VLOOKUP($N48,Allocators!$E$34:$BB$81,BF$15+1,FALSE)="Yes",TRUE,FALSE) -> FALSE | BG48: =IF(VLOOKUP($N48,Allocators!$E$34:$BB$81,BG$15+1,FALSE)="Yes",TRUE,FALSE) -> FALSE | BH48: =IF(VLOOKUP($N48,Allocators!$E$34:$BB$81,BH$15+1,FALSE)="Yes",TRUE,FALSE) -> FALSE | BI48: =IF(VLOOKUP($N48,Allocators!$E$34:$BB$81,BI$15+1,FALSE)="Yes",TRUE,FALSE) -> FALSE | BJ48: =IF(VLOOKUP($N48,Allocators!$E$34:$BB$81,BJ$15+1,FALSE)="Yes",TRUE,FALSE) -> FALSE | BK48: =IF(VLOOKUP($N48,Allocators!$E$34:$BB$81,BK$15+1,FALSE)="Yes",TRUE,FALSE) -> FALSE
C49: =VLOOKUP(N49,Data!$E$233:$G$280,2,FALSE) -> Utilities, Admin, Rental & IT | D49: =VLOOKUP($N49,Data!$E$233:$G$280,3,FALSE) -> Contaminated Land Group | H49: 0 | I49: FALSE | J49: FALSE | K49: TRUE | M49: Shared | N49: 34 | O49: =IF(VLOOKUP($N49,Allocators!$E$34:$BB$81,O$15+1,FALSE)="Yes",TRUE,FALSE) -> TRUE | P49: =IF(VLOOKUP($N49,Allocators!$E$34:$BB$81,P$15+1,FALSE)="Yes",TRUE,FALSE) -> TRUE | Q49: =IF(VLOOKUP($N49,Allocators!$E$34:$BB$81,Q$15+1,FALSE)="Yes",TRUE,FALSE) -> TRUE | R49: =IF(VLOOKUP($N49,Allocators!$E$34:$BB$81,R$15+1,FALSE)="Yes",TRUE,FALSE) -> TRUE | S49: =IF(VLOOKUP($N49,Allocators!$E$34:$BB$81,S$15+1,FALSE)="Yes",TRUE,FALSE) -> TRUE | T49: =IF(VLOOKUP($N49,Allocators!$E$34:$BB$81,T$15+1,FALSE)="Yes",TRUE,FALSE) -> TRUE | U49: =IF(VLOOKUP($N49,Allocators!$E$34:$BB$81,U$15+1,FALSE)="Yes",TRUE,FALSE) -> TRUE | V49: =IF(VLOOKUP($N49,Allocators!$E$34:$BB$81,V$15+1,FALSE)="Yes",TRUE,FALSE) -> TRUE | W49: =IF(VLOOKUP($N49,Allocators!$E$34:$BB$81,W$15+1,FALSE)="Yes",TRUE,FALSE) -> TRUE | X49: =IF(VLOOKUP($N49,Allocators!$E$34:$BB$81,X$15+1,FALSE)="Yes",TRUE,FALSE) -> TRUE | Y49: =IF(VLOOKUP($N49,Allocators!$E$34:$BB$81,Y$15+1,FALSE)="Yes",TRUE,FALSE) -> TRUE | Z49: =IF(VLOOKUP($N49,Allocators!$E$34:$BB$81,Z$15+1,FALSE)="Yes",TRUE,FALSE) -> TRUE | AA49: =IF(VLOOKUP($N49,Allocators!$E$34:$BB$81,AA$15+1,FALSE)="Yes",TRUE,FALSE) -> TRUE | AB49: =IF(VLOOKUP($N49,Allocators!$E$34:$BB$81,AB$15+1,FALSE)="Yes",TRUE,FALSE) -> TRUE | AC49: =IF(VLOOKUP($N49,Allocators!$E$34:$BB$81,AC$15+1,FALSE)="Yes",TRUE,FALSE) -> TRUE | AD49: =IF(VLOOKUP($N49,Allocators!$E$34:$BB$81,AD$15+1,FALSE)="Yes",TRUE,FALSE) -> TRUE | AE49: =IF(VLOOKUP($N49,Allocators!$E$34:$BB$81,AE$15+1,FALSE)="Yes",TRUE,FALSE) -> TRUE | AF49: =IF(VLOOKUP($N49,Allocators!$E$34:$BB$81,AF$15+1,FALSE)="Yes",TRUE,FALSE) -> TRUE | AG49: =IF(VLOOKUP($N49,Allocators!$E$34:$BB$81,AG$15+1,FALSE)="Yes",TRUE,FALSE) -> FALSE | AH49: =IF(VLOOKUP($N49,Allocators!$E$34:$BB$81,AH$15+1,FALSE)="Yes",TRUE,FALSE) -> FALSE | AI49: =IF(VLOOKUP($N49,Allocators!$E$34:$BB$81,AI$15+1,FALSE)="Yes",TRUE,FALSE) -> FALSE | AJ49: =IF(VLOOKUP($N49,Allocators!$E$34:$BB$81,AJ$15+1,FALSE)="Yes",TRUE,FALSE) -> FALSE | AK49: =IF(VLOOKUP($N49,Allocators!$E$34:$BB$81,AK$15+1,FALSE)="Yes",TRUE,FALSE) -> FALSE | AL49: =IF(VLOOKUP($N49,Allocators!$E$34:$BB$81,AL$15+1,FALSE)="Yes",TRUE,FALSE) -> FALSE | AM49: =IF(VLOOKUP($N49,Allocators!$E$34:$BB$81,AM$15+1,FALSE)="Yes",TRUE,FALSE) -> FALSE | AN49: =IF(VLOOKUP($N49,Allocators!$E$34:$BB$81,AN$15+1,FALSE)="Yes",TRUE,FALSE) -> FALSE | AO49: =IF(VLOOKUP($N49,Allocators!$E$34:$BB$81,AO$15+1,FALSE)="Yes",TRUE,FALSE) -> FALSE | AP49: =IF(VLOOKUP($N49,Allocators!$E$34:$BB$81,AP$15+1,FALSE)="Yes",TRUE,FALSE) -> FALSE | AQ49: =IF(VLOOKUP($N49,Allocators!$E$34:$BB$81,AQ$15+1,FALSE)="Yes",TRUE,FALSE) -> FALSE | AR49: =IF(VLOOKUP($N49,Allocators!$E$34:$BB$81,AR$15+1,FALSE)="Yes",TRUE,FALSE) -> FALSE | AS49: =IF(VLOOKUP($N49,Allocators!$E$34:$BB$81,AS$15+1,FALSE)="Yes",TRUE,FALSE) -> FALSE | AT49: =IF(VLOOKUP($N49,Allocators!$E$34:$BB$81,AT$15+1,FALSE)="Yes",TRUE,FALSE) -> FALSE | AU49: =IF(VLOOKUP($N49,Allocators!$E$34:$BB$81,AU$15+1,FALSE)="Yes",TRUE,FALSE) -> FALSE | AV49: =IF(VLOOKUP($N49,Allocators!$E$34:$BB$81,AV$15+1,FALSE)="Yes",TRUE,FALSE) -> FALSE | AW49: =IF(VLOOKUP($N49,Allocators!$E$34:$BB$81,AW$15+1,FALSE)="Yes",TRUE,FALSE) -> FALSE | AX49: =IF(VLOOKUP($N49,Allocators!$E$34:$BB$81,AX$15+1,FALSE)="Yes",TRUE,FALSE) -> FALSE | AY49: =IF(VLOOKUP($N49,Allocators!$E$34:$BB$81,AY$15+1,FALSE)="Yes",TRUE,FALSE) -> FALSE | AZ49: =IF(VLOOKUP($N49,Allocators!$E$34:$BB$81,AZ$15+1,FALSE)="Yes",TRUE,FALSE) -> FALSE | BA49: =IF(VLOOKUP($N49,Allocators!$E$34:$BB$81,BA$15+1,FALSE)="Yes",TRUE,FALSE) -> FALSE | BB49: =IF(VLOOKUP($N49,Allocators!$E$34:$BB$81,BB$15+1,FALSE)="Yes",TRUE,FALSE) -> FALSE | BC49: =IF(VLOOKUP($N49,Allocators!$E$34:$BB$81,BC$15+1,FALSE)="Yes",TRUE,FALSE) -> TRUE | BD49: =IF(VLOOKUP($N49,Allocators!$E$34:$BB$81,BD$15+1,FALSE)="Yes",TRUE,FALSE) -> TRUE | BE49: =IF(VLOOKUP($N49,Allocators!$E$34:$BB$81,BE$15+1,FALSE)="Yes",TRUE,FALSE) -> TRUE | BF49: =IF(VLOOKUP($N49,Allocators!$E$34:$BB$81,BF$15+1,FALSE)="Yes",TRUE,FALSE) -> FALSE | BG49: =IF(VLOOKUP($N49,Allocators!$E$34:$BB$81,BG$15+1,FALSE)="Yes",TRUE,FALSE) -> FALSE | BH49: =IF(VLOOKUP($N49,Allocators!$E$34:$BB$81,BH$15+1,FALSE)="Yes",TRUE,FALSE) -> FALSE | BI49: =IF(VLOOKUP($N49,Allocators!$E$34:$BB$81,BI$15+1,FALSE)="Yes",TRUE,FALSE) -> FALSE | BJ49: =IF(VLOOKUP($N49,Allocators!$E$34:$BB$81,BJ$15+1,FALSE)="Yes",TRUE,FALSE) -> FALSE | BK49: =IF(VLOOKUP($N49,Allocators!$E$34:$BB$81,BK$15+1,FALSE)="Yes",TRUE,FALSE) -> TRUE
C50: =VLOOKUP(N50,Data!$E$233:$G$280,2,FALSE) -> Utilities, Admin, Rental & IT | D50: =VLOOKUP($N50,Data!$E$233:$G$280,3,FALSE) -> Land Use Planning | H50: 0 | I50: FALSE | J50: FALSE | K50: TRUE | M50: Shared | N50: 35 | O50: =IF(VLOOKUP($N50,Allocators!$E$34:$BB$81,O$15+1,FALSE)="Yes",TRUE,FALSE) -> TRUE | P50: =IF(VLOOKUP($N50,Allocators!$E$34:$BB$81,P$15+1,FALSE)="Yes",TRUE,FALSE) -> TRUE | Q50: =IF(VLOOKUP($N50,Allocators!$E$34:$BB$81,Q$15+1,FALSE)="Yes",TRUE,FALSE) -> TRUE | R50: =IF(VLOOKUP($N50,Allocators!$E$34:$BB$81,R$15+1,FALSE)="Yes",TRUE,FALSE) -> TRUE | S50: =IF(VLOOKUP($N50,Allocators!$E$34:$BB$81,S$15+1,FALSE)="Yes",TRUE,FALSE) -> TRUE | T50: =IF(VLOOKUP($N50,Allocators!$E$34:$BB$81,T$15+1,FALSE)="Yes",TRUE,FALSE) -> TRUE | U50: =IF(VLOOKUP($N50,Allocators!$E$34:$BB$81,U$15+1,FALSE)="Yes",TRUE,FALSE) -> TRUE | V50: =IF(VLOOKUP($N50,Allocators!$E$34:$BB$81,V$15+1,FALSE)="Yes",TRUE,FALSE) -> TRUE | W50: =IF(VLOOKUP($N50,Allocators!$E$34:$BB$81,W$15+1,FALSE)="Yes",TRUE,FALSE) -> TRUE | X50: =IF(VLOOKUP($N50,Allocators!$E$34:$BB$81,X$15+1,FALSE)="Yes",TRUE,FALSE) -> TRUE | Y50: =IF(VLOOKUP($N50,Allocators!$E$34:$BB$81,Y$15+1,FALSE)="Yes",TRUE,FALSE) -> TRUE | Z50: =IF(VLOOKUP($N50,Allocators!$E$34:$BB$81,Z$15+1,FALSE)="Yes",TRUE,FALSE) -> TRUE | AA50: =IF(VLOOKUP($N50,Allocators!$E$34:$BB$81,AA$15+1,FALSE)="Yes",TRUE,FALSE) -> TRUE | AB50: =IF(VLOOKUP($N50,Allocators!$E$34:$BB$81,AB$15+1,FALSE)="Yes",TRUE,FALSE) -> TRUE | AC50: =IF(VLOOKUP($N50,Allocators!$E$34:$BB$81,AC$15+1,FALSE)="Yes",TRUE,FALSE) -> TRUE | AD50: =IF(VLOOKUP($N50,Allocators!$E$34:$BB$81,AD$15+1,FALSE)="Yes",TRUE,FALSE) -> TRUE | AE50: =IF(VLOOKUP($N50,Allocators!$E$34:$BB$81,AE$15+1,FALSE)="Yes",TRUE,FALSE) -> TRUE | AF50: =IF(VLOOKUP($N50,Allocators!$E$34:$BB$81,AF$15+1,FALSE)="Yes",TRUE,FALSE) -> TRUE | AG50: =IF(VLOOKUP($N50,Allocators!$E$34:$BB$81,AG$15+1,FALSE)="Yes",TRUE,FALSE) -> FALSE | AH50: =IF(VLOOKUP($N50,Allocators!$E$34:$BB$81,AH$15+1,FALSE)="Yes",TRUE,FALSE) -> FALSE | AI50: =IF(VLOOKUP($N50,Allocators!$E$34:$BB$81,AI$15+1,FALSE)="Yes",TRUE,FALSE) -> FALSE | AJ50: =IF(VLOOKUP($N50,Allocators!$E$34:$BB$81,AJ$15+1,FALSE)="Yes",TRUE,FALSE) -> FALSE | AK50: =IF(VLOOKUP($N50,Allocators!$E$34:$BB$81,AK$15+1,FALSE)="Yes",TRUE,FALSE) -> FALSE | AL50: =IF(VLOOKUP($N50,Allocators!$E$34:$BB$81,AL$15+1,FALSE)="Yes",TRUE,FALSE) -> FALSE | AM50: =IF(VLOOKUP($N50,Allocators!$E$34:$BB$81,AM$15+1,FALSE)="Yes",TRUE,FALSE) -> FALSE | AN50: =IF(VLOOKUP($N50,Allocators!$E$34:$BB$81,AN$15+1,FALSE)="Yes",TRUE,FALSE) -> FALSE | AO50: =IF(VLOOKUP($N50,Allocators!$E$34:$BB$81,AO$15+1,FALSE)="Yes",TRUE,FALSE) -> FALSE | AP50: =IF(VLOOKUP($N50,Allocators!$E$34:$BB$81,AP$15+1,FALSE)="Yes",TRUE,FALSE) -> FALSE | AQ50: =IF(VLOOKUP($N50,Allocators!$E$34:$BB$81,AQ$15+1,FALSE)="Yes",TRUE,FALSE) -> FALSE | AR50: =IF(VLOOKUP($N50,Allocators!$E$34:$BB$81,AR$15+1,FALSE)="Yes",TRUE,FALSE) -> FALSE | AS50: =IF(VLOOKUP($N50,Allocators!$E$34:$BB$81,AS$15+1,FALSE)="Yes",TRUE,FALSE) -> FALSE | AT50: =IF(VLOOKUP($N50,Allocators!$E$34:$BB$81,AT$15+1,FALSE)="Yes",TRUE,FALSE) -> FALSE | AU50: =IF(VLOOKUP($N50,Allocators!$E$34:$BB$81,AU$15+1,FALSE)="Yes",TRUE,FALSE) -> FALSE | AV50: =IF(VLOOKUP($N50,Allocators!$E$34:$BB$81,AV$15+1,FALSE)="Yes",TRUE,FALSE) -> FALSE | AW50: =IF(VLOOKUP($N50,Allocators!$E$34:$BB$81,AW$15+1,FALSE)="Yes",TRUE,FALSE) -> FALSE | AX50: =IF(VLOOKUP($N50,Allocators!$E$34:$BB$81,AX$15+1,FALSE)="Yes",TRUE,FALSE) -> FALSE | AY50: =IF(VLOOKUP($N50,Allocators!$E$34:$BB$81,AY$15+1,FALSE)="Yes",TRUE,FALSE) -> FALSE | AZ50: =IF(VLOOKUP($N50,Allocators!$E$34:$BB$81,AZ$15+1,FALSE)="Yes",TRUE,FALSE) -> FALSE | BA50: =IF(VLOOKUP($N50,Allocators!$E$34:$BB$81,BA$15+1,FALSE)="Yes",TRUE,FALSE) -> FALSE | BB50: =IF(VLOOKUP($N50,Allocators!$E$34:$BB$81,BB$15+1,FALSE)="Yes",TRUE,FALSE) -> FALSE | BC50: =IF(VLOOKUP($N50,Allocators!$E$34:$BB$81,BC$15+1,FALSE)="Yes",TRUE,FALSE) -> TRUE | BD50: =IF(VLOOKUP($N50,Allocators!$E$34:$BB$81,BD$15+1,FALSE)="Yes",TRUE,FALSE) -> TRUE | BE50: =IF(VLOOKUP($N50,Allocators!$E$34:$BB$81,BE$15+1,FALSE)="Yes",TRUE,FALSE) -> TRUE | BF50: =IF(VLOOKUP($N50,Allocators!$E$34:$BB$81,BF$15+1,FALSE)="Yes",TRUE,FALSE) -> FALSE | BG50: =IF(VLOOKUP($N50,Allocators!$E$34:$BB$81,BG$15+1,FALSE)="Yes",TRUE,FALSE) -> FALSE | BH50: =IF(VLOOKUP($N50,Allocators!$E$34:$BB$81,BH$15+1,FALSE)="Yes",TRUE,FALSE) -> FALSE | BI50: =IF(VLOOKUP($N50,Allocators!$E$34:$BB$81,BI$15+1,FALSE)="Yes",TRUE,FALSE) -> FALSE | BJ50: =IF(VLOOKUP($N50,Allocators!$E$34:$BB$81,BJ$15+1,FALSE)="Yes",TRUE,FALSE) -> FALSE | BK50: =IF(VLOOKUP($N50,Allocators!$E$34:$BB$81,BK$15+1,FALSE)="Yes",TRUE,FALSE) -> TRUE
C51: =VLOOKUP(N51,Data!$E$233:$G$280,2,FALSE) -> Non-Recurring | D51: =VLOOKUP($N51,Data!$E$233:$G$280,3,FALSE) -> Prescribed | H51: 0 | I51: TRUE | J51: FALSE | K51: FALSE | M51: Dedicated Prescribed | N51: 36 | O51: =IF(VLOOKUP($N51,Allocators!$E$34:$BB$81,O$15+1,FALSE)="Yes",TRUE,FALSE) -> TRUE | P51: =IF(VLOOKUP($N51,Allocators!$E$34:$BB$81,P$15+1,FALSE)="Yes",TRUE,FALSE) -> TRUE | Q51: =IF(VLOOKUP($N51,Allocators!$E$34:$BB$81,Q$15+1,FALSE)="Yes",TRUE,FALSE) -> TRUE | R51: =IF(VLOOKUP($N51,Allocators!$E$34:$BB$81,R$15+1,FALSE)="Yes",TRUE,FALSE) -> TRUE | S51: =IF(VLOOKUP($N51,Allocators!$E$34:$BB$81,S$15+1,FALSE)="Yes",TRUE,FALSE) -> TRUE | T51: =IF(VLOOKUP($N51,Allocators!$E$34:$BB$81,T$15+1,FALSE)="Yes",TRUE,FALSE) -> TRUE | U51: =IF(VLOOKUP($N51,Allocators!$E$34:$BB$81,U$15+1,FALSE)="Yes",TRUE,FALSE) -> TRUE | V51: =IF(VLOOKUP($N51,Allocators!$E$34:$BB$81,V$15+1,FALSE)="Yes",TRUE,FALSE) -> TRUE | W51: =IF(VLOOKUP($N51,Allocators!$E$34:$BB$81,W$15+1,FALSE)="Yes",TRUE,FALSE) -> TRUE | X51: =IF(VLOOKUP($N51,Allocators!$E$34:$BB$81,X$15+1,FALSE)="Yes",TRUE,FALSE) -> TRUE | Y51: =IF(VLOOKUP($N51,Allocators!$E$34:$BB$81,Y$15+1,FALSE)="Yes",TRUE,FALSE) -> TRUE | Z51: =IF(VLOOKUP($N51,Allocators!$E$34:$BB$81,Z$15+1,FALSE)="Yes",TRUE,FALSE) -> TRUE | AA51: =IF(VLOOKUP($N51,Allocators!$E$34:$BB$81,AA$15+1,FALSE)="Yes",TRUE,FALSE) -> TRUE | AB51: =IF(VLOOKUP($N51,Allocators!$E$34:$BB$81,AB$15+1,FALSE)="Yes",TRUE,FALSE) -> TRUE | AC51: =IF(VLOOKUP($N51,Allocators!$E$34:$BB$81,AC$15+1,FALSE)="Yes",TRUE,FALSE) -> TRUE | AD51: =IF(VLOOKUP($N51,Allocators!$E$34:$BB$81,AD$15+1,FALSE)="Yes",TRUE,FALSE) -> TRUE | AE51: =IF(VLOOKUP($N51,Allocators!$E$34:$BB$81,AE$15+1,FALSE)="Yes",TRUE,FALSE) -> TRUE | AF51: =IF(VLOOKUP($N51,Allocators!$E$34:$BB$81,AF$15+1,FALSE)="Yes",TRUE,FALSE) -> TRUE | AG51: =IF(VLOOKUP($N51,Allocators!$E$34:$BB$81,AG$15+1,FALSE)="Yes",TRUE,FALSE) -> TRUE | AH51: =IF(VLOOKUP($N51,Allocators!$E$34:$BB$81,AH$15+1,FALSE)="Yes",TRUE,FALSE) -> TRUE | AI51: =IF(VLOOKUP($N51,Allocators!$E$34:$BB$81,AI$15+1,FALSE)="Yes",TRUE,FALSE) -> TRUE | AJ51: =IF(VLOOKUP($N51,Allocators!$E$34:$BB$81,AJ$15+1,FALSE)="Yes",TRUE,FALSE) -> TRUE | AK51: =IF(VLOOKUP($N51,Allocators!$E$34:$BB$81,AK$15+1,FALSE)="Yes",TRUE,FALSE) -> TRUE | AL51: =IF(VLOOKUP($N51,Allocators!$E$34:$BB$81,AL$15+1,FALSE)="Yes",TRUE,FALSE) -> TRUE | AM51: =IF(VLOOKUP($N51,Allocators!$E$34:$BB$81,AM$15+1,FALSE)="Yes",TRUE,FALSE) -> TRUE | AN51: =IF(VLOOKUP($N51,Allocators!$E$34:$BB$81,AN$15+1,FALSE)="Yes",TRUE,FALSE) -> TRUE | AO51: =IF(VLOOKUP($N51,Allocators!$E$34:$BB$81,AO$15+1,FALSE)="Yes",TRUE,FALSE) -> TRUE | AP51: =IF(VLOOKUP($N51,Allocators!$E$34:$BB$81,AP$15+1,FALSE)="Yes",TRUE,FALSE) -> TRUE | AQ51: =IF(VLOOKUP($N51,Allocators!$E$34:$BB$81,AQ$15+1,FALSE)="Yes",TRUE,FALSE) -> TRUE | AR51: =IF(VLOOKUP($N51,Allocators!$E$34:$BB$81,AR$15+1,FALSE)="Yes",TRUE,FALSE) -> TRUE | AS51: =IF(VLOOKUP($N51,Allocators!$E$34:$BB$81,AS$15+1,FALSE)="Yes",TRUE,FALSE) -> TRUE | AT51: =IF(VLOOKUP($N51,Allocators!$E$34:$BB$81,AT$15+1,FALSE)="Yes",TRUE,FALSE) -> TRUE | AU51: =IF(VLOOKUP($N51,Allocators!$E$34:$BB$81,AU$15+1,FALSE)="Yes",TRUE,FALSE) -> TRUE | AV51: =IF(VLOOKUP($N51,Allocators!$E$34:$BB$81,AV$15+1,FALSE)="Yes",TRUE,FALSE) -> TRUE | AW51: =IF(VLOOKUP($N51,Allocators!$E$34:$BB$81,AW$15+1,FALSE)="Yes",TRUE,FALSE) -> TRUE | AX51: =IF(VLOOKUP($N51,Allocators!$E$34:$BB$81,AX$15+1,FALSE)="Yes",TRUE,FALSE) -> TRUE | AY51: =IF(VLOOKUP($N51,Allocators!$E$34:$BB$81,AY$15+1,FALSE)="Yes",TRUE,FALSE) -> TRUE | AZ51: =IF(VLOOKUP($N51,Allocators!$E$34:$BB$81,AZ$15+1,FALSE)="Yes",TRUE,FALSE) -> TRUE | BA51: =IF(VLOOKUP($N51,Allocators!$E$34:$BB$81,BA$15+1,FALSE)="Yes",TRUE,FALSE) -> TRUE | BB51: =IF(VLOOKUP($N51,Allocators!$E$34:$BB$81,BB$15+1,FALSE)="Yes",TRUE,FALSE) -> TRUE | BC51: =IF(VLOOKUP($N51,Allocators!$E$34:$BB$81,BC$15+1,FALSE)="Yes",TRUE,FALSE) -> TRUE | BD51: =IF(VLOOKUP($N51,Allocators!$E$34:$BB$81,BD$15+1,FALSE)="Yes",TRUE,FALSE) -> TRUE | BE51: =IF(VLOOKUP($N51,Allocators!$E$34:$BB$81,BE$15+1,FALSE)="Yes",TRUE,FALSE) -> TRUE | BF51: =IF(VLOOKUP($N51,Allocators!$E$34:$BB$81,BF$15+1,FALSE)="Yes",TRUE,FALSE) -> TRUE | BG51: =IF(VLOOKUP($N51,Allocators!$E$34:$BB$81,BG$15+1,FALSE)="Yes",TRUE,FALSE) -> TRUE | BH51: =IF(VLOOKUP($N51,Allocators!$E$34:$BB$81,BH$15+1,FALSE)="Yes",TRUE,FALSE) -> TRUE | BI51: =IF(VLOOKUP($N51,Allocators!$E$34:$BB$81,BI$15+1,FALSE)="Yes",TRUE,FALSE) -> TRUE | BJ51: =IF(VLOOKUP($N51,Allocators!$E$34:$BB$81,BJ$15+1,FALSE)="Yes",TRUE,FALSE) -> FALSE | BK51: =IF(VLOOKUP($N51,Allocators!$E$34:$BB$81,BK$15+1,FALSE)="Yes",TRUE,FALSE) -> FALSE
C52: =VLOOKUP(N52,Data!$E$233:$G$280,2,FALSE) -> Non-Recurring | D52: =VLOOKUP($N52,Data!$E$233:$G$280,3,FALSE) -> Non-Prescribed | H52: 0 | I52: FALSE | J52: TRUE | K52: FALSE | M52: Dedicated Non-prescribed | N52: 37 | O52: =IF(VLOOKUP($N52,Allocators!$E$34:$BB$81,O$15+1,FALSE)="Yes",TRUE,FALSE) -> FALSE | P52: =IF(VLOOKUP($N52,Allocators!$E$34:$BB$81,P$15+1,FALSE)="Yes",TRUE,FALSE) -> FALSE | Q52: =IF(VLOOKUP($N52,Allocators!$E$34:$BB$81,Q$15+1,FALSE)="Yes",TRUE,FALSE) -> FALSE | R52: =IF(VLOOKUP($N52,Allocators!$E$34:$BB$81,R$15+1,FALSE)="Yes",TRUE,FALSE) -> FALSE | S52: =IF(VLOOKUP($N52,Allocators!$E$34:$BB$81,S$15+1,FALSE)="Yes",TRUE,FALSE) -> FALSE | T52: =IF(VLOOKUP($N52,Allocators!$E$34:$BB$81,T$15+1,FALSE)="Yes",TRUE,FALSE) -> FALSE | U52: =IF(VLOOKUP($N52,Allocators!$E$34:$BB$81,U$15+1,FALSE)="Yes",TRUE,FALSE) -> FALSE | V52: =IF(VLOOKUP($N52,Allocators!$E$34:$BB$81,V$15+1,FALSE)="Yes",TRUE,FALSE) -> FALSE | W52: =IF(VLOOKUP($N52,Allocators!$E$34:$BB$81,W$15+1,FALSE)="Yes",TRUE,FALSE) -> FALSE | X52: =IF(VLOOKUP($N52,Allocators!$E$34:$BB$81,X$15+1,FALSE)="Yes",TRUE,FALSE) -> FALSE | Y52: =IF(VLOOKUP($N52,Allocators!$E$34:$BB$81,Y$15+1,FALSE)="Yes",TRUE,FALSE) -> FALSE | Z52: =IF(VLOOKUP($N52,Allocators!$E$34:$BB$81,Z$15+1,FALSE)="Yes",TRUE,FALSE) -> FALSE | AA52: =IF(VLOOKUP($N52,Allocators!$E$34:$BB$81,AA$15+1,FALSE)="Yes",TRUE,FALSE) -> FALSE | AB52: =IF(VLOOKUP($N52,Allocators!$E$34:$BB$81,AB$15+1,FALSE)="Yes",TRUE,FALSE) -> FALSE | AC52: =IF(VLOOKUP($N52,Allocators!$E$34:$BB$81,AC$15+1,FALSE)="Yes",TRUE,FALSE) -> FALSE | AD52: =IF(VLOOKUP($N52,Allocators!$E$34:$BB$81,AD$15+1,FALSE)="Yes",TRUE,FALSE) -> FALSE | AE52: =IF(VLOOKUP($N52,Allocators!$E$34:$BB$81,AE$15+1,FALSE)="Yes",TRUE,FALSE) -> FALSE | AF52: =IF(VLOOKUP($N52,Allocators!$E$34:$BB$81,AF$15+1,FALSE)="Yes",TRUE,FALSE) -> FALSE | AG52: =IF(VLOOKUP($N52,Allocators!$E$34:$BB$81,AG$15+1,FALSE)="Yes",TRUE,FALSE) -> FALSE | AH52: =IF(VLOOKUP($N52,Allocators!$E$34:$BB$81,AH$15+1,FALSE)="Yes",TRUE,FALSE) -> FALSE | AI52: =IF(VLOOKUP($N52,Allocators!$E$34:$BB$81,AI$15+1,FALSE)="Yes",TRUE,FALSE) -> FALSE | AJ52: =IF(VLOOKUP($N52,Allocators!$E$34:$BB$81,AJ$15+1,FALSE)="Yes",TRUE,FALSE) -> FALSE | AK52: =IF(VLOOKUP($N52,Allocators!$E$34:$BB$81,AK$15+1,FALSE)="Yes",TRUE,FALSE) -> FALSE | AL52: =IF(VLOOKUP($N52,Allocators!$E$34:$BB$81,AL$15+1,FALSE)="Yes",TRUE,FALSE) -> FALSE | AM52: =IF(VLOOKUP($N52,Allocators!$E$34:$BB$81,AM$15+1,FALSE)="Yes",TRUE,FALSE) -> FALSE | AN52: =IF(VLOOKUP($N52,Allocators!$E$34:$BB$81,AN$15+1,FALSE)="Yes",TRUE,FALSE) -> FALSE | AO52: =IF(VLOOKUP($N52,Allocators!$E$34:$BB$81,AO$15+1,FALSE)="Yes",TRUE,FALSE) -> FALSE | AP52: =IF(VLOOKUP($N52,Allocators!$E$34:$BB$81,AP$15+1,FALSE)="Yes",TRUE,FALSE) -> FALSE | AQ52: =IF(VLOOKUP($N52,Allocators!$E$34:$BB$81,AQ$15+1,FALSE)="Yes",TRUE,FALSE) -> FALSE | AR52: =IF(VLOOKUP($N52,Allocators!$E$34:$BB$81,AR$15+1,FALSE)="Yes",TRUE,FALSE) -> FALSE | AS52: =IF(VLOOKUP($N52,Allocators!$E$34:$BB$81,AS$15+1,FALSE)="Yes",TRUE,FALSE) -> FALSE | AT52: =IF(VLOOKUP($N52,Allocators!$E$34:$BB$81,AT$15+1,FALSE)="Yes",TRUE,FALSE) -> FALSE | AU52: =IF(VLOOKUP($N52,Allocators!$E$34:$BB$81,AU$15+1,FALSE)="Yes",TRUE,FALSE) -> FALSE | AV52: =IF(VLOOKUP($N52,Allocators!$E$34:$BB$81,AV$15+1,FALSE)="Yes",TRUE,FALSE) -> FALSE | AW52: =IF(VLOOKUP($N52,Allocators!$E$34:$BB$81,AW$15+1,FALSE)="Yes",TRUE,FALSE) -> FALSE | AX52: =IF(VLOOKUP($N52,Allocators!$E$34:$BB$81,AX$15+1,FALSE)="Yes",TRUE,FALSE) -> FALSE | AY52: =IF(VLOOKUP($N52,Allocators!$E$34:$BB$81,AY$15+1,FALSE)="Yes",TRUE,FALSE) -> FALSE | AZ52: =IF(VLOOKUP($N52,Allocators!$E$34:$BB$81,AZ$15+1,FALSE)="Yes",TRUE,FALSE) -> FALSE | BA52: =IF(VLOOKUP($N52,Allocators!$E$34:$BB$81,BA$15+1,FALSE)="Yes",TRUE,FALSE) -> FALSE | BB52: =IF(VLOOKUP($N52,Allocators!$E$34:$BB$81,BB$15+1,FALSE)="Yes",TRUE,FALSE) -> FALSE | BC52: =IF(VLOOKUP($N52,Allocators!$E$34:$BB$81,BC$15+1,FALSE)="Yes",TRUE,FALSE) -> FALSE | BD52: =IF(VLOOKUP($N52,Allocators!$E$34:$BB$81,BD$15+1,FALSE)="Yes",TRUE,FALSE) -> FALSE | BE52: =IF(VLOOKUP($N52,Allocators!$E$34:$BB$81,BE$15+1,FALSE)="Yes",TRUE,FALSE) -> FALSE | BF52: =IF(VLOOKUP($N52,Allocators!$E$34:$BB$81,BF$15+1,FALSE)="Yes",TRUE,FALSE) -> FALSE | BG52: =IF(VLOOKUP($N52,Allocators!$E$34:$BB$81,BG$15+1,FALSE)="Yes",TRUE,FALSE) -> FALSE | BH52: =IF(VLOOKUP($N52,Allocators!$E$34:$BB$81,BH$15+1,FALSE)="Yes",TRUE,FALSE) -> FALSE | BI52: =IF(VLOOKUP($N52,Allocators!$E$34:$BB$81,BI$15+1,FALSE)="Yes",TRUE,FALSE) -> FALSE | BJ52: =IF(VLOOKUP($N52,Allocators!$E$34:$BB$81,BJ$15+1,FALSE)="Yes",TRUE,FALSE) -> FALSE | BK52: =IF(VLOOKUP($N52,Allocators!$E$34:$BB$81,BK$15+1,FALSE)="Yes",TRUE,FALSE) -> TRUE
C53: =VLOOKUP(N53,Data!$E$233:$G$280,2,FALSE) -> Non-Recurring | D53: =VLOOKUP($N53,Data!$E$233:$G$280,3,FALSE) -> Shared (excluding Land Use Planning) | H53: 0 | I53: FALSE | J53: FALSE | K53: TRUE | M53: Shared | N53: 38 | O53: =IF(VLOOKUP($N53,Allocators!$E$34:$BB$81,O$15+1,FALSE)="Yes",TRUE,FALSE) -> TRUE | P53: =IF(VLOOKUP($N53,Allocators!$E$34:$BB$81,P$15+1,FALSE)="Yes",TRUE,FALSE) -> TRUE | Q53: =IF(VLOOKUP($N53,Allocators!$E$34:$BB$81,Q$15+1,FALSE)="Yes",TRUE,FALSE) -> TRUE | R53: =IF(VLOOKUP($N53,Allocators!$E$34:$BB$81,R$15+1,FALSE)="Yes",TRUE,FALSE) -> TRUE | S53: =IF(VLOOKUP($N53,Allocators!$E$34:$BB$81,S$15+1,FALSE)="Yes",TRUE,FALSE) -> TRUE | T53: =IF(VLOOKUP($N53,Allocators!$E$34:$BB$81,T$15+1,FALSE)="Yes",TRUE,FALSE) -> TRUE | U53: =IF(VLOOKUP($N53,Allocators!$E$34:$BB$81,U$15+1,FALSE)="Yes",TRUE,FALSE) -> TRUE | V53: =IF(VLOOKUP($N53,Allocators!$E$34:$BB$81,V$15+1,FALSE)="Yes",TRUE,FALSE) -> TRUE | W53: =IF(VLOOKUP($N53,Allocators!$E$34:$BB$81,W$15+1,FALSE)="Yes",TRUE,FALSE) -> TRUE | X53: =IF(VLOOKUP($N53,Allocators!$E$34:$BB$81,X$15+1,FALSE)="Yes",TRUE,FALSE) -> TRUE | Y53: =IF(VLOOKUP($N53,Allocators!$E$34:$BB$81,Y$15+1,FALSE)="Yes",TRUE,FALSE) -> TRUE | Z53: =IF(VLOOKUP($N53,Allocators!$E$34:$BB$81,Z$15+1,FALSE)="Yes",TRUE,FALSE) -> TRUE | AA53: =IF(VLOOKUP($N53,Allocators!$E$34:$BB$81,AA$15+1,FALSE)="Yes",TRUE,FALSE) -> TRUE | AB53: =IF(VLOOKUP($N53,Allocators!$E$34:$BB$81,AB$15+1,FALSE)="Yes",TRUE,FALSE) -> TRUE | AC53: =IF(VLOOKUP($N53,Allocators!$E$34:$BB$81,AC$15+1,FALSE)="Yes",TRUE,FALSE) -> TRUE | AD53: =IF(VLOOKUP($N53,Allocators!$E$34:$BB$81,AD$15+1,FALSE)="Yes",TRUE,FALSE) -> TRUE | AE53: =IF(VLOOKUP($N53,Allocators!$E$34:$BB$81,AE$15+1,FALSE)="Yes",TRUE,FALSE) -> TRUE | AF53: =IF(VLOOKUP($N53,Allocators!$E$34:$BB$81,AF$15+1,FALSE)="Yes",TRUE,FALSE) -> TRUE | AG53: =IF(VLOOKUP($N53,Allocators!$E$34:$BB$81,AG$15+1,FALSE)="Yes",TRUE,FALSE) -> TRUE | AH53: =IF(VLOOKUP($N53,Allocators!$E$34:$BB$81,AH$15+1,FALSE)="Yes",TRUE,FALSE) -> TRUE | AI53: =IF(VLOOKUP($N53,Allocators!$E$34:$BB$81,AI$15+1,FALSE)="Yes",TRUE,FALSE) -> TRUE | AJ53: =IF(VLOOKUP($N53,Allocators!$E$34:$BB$81,AJ$15+1,FALSE)="Yes",TRUE,FALSE) -> TRUE | AK53: =IF(VLOOKUP($N53,Allocators!$E$34:$BB$81,AK$15+1,FALSE)="Yes",TRUE,FALSE) -> TRUE | AL53: =IF(VLOOKUP($N53,Allocators!$E$34:$BB$81,AL$15+1,FALSE)="Yes",TRUE,FALSE) -> TRUE | AM53: =IF(VLOOKUP($N53,Allocators!$E$34:$BB$81,AM$15+1,FALSE)="Yes",TRUE,FALSE) -> TRUE | AN53: =IF(VLOOKUP($N53,Allocators!$E$34:$BB$81,AN$15+1,FALSE)="Yes",TRUE,FALSE) -> TRUE | AO53: =IF(VLOOKUP($N53,Allocators!$E$34:$BB$81,AO$15+1,FALSE)="Yes",TRUE,FALSE) -> TRUE | AP53: =IF(VLOOKUP($N53,Allocators!$E$34:$BB$81,AP$15+1,FALSE)="Yes",TRUE,FALSE) -> TRUE | AQ53: =IF(VLOOKUP($N53,Allocators!$E$34:$BB$81,AQ$15+1,FALSE)="Yes",TRUE,FALSE) -> TRUE | AR53: =IF(VLOOKUP($N53,Allocators!$E$34:$BB$81,AR$15+1,FALSE)="Yes",TRUE,FALSE) -> TRUE | AS53: =IF(VLOOKUP($N53,Allocators!$E$34:$BB$81,AS$15+1,FALSE)="Yes",TRUE,FALSE) -> TRUE | AT53: =IF(VLOOKUP($N53,Allocators!$E$34:$BB$81,AT$15+1,FALSE)="Yes",TRUE,FALSE) -> TRUE | AU53: =IF(VLOOKUP($N53,Allocators!$E$34:$BB$81,AU$15+1,FALSE)="Yes",TRUE,FALSE) -> TRUE | AV53: =IF(VLOOKUP($N53,Allocators!$E$34:$BB$81,AV$15+1,FALSE)="Yes",TRUE,FALSE) -> TRUE | AW53: =IF(VLOOKUP($N53,Allocators!$E$34:$BB$81,AW$15+1,FALSE)="Yes",TRUE,FALSE) -> TRUE | AX53: =IF(VLOOKUP($N53,Allocators!$E$34:$BB$81,AX$15+1,FALSE)="Yes",TRUE,FALSE) -> TRUE | AY53: =IF(VLOOKUP($N53,Allocators!$E$34:$BB$81,AY$15+1,FALSE)="Yes",TRUE,FALSE) -> TRUE | AZ53: =IF(VLOOKUP($N53,Allocators!$E$34:$BB$81,AZ$15+1,FALSE)="Yes",TRUE,FALSE) -> TRUE | BA53: =IF(VLOOKUP($N53,Allocators!$E$34:$BB$81,BA$15+1,FALSE)="Yes",TRUE,FALSE) -> TRUE | BB53: =IF(VLOOKUP($N53,Allocators!$E$34:$BB$81,BB$15+1,FALSE)="Yes",TRUE,FALSE) -> TRUE | BC53: =IF(VLOOKUP($N53,Allocators!$E$34:$BB$81,BC$15+1,FALSE)="Yes",TRUE,FALSE) -> TRUE | BD53: =IF(VLOOKUP($N53,Allocators!$E$34:$BB$81,BD$15+1,FALSE)="Yes",TRUE,FALSE) -> TRUE | BE53: =IF(VLOOKUP($N53,Allocators!$E$34:$BB$81,BE$15+1,FALSE)="Yes",TRUE,FALSE) -> TRUE | BF53: =IF(VLOOKUP($N53,Allocators!$E$34:$BB$81,BF$15+1,FALSE)="Yes",TRUE,FALSE) -> TRUE | BG53: =IF(VLOOKUP($N53,Allocators!$E$34:$BB$81,BG$15+1,FALSE)="Yes",TRUE,FALSE) -> TRUE | BH53: =IF(VLOOKUP($N53,Allocators!$E$34:$BB$81,BH$15+1,FALSE)="Yes",TRUE,FALSE) -> TRUE | BI53: =IF(VLOOKUP($N53,Allocators!$E$34:$BB$81,BI$15+1,FALSE)="Yes",TRUE,FALSE) -> TRUE | BJ53: =IF(VLOOKUP($N53,Allocators!$E$34:$BB$81,BJ$15+1,FALSE)="Yes",TRUE,FALSE) -> FALSE | BK53: =IF(VLOOKUP($N53,Allocators!$E$34:$BB$81,BK$15+1,FALSE)="Yes",TRUE,FALSE) -> TRUE
C54: =VLOOKUP(N54,Data!$E$233:$G$280,2,FALSE) -> Non-Recurring | D54: =VLOOKUP($N54,Data!$E$233:$G$280,3,FALSE) -> Land Use Planning | H54: 0 | I54: FALSE | J54: FALSE | K54: TRUE | M54: Shared | N54: 39 | O54: =IF(VLOOKUP($N54,Allocators!$E$34:$BB$81,O$15+1,FALSE)="Yes",TRUE,FALSE) -> TRUE | P54: =IF(VLOOKUP($N54,Allocators!$E$34:$BB$81,P$15+1,FALSE)="Yes",TRUE,FALSE) -> TRUE | Q54: =IF(VLOOKUP($N54,Allocators!$E$34:$BB$81,Q$15+1,FALSE)="Yes",TRUE,FALSE) -> TRUE | R54: =IF(VLOOKUP($N54,Allocators!$E$34:$BB$81,R$15+1,FALSE)="Yes",TRUE,FALSE) -> TRUE | S54: =IF(VLOOKUP($N54,Allocators!$E$34:$BB$81,S$15+1,FALSE)="Yes",TRUE,FALSE) -> TRUE | T54: =IF(VLOOKUP($N54,Allocators!$E$34:$BB$81,T$15+1,FALSE)="Yes",TRUE,FALSE) -> TRUE | U54: =IF(VLOOKUP($N54,Allocators!$E$34:$BB$81,U$15+1,FALSE)="Yes",TRUE,FALSE) -> TRUE | V54: =IF(VLOOKUP($N54,Allocators!$E$34:$BB$81,V$15+1,FALSE)="Yes",TRUE,FALSE) -> TRUE | W54: =IF(VLOOKUP($N54,Allocators!$E$34:$BB$81,W$15+1,FALSE)="Yes",TRUE,FALSE) -> TRUE | X54: =IF(VLOOKUP($N54,Allocators!$E$34:$BB$81,X$15+1,FALSE)="Yes",TRUE,FALSE) -> TRUE | Y54: =IF(VLOOKUP($N54,Allocators!$E$34:$BB$81,Y$15+1,FALSE)="Yes",TRUE,FALSE) -> TRUE | Z54: =IF(VLOOKUP($N54,Allocators!$E$34:$BB$81,Z$15+1,FALSE)="Yes",TRUE,FALSE) -> TRUE | AA54: =IF(VLOOKUP($N54,Allocators!$E$34:$BB$81,AA$15+1,FALSE)="Yes",TRUE,FALSE) -> TRUE | AB54: =IF(VLOOKUP($N54,Allocators!$E$34:$BB$81,AB$15+1,FALSE)="Yes",TRUE,FALSE) -> TRUE | AC54: =IF(VLOOKUP($N54,Allocators!$E$34:$BB$81,AC$15+1,FALSE)="Yes",TRUE,FALSE) -> TRUE | AD54: =IF(VLOOKUP($N54,Allocators!$E$34:$BB$81,AD$15+1,FALSE)="Yes",TRUE,FALSE) -> TRUE | AE54: =IF(VLOOKUP($N54,Allocators!$E$34:$BB$81,AE$15+1,FALSE)="Yes",TRUE,FALSE) -> TRUE | AF54: =IF(VLOOKUP($N54,Allocators!$E$34:$BB$81,AF$15+1,FALSE)="Yes",TRUE,FALSE) -> TRUE | AG54: =IF(VLOOKUP($N54,Allocators!$E$34:$BB$81,AG$15+1,FALSE)="Yes",TRUE,FALSE) -> FALSE | AH54: =IF(VLOOKUP($N54,Allocators!$E$34:$BB$81,AH$15+1,FALSE)="Yes",TRUE,FALSE) -> FALSE | AI54: =IF(VLOOKUP($N54,Allocators!$E$34:$BB$81,AI$15+1,FALSE)="Yes",TRUE,FALSE) -> FALSE | AJ54: =IF(VLOOKUP($N54,Allocators!$E$34:$BB$81,AJ$15+1,FALSE)="Yes",TRUE,FALSE) -> FALSE | AK54: =IF(VLOOKUP($N54,Allocators!$E$34:$BB$81,AK$15+1,FALSE)="Yes",TRUE,FALSE) -> FALSE | AL54: =IF(VLOOKUP($N54,Allocators!$E$34:$BB$81,AL$15+1,FALSE)="Yes",TRUE,FALSE) -> FALSE | AM54: =IF(VLOOKUP($N54,Allocators!$E$34:$BB$81,AM$15+1,FALSE)="Yes",TRUE,FALSE) -> FALSE | AN54: =IF(VLOOKUP($N54,Allocators!$E$34:$BB$81,AN$15+1,FALSE)="Yes",TRUE,FALSE) -> FALSE | AO54: =IF(VLOOKUP($N54,Allocators!$E$34:$BB$81,AO$15+1,FALSE)="Yes",TRUE,FALSE) -> FALSE | AP54: =IF(VLOOKUP($N54,Allocators!$E$34:$BB$81,AP$15+1,FALSE)="Yes",TRUE,FALSE) -> FALSE | AQ54: =IF(VLOOKUP($N54,Allocators!$E$34:$BB$81,AQ$15+1,FALSE)="Yes",TRUE,FALSE) -> FALSE | AR54: =IF(VLOOKUP($N54,Allocators!$E$34:$BB$81,AR$15+1,FALSE)="Yes",TRUE,FALSE) -> FALSE | AS54: =IF(VLOOKUP($N54,Allocators!$E$34:$BB$81,AS$15+1,FALSE)="Yes",TRUE,FALSE) -> FALSE | AT54: =IF(VLOOKUP($N54,Allocators!$E$34:$BB$81,AT$15+1,FALSE)="Yes",TRUE,FALSE) -> FALSE | AU54: =IF(VLOOKUP($N54,Allocators!$E$34:$BB$81,AU$15+1,FALSE)="Yes",TRUE,FALSE) -> FALSE | AV54: =IF(VLOOKUP($N54,Allocators!$E$34:$BB$81,AV$15+1,FALSE)="Yes",TRUE,FALSE) -> FALSE | AW54: =IF(VLOOKUP($N54,Allocators!$E$34:$BB$81,AW$15+1,FALSE)="Yes",TRUE,FALSE) -> FALSE | AX54: =IF(VLOOKUP($N54,Allocators!$E$34:$BB$81,AX$15+1,FALSE)="Yes",TRUE,FALSE) -> FALSE | AY54: =IF(VLOOKUP($N54,Allocators!$E$34:$BB$81,AY$15+1,FALSE)="Yes",TRUE,FALSE) -> FALSE | AZ54: =IF(VLOOKUP($N54,Allocators!$E$34:$BB$81,AZ$15+1,FALSE)="Yes",TRUE,FALSE) -> FALSE | BA54: =IF(VLOOKUP($N54,Allocators!$E$34:$BB$81,BA$15+1,FALSE)="Yes",TRUE,FALSE) -> FALSE | BB54: =IF(VLOOKUP($N54,Allocators!$E$34:$BB$81,BB$15+1,FALSE)="Yes",TRUE,FALSE) -> FALSE | BC54: =IF(VLOOKUP($N54,Allocators!$E$34:$BB$81,BC$15+1,FALSE)="Yes",TRUE,FALSE) -> TRUE | BD54: =IF(VLOOKUP($N54,Allocators!$E$34:$BB$81,BD$15+1,FALSE)="Yes",TRUE,FALSE) -> TRUE | BE54: =IF(VLOOKUP($N54,Allocators!$E$34:$BB$81,BE$15+1,FALSE)="Yes",TRUE,FALSE) -> TRUE | BF54: =IF(VLOOKUP($N54,Allocators!$E$34:$BB$81,BF$15+1,FALSE)="Yes",TRUE,FALSE) -> TRUE | BG54: =IF(VLOOKUP($N54,Allocators!$E$34:$BB$81,BG$15+1,FALSE)="Yes",TRUE,FALSE) -> TRUE | BH54: =IF(VLOOKUP($N54,Allocators!$E$34:$BB$81,BH$15+1,FALSE)="Yes",TRUE,FALSE) -> TRUE | BI54: =IF(VLOOKUP($N54,Allocators!$E$34:$BB$81,BI$15+1,FALSE)="Yes",TRUE,FALSE) -> TRUE | BJ54: =IF(VLOOKUP($N54,Allocators!$E$34:$BB$81,BJ$15+1,FALSE)="Yes",TRUE,FALSE) -> FALSE | BK54: =IF(VLOOKUP($N54,Allocators!$E$34:$BB$81,BK$15+1,FALSE)="Yes",TRUE,FALSE) -> TRUE
A56: =SUM(H56:BE56) -> 0 | G56: Check ---> | H56: =SUM(H16:H54) -> 0
C58: Mapping with tariffs running from top to bottom
C60: This is simply a transpose of the table above, showing tariffs from top to bottom and cost categories from left to right. This is used to allocate the operating expenditure to services in the 'Opex' sheet.
I62: Cost Index ↓ | J62: Step 3 Allocators →
H63: Tariff Index ↓ | I63: 1 | J63: 2 | K63: 3 | L63: 4 | M63: 5 | N63: 6 | O63: 7 | P63: 8 | Q63: 9 | R63: 10 | S63: 11 | T63: 12 | U63: 13 | V63: 14 | W63: 15 | X63: 16 | Y63: 17 | Z63: 18 | AA63: 19 | AB63: 20 | AC63: 21 | AD63: 22 | AE63: 23 | AF63: 24 | AG63: 25 | AH63: 26 | AI63: 27 | AJ63: 28 | AK63: 29 | AL63: 30 | AM63: 31 | AN63: 32 | AO63: 33 | AP63: 34 | AQ63: 35 | AR63: 36 | AS63: 37 | AT63: 38 | AU63: 39
H64: 1 | I64: =TRANSPOSE(Opex_Mapping) -> TRUE | J64: TRUE | K64: FALSE | L64: TRUE | M64: FALSE | N64: TRUE | O64: TRUE | P64: FALSE | Q64: TRUE | R64: TRUE | S64: FALSE | T64: TRUE | U64: TRUE | V64: TRUE | W64: TRUE | X64: FALSE | Y64: TRUE | Z64: TRUE | AA64: FALSE | AB64: TRUE | AC64: TRUE | AD64: FALSE | AE64: TRUE | AF64: FALSE | AG64: TRUE | AH64: TRUE | AI64: FALSE | AJ64: TRUE | AK64: TRUE | AL64: FALSE | AM64: TRUE | AN64: FALSE | AO64: FALSE | AP64: TRUE | AQ64: TRUE | AR64: TRUE | AS64: FALSE | AT64: TRUE | AU64: TRUE
H65: 2 | I65: TRUE | J65: TRUE | K65: TRUE | L65: TRUE | M65: FALSE | N65: TRUE | O65: TRUE | P65: FALSE | Q65: TRUE | R65: TRUE | S65: FALSE | T65: TRUE | U65: TRUE | V65: TRUE | W65: TRUE | X65: FALSE | Y65: TRUE | Z65: TRUE | AA65: FALSE | AB65: TRUE | AC65: TRUE | AD65: FALSE | AE65: TRUE | AF65: FALSE | AG65: TRUE | AH65: TRUE | AI65: FALSE | AJ65: TRUE | AK65: TRUE | AL65: FALSE | AM65: TRUE | AN65: FALSE | AO65: FALSE | AP65: TRUE | AQ65: TRUE | AR65: TRUE | AS65: FALSE | AT65: TRUE | AU65: TRUE
H66: 3 | I66: TRUE | J66: TRUE | K66: FALSE | L66: TRUE | M66: FALSE | N66: TRUE | O66: TRUE | P66: FALSE | Q66: TRUE | R66: TRUE | S66: FALSE | T66: TRUE | U66: TRUE | V66: TRUE | W66: TRUE | X66: FALSE | Y66: TRUE | Z66: TRUE | AA66: FALSE | AB66: TRUE | AC66: TRUE | AD66: FALSE | AE66: TRUE | AF66: FALSE | AG66: TRUE | AH66: TRUE | AI66: FALSE | AJ66: TRUE | AK66: TRUE | AL66: FALSE | AM66: TRUE | AN66: FALSE | AO66: FALSE | AP66: TRUE | AQ66: TRUE | AR66: TRUE | AS66: FALSE | AT66: TRUE | AU66: TRUE
H67: 4 | I67: TRUE | J67: TRUE | K67: FALSE | L67: TRUE | M67: FALSE | N67: TRUE | O67: TRUE | P67: FALSE | Q67: TRUE | R67: TRUE | S67: FALSE | T67: TRUE | U67: TRUE | V67: TRUE | W67: TRUE | X67: FALSE | Y67: TRUE | Z67: TRUE | AA67: FALSE | AB67: TRUE | AC67: TRUE | AD67: FALSE | AE67: TRUE | AF67: FALSE | AG67: TRUE | AH67: TRUE | AI67: FALSE | AJ67: TRUE | AK67: TRUE | AL67: FALSE | AM67: TRUE | AN67: FALSE | AO67: FALSE | AP67: TRUE | AQ67: TRUE | AR67: TRUE | AS67: FALSE | AT67: TRUE | AU67: TRUE
H68: 5 | I68: TRUE | J68: TRUE | K68: FALSE | L68: TRUE | M68: FALSE | N68: TRUE | O68: TRUE | P68: FALSE | Q68: TRUE | R68: TRUE | S68: FALSE | T68: TRUE | U68: TRUE | V68: TRUE | W68: TRUE | X68: FALSE | Y68: TRUE | Z68: TRUE | AA68: FALSE | AB68: TRUE | AC68: TRUE | AD68: FALSE | AE68: TRUE | AF68: FALSE | AG68: TRUE | AH68: TRUE | AI68: FALSE | AJ68: TRUE | AK68: TRUE | AL68: FALSE | AM68: TRUE | AN68: FALSE | AO68: FALSE | AP68: TRUE | AQ68: TRUE | AR68: TRUE | AS68: FALSE | AT68: TRUE | AU68: TRUE
H69: 6 | I69: TRUE | J69: TRUE | K69: FALSE | L69: TRUE | M69: FALSE | N69: TRUE | O69: TRUE | P69: FALSE | Q69: TRUE | R69: TRUE | S69: FALSE | T69: TRUE | U69: TRUE | V69: TRUE | W69: TRUE | X69: FALSE | Y69: TRUE | Z69: TRUE | AA69: FALSE | AB69: TRUE | AC69: TRUE | AD69: FALSE | AE69: TRUE | AF69: FALSE | AG69: TRUE | AH69: TRUE | AI69: FALSE | AJ69: TRUE | AK69: TRUE | AL69: FALSE | AM69: TRUE | AN69: FALSE | AO69: FALSE | AP69: TRUE | AQ69: TRUE | AR69: TRUE | AS69: FALSE | AT69: TRUE | AU69: TRUE
H70: 7 | I70: TRUE | J70: TRUE | K70: FALSE | L70: TRUE | M70: FALSE | N70: TRUE | O70: TRUE | P70: FALSE | Q70: TRUE | R70: TRUE | S70: FALSE | T70: TRUE | U70: TRUE | V70: TRUE | W70: TRUE | X70: FALSE | Y70: TRUE | Z70: TRUE | AA70: FALSE | AB70: TRUE | AC70: TRUE | AD70: FALSE | AE70: TRUE | AF70: FALSE | AG70: TRUE | AH70: TRUE | AI70: FALSE | AJ70: TRUE | AK70: TRUE | AL70: FALSE | AM70: TRUE | AN70: FALSE | AO70: FALSE | AP70: TRUE | AQ70: TRUE | AR70: TRUE | AS70: FALSE | AT70: TRUE | AU70: TRUE
H71: 8 | I71: TRUE | J71: TRUE | K71: FALSE | L71: TRUE | M71: FALSE | N71: TRUE | O71: TRUE | P71: FALSE | Q71: TRUE | R71: TRUE | S71: FALSE | T71: TRUE | U71: TRUE | V71: TRUE | W71: TRUE | X71: FALSE | Y71: TRUE | Z71: TRUE | AA71: FALSE | AB71: TRUE | AC71: TRUE | AD71: FALSE | AE71: TRUE | AF71: FALSE | AG71: TRUE | AH71: TRUE | AI71: FALSE | AJ71: TRUE | AK71: TRUE | AL71: FALSE | AM71: TRUE | AN71: FALSE | AO71: FALSE | AP71: TRUE | AQ71: TRUE | AR71: TRUE | AS71: FALSE | AT71: TRUE | AU71: TRUE
H72: 9 | I72: TRUE | J72: TRUE | K72: FALSE | L72: TRUE | M72: FALSE | N72: TRUE | O72: TRUE | P72: FALSE | Q72: TRUE | R72: TRUE | S72: FALSE | T72: TRUE | U72: TRUE | V72: TRUE | W72: TRUE | X72: FALSE | Y72: TRUE | Z72: TRUE | AA72: FALSE | AB72: TRUE | AC72: TRUE | AD72: FALSE | AE72: TRUE | AF72: FALSE | AG72: TRUE | AH72: TRUE | AI72: FALSE | AJ72: TRUE | AK72: TRUE | AL72: FALSE | AM72: TRUE | AN72: FALSE | AO72: FALSE | AP72: TRUE | AQ72: TRUE | AR72: TRUE | AS72: FALSE | AT72: TRUE | AU72: TRUE
H73: 10 | I73: TRUE | J73: TRUE | K73: FALSE | L73: TRUE | M73: FALSE | N73: TRUE | O73: TRUE | P73: FALSE | Q73: TRUE | R73: TRUE | S73: FALSE | T73: TRUE | U73: TRUE | V73: TRUE | W73: TRUE | X73: FALSE | Y73: TRUE | Z73: TRUE | AA73: FALSE | AB73: TRUE | AC73: TRUE | AD73: FALSE | AE73: TRUE | AF73: FALSE | AG73: TRUE | AH73: TRUE | AI73: FALSE | AJ73: TRUE | AK73: TRUE | AL73: FALSE | AM73: TRUE | AN73: FALSE | AO73: FALSE | AP73: TRUE | AQ73: TRUE | AR73: TRUE | AS73: FALSE | AT73: TRUE | AU73: TRUE
H74: 11 | I74: TRUE | J74: TRUE | K74: FALSE | L74: TRUE | M74: FALSE | N74: TRUE | O74: TRUE | P74: FALSE | Q74: TRUE | R74: TRUE | S74: FALSE | T74: TRUE | U74: TRUE | V74: TRUE | W74: TRUE | X74: FALSE | Y74: TRUE | Z74: TRUE | AA74: FALSE | AB74: TRUE | AC74: TRUE | AD74: FALSE | AE74: TRUE | AF74: FALSE | AG74: TRUE | AH74: TRUE | AI74: FALSE | AJ74: TRUE | AK74: TRUE | AL74: FALSE | AM74: TRUE | AN74: FALSE | AO74: FALSE | AP74: TRUE | AQ74: TRUE | AR74: TRUE | AS74: FALSE | AT74: TRUE | AU74: TRUE
H75: 12 | I75: TRUE | J75: TRUE | K75: FALSE | L75: TRUE | M75: FALSE | N75: TRUE | O75: TRUE | P75: FALSE | Q75: TRUE | R75: TRUE | S75: FALSE | T75: TRUE | U75: TRUE | V75: TRUE | W75: TRUE | X75: FALSE | Y75: TRUE | Z75: TRUE | AA75: FALSE | AB75: TRUE | AC75: TRUE | AD75: FALSE | AE75: TRUE | AF75: FALSE | AG75: TRUE | AH75: TRUE | AI75: FALSE | AJ75: TRUE | AK75: TRUE | AL75: FALSE | AM75: TRUE | AN75: FALSE | AO75: FALSE | AP75: TRUE | AQ75: TRUE | AR75: TRUE | AS75: FALSE | AT75: TRUE | AU75: TRUE
H76: 13 | I76: TRUE | J76: TRUE | K76: FALSE | L76: TRUE | M76: FALSE | N76: TRUE | O76: TRUE | P76: FALSE | Q76: TRUE | R76: TRUE | S76: FALSE | T76: TRUE | U76: TRUE | V76: TRUE | W76: TRUE | X76: FALSE | Y76: TRUE | Z76: TRUE | AA76: FALSE | AB76: TRUE | AC76: TRUE | AD76: FALSE | AE76: TRUE | AF76: FALSE | AG76: TRUE | AH76: TRUE | AI76: FALSE | AJ76: TRUE | AK76: TRUE | AL76: FALSE | AM76: TRUE | AN76: FALSE | AO76: FALSE | AP76: TRUE | AQ76: TRUE | AR76: TRUE | AS76: FALSE | AT76: TRUE | AU76: TRUE
H77: 14 | I77: TRUE | J77: TRUE | K77: FALSE | L77: TRUE | M77: FALSE | N77: TRUE | O77: TRUE | P77: FALSE | Q77: TRUE | R77: TRUE | S77: FALSE | T77: TRUE | U77: TRUE | V77: TRUE | W77: TRUE | X77: FALSE | Y77: TRUE | Z77: TRUE | AA77: FALSE | AB77: TRUE | AC77: TRUE | AD77: FALSE | AE77: TRUE | AF77: FALSE | AG77: TRUE | AH77: TRUE | AI77: FALSE | AJ77: TRUE | AK77: TRUE | AL77: FALSE | AM77: TRUE | AN77: FALSE | AO77: FALSE | AP77: TRUE | AQ77: TRUE | AR77: TRUE | AS77: FALSE | AT77: TRUE | AU77: TRUE
